Workbook

Sheet 1.2
A2: C1.2 | B2: GENERAL REQUIREMENTS AND PROVISIONS | I2: SCHEDULE A
A5: ITEM | E5: DESCRIPTION | F5: UNIT | G5: QTY | H5: RATE | I5: AMT
A7: C1.2.1 | E7: Environmental Management:
B9: C1.2.1.1 | E9: Monitoring of compliance with and reporting on the EMP | F9: month | G9: 18 | I9: =IF(ISNUMBER(G9),G9*H9,IF(G9="-","rate only"," ")) -> 0
B11: C1.2.1.2 | E11: Dedicated environmental officer (if specified in the Contract Documentation) | F11: month | G11: 18 | I11: =IF(ISNUMBER(G11),G11*H11,IF(G11="-","rate only"," ")) -> 0
A13: C1.2.2 | E13: Programming and Reporting:
B15: C1.2.2.3 | E15: Submission of a Scheme 2 Initial Programme | F15: lump sum | G15: 1 | I15: =IF(ISNUMBER(G15),G15*H15,IF(G15="-","rate only"," ")) -> 0
B17: C1.2.2.4 | E17: Submission of a Scheme 2 Full Programme | F17: lump sum | G17: 1 | I17: =IF(ISNUMBER(G17),G17*H17,IF(G17="-","rate only"," ")) -> 0
B19: C1.2.2.5 | E19: Reviewing and updating a Scheme 2 programme every month | F19: month | G19: 18 | I19: =IF(ISNUMBER(G19),G19*H19,IF(G19="-","rate only"," ")) -> 0
B21: C1.2.2.6 | E21: Preparation and submission of all information and reports specified in the Contract Documentation | F21: month | G21: 18 | I21: =IF(ISNUMBER(G21),G21*H21,IF(G21="-","rate only"," ")) -> 0
A23: C1.2.3 | E23: Routine road maintenance of existing public roads within the Site of the Works or other public roads outside the Site of the Works which are used as detours:
B25: C1.2.3.1 | E25: Grass cutting | F25: ha | G25: 220 | I25: =IF(ISNUMBER(G25),G25*H25,IF(G25="-","rate only"," ")) -> 0
B27: C1.2.3.2 | E27: Drain cleaning | F27: km | G27: 33 | I27: =IF(ISNUMBER(G27),G27*H27,IF(G27="-","rate only"," ")) -> 0
B29: C1.2.3.3 | E29: Cleaning out culverts | F29: m³ | G29: 90 | I29: =IF(ISNUMBER(G29),G29*H29,IF(G29="-","rate only"," ")) -> 0
B31: C1.2.3.4 | E31: Collection of rubbish / litter | F31: km | G31: 33 | I31: =IF(ISNUMBER(G31),G31*H31,IF(G31="-","rate only"," ")) -> 0
B33: C1.2.3.8 | E33: Replacement of damaged guardrails including posts | F33: m | G33: 400 | I33: =IF(ISNUMBER(G33),G33*H33,IF(G33="-","rate only"," ")) -> 0
B35: C1.2.3.10 | E35: Watering of temporary gravel deviations and existing roads used as detours | F35: kilolitre | G35: 2500 | I35: =IF(ISNUMBER(G35),G35*H35,IF(G35="-","rate only"," ")) -> 0
B37: C1.2.3.11 | E37: Other road maintenance work ordered by the Engineer | F37: prov sum | G37: 1 | H37: 100,000.00 | I37: 100,000.00
B39: C1.2.3.12 | E39: Handling cost, profit and all other charges in respect of item C1.2.3.11 | F39: % | G39: 100000 | I39: =IF(ISNUMBER(G39),G39*H39,IF(G39="-","rate only"," ")) -> 0
A41: C1.2.4 | E41: Stakeholder liaison | F41: month | G41: 18 | I41: =IF(ISNUMBER(G41),G41*H41,IF(G41="-","rate only"," ")) -> 0
A43: C1.2.5 | E43: Safety:
B45: C1.2.5.1 | E45: Health and safety plan | F45: lump sum | G45: 1 | I45: =IF(ISNUMBER(G45),G45*H45,IF(G45="-","rate only"," ")) -> 0
B47: C1.2.5.2 | E47: Implementation of health and safety plan | F47: month | G47: 18 | I47: =IF(ISNUMBER(G47),G47*H47,IF(G47="-","rate only"," ")) -> 0
A49: C1.2.7 | E49: Road safety audits:
B51: C1.2.7.1 | E51: Stage 4 work zone traffic management audit | F51: prov sum | G51: 1 | H51: 100,000.00 | I51: =IF(ISNUMBER(G51),G51*H51,IF(G51="-","rate only"," ")) -> 100,000.00
B53: C1.2.7.2 | E53: Handling cost, profit and all other charges in respect of item C1.2.7.1 | F53: % | G53: 100000 | I53: =IF(ISNUMBER(G53),G53*H53,IF(G53="-","rate only"," ")) -> 0
B55: C1.2.7.3 | E55: Stage 5 pre-opening stage traffic safety audit | F55: prov sum | G55: 1 | H55: 60,000.00 | I55: =IF(ISNUMBER(G55),G55*H55,IF(G55="-","rate only"," ")) -> 60,000.00
A57: CARRIED FORWARD | I57: =SUM(I7:I55) -> 260,000.00
A60: BROUGHT FORWARD | I60: =I57 -> 260,000.00
B63: C1.2.7.4 | E63: Handling cost, profit and all other charges in respect of item C1.2.7.3 | F63: % | G63: 60000 | I63: =IF(ISNUMBER(G63),G63*H63,IF(G63="-","rate only"," ")) -> 0
A65: C1.2.8 | E65: Dayworks:
B67: C1.2.8.1 | E67: Personnel:
C69: (a) | E69: Unskilled labourer | F69: h | G69: 120 | I69: =IF(ISNUMBER(G69),G69*H69,IF(G69="-","rate only"," ")) -> 0
C71: (b) | E71: Semi-skilled labourer | F71: h | G71: 80 | I71: =IF(ISNUMBER(G71),G71*H71,IF(G71="-","rate only"," ")) -> 0
C73: (c) | E73: Skilled labourer | F73: h | G73: 80 | I73: =IF(ISNUMBER(G73),G73*H73,IF(G73="-","rate only"," ")) -> 0
C75: (d) | E75: Gang leader | F75: h | G75: 40 | I75: =IF(ISNUMBER(G75),G75*H75,IF(G75="-","rate only"," ")) -> 0
C77: (e) | E77: Foreman | F77: h | G77: 40 | I77: =IF(ISNUMBER(G77),G77*H77,IF(G77="-","rate only"," ")) -> 0
C79: (f) | E79: Skilled Artisan | F79: h | G79: 40 | I79: =IF(ISNUMBER(G79),G79*H79,IF(G79="-","rate only"," ")) -> 0
C81: (g) | E81: Flagmen | F81: h | G81: 80 | I81: =IF(ISNUMBER(G81),G81*H81,IF(G81="-","rate only"," ")) -> 0
B83: C1.2.8.2 | E83: Construction equipment:
C85: (a) | E85: Motor grader (128 kW) | F85: h | G85: 40 | I85: =IF(ISNUMBER(G85),G85*H85,IF(G85="-","rate only"," ")) -> 0
C87: (b) | E87: Vibratory roller (self-propelled, 80 kW) | F87: h | G87: 40 | I87: =IF(ISNUMBER(G87),G87*H87,IF(G87="-","rate only"," ")) -> 0
C89: (c) | E89: Pneumatic roller (60 kW, 20 ton) | F89: h | G89: 40 | I89: =IF(ISNUMBER(G89),G89*H89,IF(G89="-","rate only"," ")) -> 0
C91: (d) | E91: Front end loader ( 1.9 m³, 97 kW) | F91: h | G91: 40 | I91: =IF(ISNUMBER(G91),G91*H91,IF(G91="-","rate only"," ")) -> 0
C93: (e) | E93: Tractor loader backhoe (CAT 416 or similar) | F93: h | G93: 40 | I93: =IF(ISNUMBER(G93),G93*H93,IF(G93="-","rate only"," ")) -> 0
C95: (f) | E95: Excavator (96 kW) | F95: h | G95: 40 | I95: =IF(ISNUMBER(G95),G95*H95,IF(G95="-","rate only"," ")) -> 0
C97: (h) | E97: Other equipment:
D99: (i) | E99: Dozer (123 kW) | F99: h | G99: 40 | I99: =IF(ISNUMBER(G99),G99*H99,IF(G99="-","rate only"," ")) -> 0
D101: (ii) | E101: Truck (6 m3) | F101: h | G101: 40 | I101: =IF(ISNUMBER(G101),G101*H101,IF(G101="-","rate only"," ")) -> 0
D103: (iii) | E103: Water spray truck (9 000 litre) | F103: h | G103: 40 | I103: =IF(ISNUMBER(G103),G103*H103,IF(G103="-","rate only"," ")) -> 0
B105: C1.2.8.3 | E105: Vehicles:
C107: (a) | E107: Light delivery vehicle (2 000 cc) | F107: km | G107: 50 | I107: =IF(ISNUMBER(G107),G107*H107,IF(G107="-","rate only"," ")) -> 0
C109: (b) | E109: Flatbed truck | F109: km | G109: 50 | I109: =IF(ISNUMBER(G109),G109*H109,IF(G109="-","rate only"," ")) -> 0
B111: C1.2.8.4 | E111: Materials:
C113: (a) | E113: Procurement of materials | F113: prov sum | G113: 1 | H113: 50,000.00 | I113: =IF(ISNUMBER(G113),G113*H113,IF(G113="-","rate only"," ")) -> 50,000.00
C115: (b) | E115: Handling cost, profit and all other charges in respect of item C1.2.8.4(a) | F115: % | G115: 50000 | I115: =IF(ISNUMBER(G115),G115*H115,IF(G115="-","rate only"," ")) -> 0
A117: C1.2.9 | E117: Disposal of non-useable assets:
A120: CARRIED FORWARD | I120: =SUM(I59:I118) -> 310,000.00
A123: BROUGHT FORWARD | I123: =I120 -> 310,000.00
B125: C1.2.9.1 | E125: Disposal of non-useable assets identified in the Contract Documentation at time of tender
C127: (a) | E127: Milled asphalt material as listed in Section B, A1.2.3.12 | F127: t | G127: 100000 | I127: =IF(ISNUMBER(G127),G127*H127,IF(G127="-","rate only"," ")) -> 0
B129: C1.2.9.2 | E129: Disposal of non-useable assets not identified at time of tender | F129: prov sum | G129: 1 | H129: 50,000.00 | I129: =IF(ISNUMBER(G129),G129*H129,IF(G129="-","rate only"," ")) -> 50,000.00
B131: C1.2.9.3 | E131: Handling cost, profit and all other charges in respect of item C1.2.9.2 | F131: % | G131: 50000 | I131: =IF(ISNUMBER(G131),G131*H131,IF(G131="-","rate only"," ")) -> 0
A133: PC1.2.10 | E133: Dispute Adjudication Board (DAB)
B135: PC1.2.10.1 | E135: Employer’s contribution to DAB (50%) | F135: PC sum | G135: 1 | H135: 200,000.00 | I135: =IF(ISNUMBER(G135),G135*H135,IF(G135="-","rate only"," ")) -> 200,000.00
A182: TOTAL CARRIED FORWARD TO SUMMARY | I182: =SUM(I122:I180) -> 560,000.00

Sheet 1.3
A2: C1.3 | B2: CONTRACTOR’S SITE ESTABLISHMENT AND GENERAL OBLIGATIONS | I2: SCHEDULE A
A5: ITEM | E5: DESCRIPTION | F5: UNIT | G5: QTY | H5: RATE | I5: AMT
A7: C1.3.1 | E7: The Contractor's general obligations:
B9: C1.3.1.1 | E9: Fixed obligations | F9: lump sum | G9: 1 | I9: =IF(ISNUMBER(G9),G9*H9,IF(G9="-","rate only"," ")) -> 0
B11: C1.3.1.2 | E11: Value-related obligations | F11: lump sum | G11: 1 | I11: =IF(ISNUMBER(G11),G11*H11,IF(G11="-","rate only"," ")) -> 0
B13: PC1.3.1.3 | E13: Time-related obligations
C15: (a) | E15: Mobilisation period | F15: month | G15: 2 | I15: =IF(ISNUMBER(G15),G15*H15,IF(G15="-","rate only"," ")) -> 0
C17: (b) | E17: Execution of the works | F17: month | G17: 18 | I17: =IF(ISNUMBER(G17),G17*H17,IF(G17="-","rate only"," ")) -> 0
B19: PC1.3.1.4 | E19: Suspension Cost
C21: (a) | E21: De-establishment | F21: No. | G21: 1 | I21: =IF(ISNUMBER(G21),G21*H21,IF(G21="-","rate only"," ")) -> 0
C23: (b) | E23: Re-establishment | F23: No. | G23: 1 | I23: =IF(ISNUMBER(G23),G23*H23,IF(G23="-","rate only"," ")) -> 0
C25: (c) | E25: Suspension period | F25: month | G25: 3 | I25: =IF(ISNUMBER(G25),G25*H25,IF(G25="-","rate only"," ")) -> 0
C27: (d) | E27: Engineer's cost | F27: PC sum | G27: 1 | H27: 250,000.00 | I27: =IF(ISNUMBER(G27),G27*H27,IF(G27="-","rate only"," ")) -> 250,000.00
A29: C1.3.2 | E29: Contract sign boards | F29: m² | G29: 10 | I29: =IF(ISNUMBER(G29),G29*H29,IF(G29="-","rate only"," ")) -> 0
A69: TOTAL CARRIED FORWARD TO SUMMARY | I69: =SUM(I7:I67) -> 250,000.00

Sheet 1.4
A2: C1.4 | B2: FACILITIES FOR THE ENGINEER | I2: SCHEDULE A
A5: ITEM | E5: DESCRIPTION | F5: UNIT | G5: QTY | H5: RATE | I5: AMT
A7: C1.4.1 | E7: Site accommodation:
B9: C1.4.1.1 | E9: Offices and conference room | F9: m² | G9: 60 | I9: =IF(ISNUMBER(G9),G9*H9,IF(G9="-","rate only"," ")) -> 0
B11: C1.4.1.2 | E11: Laboratories | F11: m² | G11: 50 | I11: =IF(ISNUMBER(G11),G11*H11,IF(G11="-","rate only"," ")) -> 0
B13: C1.4.1.3 | E13: Open concrete working floors and verandas | F13: m² | G13: 170 | I13: =IF(ISNUMBER(G13),G13*H13,IF(G13="-","rate only"," ")) -> 0
B15: C1.4.1.4 | E15: Roofs over open concrete working floors and verandas | F15: m² | G15: 170 | I15: =IF(ISNUMBER(G15),G15*H15,IF(G15="-","rate only"," ")) -> 0
B17: C1.4.1.5 | E17: Store rooms inside the laboratory | F17: m² | G17: 20 | I17: =IF(ISNUMBER(G17),G17*H17,IF(G17="-","rate only"," ")) -> 0
B19: C1.4.1.6 | E19: Car ports | F19: No. | G19: 10 | I19: =IF(ISNUMBER(G19),G19*H19,IF(G19="-","rate only"," ")) -> 0
B21: C1.4.1.7 | E21: Ablution units:
C23: (a) | E23: Site unit | F23: No. | G23: 1 | I23: =IF(ISNUMBER(G23),G23*H23,IF(G23="-","rate only"," ")) -> 0
C25: (b) | E25: Laboratory unit | F25: No. | G25: 3 | I25: =IF(ISNUMBER(G25),G25*H25,IF(G25="-","rate only"," ")) -> 0
A27: C1.4.2 | E27: Items measured by area:
B29: C1.4.2.1 | E29: Shelving as specified, complete with brackets | F29: m² | G29: 25 | I29: =IF(ISNUMBER(G29),G29*H29,IF(G29="-","rate only"," ")) -> 0
B31: C1.4.2.2 | E31: Work benches with a concrete slab top | F31: m² | G31: 10 | I31: =IF(ISNUMBER(G31),G31*H31,IF(G31="-","rate only"," ")) -> 0
B33: C1.4.2.4 | E33: Constant-temperature baths of concrete and/or plastered brick | F33: m² | G33: 4 | I33: =IF(ISNUMBER(G33),G33*H33,IF(G33="-","rate only"," ")) -> 0
B35: C1.4.2.5 | E35: Concrete footings and pedestals for laboratory equipment | F35: m² | G35: 2 | I35: =IF(ISNUMBER(G35),G35*H35,IF(G35="-","rate only"," ")) -> 0
B37: C1.4.2.7 | E37: Venetian blinds | F37: m² | G37: 25 | I37: =IF(ISNUMBER(G37),G37*H37,IF(G37="-","rate only"," ")) -> 0
B39: C1.4.2.8 | E39: Notice boards | F39: m² | G39: 4 | I39: =IF(ISNUMBER(G39),G39*H39,IF(G39="-","rate only"," ")) -> 0
B41: C1.4.2.9 | E41: White boards | F41: m² | G41: 2 | I41: =IF(ISNUMBER(G41),G41*H41,IF(G41="-","rate only"," ")) -> 0
A43: C1.4.3 | E43: Items measured by number:
B45: C1.4.3.1 | E45: Office swivel chair | F45: No. | G45: 2 | I45: =IF(ISNUMBER(G45),G45*H45,IF(G45="-","rate only"," ")) -> 0
B47: C1.4.3.2 | E47: Office chair | F47: No. | G47: 20 | I47: =IF(ISNUMBER(G47),G47*H47,IF(G47="-","rate only"," ")) -> 0
B49: C1.4.3.3 | E49: Draughtsman's stool | F49: No. | G49: 3 | I49: =IF(ISNUMBER(G49),G49*H49,IF(G49="-","rate only"," ")) -> 0
B51: C1.4.3.5 | E51: Office desk with 3 drawers (at least one lockable drawer) | F51: No. | G51: 4 | I51: =IF(ISNUMBER(G51),G51*H51,IF(G51="-","rate only"," ")) -> 0
B53: C1.4.3.7 | E53: Drawing table | F53: No. | G53: 3 | I53: =IF(ISNUMBER(G53),G53*H53,IF(G53="-","rate only"," ")) -> 0
B55: C1.4.3.8 | E55: Conference table | F55: No. | G55: 1 | I55: =IF(ISNUMBER(G55),G55*H55,IF(G55="-","rate only"," ")) -> 0
B57: C1.4.3.9 | E57: Bookcase | F57: No. | G57: 3 | I57: =IF(ISNUMBER(G57),G57*H57,IF(G57="-","rate only"," ")) -> 0
B59: C1.4.3.10 | E59: Filing cabinet | F59: No. | G59: 1 | I59: =IF(ISNUMBER(G59),G59*H59,IF(G59="-","rate only"," ")) -> 0
B61: C1.4.3.11 | E61: General purpose steel cabinet with shelves | F61: No. | G61: 5 | I61: =IF(ISNUMBER(G61),G61*H61,IF(G61="-","rate only"," ")) -> 0
A64: CARRIED FORWARD | I64: =SUM(I7:I62) -> 0.00
A67: BROUGHT FORWARD | I67: =I64 -> 0.00
B69: C1.4.3.12 | E69: Wall mounted pivot plan filing system | F69: No. | G69: 1 | I69: =IF(ISNUMBER(G69),G69*H69,IF(G69="-","rate only"," ")) -> 0
B71: C1.4.3.13 | E71: 220/250 volt power outlet plug point | F71: No. | G71: 18 | I71: =IF(ISNUMBER(G71),G71*H71,IF(G71="-","rate only"," ")) -> 0
B73: C1.4.3.14 | E73: 400/231 volt 3-phase power outlet plug point | F73: No. | G73: 3 | I73: =IF(ISNUMBER(G73),G73*H73,IF(G73="-","rate only"," ")) -> 0
B75: C1.4.3.16 | E75: Single 1 500 mm, 22 watt LED tube ceiling light | F75: No. | G75: 11 | I75: =IF(ISNUMBER(G75),G75*H75,IF(G75="-","rate only"," ")) -> 0
B77: C1.4.3.19 | E77: Wash-hand basin | F77: No. | G77: 3 | I77: =IF(ISNUMBER(G77),G77*H77,IF(G77="-","rate only"," ")) -> 0
B79: C1.4.3.21 | E79: Extractor fan | F79: No. | G79: 1 | I79: =IF(ISNUMBER(G79),G79*H79,IF(G79="-","rate only"," ")) -> 0
B81: C1.4.3.23 | E81: Fire extinguisher 9,0 kg, dry powder type | F81: No. | G81: 2 | I81: =IF(ISNUMBER(G81),G81*H81,IF(G81="-","rate only"," ")) -> 0
B83: C1.4.3.24 | E83: Air-conditioning unit | F83: No. | G83: 4 | I83: =IF(ISNUMBER(G83),G83*H83,IF(G83="-","rate only"," ")) -> 0
B85: C1.4.3.27 | E85: Waste paper basket | F85: No. | G85: 6 | I85: =IF(ISNUMBER(G85),G85*H85,IF(G85="-","rate only"," ")) -> 0
B87: C1.4.3.28 | E87: UPS / Voltage stabiliser (Refer to A1.4.7.3.b) | F87: No. | G87: 3 | I87: =IF(ISNUMBER(G87),G87*H87,IF(G87="-","rate only"," ")) -> 0
B89: C1.4.3.29 | E89: A3 / A4 colour printer, copier, scanner | F89: No. | G89: 1 | I89: =IF(ISNUMBER(G89),G89*H89,IF(G89="-","rate only"," ")) -> 0
B91: C1.4.3.31 | E91: Rain gauge | F91: No. | G91: 1 | I91: =IF(ISNUMBER(G91),G91*H91,IF(G91="-","rate only"," ")) -> 0
B93: C1.4.3.37 | E93: First aid kit | F93: No. | G93: 1 | I93: =IF(ISNUMBER(G93),G93*H93,IF(G93="-","rate only"," ")) -> 0
A95: C1.4.4 | E95: Prime cost items:
B97: C1.4.4.5 | E97: The provision of internet connectivity and WiFi data for Engineer’s site staff | F97: PC sum | G97: 1 | H97: 240,000.00 | I97: =IF(ISNUMBER(G97),G97*H97,IF(G97="-","rate only"," ")) -> 240,000.00
B99: C1.4.4.6 | E99: Handling costs and profit in respect of item C1.4.4.5 | F99: % | G99: 240000 | I99: =IF(ISNUMBER(G99),G99*H99,IF(G99="-","rate only"," ")) -> 0
B101: C1.4.4.7 | E101: The provision of paper and ink for a combination colour printer/copier/scanner | F101: PC sum | G101: 1 | H101: 120,000.00 | I101: =IF(ISNUMBER(G101),G101*H101,IF(G101="-","rate only"," ")) -> 120,000.00
B103: C1.4.4.8 | E103: Handling costs and profit in respect of item C1.4.4.7 | F103: % | G103: 120000 | I103: =IF(ISNUMBER(G103),G103*H103,IF(G103="-","rate only"," ")) -> 0
B105: C1.4.4.11 | E105: The provision of a complete 440/231 volt three phase electrical power installation, including all poles, insulators, wiring, switchboards, mains connections, meters etc (Refer to A1.4.7.3.b) | F105: PC sum | G105: 1 | H105: 500,000.00 | I105: =IF(ISNUMBER(G105),G105*H105,IF(G105="-","rate only"," ")) -> 500,000.00
B107: C1.4.4.12 | E107: Handling costs and profit in respect of item C1.4.4.11 | F107: % | G107: =I105 -> 500000 | I107: =IF(ISNUMBER(G107),G107*H107,IF(G107="-","rate only"," ")) -> 0
A109: C1.4.5 | E109: Services at site offices, laboratories and site accommodation:
B111: C1.4.5.1 | E111: Fixed costs | F111: lump sum | G111: 1 | I111: =IF(ISNUMBER(G111),G111*H111,IF(G111="-","rate only"," ")) -> 0
B113: C1.4.5.2 | E113: Running costs | F113: month | G113: 18 | I113: =IF(ISNUMBER(G113),G113*H113,IF(G113="-","rate only"," ")) -> 0
A116: CARRIED FORWARD | I116: =SUM(I66:I114) -> 860,000.00
A119: BROUGHT FORWARD | I119: =I116 -> 860,000.00
A121: C1.4.7 | E121: Site inspection transport:
B123: C1.4.7.1 | E123: Provision of a bus, mini-bus or combi van for site inspection purposes (2000 cc, 11 seater) | F123: per day | G123: 50 | I123: =IF(ISNUMBER(G123),G123*H123,IF(G123="-","rate only"," ")) -> 0
B125: C1.4.7.2 | E125: Travel on site | F125: km | G125: 4300 | I125: =IF(ISNUMBER(G125),G125*H125,IF(G125="-","rate only"," ")) -> 0
A127: C1.4.8 | E127: Site security measures for the Engineer’s facilities:
B129: C1.4.8.1 | E129: Supply and installation of all required security measures at the Engineer’s site offices and laboratories | F129: lump sum | G129: 1 | I129: =IF(ISNUMBER(G129),G129*H129,IF(G129="-","rate only"," ")) -> 0
B131: C1.4.8.2 | E131: Provision of security guards / watchmen and an armed response service at the Engineer’s site offices and laboratories | F131: month | G131: 18 | I131: =IF(ISNUMBER(G131),G131*H131,IF(G131="-","rate only"," ")) -> 0
A173: TOTAL CARRIED FORWARD TO SUMMARY | I173: =SUM(I118:I171) -> 860,000.00

Sheet 1.5
A2: C1.5 | B2: ACCOMMODATION OF TRAFFIC | I2: SCHEDULE A
A5: ITEM | E5: DESCRIPTION | F5: UNIT | G5: QTY | H5: RATE | I5: AMT
A7: C1.5.2 | E7: Accommodation of vehicular traffic | F7: month | G7: 18 | I7: =IF(ISNUMBER(G7),G7*H7,IF(G7="-","rate only"," ")) -> 0
A9: C1.5.3 | E9: Liaison with traffic authorities | F9: month | G9: 18 | I9: =IF(ISNUMBER(G9),G9*H9,IF(G9="-","rate only"," ")) -> 0
A11: C1.5.7 | E11: Temporary traffic control facilities:
B13: C1.5.7.1 | E13: Delineators including mounting bases and ballast:
C15: (a) | E15: Single sided, reversible left or right (200 mm x 800 mm sides) | F15: No. | G15: 5800 | I15: =IF(ISNUMBER(G15),G15*H15,IF(G15="-","rate only"," ")) -> 0
C17: (b) | E17: Double sided, reversible left or right (200 mm x 800 mm sides) | F17: No. | G17: 1000 | I17: =IF(ISNUMBER(G17),G17*H17,IF(G17="-","rate only"," ")) -> 0
B19: C1.5.7.3 | E19: Flagmen | F19: man-shift | G19: 6000 | I19: =IF(ISNUMBER(G19),G19*H19,IF(G19="-","rate only"," ")) -> 0
B21: C1.5.7.5 | E21: Provision of illuminated traffic signs:
C23: (d) | E23: Illuminated road sign – TW series (1200x1600) | F23: No. | G23: 10 | I23: =IF(ISNUMBER(G23),G23*H23,IF(G23="-","rate only"," ")) -> 0
B25: C1.5.7.6 | E25: Maintenance of illuminated traffic signs:
C27: (d) | E27: Illuminated road sign – TW series (1200 x 1600) | F27: month | G27: 18 | I27: =IF(ISNUMBER(G27),G27*H27,IF(G27="-","rate only"," ")) -> 0
A29: C1.5.8 | E29: Traffic safety officer | F29: Man-month | G29: 18 | I29: =IF(ISNUMBER(G29),G29*H29,IF(G29="-","rate only"," ")) -> 0
A31: C1.5.9 | E31: Traffic safety vehicle | F31: month | G31: 18 | I31: =IF(ISNUMBER(G31),G31*H31,IF(G31="-","rate only"," ")) -> 0
A33: C1.5.10 | E33: Tow trucks:
B35: C1.5.10.2 | E35: Provision of a tow truck on call for heavy vehicles weighing two tonnes or more | F35: month | G35: 18 | I35: =IF(ISNUMBER(G35),G35*H35,IF(G35="-","rate only"," ")) -> 0
A37: C1.5.11 | E37: Provision of safety equipment for visitors:
B39: C1.5.11.1 | E39: Provision of reflective safety vests for visitors | F39: No. | G39: 10 | I39: =IF(ISNUMBER(G39),G39*H39,IF(G39="-","rate only"," ")) -> 0
B41: C1.5.11.2 | E41: Provision of hard hats for visitors | F41: No. | G41: 10 | I41: =IF(ISNUMBER(G41),G41*H41,IF(G41="-","rate only"," ")) -> 0
B43: PC1.5.11.3 | E43: Emergency rotating mini lightbar for mobile use | F43: No. | G43: 5 | I43: =IF(ISNUMBER(G43),G43*H43,IF(G43="-","rate only"," ")) -> 0
A45: C1.5.12 | E45: Additional traffic accommodation facilities ordered by the Engineer:
B47: C1.5.12.1 | E47: Provision of additional traffic accommodation facilities | F47: prov sum | G47: 1 | H47: 150,000.00 | I47: =IF(ISNUMBER(G47),G47*H47,IF(G47="-","rate only"," ")) -> 150,000.00
B49: C1.5.12.2 | E49: Handling cost, profit and all other charges in respect of item C1.5.12.1 | F49: % | G49: 150000 | I49: =IF(ISNUMBER(G49),G49*H49,IF(G49="-","rate only"," ")) -> 0
A51: C1.5/ C11.6 | E51: ROAD SIGNS
A53: CARRIED FORWARD | I53: =SUM(I7:I51) -> 150,000.00
A56: BROUGHT FORWARD | I56: =I53 -> 150,000.00
B59: C11.6.1 | E59: Road signboards with painted or coloured semi-matt background. Symbols, lettering and borders in semi- matt black or in Class I retro-reflective material, where the sign board is constructed from:
B61: C11.6.1.3 | E61: Prepainted galvanized steel plate:
C63: (b) | E63: Area exceeding 0,5 m² but not 2,0 m² | F63: m² | G63: 90 | I63: =IF(ISNUMBER(G63),G63*H63,IF(G63="-","rate only"," ")) -> 0
C65: (c) | E65: Area exceeding 2,0 m² but not 10,0 m² | F65: m² | G65: 65 | I65: =IF(ISNUMBER(G65),G65*H65,IF(G65="-","rate only"," ")) -> 0
B67: C11.6.1.8 | E67: Regulatory signs, temporary
C69: (c) | E69: 1200 mm diameter, 1.4 mm thick pre-painted galvanized steel plate, Class III background and symbols | F69: No. | G69: 70 | I69: =IF(ISNUMBER(G69),G69*H69,IF(G69="-","rate only"," ")) -> 0
B71: C11.6.1.10 | E71: Warning signs, temporary
C73: (d) | E73: 1500 mm size, 1.4 mm thick pre-painted galvanized steel plate, Class III background and symbols | F73: No. | G73: 30 | I73: =IF(ISNUMBER(G73),G73*H73,IF(G73="-","rate only"," ")) -> 0
B75: C11.6.1.12 | E75: Supplementary plates to temporary regulatory or warning signs, 1.4 mm thick pre-painted galvanized steel plate, Class III background and symbols | F75: m² | G75: 40 | I75: =IF(ISNUMBER(G75),G75*H75,IF(G75="-","rate only"," ")) -> 0
B77: PC11.6.1.13 | E77: Movable barricade/road sign combination (1.4 mm thick pre-painted galvanized steel plate, Class III background and symbols, 1200 mm diameter and 2400 mm x 400 mm) | F77: No. | G77: 20 | I77: =IF(ISNUMBER(G77),G77*H77,IF(G77="-","rate only"," ")) -> 0
B79: C11.6.2 | E79: Extra over on item C11.6.1 for using:
B81: C11.6.2.1 | E81: Background of retro-reflective material:
C83: (a) | E83: Class III | F83: m² | G83: 350 | I83: =IF(ISNUMBER(G83),G83*H83,IF(G83="-","rate only"," ")) -> 0
B85: C11.6.2.2 | E85: Lettering, symbols, numbers, arrows, emblems and borders of retro-reflective material:
C87: (a) | E87: Class III | F87: m² | G87: 350 | I87: =IF(ISNUMBER(G87),G87*H87,IF(G87="-","rate only"," ")) -> 0
B89: C11.6.3 | E89: Road sign supports (overhead road sign structures excluded):
B91: C11.6.3.1 | E91: Steel tubing (25 mm x 25 mm x 2 mm wall thickness) | F91: t | G91: 1 | I91: =IF(ISNUMBER(G91),G91*H91,IF(G91="-","rate only"," ")) -> 0
B93: C11.6.3.2 | E93: Timber:
C95: (a) | E95: 125 mm dia | F95: m | G95: 670 | I95: =IF(ISNUMBER(G95),G95*H95,IF(G95="-","rate only"," ")) -> 0
A97: CARRIED FORWARD | I97: =SUM(I56:I95) -> 150,000.00
A100: BROUGHT FORWARD | I100: =I97 -> 150,000.00
B103: C11.6.5 | E103: Excavation and backfilling for road sign supports (not applicable to kilometre posts):
B105: C11.6.5.1 | E105: Excavating soft material and backfilling | F105: m³ | G105: 350 | I105: =IF(ISNUMBER(G105),G105*H105,IF(G105="-","rate only"," ")) -> 0
B107: C11.6.5.3 | E107: Extra over item C11.6.5.1 and C11.6.5.2 for cement-treated soil backfill | F107: m³ | G107: 350 | I107: =IF(ISNUMBER(G107),G107*H107,IF(G107="-","rate only"," ")) -> 0
B109: C11.6.5.4 | E109: Extra over item C11.6.5.1 for hard material excavation | F109: m³ | G109: 50 | I109: =IF(ISNUMBER(G109),G109*H109,IF(G109="-","rate only"," ")) -> 0
A111: C1.5/ C11.7 | E111: ROAD MARKINGS AND ROAD STUDS
B113: C11.7.2 | E113: Retro-reflective road marking:
B115: C11.7.2.1 | E115: White lines broken or unbroken (Type 1 paint - water borne)
C117: (a) | E117: 100 mm wide | F117: km | G117: 320 | I117: =IF(ISNUMBER(G117),G117*H117,IF(G117="-","rate only"," ")) -> 0
C119: (b) | E119: 150 mm wide | F119: km | G119: 5 | I119: =IF(ISNUMBER(G119),G119*H119,IF(G119="-","rate only"," ")) -> 0
C121: (c) | E121: 200 mm wide | F121: km | G121: 2 | I121: =IF(ISNUMBER(G121),G121*H121,IF(G121="-","rate only"," ")) -> 0
C123: (d) | E123: 300 mm wide | F123: km | G123: 0.5 | I123: =IF(ISNUMBER(G123),G123*H123,IF(G123="-","rate only"," ")) -> 0
B125: C11.7.2.2 | E125: Yellow lines broken or unbroken (Type 1 paint - water borne)
C127: (a) | E127: 100 mm wide | F127: km | G127: 2 | I127: =IF(ISNUMBER(G127),G127*H127,IF(G127="-","rate only"," ")) -> 0
C129: (b) | E129: 150 mm wide | F129: km | G129: 130 | I129: =IF(ISNUMBER(G129),G129*H129,IF(G129="-","rate only"," ")) -> 0
B131: C11.7.2.4 | E131: White lettering and symbols (Type 1 paint - water borne) | F131: m² | G131: 320 | I131: =IF(ISNUMBER(G131),G131*H131,IF(G131="-","rate only"," ")) -> 0
B133: C11.7.2.5 | E133: Yellow lettering and symbols (Type 1 paint - water borne) | F133: m² | G133: 110 | I133: =IF(ISNUMBER(G133),G133*H133,IF(G133="-","rate only"," ")) -> 0
B135: C11.7.2.7 | E135: Transverse lines, painted island and arrestor bed markings (any colour) (Type 1 paint - water borne) | F135: m² | G135: 100 | I135: =IF(ISNUMBER(G135),G135*H135,IF(G135="-","rate only"," ")) -> 0
B137: C11.7.8 | E137: Setting out and premarking the lines (excluding traffic island markings, lettering and symbols) | F137: km | G137: 460 | I137: =IF(ISNUMBER(G137),G137*H137,IF(G137="-","rate only"," ")) -> 0
B139: C11.7.10 | E139: Removal of existing, temporary or final road markings by:
B141: C11.7.10.1 | E141: Sandblasting | F141: m² | G141: 32000 | I141: =IF(ISNUMBER(G141),G141*H141,IF(G141="-","rate only"," ")) -> 0
B143: C11.7.10.2 | E143: Water-jetting | F143: m² | G143: 550 | I143: =IF(ISNUMBER(G143),G143*H143,IF(G143="-","rate only"," ")) -> 0
A146: TOTAL CARRIED FORWARD TO SUMMARY | I146: =SUM(I99:I144) -> 150,000.00

Sheet 1.6 (hidden)
A1: #BillSheet#
A2: #BillSheet# | B2: C1.6 | C2: CLEARING AND GRUBBING | J2: SCHEDULE A | K2: 0 | M2: SCHEDULE A
A3: #BillSheet#
A4: ColHDR
A5: ColHDR | B5: ITEM | F5: DESCRIPTION | G5: UNIT | H5: QTY | I5: RATE | J5: AMT | L5: RATE | M5: AMOUNT
A6: ColHDR
F7: CLEARING AND GRUBBING
A8: IHDR1 | B8: C1.6.1 | F8: Clearing:
A10: Item | C10: C1.6.1.1 | F10: Clearing with machines and some hand labour where necessary | G10: ha | L10: 15,000.00
A12: Item | C12: C1.6.1.2 | F12: Clearing with hand labour only when labour enhanced work is specified | G12: ha
A13: Item | C13: C1.6.1.3 | F13: Clearing for new fence lines (over a width of 2,0 m) | G13: km | L13: 3,250.00
A15: Item | C15: C1.6.1.4 | F15: Clearing for service trenches (over the agreed width required) | G15: m²
A16: IHDR1 | B16: C1.6.2 | F16: Grubbing:
A18: Item | C18: C1.6.2.1 | F18: Grubbing with machines and some hand labour where necessary | G18: ha | L18: 20,000.00
A20: Item | C20: C1.6.2.2 | F20: Grubbing with hand labour when labour enhancement work is specified or it is not practical to use a machine | G20: ha
A21: Item | C21: C1.6.2.3 | F21: Grubbing by hand for new fence lines (over a width of 2,0 m) | G21: km | L21: 25,000.00
A23: Item | C23: C1.6.2.4 | F23: Grubbing by hand for service trenches (over the agreed width required) | G23: m²
A24: IHDR1 | B24: C1.6.3 | F24: Removal and grubbing of large trees and tree stumps:
A26: Item | C26: C1.6.3.1 | F26: Girth equal to or exceeding 1,0 m up to and including 2,0 m | G26: No. | L26: 1,320.00
A28: Item | C28: C1.6.3.2 | F28: Girth exceeding 2,0 m up to and including 3,0 m | G28: No. | L28: 2,640.00
A30: Item | C30: C1.6.3.3 | F30: Girth exceeding 3,0 m | G30: No.
A31: Item | C31: C1.6.3.4 | F31: Removal of trees in forests and plantations | G31: ha
A32: IHDR1 | B32: C1.6.4 | F32: Removal of buildings and structures:
A34: IHDR2 | C34: C1.6.4.1 | F34: Concrete reservoirs (x3) at km 126.540 LHS | G34: lump sum
A36: IHDR1 | B36: C1.6.5 | F36: Spreading organic matter and covering with soil | G36: m³ | L36: 20.00
A38: IHDR1 | B38: C1.6.6 | F38: Mulching selected organic matter | G38: m³
A40: IHDR1 | B40: C1.6.7 | F40: Re-clearing of previously cleared areas | G40: ha | L40: 10,500.00
A42: IHDR1 | B42: C1.6.8 | F42: Conservation of vegetation:
A44: Item | C44: C1.6.8.1 | F44: Establishment of a temporary nursery | G44: No.
A45: Item | C45: C1.6.8.2 | F45: Removal, storage and maintenance of shrubs | G45: No.
A46: Item | C46: C1.6.8.3 | F46: Removal, storage and maintenance of trees, girth up to and including 1,0 m | G46: No.
A47: Item | C47: C1.6.8.4 | F47: Removal, storage and maintenance of trees, girth exceeding 1,0 m up to and including 2,0 m | G47: No.
A48: Item | C48: C1.6.8.5 | F48: Removal, storage and maintenance of trees, girth exceeding 2,0 m up to and including 3,0 m | G48: No.
A49: Item | C49: C1.6.8.6 | F49: Removal, storage and maintenance of trees, girth exceeding 3,0 m | G49: No.
A50: IHDR1 | B50: C1.6.9 | F50: Conservation of topsoil:
A52: Item | C52: C1.6.9.1 | F52: Stockpiling topsoil | G52: m³
A53: Item | C53: C1.6.9.2 | F53: Windrowing topsoil | G53: m³
A54: IHDR1 | B54: C1.6.10 | F54: Disposal of hazardous waste material:
A56: Item | C56: C1.6.10.1 | F56: Disposal of hazardous waste material at an approved hazardous waste material facility | G56: prov sum
A57: Item3 | C57: C1.6.10.2 | F57: Handling cost, profit and all other charges in respect of item C1.6.10.1 | G57: %
A58: IHDR | B58: C1.6/ C1.7 | F58: LOADING AND HAULING
A60: IHDR1 | C60: C1.7.2 | F60: Hauling
A62: IHDR2 | C62: C1.7.2.2 | F62: Hauling material to spoil and off-loading it at a designated spoil or stockpile area:
A64: Item | D64: (a) | F64: Cleared and grubbed material (organic matter and all other unsuitable or waste material) | G64: m³-km | L64: 4.50
A80: #BillEnd#
A81: #BillEnd# | B81: TOTAL CARRIED FORWARD TO SUMMARY | M81: 0
A82: #BillEnd#

Sheet 1.7 (hidden)
A1: #BillSheet#
A2: #BillSheet# | B2: C1.7 | C2: LOADING AND HAULING | J2: SCHEDULE A | K2: =SUBTOTAL(9,M$7:M1041) -> 0 | M2: =J2 -> SCHEDULE A
A3: #BillSheet#
A4: ColHDR
A5: ColHDR | B5: ITEM | F5: DESCRIPTION | G5: UNIT | H5: QTY | I5: RATE | J5: AMT | L5: RATE | M5: AMOUNT
A6: ColHDR
F7: LOADING AND HAULING
A8: IHDR1 | B8: C1.7.1 | F8: Loading: | M8: =IF(ISNUMBER(H8),L8*H8,IF(ISNUMBER(J8),J8,IF(J8="RATE ONLY",LOWER("RATE ONLY")," "))) -> 
A10: Item | C10: C1.7.1.1 | F10: Loading from stockpile using machines and some hand labour where necessary | G10: m³ | L10: 2.50 | M10: =IF(ISNUMBER(H10),L10*H10,IF(ISNUMBER(J10),J10,IF(J10="RATE ONLY",LOWER("RATE ONLY")," "))) ->  | O10: See BP & haul spreadsheet JC
A12: Item | C12: C1.7.1.2 | F12: Loading from heaps or windrows using machines and/some hand labour where necessary | G12: m³ | L12: 3.00 | M12: =IF(ISNUMBER(H12),L12*H12,IF(ISNUMBER(J12),J12,IF(J12="RATE ONLY",LOWER("RATE ONLY")," "))) ->  | O12: Nominal
A14: Item | C14: C1.7.1.3 | F14: Loading by hand only from stockpile or heaps when labour enhancement work is specified or it is not possible to use machines | G14: m³ | L14: 5.00 | M14: =IF(ISNUMBER(H14),L14*H14,IF(ISNUMBER(J14),J14,IF(J14="RATE ONLY",LOWER("RATE ONLY")," "))) ->  | O14: Nominal
A16: IHDR1 | B16: C1.7.2 | F16: Hauling: | M16: =IF(ISNUMBER(H16),L16*H16,IF(ISNUMBER(J16),J16,IF(J16="RATE ONLY",LOWER("RATE ONLY")," "))) -> 
A18: IHDR2 | C18: C1.7.2.1 | F18: Hauling material for use in the Works and off-loading it on the site of the Works: | M18: =IF(ISNUMBER(H18),L18*H18,IF(ISNUMBER(J18),J18,IF(J18="RATE ONLY",LOWER("RATE ONLY")," "))) -> 
A20: Item | D20: (a) | F20: Soil, gravel, crushed stone and pavement layer material | G20: m³-km | L20: 4.50 | M20: =IF(ISNUMBER(H20),L20*H20,IF(ISNUMBER(J20),J20,IF(J20="RATE ONLY",LOWER("RATE ONLY")," "))) -> 
A22: Item | D22: (b) | F22: Boulders and hard material | G22: m³-km | L22: 4.00 | M22: =IF(ISNUMBER(H22),L22*H22,IF(ISNUMBER(J22),J22,IF(J22="RATE ONLY",LOWER("RATE ONLY")," "))) -> 
A24: IHDR2 | C24: C1.7.2.2 | F24: Hauling material to spoil and off-loading it at a designated spoil area: | M24: =IF(ISNUMBER(H24),L24*H24,IF(ISNUMBER(J24),J24,IF(J24="RATE ONLY",LOWER("RATE ONLY")," "))) -> 
A26: Item | D26: (a) | F26: Cleared and grubbed material (organic matter and all other unsuitable or waste material) | G26: m³-km | M26: =IF(ISNUMBER(H26),L26*H26,IF(ISNUMBER(J26),J26,IF(J26="RATE ONLY",LOWER("RATE ONLY")," "))) ->  | N26: Check Willem and Adr for quantity clear and grub , haul 5 km
A27: Item | D27: (b) | F27: Soil and gravel material | G27: m³-km | L27: 4.50 | M27: =IF(ISNUMBER(H27),L27*H27,IF(ISNUMBER(J27),J27,IF(J27="RATE ONLY",LOWER("RATE ONLY")," "))) ->  | O27: See BP & haul spreadsheet JC
A29: Item | D29: (c) | F29: Boulders, hard material and concrete | G29: m³-km | L29: 4.00 | M29: =IF(ISNUMBER(H29),L29*H29,IF(ISNUMBER(J29),J29,IF(J29="RATE ONLY",LOWER("RATE ONLY")," "))) ->  | O29: See BP & haul spreadsheet JC
A52: #BillEnd#
A53: #BillEnd# | B53: TOTAL CARRIED FORWARD TO SUMMARY | M53: =SUBTOTAL(9,M$7:M30) -> 0
A54: #BillEnd#

Sheet 2.1
A1: #BillSheet#
A2: #BillSheet# | B2: C2.1 | C2: GENERAL REQUIREMENTS AND TRENCHING FOR SERVICES | J2: SCHEDULE A
A3: #BillSheet#
A4: ColHDR
A5: ColHDR | B5: ITEM | F5: DESCRIPTION | G5: UNIT | H5: QTY | I5: RATE | J5: AMT
A6: ColHDR
F7: GENERAL REQUIREMENTS AND TRENCHING FOR SERVICES
A8: IHDR1 | B8: C2.1.1 | F8: Location, identification, protection and relocation of existing services:
A10: IHDR2 | C10: C2.1.1.1 | F10: Contractor’s obligations | G10: lump sum | H10: 1 | J10: =IF(ISNUMBER(H10),H10*I10,IF(H10="-","rate only"," ")) -> 0
A12: IHDR3 | C12: C2.1.1.2 | F12: Permanent services relocation or protection work by others
A14: item | D14: (a) | F14: Underground services | G14: PC sum | H14: 1 | I14: 250,000.00 | J14: =IF(ISNUMBER(H14),H14*I14,IF(H14="-","rate only"," ")) -> 250,000.00
A16: item | D16: (b) | F16: CTO Stations | G16: PC sum | H16: 1 | I16: 1,500,000.00 | J16: =IF(ISNUMBER(H16),H16*I16,IF(H16="-","rate only"," ")) -> 1,500,000.00
A18: item | D18: (c) | F18: Underground services | G18: PC sum
A19: item | D19: (d) | F19: ESKOM services | G19: PC sum
A20: item | D20: (e) | F20: Underground optic fibre installations (FibreCo) | G20: PC sum
A21: IHDR2 | C21: C2.1.1.3 | F21: Handling costs and profit in respect of item C2.1.1.2 above
A23: item3 | D23: (a) | F23: Underground services | G23: % | H23: =J14 -> 250000 | J23: =IF(ISNUMBER(H23),H23*I23,IF(H23="-","rate only"," ")) -> 0
A25: item3 | D25: (b) | F25: CTO Stations | G25: % | H25: =J16 -> 1500000 | J25: =IF(ISNUMBER(H25),H25*I25,IF(H25="-","rate only"," ")) -> 0
A27: item3 | D27: (c) | F27: Underground services
A28: item3 | D28: (d) | F28: ESKOM services
A29: item3 | D29: (e) | F29: Underground optic fibre installations (FibreCo)
A30: IHDR2 | C30: C2.1.1.4 | F30: Permanent services relocation or protection work by the Contractor | G30: prov sum
A32: IHDR1 | B32: C2.1.2 | F32: Existing services location, detection and verification:
A34: item | C34: C2.1.2.1 | F34: Using specialist detection services (ground penetrating radar, radio detection etc.) | G34: PC sum
A35: item3 | C35: C2.1.2.2 | F35: Handling costs and profit in respect of item C2.1.2.1 above | G35: %
A36: item | C36: C2.1.2.3 | F36: Survey to verify existing service positions | G36: PC sum
A37: item3 | C37: C2.1.2.4 | F37: Handling costs and profit in respect of item C2.1.2.3 above | G37: %
A38: item | C38: C2.1.2.5 | F38: Using hand excavation to locate, expose and verify services | G38: m³
A39: IHDR1 | B39: C2.1.3 | F39: Obtaining construction or work permits | G39: lump sum
A41: IHDR1 | B41: C2.1.4 | F41: Provision of guarantees or deposits for services:
A43: item | C43: C2.1.4.1 | F43: Providing guarantees and deposits | G43: PC sum
A44: item3 | C44: C2.1.4.2 | F44: Handling costs and profit in respect of item C2.1.4.1 above | G44: %
A45: IHDR1 | B45: C2.1.5 | F45: Provision of record drawings and applicable data | G45: lump sum
A47: IHDR1 | B47: C2.1.6 | F47: Trench excavation (in soft material):
A49: IHDR2 | C49: C2.1.6.1 | F49: Trenches up to 1,0 m wide:
A51: Item | D51: (a) | F51: Up to 1,0 m deep | G51: m³
A52: Item | D52: (b) | F52: Over 1,0 m and up to 2,0 m deep | G52: m³
A53: Item | D53: (c) | F53: Over 2,0 m deep etc. to be inserted, increased by additional 1,0 m depths as required | G53: m³
A54: IHDR2 | C54: C2.1.6.2 | F54: Trenches over 1,0 m and up to 2,0 m wide:
A56: Item | D56: (a) | F56: Up to 1,0 m deep | G56: m³
A57: Item | D57: (b) | F57: Over 1,0 m and up to 2,0 m deep | G57: m³
A58: Item | D58: (c) | F58: Over 2,0 m deep etc., increased by additional 1,0 m depths as required | G58: m³
A59: IHDR2 | C59: C2.1.6.3 | F59: Trenches over 2,0 m wide and up to 3,0 m etc., increased by additional 1,0 m widths as required:
A61: Item | D61: (a) | F61: Up to 1,0 m deep | G61: m³
A62: Item | D62: (b) | F62: Over 1,0 m and up to 2,0 m deep | G62: m³
A63: Item | D63: (c) | F63: Over 2,0 m deep etc., increased by additional 1,0 m depths as required | G63: m³
A64: IHDR1 | B64: C2.1.7 | F64: Extra over items C2.1.6, C2.1.8 and C2.1.16 for excavating in:
A66: item | C66: C2.1.7.1 | F66: Hard material irrespective of depth | G66: m³
A67: item | C67: C2.1.7.2 | F67: Stabilised material irrespective of depth | G67: m³
A68: IHDR1 | B68: C2.1.8 | F68: Excavations outside the normal trench profile | G68: m³
A70: IHDR1 | B70: C2.1.9 | F70: Trench excavation using labour enhanced construction methods:
A72: IHDR2 | C72: C2.1.9.1 | F72: Trenches up to 1,0 m wide (in soft material):
A74: Item | D74: (a) | F74: Up to 1,0 m deep | G74: m³
A75: Item | D75: (b) | F75: Over 1,0 m and up to 1,5 m deep | G75: m³
A76: IHDR2 | C76: C2.1.9.2 | F76: Trenches over 1,0 m and up to 2,0 m wide (in soft material):
A78: Item | D78: (a) | F78: Up to 1,0 m deep | G78: m³
A79: Item | D79: (b) | F79: Over 1,0 m and up to 1,5 m deep | G79: m³
A80: IHDR2 | C80: C2.1.9.3 | F80: Trenches up to 1,0 m wide (in intermediate material):
A82: Item | D82: (a) | F82: Up to 1,0 m deep | G82: m³
A83: Item | D83: (b) | F83: Over 1,0 m and up to 1,5 m deep | G83: m³
A84: IHDR2 | C84: C2.1.9.4 | F84: Trenches over 1,0 m and up to 2,0 m wide (in intermediate material):
A86: Item | D86: (a) | F86: Up to 1,0 m deep | G86: m³
A87: Item | D87: (b) | F87: Over 1,0 m and up to 1,5 m deep | G87: m³
A88: IHDR1 | B88: C2.1.10 | F88: Excavation in tunnels exceeding 3,0 m in length in:
A90: item | C90: C2.1.10.1 | F90: Soft material | G90: m³
A91: item | C91: C2.1.10.2 | F91: Hard material | G91: m³
A92: IHDR1 | B92: C2.1.11 | F92: Backfilling of trenches:
A94: IHDR2 | C94: C2.1.11.1 | F94: Backfill compacted to 93 % (100 % for sand) of MDD (areas subject to traffic loads) using material:
A96: Item | D96: (a) | F96: From the excavated trench material | G96: m³
A97: Item | D97: (b) | F97: From other excavations on Site | G97: m³
A98: Item | D98: (c) | F98: From approved borrow areas | G98: m³
A99: Item | D99: (d) | F99: From sources provided by the Contractor | G99: m³
A100: Item | D100: (e) | F100: From commercial sources (state material type) | G100: m³
A101: IHDR2 | C101: C2.1.11.2 | F101: Backfill compacted to 90 % (100 % for sand) of MDD or complying with the DCP requirements of Clause A2.1.8.2c) (areas not subject to traffic loads) using material:
A103: Item | D103: (a) | F103: From the excavated trench material | G103: m³
A104: Item | D104: (b) | F104: From other excavations on Site | G104: m³
A105: Item | D105: (c) | F105: From approved borrow areas | G105: m³
A106: Item | D106: (d) | F106: From sources provided by the Contractor | G106: m³
A107: Item | D107: (e) | F107: From commercial sources (state material type) | G107: m³
A108: IHDR1 | B108: C2.1.12 | F108: Backfilling additional excavations in trench floors due to poor founding conditions using:
A110: item | C110: C2.1.12.1 | F110: Geotextile (state grade or class) | G110: m²
A111: item | C111: C2.1.12.2 | F111: Concrete aggregate (37,5 mm aggregate size) | G111: m³
A112: IHDR2 | C112: C2.1.12.3 | F112: Concrete (state class) | G112: m³
A114: IHDR1 | B114: C2.1.13 | F114: Extra over item C2.1.11 for backfilling with soil cement or stabilised material:
A116: item | C116: C2.1.13.1 | F116: Backfilling trenches using soil cement using (state type of material i.e. G5, G7 or G8) material | G116: m³
A117: item | C117: C2.1.13.2 | F117: Backfilling trenches using stabilised (state type of material i.e. G5, G7 or G8) material compacted to 93 % of MDD | G117: m³
A118: item | C118: C2.1.13.3 | F118: Backfilling around poles using stabilised (state type of material i.e. G5, G7 or G8) material compacted to 95 % of MDD | G118: m³
A119: item | C119: C2.1.13.4 | F119: Cement (state class of cement) | G119: kg
A120: IHDR1 | B120: C2.1.14 | F120: Extra over items C2.1.11, C2.1.12 and C2.1.13 for additional compaction of backfill:
A122: item | C122: C2.1.14.1 | F122: Compaction increased from 90 % of MDD to 93 % of MDD | G122: m³
A123: item | C123: C2.1.14.2 | F123: Compaction increased from 93 % of MDD to 95 % of MDD | G123: m³
A124: item | C124: C2.1.14.3 | F124: Compaction increased from 95 % of MDD to 98 % of MDD | G124: m³
A125: IHDR1 | B125: C2.1.15 | F125: Stone packing:
A127: item | C127: C2.1.15.1 | F127: In bolsters | G127: m³
A128: item | C128: C2.1.15.2 | F128: In tunnels | G128: m³
A129: IHDR1 | B129: C2.1.16 | F129: Subsurface drains in trench bottoms (Contract Documentation reference or drawing number indicated) | G129: m
A131: IHDR1 | B131: C2.1.17 | F131: Removal and disposal of spoil material from trench excavations:
A133: item | C133: C2.1.17.1 | F133: To spoil sites provided by the Employer as indicated in the Contract Documentation or as instructed by the Engineer | G133: m³
A134: item | C134: C2.1.17.2 | F134: To spoil sites or dumping areas provided by the Contractor | G134: m³
A135: IHDR1 | B135: C2.1.18 | F135: Timbering, strutting and shoring:
A137: item | C137: C2.1.18.1 | F137: Timbering, strutting and shoring left in excavations | G137: m²
A138: item | C138: C2.1.18.2 | F138: Timbering, strutting and shoring opposite a structure or service (state reference in Contract Documentation or indicate drawing number etc.) | G138: m
A139: IHDR1 | B139: C2.1.19 | F139: Dealing with water during services work:
A141: item | C141: C2.1.19.1 | F141: Dealing with surface water | G141: lump sum
A142: item | C142: C2.1.19.2 | F142: Dealing with subsurface water | G142: lump sum
A143: IHDR1 | B143: C2.1.20 | F143: Specified temporary works to control water inflow (state reference in Contract Documentation or indicate drawing number etc.):
A145: item | C145: C2.1.20.1 | F145: Provide equipment | G145: lump sum
A146: item | C146: C2.1.20.2 | F146: Operate and maintain | G146: day
A147: item | C147: C2.1.20.3 | F147: Remove equipment | G147: lump sum
A148: IHDR1 | B148: C2.1.21 | F148: Supply and installation of sandbags in trenches:
A150: item | C150: C2.1.21.1 | F150: Biodegradable bags (state bag size, material type and description) | G150: No.
A151: item | C151: C2.1.21.2 | F151: Geofabric bags (state bag size, material type and description) | G151: No.
A152: IHDR1 | B152: C2.1.22 | F152: Existing services that intersect or adjoin a trench:
A154: IHDR2 | C154: C2.1.22.1 | F154: Services that intersect a trench (angles between centre-lines in plan 45° to 90°):
A156: Item | D156: (a) | F156: State type and size of each intersecting service | G156: No.
A157: Item | D157: (b) | F157: State type and size of each intersecting service | G157: No.
A158: Item | D158: (c) | F158: State type and size of each intersecting service etc. | G158: No.
A159: IHDR2 | C159: C2.1.22.2 | F159: Services that adjoin a trench (parallel to or at an angle between centre-lines in plan of less than 45°):
A161: Item | D161: (a) | F161: State type and size of each intersecting service | G161: m
A162: Item | D162: (b) | F162: State type and size of each intersecting service | G162: m
A163: Item | D163: (c) | F163: State type and size of each intersecting service etc. | G163: m
A164: IHDR1 | B164: C2.1.23 | F164: Reinstatement of trenches in existing surfaced roads using:
A166: item | C166: C2.1.23.1 | F166: Selected material (state material type and source e.g. G7 or G8, commercial/borrow pits/etc. and layer thickness) compacted to (state minimum compaction) % of MDD | G166: m³
A167: item | C167: C2.1.23.2 | F167: Subbase material (state material type and source e.g. G5 or G6, commercial/borrow pit etc. and layer thickness) compacted to (state minimum compaction) % of MDD | G167: m³
A168: item | C168: C2.1.23.3 | F168: Stabilised subbase material (state material type and source e.g. C3 or C4, commercial/borrow pit etc. and layer thickness) using (state percentage and type of stabilising agent) compacted to (state minimum compaction) % of MDD | G168: m³
A169: item | C169: C2.1.23.4 | F169: Base material (state material type and source e.g. G1 or G2, commercial/quarry etc. and layer thickness) compacted to (state minimum compaction either 102 % for G2 or 104 % for G1) % of MDD | G169: m³
A170: item | C170: C2.1.23.5 | F170: Prime coat (state type of material and application rate) | G170: m²
A171: item | C171: C2.1.23.6 | F171: Tack coat (state type of material and application rate) | G171: m²
A172: item | C172: C2.1.23.7 | F172: Asphalt material (state asphalt type e.g. continuously graded, binder type, layer thickness and minimum density) | G172: t
A173: item | C173: C2.1.23.8 | F173: Surface treatments (state surfacing type, binder type and application rate, aggregate size and application rate etc.) | G173: m²
A174: IHDR1 | B174: C2.1.24 | F174: Saw-cutting before excavation:
A176: IHDR2 | C176: C2.1.24.1 | F176: Saw-cutting asphalt to an average depth:
A178: Item | D178: (a) | F178: Not exceeding 50 mm | G178: m²
A179: Item | D179: (b) | F179: Exceeding 50 mm but not exceeding 100 mm | G179: m²
A180: Item | D180: (c) | F180: Exceeding 100 mm but not exceeding 150 mm | G180: m²
A181: IHDR2 | C181: C2.1.24.2 | F181: Saw-cutting concrete to an average depth:
A183: Item | D183: (a) | F183: Not exceeding 50 mm | G183: m²
A184: Item | D184: (b) | F184: Exceeding 50 mm but not exceeding 100 mm | G184: m²
A185: Item | D185: (c) | F185: Exceeding 100 mm but not exceeding 150 mm | G185: m²
A186: IHDR2 | C186: C2.1.24.3 | F186: Saw-cutting other materials (type of material to be specified) to an average depth:
A188: Item | D188: (a) | F188: Not exceeding 50 mm | G188: m²
A189: Item | D189: (b) | F189: Exceeding 50 mm but not exceeding 100 mm | G189: m²
A190: Item | D190: (c) | F190: Exceeding 100 mm but not exceeding 150 mm | G190: m²
A191: IHDR1 | B191: C2.1.25 | F191: Removal of existing services:
A193: item | C193: C2.1.25.1 | F193: Redundant Telkom telephone poles | G193: No.
A194: item | C194: C2.1.25.2 | F194: State type and size of each service (duct, pipe or cable) removed | G194: m
A195: item | C195: C2.1.25.3 | F195: Etc., insert additional items as required | G195: m
A196: IHDR1 | B196: C2.1.26 | F196: Disposal of existing service materials:
A198: item | C198: C2.1.26.1 | F198: Redundant Telkom telephone poles to be disposed of at Telkom yard in Virginia | G198: No.
A199: item | C199: C2.1.26.2 | F199: State type and size of each service (duct, pipe or cable) disposed of | G199: m
A200: item | C200: C2.1.26.3 | F200: Etc., insert additional items as required | G200: m
A201: IHDR1 | B201: C2.1.27 | F201: Demolition of existing manholes, access chambers and other service structures consisting of:
A203: item | C203: C2.1.27.1 | F203: Unreinforced concrete | G203: m³
A204: item | C204: C2.1.27.2 | F204: Reinforced concrete | G204: m³
A205: item | C205: C2.1.27.3 | F205: Masonry | G205: m³
A248: #BillEnd#
A249: #BillEnd# | B249: TOTAL CARRIED FORWARD TO SUMMARY | J249: =SUM(J8:J247) -> 1,750,000.00
A250: #BillEnd#

Sheet 2.2 (hidden)
A1: #BillSheet#
A2: #BillSheet# | B2: C2.2 | C2: DRY SERVICES | J2: SCHEDULE A | K2: =SUBTOTAL(9,M$7:M1031) -> 0 | M2: =J2 -> SCHEDULE A
A3: #BillSheet#
A4: ColHDR
A5: ColHDR | B5: ITEM | F5: DESCRIPTION | G5: UNIT | H5: QTY | I5: RATE | J5: AMT | L5: RATE | M5: AMOUNT
A6: ColHDR
F7: DRY SERVICES
A8: IHDR1 | B8: C2.2.1 | F8: Supply, lay and prove ducts: | M8: =IF(ISNUMBER(H8),L8*H8,IF(ISNUMBER(J8),J8,IF(J8="RATE ONLY",LOWER("RATE ONLY")," "))) -> 
A10: IHDR2 | C10: C2.2.1.1 | F10: Normal duty uPVC pipes with rubber ring type joint. | M10: =IF(ISNUMBER(H10),L10*H10,IF(ISNUMBER(J10),J10,IF(J10="RATE ONLY",LOWER("RATE ONLY")," "))) -> 
A12: Item | D12: (a) | F12: 110 mm diameter (OD) | G12: m | L12: 310.00 | M12: =IF(ISNUMBER(H12),L12*H12,IF(ISNUMBER(J12),J12,IF(J12="RATE ONLY",LOWER("RATE ONLY")," "))) -> 
A14: Item | D14: (b) | F14: 160 mm diameter (OD) | G14: m | L14: 350.00 | M14: =IF(ISNUMBER(H14),L14*H14,IF(ISNUMBER(J14),J14,IF(J14="RATE ONLY",LOWER("RATE ONLY")," "))) -> 
D16: (c) | F16: 210 mm diameter (OD) | G16: m | M16: =IF(ISNUMBER(H16),L16*H16,IF(ISNUMBER(J16),J16,IF(J16="RATE ONLY",LOWER("RATE ONLY")," "))) -> 
A17: IHDR2 | C17: C2.2.1.2 | F17: State for each duct the material type, class, joint type etc. | M17: =IF(ISNUMBER(H17),L17*H17,IF(ISNUMBER(J17),J17,IF(J17="RATE ONLY",LOWER("RATE ONLY")," "))) -> 
A19: Item | D19: (a) | F19: State diameter | G19: m
A20: Item | D20: (b) | F20: State diameter | G20: m
A21: IHDR1 | B21: C2.2.2 | F21: Extra over item C2.2.1 for the provision of split ducts: | M21: =IF(ISNUMBER(H21),L21*H21,IF(ISNUMBER(J21),J21,IF(J21="RATE ONLY",LOWER("RATE ONLY")," "))) -> 
A23: IHDR2 | C23: C2.2.2.1 | F23: Normal duty uPVC pipes with rubber ring type joint. | M23: =IF(ISNUMBER(H23),L23*H23,IF(ISNUMBER(J23),J23,IF(J23="RATE ONLY",LOWER("RATE ONLY")," "))) -> 
A25: Item | D25: (a) | F25: 110 mm diameter (OD) | G25: m | L25: 370.00 | M25: =IF(ISNUMBER(H25),L25*H25,IF(ISNUMBER(J25),J25,IF(J25="RATE ONLY",LOWER("RATE ONLY")," "))) -> 
A27: Item | D27: (b) | F27: 160 mm diameter (OD) | G27: m | L27: 410.00 | M27: =IF(ISNUMBER(H27),L27*H27,IF(ISNUMBER(J27),J27,IF(J27="RATE ONLY",LOWER("RATE ONLY")," "))) -> 
D29: (c) | F29: 210 mm diameter (OD) | G29: m
A30: IHDR2 | C30: C2.2.2.2 | F30: State for each duct the material type, class, etc. | M30: =IF(ISNUMBER(H30),L30*H30,IF(ISNUMBER(J30),J30,IF(J30="RATE ONLY",LOWER("RATE ONLY")," "))) -> 
A32: Item | D32: (a) | F32: State diameter | G32: m
A33: Item | D33: (b) | F33: State diameter | G33: m
A34: IHDR1 | B34: C2.2.3 | F34: Lay and prove ducts provided by others: | M34: =IF(ISNUMBER(H34),L34*H34,IF(ISNUMBER(J34),J34,IF(J34="RATE ONLY",LOWER("RATE ONLY")," "))) -> 
A36: IHDR2 | C36: C2.2.3.1 | F36: State for each duct to be laid the material type | M36: =IF(ISNUMBER(H36),L36*H36,IF(ISNUMBER(J36),J36,IF(J36="RATE ONLY",LOWER("RATE ONLY")," "))) -> 
A38: Item | D38: (a) | F38: State diameter (example 110 mm diameter (OD)) | G38: m
A39: Item | D39: (b) | F39: State diameter (example 160 mm diameter (OD)) | G39: m
A40: IHDR2 | C40: C2.2.3.2 | F40: State for each duct to be laid the material type | M40: =IF(ISNUMBER(H40),L40*H40,IF(ISNUMBER(J40),J40,IF(J40="RATE ONLY",LOWER("RATE ONLY")," "))) -> 
A42: Item | D42: (a) | F42: State diameter | G42: m
A43: Item | D43: (b) | F43: State diameter | G43: m
A44: IHDR1 | B44: C2.2.4 | F44: Bedding for ducts compacted to 90 % of MDD (100 % for sand) using material: | M44: =IF(ISNUMBER(H44),L44*H44,IF(ISNUMBER(J44),J44,IF(J44="RATE ONLY",LOWER("RATE ONLY")," "))) -> 
A46: IHDR2 | C46: C2.2.4.1 | F46: Selected from the excavated trench material | G46: m³ | M46: =IF(ISNUMBER(H46),L46*H46,IF(ISNUMBER(J46),J46,IF(J46="RATE ONLY",LOWER("RATE ONLY")," "))) -> 
A48: IHDR2 | C48: C2.2.4.2 | F48: Selected from other excavations on site | G48: m³ | M48: =IF(ISNUMBER(H48),L48*H48,IF(ISNUMBER(J48),J48,IF(J48="RATE ONLY",LOWER("RATE ONLY")," "))) -> 
A50: IHDR2 | C50: C2.2.4.3 | F50: Selected from approved borrow areas | G50: m³ | M50: =IF(ISNUMBER(H50),L50*H50,IF(ISNUMBER(J50),J50,IF(J50="RATE ONLY",LOWER("RATE ONLY")," "))) -> 
A52: IHDR2 | C52: C2.2.4.4 | F52: Selected from sources provided by the Contractor | G52: m³ | M52: =IF(ISNUMBER(H52),L52*H52,IF(ISNUMBER(J52),J52,IF(J52="RATE ONLY",LOWER("RATE ONLY")," "))) -> 
A54: IHDR2 | C54: C2.2.4.5 | F54: From commercial sources: | M54: =IF(ISNUMBER(H54),L54*H54,IF(ISNUMBER(J54),J54,IF(J54="RATE ONLY",LOWER("RATE ONLY")," "))) -> 
A56: Item | D56: (a) | F56: Non-cohesive material (state material type) | G56: m³
A57: Item | D57: (b) | F57: Crushed stone material (state material type) | G57: m³
A58: IHDR2 | C58: C2.2.4.6 | F58: Extra over items C2.2.4.1 to C2.2.4.5 for stabilising material with cement | G58: m³ | M58: =IF(ISNUMBER(H58),L58*H58,IF(ISNUMBER(J58),J58,IF(J58="RATE ONLY",LOWER("RATE ONLY")," "))) -> 
A60: IHDR2 | C60: C2.2.4.7 | F60: Cement (state class/type of cement) for stabilising bedding | G60: kg | M60: =IF(ISNUMBER(H60),L60*H60,IF(ISNUMBER(J60),J60,IF(J60="RATE ONLY",LOWER("RATE ONLY")," "))) -> 
A62: IHDR1 | B62: C2.2.5 | F62: Concrete for bedding and encasement of ducts: | M62: =IF(ISNUMBER(H62),L62*H62,IF(ISNUMBER(J62),J62,IF(J62="RATE ONLY",LOWER("RATE ONLY")," "))) -> 
A64: Item | C64: C2.2.5.1 | F64: Concrete bedding (state class of concrete) | G64: m³ | M64: =IF(ISNUMBER(H64),L64*H64,IF(ISNUMBER(J64),J64,IF(J64="RATE ONLY",LOWER("RATE ONLY")," "))) -> 
A65: Item | C65: C2.2.5.2 | F65: Concrete encasement of ducts (Class C12/15-37.5 concrete) | G65: m³ | L65: 1,800.00 | M65: =IF(ISNUMBER(H65),L65*H65,IF(ISNUMBER(J65),J65,IF(J65="RATE ONLY",LOWER("RATE ONLY")," "))) -> 
A67: IHDR1 | B67: C2.2.6 | F67: Duct accessories (markers, marking, draw wires and end caps etc.): | M67: =IF(ISNUMBER(H67),L67*H67,IF(ISNUMBER(J67),J67,IF(J67="RATE ONLY",LOWER("RATE ONLY")," "))) -> 
A69: IHDR2 | C69: C2.2.6.1 | F69: Duct markers (Class C25/30-20 concrete, complete as shown on drawings) | G69: No. | L69: 260.00 | M69: =IF(ISNUMBER(H69),L69*H69,IF(ISNUMBER(J69),J69,IF(J69="RATE ONLY",LOWER("RATE ONLY")," "))) -> 
A71: IHDR2 | C71: C2.2.6.2 | F71: Duct marking (state type) | G71: No. | M71: =IF(ISNUMBER(H71),L71*H71,IF(ISNUMBER(J71),J71,IF(J71="RATE ONLY",LOWER("RATE ONLY")," "))) -> 
A73: IHDR2 | C73: C2.2.6.3 | F73: Draw wires (2.5mm dia, 2 strands) | G73: m | L73: 5.00 | M73: =IF(ISNUMBER(H73),L73*H73,IF(ISNUMBER(J73),J73,IF(J73="RATE ONLY",LOWER("RATE ONLY")," "))) -> 
A75: IHDR2 | C75: C2.2.6.4 | F75: End caps or plugs (cement and sand plug) | G75: No. | L75: 60.00 | M75: =IF(ISNUMBER(H75),L75*H75,IF(ISNUMBER(J75),J75,IF(J75="RATE ONLY",LOWER("RATE ONLY")," "))) -> 
A77: IHDR2 | C77: C2.2.6.5 | F77: Other accessories: | M77: =IF(ISNUMBER(H77),L77*H77,IF(ISNUMBER(J77),J77,IF(J77="RATE ONLY",LOWER("RATE ONLY")," "))) -> 
A79: Item | D79: (a) | F79: State type | G79: No.
A80: Item | D80: (b) | F80: State type | G80: m
A81: IHDR1 | B81: C2.2.7 | F81: Handholes, manholes and access chambers for ducts: | M81: =IF(ISNUMBER(H81),L81*H81,IF(ISNUMBER(J81),J81,IF(J81="RATE ONLY",LOWER("RATE ONLY")," "))) -> 
A83: IHDR2 | C83: C2.2.7.1 | F83: Handholes (state type and drawing reference etc.): | M83: =IF(ISNUMBER(H83),L83*H83,IF(ISNUMBER(J83),J83,IF(J83="RATE ONLY",LOWER("RATE ONLY")," "))) -> 
A85: Item | D85: (a) | F85: State depth range (example over 1,0 m and up to 1,5 m deep) | G85: No.
A86: Item | D86: (b) | F86: State depth range (example over 1,5 m and up to 2,0 m deep) | G86: No.
A87: IHDR2 | C87: C2.2.7.2 | F87: Manholes (state type and drawing reference etc.): | M87: =IF(ISNUMBER(H87),L87*H87,IF(ISNUMBER(J87),J87,IF(J87="RATE ONLY",LOWER("RATE ONLY")," "))) -> 
A89: Item | D89: (a) | F89: State depth range | G89: No.
A90: Item | D90: (b) | F90: State depth range | G90: No.
A91: IHDR2 | C91: C2.2.7.3 | F91: Access chambers (state type and drawing reference etc.): | M91: =IF(ISNUMBER(H91),L91*H91,IF(ISNUMBER(J91),J91,IF(J91="RATE ONLY",LOWER("RATE ONLY")," "))) -> 
A93: Item | D93: (a) | F93: State depth range | G93: No.
A94: Item | D94: (b) | F94: State depth range | G94: No.
A95: IHDR2 | C95: C2.2.7.4 | F95: Other structures: | G95: No. | M95: =IF(ISNUMBER(H95),L95*H95,IF(ISNUMBER(J95),J95,IF(J95="RATE ONLY",LOWER("RATE ONLY")," "))) -> 
A97: Item | D97: (a) | F97: State type, depth range and drawing reference etc. | G97: No.
A98: Item | D98: (b) | F98: State type, depth range and drawing reference etc. | G98: No.
A99: IHDR1 | B99: C2.2.8 | F99: Covers and frames for duct handholes, manholes and access chambers: | M99: =IF(ISNUMBER(H99),L99*H99,IF(ISNUMBER(J99),J99,IF(J99="RATE ONLY",LOWER("RATE ONLY")," "))) -> 
A101: Item | C101: C2.2.8.1 | F101: State type, strength class and size of cover and frame | G101: No.
A102: Item | C102: C2.2.8.2 | F102: State type, strength class and size of cover and frame | G102: No.
A103: Item | C103: C2.2.8.3 | F103: State type, strength class and size of cover and frame | G103: No.
A104: Item | C104: C2.2.8.4 | F104: Etc., insert additional items as required | G104: No.
A105: IHDR1 | B105: C2.2.9 | F105: Install duct handhole, manhole and access chamber covers and frames provided by others: | M105: =IF(ISNUMBER(H105),L105*H105,IF(ISNUMBER(J105),J105,IF(J105="RATE ONLY",LOWER("RATE ONLY")," "))) -> 
A107: Item | C107: C2.2.9.1 | F107: State type, strength class and size of cover and frame | G107: No.
A108: Item | C108: C2.2.9.2 | F108: State type, strength class and size of cover and frame | G108: No.
A109: Item | C109: C2.2.9.3 | F109: State type, strength class and size of cover and frame | G109: No.
A110: Item | C110: C2.2.9.4 | F110: Etc., insert additional items as required | G110: No.
A111: IHDR | B111: C1.5/ C12.7 | F111: TRENCHLESS METHODS | M111: =IF(ISNUMBER(H111),L111*H111,IF(ISNUMBER(J111),J111,IF(J111="RATE ONLY",LOWER("RATE ONLY")," "))) -> 
A113: IHDR1 | C113: C12.7.1 | F113: Establishment on site for horizontal directional drilling | G113: lump sum | L113: 50,000.00 | M113: =IF(ISNUMBER(H113),L113*H113,IF(ISNUMBER(J113),J113,IF(J113="RATE ONLY",LOWER("RATE ONLY")," "))) -> 
A115: IHDR1 | C115: C12.7.2 | F115: Moving to and setting up equipment at each position for horizontal directional drilling | G115: No. | L115: 10,000.00 | M115: =IF(ISNUMBER(H115),L115*H115,IF(ISNUMBER(J115),J115,IF(J115="RATE ONLY",LOWER("RATE ONLY")," "))) -> 
A117: IHDR1 | C117: C12.7.3 | F117: Installing holes (160 mm (OD) smooth wall, PE 100 material with PN 10 pressure rating) to required length for horizontal directional drilling | G117: m | L117: 750.00 | M117: =IF(ISNUMBER(H117),L117*H117,IF(ISNUMBER(J117),J117,IF(J117="RATE ONLY",LOWER("RATE ONLY")," "))) -> 
A119: IHDR1 | C119: C12.7.4 | F119: Penetrating unidentified obstructions/services with horizontal directional drilling for penetration of: | M119: =IF(ISNUMBER(H119),L119*H119,IF(ISNUMBER(J119),J119,IF(J119="RATE ONLY",LOWER("RATE ONLY")," "))) -> 
A120: PB
A121: PB | B121: CARRIED FORWARD | M121: =SUBTOTAL(9,M$7:M119) -> 0
A122: PB
A123: PB
A124: PB | B124: BROUGHT FORWARD | M124: =SUBTOTAL(9,M$7:M122) -> 0
A125: PB
A127: Item | C127: C12.7.4.3 | F127: Rock of UCS > 3 Mpa | G127: m | L127: 3,100.00 | M127: =IF(ISNUMBER(H127),L127*H127,IF(ISNUMBER(J127),J127,IF(J127="RATE ONLY",LOWER("RATE ONLY")," "))) -> 
A174: #BillEnd#
A175: #BillEnd# | B175: TOTAL CARRIED FORWARD TO SUMMARY | M175: =SUBTOTAL(9,M$7:M128) -> 0
A176: #BillEnd#

Sheet 2.3 (hidden)
A1: #BillSheet#
A2: #BillSheet# | B2: C2.3 | C2: WET SERVICES | J2: SCHEDULE A | K2: =SUBTOTAL(9,M$7:M1075) -> 0 | M2: =J2 -> SCHEDULE A
A3: #BillSheet#
A4: ColHDR
A5: ColHDR | B5: ITEM | F5: DESCRIPTION | G5: UNIT | H5: QTY | I5: RATE | J5: AMT | L5: RATE | M5: AMOUNT
A6: ColHDR
F7: WET SERVICES
A8: IHDR1 | B8: C2.3.1 | F8: Supply, lay, joint and test sewers: | M8: =IF(ISNUMBER(H8),L8*H8,IF(ISNUMBER(J8),J8,IF(J8="RATE ONLY",LOWER("RATE ONLY")," "))) -> 
A9: IHDR2 | C9: C2.3.1.1 | F9: State for each sewer the pipe material type, class, joint type and the class of bedding etc.: | M9: =IF(ISNUMBER(H9),L9*H9,IF(ISNUMBER(J9),J9,IF(J9="RATE ONLY",LOWER("RATE ONLY")," "))) -> 
A10: Item | D10: (a) | F10: State diameter | G10: m | M10: =IF(ISNUMBER(H10),L10*H10,IF(ISNUMBER(J10),J10,IF(J10="RATE ONLY",LOWER("RATE ONLY")," "))) -> 
A11: Item | D11: (b) | F11: State diameter | G11: m
A12: IHDR2 | C12: C2.3.1.2 | F12: State for each sewer the pipe material type, class, joint type and the class of bedding etc.: | M12: =IF(ISNUMBER(H12),L12*H12,IF(ISNUMBER(J12),J12,IF(J12="RATE ONLY",LOWER("RATE ONLY")," "))) -> 
A13: Item | D13: (a) | F13: State diameter | G13: m
A14: Item | D14: (b) | F14: State diameter | G14: m
A15: IHDR2 | C15: C2.3.1.3 | F15: Etc, insert additional items as required | M15: =IF(ISNUMBER(H15),L15*H15,IF(ISNUMBER(J15),J15,IF(J15="RATE ONLY",LOWER("RATE ONLY")," "))) -> 
A16: IHDR1 | B16: C2.3.2 | F16: Extra over item C2.3.1 for sewer specials: | M16: =IF(ISNUMBER(H16),L16*H16,IF(ISNUMBER(J16),J16,IF(J16="RATE ONLY",LOWER("RATE ONLY")," "))) -> 
A17: IHDR2 | C17: C2.3.2.1 | F17: State for each sewer special the type, class, etc.: | M17: =IF(ISNUMBER(H17),L17*H17,IF(ISNUMBER(J17),J17,IF(J17="RATE ONLY",LOWER("RATE ONLY")," "))) -> 
A18: Item | D18: (a) | F18: State diameter | G18: No.
A19: Item | D19: (b) | F19: State diameter | G19: No.
A20: IHDR2 | C20: C2.3.2.2 | F20: State for each sewer special the type, class, etc.: | M20: =IF(ISNUMBER(H20),L20*H20,IF(ISNUMBER(J20),J20,IF(J20="RATE ONLY",LOWER("RATE ONLY")," "))) -> 
A21: Item | D21: (a) | F21: State diameter | G21: No.
A22: Item | D22: (b) | F22: State diameter | G22: No.
A23: IHDR2 | C23: C2.3.2.3 | F23: Etc, insert additional items as required | M23: =IF(ISNUMBER(H23),L23*H23,IF(ISNUMBER(J23),J23,IF(J23="RATE ONLY",LOWER("RATE ONLY")," "))) -> 
A24: IHDR1 | B24: C2.3.3 | F24: Bedding for sewers (Class B and C) and fill blanket compacted to 90 % of MDD (100 % for sand): | M24: =IF(ISNUMBER(H24),L24*H24,IF(ISNUMBER(J24),J24,IF(J24="RATE ONLY",LOWER("RATE ONLY")," "))) -> 
A25: IHDR2 | C25: C2.3.3.1 | F25: Bedding using selected granular material: | M25: =IF(ISNUMBER(H25),L25*H25,IF(ISNUMBER(J25),J25,IF(J25="RATE ONLY",LOWER("RATE ONLY")," "))) -> 
A26: Item | D26: (a) | F26: From the excavated trench material | G26: m³
A27: Item | D27: (b) | F27: From other excavations on Site | G27: m³
A28: Item | D28: (c) | F28: From approved borrow areas | G28: m³
A29: Item | D29: (d) | F29: From sources provided by the Contractor | G29: m³
A30: Item | D30: (e) | F30: From commercial sources | G30: m³
A31: IHDR2 | C31: C2.3.3.2 | F31: Selected fill blanket material: | M31: =IF(ISNUMBER(H31),L31*H31,IF(ISNUMBER(J31),J31,IF(J31="RATE ONLY",LOWER("RATE ONLY")," "))) -> 
A32: Item | D32: (a) | F32: From the excavated trench material | G32: m³
A33: Item | D33: (b) | F33: From other excavations on Site | G33: m³
A34: Item | D34: (c) | F34: From approved borrow areas | G34: m³
A35: Item | D35: (d) | F35: From sources provided by the Contractor | G35: m³
A36: Item | D36: (e) | F36: From commercial sources | G36: m³
A37: IHDR2 | C37: C2.3.3.3 | F37: Extra over items C2.3.3.1(a) to C2.3.3.1(c) and C2.3.3.2(a) to C2.3.3.2(c) for screening material | G37: m³ | M37: =IF(ISNUMBER(H37),L37*H37,IF(ISNUMBER(J37),J37,IF(J37="RATE ONLY",LOWER("RATE ONLY")," "))) -> 
A38: IHDR1 | B38: C2.3.4 | F38: Concrete for bedding (Class A) and encasement for sewers:
A39: Item | C39: C2.3.4.1 | F39: Concrete (Class A) bedding (state class of concrete) | G39: m³
A40: Item | C40: C2.3.4.2 | F40: Concrete encasement (state class of concrete) | G40: m³
A41: IHDR1 | B41: C2.3.5 | F41: Manholes, inspection chambers and cleaning eyes for sewers:
A42: IHDR2 | C42: C2.3.5.1 | F42: Manholes (state type and drawing reference etc.):
A43: Item | D43: (a) | F43: State pipe size and depth range | G43: No. | M43: =IF(ISNUMBER(H43),L43*H43,IF(ISNUMBER(J43),J43,IF(J43="RATE ONLY",LOWER("RATE ONLY")," "))) -> 
A44: Item | D44: (b) | F44: State pipe size and depth range | G44: No.
A45: IHDR2 | C45: C2.3.5.2 | F45: Extra over item C2.3.5.1 for backdrops for manholes (state type and drawing reference etc.):
A46: Item | D46: (a) | F46: State pipe size and depth range | G46: No.
A47: Item | D47: (b) | F47: State pipe size and depth range | G47: No.
A48: IHDR2 | C48: C2.3.5.3 | F48: Inspection chambers (state type and drawing reference etc.):
A49: Item | D49: (a) | F49: State pipe size and depth range | G49: No.
A50: Item | D50: (b) | F50: State pipe size and depth range | G50: No.
A51: IHDR2 | C51: C2.3.5.4 | F51: Cleaning eyes (state type and drawing reference etc.):
A52: Item | D52: (a) | F52: State depth range | G52: No.
A53: Item | D53: (b) | F53: State depth range | G53: No.
A54: IHDR2 | C54: C2.3.5.5 | F54: Other structures (state type and drawing reference etc.):
A55: Item | D55: (a) | F55: State pipe size and depth range | G55: No.
A56: Item | D56: (b) | F56: State pipe size and depth range | G56: No.
A57: IHDR1 | B57: C2.3.6 | F57: Covers and frames for sewer manholes, inspection chambers and other structures: | M57: =IF(ISNUMBER(H57),L57*H57,IF(ISNUMBER(J57),J57,IF(J57="RATE ONLY",LOWER("RATE ONLY")," "))) -> 
A58: Item | C58: C2.3.6.1 | F58: State type, strength class and size of cover and frame | G58: No.
A59: Item | C59: C2.3.6.2 | F59: State type, strength class and size of cover and frame | G59: No.
A60: Item | C60: C2.3.6.3 | F60: State type, strength class and size of cover and frame | G60: No.
A61: Item | C61: C2.3.6.4 | F61: Etc., insert additional items as required | G61: No.
A62: IHDR1 | B62: C2.3.7 | F62: Sewer accessories (anchor blocks, marker posts, plug stoppers etc.):
A63: IHDR2 | C63: C2.3.7.1 | F63: Anchor blocks (state type and drawing reference) | G63: No.
A64: IHDR2 | C64: C2.3.7.2 | F64: Anchor blocks (state type and drawing reference) | G64: m³
A65: IHDR2 | C65: C2.3.7.3 | F65: Marker posts (state type and drawing reference) | G65: No.
A66: IHDR2 | C66: C2.3.7.4 | F66: Plug stoppers (state type) | G66: No.
A67: IHDR2 | C67: C2.3.7.5 | F67: Other accessories:
A68: Item | D68: (a) | F68: State type | G68: No. | M68: =IF(ISNUMBER(H68),L68*H68,IF(ISNUMBER(J68),J68,IF(J68="RATE ONLY",LOWER("RATE ONLY")," "))) -> 
A69: Item | D69: (b) | F69: State type | G69: No. | M69: =IF(ISNUMBER(H69),L69*H69,IF(ISNUMBER(J69),J69,IF(J69="RATE ONLY",LOWER("RATE ONLY")," "))) -> 
A70: IHDR1 | B70: C2.3.8 | F70: Sewer connections (erf and existing line connections): | M70: =IF(ISNUMBER(H70),L70*H70,IF(ISNUMBER(J70),J70,IF(J70="RATE ONLY",LOWER("RATE ONLY")," "))) -> 
A71: IHDR2 | C71: C2.3.8.1 | F71: Erf connections (state type, depth range and drawing reference): | M71: =IF(ISNUMBER(H71),L71*H71,IF(ISNUMBER(J71),J71,IF(J71="RATE ONLY",LOWER("RATE ONLY")," "))) -> 
A72: Item | D72: (a) | F72: Connection length (state length in metres) | G72: No. | M72: =IF(ISNUMBER(H72),L72*H72,IF(ISNUMBER(J72),J72,IF(J72="RATE ONLY",LOWER("RATE ONLY")," "))) -> 
A73: Item | D73: (b) | F73: Connection length (state length in metres) | G73: No.
A74: Item | D74: (c) | F74: Etc., insert additional items as required | G74: No.
A75: IHDR2 | C75: C2.3.8.2 | F75: Erf connections (state type, depth range and drawing reference): | M75: =IF(ISNUMBER(H75),L75*H75,IF(ISNUMBER(J75),J75,IF(J75="RATE ONLY",LOWER("RATE ONLY")," "))) -> 
A76: Item | D76: (a) | F76: Connection length (state length in metres) | G76: No.
A77: Item | D77: (b) | F77: Connection length (state length in metres) | G77: No.
A78: Item | D78: (c) | F78: Etc., insert additional items as required | G78: No.
A79: IHDR2 | C79: C2.3.8.3 | F79: Erf connections to sewer manholes: | M79: =IF(ISNUMBER(H79),L79*H79,IF(ISNUMBER(J79),J79,IF(J79="RATE ONLY",LOWER("RATE ONLY")," "))) -> 
A80: Item | D80: (a) | F80: State type, depth range, etc. | G80: sum
A81: Item | D81: (b) | F81: State type, depth range, etc. | G81: sum
A82: IHDR2 | C82: C2.3.8.4 | F82: Connecting sewers to existing manholes: | M82: =IF(ISNUMBER(H82),L82*H82,IF(ISNUMBER(J82),J82,IF(J82="RATE ONLY",LOWER("RATE ONLY")," "))) -> 
A83: Item | D83: (a) | F83: State position, specification and drawing reference etc. | G83: sum
A84: Item | D84: (b) | F84: State position, specification and drawing reference etc. | G84: sum
A85: Item | D85: (c) | F85: Etc. insert additional items as required | G85: sum
A86: IHDR2 | C86: C2.3.8.5 | F86: Breaking into an existing sewer and building a new manhole: | M86: =IF(ISNUMBER(H86),L86*H86,IF(ISNUMBER(J86),J86,IF(J86="RATE ONLY",LOWER("RATE ONLY")," "))) -> 
A87: Item | D87: (a) | F87: State position, specification and drawing reference etc. | G87: sum
A88: Item | D88: (b) | F88: State position, specification and drawing reference etc. | G88: sum
A89: Item | F89: Etc. insert additional items as required | G89: sum
A90: IHDR1 | B90: C2.3.9 | F90: Raising and lowering existing sewer manholes: | M90: =IF(ISNUMBER(H90),L90*H90,IF(ISNUMBER(J90),J90,IF(J90="RATE ONLY",LOWER("RATE ONLY")," "))) -> 
A91: IHDR2 | C91: C2.3.9.1 | F91: Raising manholes: | M91: =IF(ISNUMBER(H91),L91*H91,IF(ISNUMBER(J91),J91,IF(J91="RATE ONLY",LOWER("RATE ONLY")," "))) -> 
A92: Item | D92: (a) | F92: State manhole type and drawing reference and height raised | G92: No.
A93: Item | D93: (b) | F93: State manhole type and drawing reference and height raised | G93: No.
A94: IHDR2 | C94: C2.3.9.2 | F94: Lowering manholes: | M94: =IF(ISNUMBER(H94),L94*H94,IF(ISNUMBER(J94),J94,IF(J94="RATE ONLY",LOWER("RATE ONLY")," "))) -> 
A95: Item | D95: (a) | F95: State manhole type and drawing reference and height lowered | G95: No.
A96: Item | D96: (b) | F96: State manhole type and drawing reference and height lowered | G96: No.
A97: IHDR1 | B97: C2.3.10 | F97: Testing of sewer manholes | G97: No. | M97: =IF(ISNUMBER(H97),L97*H97,IF(ISNUMBER(J97),J97,IF(J97="RATE ONLY",LOWER("RATE ONLY")," "))) -> 
A98: IHDR1 | B98: C2.3.11 | F98: CCTV camera inspections: | M98: =IF(ISNUMBER(H98),L98*H98,IF(ISNUMBER(J98),J98,IF(J98="RATE ONLY",LOWER("RATE ONLY")," "))) -> 
A99: Item | C99: C2.3.11.1 | F99: State pipe diameter | G99: m | M99: =IF(ISNUMBER(H99),L99*H99,IF(ISNUMBER(J99),J99,IF(J99="RATE ONLY",LOWER("RATE ONLY")," "))) -> 
A100: Item | C100: C2.3.11.2 | F100: State pipe diameter | G100: m | M100: =IF(ISNUMBER(H100),L100*H100,IF(ISNUMBER(J100),J100,IF(J100="RATE ONLY",LOWER("RATE ONLY")," "))) -> 
F101: Pay items C2.3.12 to C2.3.20 have been deliberately left for use for additional contract specific sewer related pay items inserted via the Contract Documentation.
A102: IHDR1 | B102: C2.3.21 | F102: Supply and lay water mains complete with couplings: | M102: =IF(ISNUMBER(H102),L102*H102,IF(ISNUMBER(J102),J102,IF(J102="RATE ONLY",LOWER("RATE ONLY")," "))) -> 
A103: IHDR2 | C103: C2.3.21.1 | F103: State for each water main the pipe material type, class, coupling type and the class of bedding etc.: | M103: =IF(ISNUMBER(H103),L103*H103,IF(ISNUMBER(J103),J103,IF(J103="RATE ONLY",LOWER("RATE ONLY")," "))) -> 
A104: Item | D104: (a) | F104: State diameter | G104: m | M104: =IF(ISNUMBER(H104),L104*H104,IF(ISNUMBER(J104),J104,IF(J104="RATE ONLY",LOWER("RATE ONLY")," "))) -> 
A105: Item | D105: (b) | F105: State diameter | G105: m
A106: IHDR2 | C106: C2.3.21.2 | F106: State for each water main the pipe material type, class, coupling type and the class of bedding etc.: | M106: =IF(ISNUMBER(H106),L106*H106,IF(ISNUMBER(J106),J106,IF(J106="RATE ONLY",LOWER("RATE ONLY")," "))) -> 
A107: Item | D107: (a) | F107: State diameter | G107: m
A108: Item | D108: (b) | F108: State diameter | G108: m
A109: IHDR2 | C109: C2.3.21.3 | F109: Etc., insert additional items as required | M109: =IF(ISNUMBER(H109),L109*H109,IF(ISNUMBER(J109),J109,IF(J109="RATE ONLY",LOWER("RATE ONLY")," "))) -> 
A110: IHDR1 | B110: C2.3.22 | F110: Extra over item C2.3.21 for supplying and fixing water main fittings or specials complete with couplings: | M110: =IF(ISNUMBER(H110),L110*H110,IF(ISNUMBER(J110),J110,IF(J110="RATE ONLY",LOWER("RATE ONLY")," "))) -> 
A111: IHDR2 | C111: C2.3.22.1 | F111: State for each water main fitting or special the type, class etc.: | M111: =IF(ISNUMBER(H111),L111*H111,IF(ISNUMBER(J111),J111,IF(J111="RATE ONLY",LOWER("RATE ONLY")," "))) -> 
A112: Item | D112: (a) | F112: State diameter | G112: No.
A113: Item | D113: (b) | F113: State diameter | G113: No.
A114: IHDR2 | C114: C2.3.22.2 | F114: State for each water main fitting or special the type, class etc.: | M114: =IF(ISNUMBER(H114),L114*H114,IF(ISNUMBER(J114),J114,IF(J114="RATE ONLY",LOWER("RATE ONLY")," "))) -> 
A115: Item | D115: (a) | F115: State diameter | G115: No.
A116: Item | D116: (b) | F116: State diameter | G116: No.
A117: IHDR2 | C117: C2.3.22.3 | F117: Etc., insert additional items as required | M117: =IF(ISNUMBER(H117),L117*H117,IF(ISNUMBER(J117),J117,IF(J117="RATE ONLY",LOWER("RATE ONLY")," "))) -> 
A118: IHDR1 | B118: C2.3.23 | F118: Extra over item C2.3.21 for supplying and fixing water main valves: | M118: =IF(ISNUMBER(H118),L118*H118,IF(ISNUMBER(J118),J118,IF(J118="RATE ONLY",LOWER("RATE ONLY")," "))) -> 
A119: IHDR2 | C119: C2.3.23.1 | F119: State for each water main valve the type, class etc.: | M119: =IF(ISNUMBER(H119),L119*H119,IF(ISNUMBER(J119),J119,IF(J119="RATE ONLY",LOWER("RATE ONLY")," "))) -> 
A120: Item | D120: (a) | F120: State diameter | G120: No.
A121: Item | D121: (b) | F121: State diameter | G121: No.
A122: IHDR2 | C122: C2.3.23.2 | F122: State for each water main valve the type, class etc.: | M122: =IF(ISNUMBER(H122),L122*H122,IF(ISNUMBER(J122),J122,IF(J122="RATE ONLY",LOWER("RATE ONLY")," "))) -> 
A123: Item | D123: (a) | F123: State diameter | G123: No.
A124: Item | D124: (b) | F124: State diameter | G124: No.
A125: IHDR2 | C125: C2.3.23.3 | F125: Etc., insert additional items as required | M125: =IF(ISNUMBER(H125),L125*H125,IF(ISNUMBER(J125),J125,IF(J125="RATE ONLY",LOWER("RATE ONLY")," "))) -> 
A126: IHDR1 | B126: C2.3.24 | F126: Extra over item C2.3.21 for cutting of pipes and the supplying and fixing of extra couplings: | M126: =IF(ISNUMBER(H126),L126*H126,IF(ISNUMBER(J126),J126,IF(J126="RATE ONLY",LOWER("RATE ONLY")," "))) -> 
A127: IHDR2 | C127: C2.3.24.1 | F127: State for each water main the pipe material type and coupling type: | M127: =IF(ISNUMBER(H127),L127*H127,IF(ISNUMBER(J127),J127,IF(J127="RATE ONLY",LOWER("RATE ONLY")," "))) -> 
A128: Item | D128: (a) | F128: State diameter | G128: No.
A129: Item | D129: (b) | F129: State diameter | G129: No.
A130: IHDR2 | C130: C2.3.24.2 | F130: State for each water main the pipe material type and coupling type: | M130: =IF(ISNUMBER(H130),L130*H130,IF(ISNUMBER(J130),J130,IF(J130="RATE ONLY",LOWER("RATE ONLY")," "))) -> 
A131: Item | D131: (a) | F131: State diameter | G131: No.
A132: Item | D132: (b) | F132: State diameter | G132: No.
A133: IHDR2 | C133: C2.3.24.3 | F133: Etc., insert additional items as required | G133: No. | M133: =IF(ISNUMBER(H133),L133*H133,IF(ISNUMBER(J133),J133,IF(J133="RATE ONLY",LOWER("RATE ONLY")," "))) -> 
A134: IHDR1 | B134: C2.3.25 | F134: Extra over items C2.3.21, C2.3.22 and C2.3.23 for supplying and installing joints with machined collars and special couplings: | M134: =IF(ISNUMBER(H134),L134*H134,IF(ISNUMBER(J134),J134,IF(J134="RATE ONLY",LOWER("RATE ONLY")," "))) -> 
A135: IHDR2 | C135: C2.3.25.1 | F135: State for each water main the pipe collar and special coupling type: | M135: =IF(ISNUMBER(H135),L135*H135,IF(ISNUMBER(J135),J135,IF(J135="RATE ONLY",LOWER("RATE ONLY")," "))) -> 
A136: Item | D136: (a) | F136: State diameter | G136: No. | M136: =IF(ISNUMBER(H136),L136*H136,IF(ISNUMBER(J136),J136,IF(J136="RATE ONLY",LOWER("RATE ONLY")," "))) -> 
A137: Item | D137: (b) | F137: State diameter | G137: No.
A138: IHDR2 | C138: C2.3.25.2 | F138: State for each water main the pipe collar and special coupling type: | M138: =IF(ISNUMBER(H138),L138*H138,IF(ISNUMBER(J138),J138,IF(J138="RATE ONLY",LOWER("RATE ONLY")," "))) -> 
A139: Item | D139: (a) | F139: State diameter | G139: No.
A140: Item | D140: (b) | F140: State diameter | G140: No.
A141: IHDR2 | C141: C2.3.25.3 | F141: Etc., insert additional items as required | M141: =IF(ISNUMBER(H141),L141*H141,IF(ISNUMBER(J141),J141,IF(J141="RATE ONLY",LOWER("RATE ONLY")," "))) -> 
A142: IHDR1 | B142: C2.3.26 | F142: Supplying and installing pipes, specials and valves on short pipe runs: | M142: =IF(ISNUMBER(H142),L142*H142,IF(ISNUMBER(J142),J142,IF(J142="RATE ONLY",LOWER("RATE ONLY")," "))) -> 
A143: IHDR2 | C143: C2.3.26.1 | F143: State for each short run water main the pipe material type, class and class of bedding etc.: | M143: =IF(ISNUMBER(H143),L143*H143,IF(ISNUMBER(J143),J143,IF(J143="RATE ONLY",LOWER("RATE ONLY")," "))) -> 
A144: Item | D144: (a) | F144: State diameter and length | G144: m
A145: Item | D145: (b) | F145: State diameter and length | G145: m
A146: IHDR2 | C146: C2.3.26.2 | F146: State for each short run water main the pipe material type, class and class of bedding etc.: | M146: =IF(ISNUMBER(H146),L146*H146,IF(ISNUMBER(J146),J146,IF(J146="RATE ONLY",LOWER("RATE ONLY")," "))) -> 
A147: Item | D147: (a) | F147: State diameter | G147: No.
A148: Item | D148: (b) | F148: State diameter | G148: No.
A149: IHDR2 | C149: C2.3.26.3 | F149: Etc., insert additional items as required | M149: =IF(ISNUMBER(H149),L149*H149,IF(ISNUMBER(J149),J149,IF(J149="RATE ONLY",LOWER("RATE ONLY")," "))) -> 
A150: IHDR1 | B150: C2.3.27 | F150: Extra over item C2.3.21 for encasing (wrapping) joints: | M150: =IF(ISNUMBER(H150),L150*H150,IF(ISNUMBER(J150),J150,IF(J150="RATE ONLY",LOWER("RATE ONLY")," "))) -> 
A151: IHDR2 | C151: C2.3.27.1 | F151: State for each water main the number of joints to be encased (wrapped): | M151: =IF(ISNUMBER(H151),L151*H151,IF(ISNUMBER(J151),J151,IF(J151="RATE ONLY",LOWER("RATE ONLY")," "))) -> 
A152: Item | D152: (a) | F152: State diameter | G152: No.
A153: Item | D153: (b) | F153: State diameter | G153: No.
A154: IHDR1 | B154: C2.3.28 | F154: Installation of hydrants and water meters: | M154: =IF(ISNUMBER(H154),L154*H154,IF(ISNUMBER(J154),J154,IF(J154="RATE ONLY",LOWER("RATE ONLY")," "))) -> 
A155: IHDR2 | C155: C2.3.28.1 | F155: Describe hydrant type | G155: No.
A156: IHDR2 | C156: C2.3.28.2 | F156: Describe water meter type | G156: No.
A157: IHDR2 | C157: C2.3.28.3 | F157: Etc., insert additional items as required | G157: No.
A158: IHDR1 | B158: C2.3.29 | F158: Bedding for water mains (Class B and C) and fill blanket compacted to 90 % of MDD (100 % for sand):
A159: IHDR2 | C159: C2.3.29.1 | F159: Bedding using selected granular material:
A160: Item | D160: (a) | F160: From the excavated trench material | G160: m³
A161: Item | D161: (b) | F161: From other excavations on Site | G161: m³
A162: Item | D162: (c) | F162: From approved borrow areas | G162: m³
A163: Item | D163: (d) | F163: From sources provided by the Contractor | G163: m³
A164: Item | D164: (e) | F164: From commercial sources | G164: m³
A165: IHDR2 | C165: C2.3.29.2 | F165: Selected fill blanket material: | M165: =IF(ISNUMBER(H165),L165*H165,IF(ISNUMBER(J165),J165,IF(J165="RATE ONLY",LOWER("RATE ONLY")," "))) -> 
A166: Item | D166: (a) | F166: From the excavated trench material | G166: m³ | M166: =IF(ISNUMBER(H166),L166*H166,IF(ISNUMBER(J166),J166,IF(J166="RATE ONLY",LOWER("RATE ONLY")," "))) -> 
A167: Item | D167: (b) | F167: From other excavations on Site | G167: m³
A168: Item | D168: (c) | F168: From approved borrow areas | G168: m³
A169: Item | D169: (d) | F169: From sources provided by the Contractor | G169: m³
A170: Item | D170: (e) | F170: From commercial sources | G170: m³
A171: IHDR2 | C171: C2.3.29.3 | F171: Extra over items C2.3.29.1(a) to C2.3.29.1(c) and C2.3.29.2(a) to C2.3.29.2(c) for screening material | G171: m³ | M171: =IF(ISNUMBER(H171),L171*H171,IF(ISNUMBER(J171),J171,IF(J171="RATE ONLY",LOWER("RATE ONLY")," "))) -> 
A172: IHDR1 | B172: C2.3.30 | F172: Concrete for bedding (Class A) and encasement for water mains:
A173: Item | C173: C2.3.30.1 | F173: Concrete (Class A) bedding (state class of concrete) | G173: m³
A174: Item | C174: C2.3.30.2 | F174: Concrete encasement (state class of concrete) | G174: m³
A175: IHDR1 | B175: C2.3.31 | F175: Manholes, valve and hydrant chambers etc. for water mains
A176: IHDR2 | C176: C2.3.31.1 | F176: Manholes (state type and drawing references etc.):
A177: Item | D177: (a) | F177: State pipe size and depth range | G177: No.
A178: Item | D178: (b) | F178: State pipe size and depth range | G178: No.
A179: IHDR2 | C179: C2.3.31.2 | F179: Valve chambers (state valve type (gate valve, single or double air valve etc.) and drawing references etc.): | M179: =IF(ISNUMBER(H179),L179*H179,IF(ISNUMBER(J179),J179,IF(J179="RATE ONLY",LOWER("RATE ONLY")," "))) -> 
A180: Item | D180: (a) | F180: State pipe size and depth range | G180: No.
A181: Item | D181: (b) | F181: State pipe size and depth range | G181: No.
A182: IHDR2 | C182: C2.3.31.3 | F182: Hydrant chambers (state type etc. and drawing references etc.): | M182: =IF(ISNUMBER(H182),L182*H182,IF(ISNUMBER(J182),J182,IF(J182="RATE ONLY",LOWER("RATE ONLY")," "))) -> 
A183: Item | D183: (a) | F183: (a) State pipe size and depth range | G183: No.
A184: Item | D184: (b) | F184: (b) State pipe size and depth range | G184: No.
A185: IHDR2 | C185: C2.3.31.4 | F185: Other structures (state type etc. and drawing reference etc.): | M185: =IF(ISNUMBER(H185),L185*H185,IF(ISNUMBER(J185),J185,IF(J185="RATE ONLY",LOWER("RATE ONLY")," "))) -> 
A186: Item | D186: (a) | F186: (a) State pipe size and depth range | G186: No.
A187: Item | D187: (b) | F187: (b) State pipe size and depth range | G187: No.
A188: IHDR1 | B188: C2.3.32 | F188: Covers and frames for water main manholes, valve and hydrant chambers and other structures: | M188: =IF(ISNUMBER(H188),L188*H188,IF(ISNUMBER(J188),J188,IF(J188="RATE ONLY",LOWER("RATE ONLY")," "))) -> 
A189: Item | C189: C2.3.32.1 | F189: Describe manhole or chamber and state type of cover and frame | G189: No.
A190: Item | C190: C2.3.32.2 | F190: Describe manhole or chamber and state type of cover and frame | G190: No.
A191: Item | C191: C2.3.32.3 | F191: Describe manhole or chamber and state type of cover and frame | G191: No.
A192: Item | C192: C2.3.32.4 | F192: Etc., insert additional items as required | G192: No.
A193: IHDR1 | B193: C2.3.33 | F193: Water main accessories (anchor or thrust blocks, pedestals or marker posts etc.):
A194: IHDR2 | C194: C2.3.33.1 | F194: Anchor or thrust blocks (state type and drawing reference) | G194: No.
A195: IHDR2 | C195: C2.3.33.2 | F195: Anchor or thrust blocks (state type and drawing reference) | G195: m³
A196: IHDR2 | C196: C2.3.33.3 | F196: Pedestals (state type and drawing reference) | G196: No.
A197: IHDR2 | C197: C2.3.33.4 | F197: Pedestals (state type and drawing reference) | G197: m³
A198: IHDR2 | C198: C2.3.33.5 | F198: Marker posts or blocks (state type and drawing reference) | G198: No.
A199: IHDR2 | C199: C2.3.33.6 | F199: Other accessories:
A200: Item | D200: (a) | F200: State type | G200: No. | M200: =IF(ISNUMBER(H200),L200*H200,IF(ISNUMBER(J200),J200,IF(J200="RATE ONLY",LOWER("RATE ONLY")," "))) -> 
... 20 more rows

Sheet 2.4 (hidden)
A1: #BillSheet#
A2: #BillSheet# | B2: C2.4 | C2: ENERGY AND OTHER SERVICES | J2: SCHEDULE A | K2: =SUBTOTAL(9,M$7:M883) -> 0 | M2: =J2 -> SCHEDULE A
A3: #BillSheet#
A4: ColHDR
A5: ColHDR | B5: ITEM | F5: DESCRIPTION | G5: UNIT | H5: QTY | I5: RATE | J5: AMT | L5: RATE | M5: AMOUNT
A6: ColHDR
F7: ENERGY AND OTHER SERVICES
A8: IHDR1 | B8: C2.4.1 | F8: Bedding for electric power cables using material: | M8: =IF(ISNUMBER(H8),L8*H8,IF(ISNUMBER(J8),J8,IF(J8="RATE ONLY",LOWER("RATE ONLY")," "))) -> 
A9: IHDR2 | C9: C2.4.1.1 | F9: Selected from the excavated trench material | G9: m³
A10: IHDR2 | C10: C2.4.1.2 | F10: Selected from other excavations on Site | G10: m³
A11: IHDR2 | C11: C2.4.1.3 | F11: Selected from approved borrow areas | G11: m³
A12: IHDR2 | C12: C2.4.1.4 | F12: Selected from sources provided by the Contractor | G12: m³
A13: IHDR2 | C13: C2.4.1.5 | F13: From commercial sources:
A14: Item | D14: (a) | F14: Uncrushed material (state material type) | G14: m³ | M14: =IF(ISNUMBER(H14),L14*H14,IF(ISNUMBER(J14),J14,IF(J14="RATE ONLY",LOWER("RATE ONLY")," "))) -> 
A15: Item | D15: (b) | F15: Crushed stone material (state material type) | G15: m³ | M15: =IF(ISNUMBER(H15),L15*H15,IF(ISNUMBER(J15),J15,IF(J15="RATE ONLY",LOWER("RATE ONLY")," "))) -> 
A16: IHDR1 | B16: C2.4.2 | F16: Concrete for bedding and encasement for electric power cables | M16: =IF(ISNUMBER(H16),L16*H16,IF(ISNUMBER(J16),J16,IF(J16="RATE ONLY",LOWER("RATE ONLY")," "))) -> 
A17: Item | C17: C2.4.2.1 | F17: Concrete bedding (Class C16/20-20 concrete) | G17: m³
A18: Item | C18: C2.4.2.2 | F18: Concrete encasement of cables (Class C16/20-20 concrete) | G18: m³
A19: IHDR1 | B19: C2.4.3 | F19: Cable laying accessories (warning tape, protection slabs, markers etc.)
A20: IHDR2 | C20: C2.4.3.1 | F20: Electrical warning tape (state type) | G20: m
A21: IHDR2 | C21: C2.4.3.2 | F21: Concrete slab protection (state type and dimensions etc) | G21: m
A22: IHDR2 | C22: C2.4.3.3 | F22: Cable markers (state type) | G22: No.
A23: IHDR2 | C23: C2.4.3.4 | F23: Other accessories:
A24: Item | D24: (a) | F24: State type | G24: m | M24: =IF(ISNUMBER(H24),L24*H24,IF(ISNUMBER(J24),J24,IF(J24="RATE ONLY",LOWER("RATE ONLY")," "))) -> 
A25: Item | D25: (b) | F25: State type | G25: No. | M25: =IF(ISNUMBER(H25),L25*H25,IF(ISNUMBER(J25),J25,IF(J25="RATE ONLY",LOWER("RATE ONLY")," "))) -> 
A26: #BillEnd#
A27: #BillEnd# | B27: TOTAL CARRIED FORWARD TO SUMMARY | M27: =SUBTOTAL(9,M$10:M25) -> 0
A28: #BillEnd#

Sheet 3.1 (hidden)
A1: #BillSheet#
A2: #BillSheet# | B2: C3.1 | C2: DRAINS | J2: SCHEDULE A | K2: =SUBTOTAL(9,M$7:M1184) -> 0 | M2: =J2 -> SCHEDULE A
A3: #BillSheet#
A4: ColHDR
A5: ColHDR | B5: ITEM | F5: DESCRIPTION | G5: UNIT | H5: QTY | I5: RATE | J5: AMT | L5: RATE | M5: AMOUNT
A6: ColHDR
F7: DRAINS
A8: IHDR1 | B8: C3.1.1 | F8: Excavation for open drains: | M8: =IF(ISNUMBER(H8),L8*H8,IF(ISNUMBER(J8),J8,IF(J8="RATE ONLY",LOWER("RATE ONLY")," "))) -> 
A10: IHDR2 | C10: C3.1.1.1 | F10: Excavating all material situated within the following depth ranges below the surface level using conventional methods: | M10: =IF(ISNUMBER(H10),L10*H10,IF(ISNUMBER(J10),J10,IF(J10="RATE ONLY",LOWER("RATE ONLY")," "))) -> 
A12: Item | D12: (a) | F12: 0 m to 1,5 m | G12: m³ | L12: 45.00 | M12: =IF(ISNUMBER(H12),L12*H12,IF(ISNUMBER(J12),J12,IF(J12="RATE ONLY",LOWER("RATE ONLY")," "))) -> 
A14: Item | D14: (b) | F14: Exceeding 1,5 m and up to 3,0 m | G14: m³ | L14: 50.00 | M14: =IF(ISNUMBER(H14),L14*H14,IF(ISNUMBER(J14),J14,IF(J14="RATE ONLY",LOWER("RATE ONLY")," "))) -> 
A16: Item | D16: (c) | F16: Etc, in increments of 1,5 m | G16: m³ | M16: =IF(ISNUMBER(H16),L16*H16,IF(ISNUMBER(J16),J16,IF(J16="RATE ONLY",LOWER("RATE ONLY")," "))) -> 
A17: IHDR2 | C17: C3.1.1.2 | F17: Extra over sub-item C3.1.1.1 for excavation in hard and boulder material, irrespective of depth | G17: m³ | L17: 250.00 | M17: =IF(ISNUMBER(H17),L17*H17,IF(ISNUMBER(J17),J17,IF(J17="RATE ONLY",LOWER("RATE ONLY")," "))) -> 
A19: IHDR2 | C19: C3.1.1.3 | F19: Extra over sub-item C3.1.1.1 for excavation in stabilised existing road layers, irrespective of depth | G19: m³ | L19: 19.50 | M19: =IF(ISNUMBER(H19),L19*H19,IF(ISNUMBER(J19),J19,IF(J19="RATE ONLY",LOWER("RATE ONLY")," "))) -> 
A21: IHDR2 | C21: C3.1.1.4 | F21: Excavating soft material situated 0 m to 1,5 m below the surface level using labour enhanced construction methods | G21: m³ | M21: =IF(ISNUMBER(H21),L21*H21,IF(ISNUMBER(J21),J21,IF(J21="RATE ONLY",LOWER("RATE ONLY")," "))) -> 
A23: IHDR2 | C23: C3.1.1.5 | F23: Excavating intermediate material situated 0 m to 1,5 m below the surface level using labour enhanced construction methods | G23: m³ | M23: =IF(ISNUMBER(H23),L23*H23,IF(ISNUMBER(J23),J23,IF(J23="RATE ONLY",LOWER("RATE ONLY")," "))) -> 
A25: IHDR1 | B25: C3.1.2 | F25: Clearing, shaping and disposal of accumulated sediment in existing unlined open drains | M25: =IF(ISNUMBER(H25),L25*H25,IF(ISNUMBER(J25),J25,IF(J25="RATE ONLY",LOWER("RATE ONLY")," "))) -> 
A27: Item | C27: C3.1.2.1 | F27: Using conventional methods | G27: m³ | L27: 82.00 | M27: =IF(ISNUMBER(H27),L27*H27,IF(ISNUMBER(J27),J27,IF(J27="RATE ONLY",LOWER("RATE ONLY")," "))) -> 
A29: Item | C29: C3.1.2.2 | F29: Using labour enhanced construction methods | G29: m³ | M29: =IF(ISNUMBER(H29),L29*H29,IF(ISNUMBER(J29),J29,IF(J29="RATE ONLY",LOWER("RATE ONLY")," "))) -> 
A30: IHDR1 | B30: C3.1.3 | F30: Excavation, clearing and disposal of accumulated sediment in existing lined drains and drainage systems: | M30: =IF(ISNUMBER(H30),L30*H30,IF(ISNUMBER(J30),J30,IF(J30="RATE ONLY",LOWER("RATE ONLY")," "))) -> 
A32: IHDR2 | C32: C3.1.3.1 | F32: Using conventional methods (up to 1,5 m): | M32: =IF(ISNUMBER(H32),L32*H32,IF(ISNUMBER(J32),J32,IF(J32="RATE ONLY",LOWER("RATE ONLY")," "))) -> 
A34: Item | D34: (a) | F34: Manholes and inlet and outlet structures | G34: m³ | L34: 310.00 | M34: =IF(ISNUMBER(H34),L34*H34,IF(ISNUMBER(J34),J34,IF(J34="RATE ONLY",LOWER("RATE ONLY")," "))) -> 
A36: Item | D36: (b) | F36: Culvert barrels | G36: m³ | L36: 400.00 | M36: =IF(ISNUMBER(H36),L36*H36,IF(ISNUMBER(J36),J36,IF(J36="RATE ONLY",LOWER("RATE ONLY")," "))) -> 
A38: Item | D38: (c) | F38: Concrete or other lined side drains | G38: m³ | M38: =IF(ISNUMBER(H38),L38*H38,IF(ISNUMBER(J38),J38,IF(J38="RATE ONLY",LOWER("RATE ONLY")," "))) -> 
A39: IHDR2 | C39: C3.1.3.2 | F39: Using conventional methods (in excess of 1,5 m): | M39: =IF(ISNUMBER(H39),L39*H39,IF(ISNUMBER(J39),J39,IF(J39="RATE ONLY",LOWER("RATE ONLY")," "))) -> 
A41: Item | D41: (a) | F41: Manholes and inlet and outlet structures | G41: m³
A42: Item | D42: (b) | F42: Culvert barrels | G42: m³
A43: Item | D43: (c) | F43: Concrete or other lined side drains | G43: m³
A44: IHDR2 | C44: C3.1.3.3 | F44: Using labour enhanced construction methods: | M44: =IF(ISNUMBER(H44),L44*H44,IF(ISNUMBER(J44),J44,IF(J44="RATE ONLY",LOWER("RATE ONLY")," "))) -> 
A46: Item | D46: (a) | F46: Manholes and inlet and outlet structures | G46: m³
A47: Item | D47: (b) | F47: Culvert barrels | G47: m³
A48: Item | D48: (c) | F48: Concrete or other lined side drains | G48: m³
A49: IHDR1 | B49: C3.1.4 | F49: Excavation and disposal of material for subsoil drainage systems: | M49: =IF(ISNUMBER(H49),L49*H49,IF(ISNUMBER(J49),J49,IF(J49="RATE ONLY",LOWER("RATE ONLY")," "))) -> 
A51: IHDR2 | C51: C3.1.4.1 | F51: Excavating in all material situated within the following depth ranges below the surface: | M51: =IF(ISNUMBER(H51),L51*H51,IF(ISNUMBER(J51),J51,IF(J51="RATE ONLY",LOWER("RATE ONLY")," "))) -> 
A53: Item | D53: (a) | F53: 0 m to 1,5 m | G53: m³ | L53: 85.00 | M53: =IF(ISNUMBER(H53),L53*H53,IF(ISNUMBER(J53),J53,IF(J53="RATE ONLY",LOWER("RATE ONLY")," "))) -> 
A55: Item | D55: (b) | F55: Exceeding 1,5 m and up to 3,0 m | G55: m³ | L55: 290.00 | M55: =IF(ISNUMBER(H55),L55*H55,IF(ISNUMBER(J55),J55,IF(J55="RATE ONLY",LOWER("RATE ONLY")," "))) -> 
A57: Item | D57: (c) | F57: Etc, in increments of 1,5 m | G57: m³
A58: IHDR2 | C58: C3.1.4.2 | F58: Excavating soft material situated within 0 m to 1,5 m below the surface level using labour enhanced construction methods | G58: m³ | M58: =IF(ISNUMBER(H58),L58*H58,IF(ISNUMBER(J58),J58,IF(J58="RATE ONLY",LOWER("RATE ONLY")," "))) -> 
A60: IHDR2 | C60: C3.1.4.3 | F60: Excavating intermediate material situated within 0 m to 1,5 m below the surface level using labour enhanced construction methods | G60: m³ | M60: =IF(ISNUMBER(H60),L60*H60,IF(ISNUMBER(J60),J60,IF(J60="RATE ONLY",LOWER("RATE ONLY")," "))) -> 
A62: IHDR2 | C62: C3.1.4.4 | F62: Extra over sub-item C3.1.4.1 for excavation in hard and boulder material, irrespective of depth | G62: m³ | L62: 290.00 | M62: =IF(ISNUMBER(H62),L62*H62,IF(ISNUMBER(J62),J62,IF(J62="RATE ONLY",LOWER("RATE ONLY")," "))) -> 
A64: IHDR2 | C64: C3.1.4.5 | F64: Extra over sub-item C3.1.4.1 for excavation through stabilised existing road layers | G64: m³ | M64: =IF(ISNUMBER(H64),L64*H64,IF(ISNUMBER(J64),J64,IF(J64="RATE ONLY",LOWER("RATE ONLY")," "))) -> 
A66: IHDR2 | C66: C3.1.4.6 | F66: Excavation and disposal of material for composite in-plane fin-drain type drainage systems using a trenching machine: | M66: =IF(ISNUMBER(H66),L66*H66,IF(ISNUMBER(J66),J66,IF(J66="RATE ONLY",LOWER("RATE ONLY")," "))) -> 
A68: Item | D68: (a) | F68: Trench width of …..and depth of....... | G68: m
A69: Item | D69: (b) | F69: Etc for width of…..and depth of...... | G69: m
A70: IHDR1 | B70: C3.1.5 | F70: Impermeable backfilling to subsoil drainage systems: | M70: =IF(ISNUMBER(H70),L70*H70,IF(ISNUMBER(J70),J70,IF(J70="RATE ONLY",LOWER("RATE ONLY")," "))) -> 
A72: Item | C72: C3.1.5.1 | F72: Un-stabilised natural gravel obtained from approved sources on the site | G72: m³ | L72: 96.00 | M72: =IF(ISNUMBER(H72),L72*H72,IF(ISNUMBER(J72),J72,IF(J72="RATE ONLY",LOWER("RATE ONLY")," "))) -> 
A73: PB
A74: PB | B74: CARRIED FORWARD | M74: =SUBTOTAL(9,M$7:M72) -> 0
A75: PB
A76: PB
A77: PB | B77: BROUGHT FORWARD | M77: =SUBTOTAL(9,M$7:M75) -> 0
A78: PB
A80: Item | C80: C3.1.5.2 | F80: G5 material obtained from commercial sources | G80: m³ | L80: 130.00 | M80: =IF(ISNUMBER(H80),L80*H80,IF(ISNUMBER(J80),J80,IF(J80="RATE ONLY",LOWER("RATE ONLY")," "))) -> 
A82: Item | C82: C3.1.5.3 | F82: Extra over items C3.1.5.1 and C3.1.5.2 for stabilisation with 4,0 % CEM II (32.5) cement | G82: m³ | L82: 185.00 | M82: =IF(ISNUMBER(H82),L82*H82,IF(ISNUMBER(J82),J82,IF(J82="RATE ONLY",LOWER("RATE ONLY")," "))) -> 
A84: IHDR1 | B84: C3.1.6 | F84: Construction of banks and dykes: | M84: =IF(ISNUMBER(H84),L84*H84,IF(ISNUMBER(J84),J84,IF(J84="RATE ONLY",LOWER("RATE ONLY")," "))) -> 
A86: Item | C86: C3.1.6.1 | F86: Banks and dykes using conventional methods | G86: m³ | L86: 70.00 | M86: =IF(ISNUMBER(H86),L86*H86,IF(ISNUMBER(J86),J86,IF(J86="RATE ONLY",LOWER("RATE ONLY")," "))) -> 
A88: Item | C88: C3.1.6.2 | F88: Banks and dykes using labour enhanced construction methods | G88: m³ | M88: =IF(ISNUMBER(H88),L88*H88,IF(ISNUMBER(J88),J88,IF(J88="RATE ONLY",LOWER("RATE ONLY")," "))) -> 
A89: IHDR1 | B89: C3.1.7 | F89: Natural permeable material in subsoil drainage systems (approved crushed stone): | M89: =IF(ISNUMBER(H89),L89*H89,IF(ISNUMBER(J89),J89,IF(J89="RATE ONLY",LOWER("RATE ONLY")," "))) -> 
A91: IHDR2 | C91: C3.1.7.1 | F91: Crushed stone obtained from approved sources on the site: | M91: =IF(ISNUMBER(H91),L91*H91,IF(ISNUMBER(J91),J91,IF(J91="RATE ONLY",LOWER("RATE ONLY")," "))) -> 
A93: Item | D93: (a) | F93: Fine grade | G93: m³ | L93: 375.00 | M93: =IF(ISNUMBER(H93),L93*H93,IF(ISNUMBER(J93),J93,IF(J93="RATE ONLY",LOWER("RATE ONLY")," "))) -> 
A95: Item | D95: (b) | F95: Coarse grade | G95: m³ | L95: 365.00 | M95: =IF(ISNUMBER(H95),L95*H95,IF(ISNUMBER(J95),J95,IF(J95="RATE ONLY",LOWER("RATE ONLY")," "))) -> 
A97: IHDR2 | C97: C3.1.7.2 | F97: Crushed stone obtained from commercial sources: | M97: =IF(ISNUMBER(H97),L97*H97,IF(ISNUMBER(J97),J97,IF(J97="RATE ONLY",LOWER("RATE ONLY")," "))) -> 
A99: Item | D99: (a) | F99: Fine grade | G99: m³ | L99: 400.00 | M99: =IF(ISNUMBER(H99),L99*H99,IF(ISNUMBER(J99),J99,IF(J99="RATE ONLY",LOWER("RATE ONLY")," "))) -> 
A101: Item | D101: (b) | F101: Coarse grade | G101: m³ | L101: 390.00 | M101: =IF(ISNUMBER(H101),L101*H101,IF(ISNUMBER(J101),J101,IF(J101="RATE ONLY",LOWER("RATE ONLY")," "))) -> 
A103: IHDR1 | B103: C3.1.8 | F103: Natural permeable material in subsoil drainage systems (approved natural sand): | M103: =IF(ISNUMBER(H103),L103*H103,IF(ISNUMBER(J103),J103,IF(J103="RATE ONLY",LOWER("RATE ONLY")," "))) -> 
A105: IHDR2 | C105: C3.1.8.1 | F105: Natural sand obtained from approved sources: | M105: =IF(ISNUMBER(H105),L105*H105,IF(ISNUMBER(J105),J105,IF(J105="RATE ONLY",LOWER("RATE ONLY")," "))) -> 
A107: Item | D107: (a) | F107: Fine grade | G107: m³ | L107: 300.00 | M107: =IF(ISNUMBER(H107),L107*H107,IF(ISNUMBER(J107),J107,IF(J107="RATE ONLY",LOWER("RATE ONLY")," "))) -> 
A109: Item | D109: (b) | F109: Medium grade | G109: m³ | L109: 290.00 | M109: =IF(ISNUMBER(H109),L109*H109,IF(ISNUMBER(J109),J109,IF(J109="RATE ONLY",LOWER("RATE ONLY")," "))) -> 
A111: Item | D111: (c) | F111: Coarse grade | G111: m³ | L111: 280.00 | M111: =IF(ISNUMBER(H111),L111*H111,IF(ISNUMBER(J111),J111,IF(J111="RATE ONLY",LOWER("RATE ONLY")," "))) -> 
A113: IHDR2 | C113: C3.1.8.2 | F113: Natural sand from commercial sources: | M113: =IF(ISNUMBER(H113),L113*H113,IF(ISNUMBER(J113),J113,IF(J113="RATE ONLY",LOWER("RATE ONLY")," "))) -> 
A115: Item | D115: (a) | F115: Fine grade | G115: m³ | L115: 360.00 | M115: =IF(ISNUMBER(H115),L115*H115,IF(ISNUMBER(J115),J115,IF(J115="RATE ONLY",LOWER("RATE ONLY")," "))) -> 
A117: Item | D117: (b) | F117: Medium grade | G117: m³ | L117: 350.00 | M117: =IF(ISNUMBER(H117),L117*H117,IF(ISNUMBER(J117),J117,IF(J117="RATE ONLY",LOWER("RATE ONLY")," "))) -> 
A119: PB
A120: PB | B120: CARRIED FORWARD | M120: =SUBTOTAL(9,M$7:M118) -> 0
A121: PB
A122: PB
A123: PB | B123: BROUGHT FORWARD | M123: =SUBTOTAL(9,M$7:M121) -> 0
A124: PB
A125: Item | D125: (c) | F125: Coarse grade | G125: m³ | L125: 340.00 | M125: =IF(ISNUMBER(H125),L125*H125,IF(ISNUMBER(J125),J125,IF(J125="RATE ONLY",LOWER("RATE ONLY")," "))) -> 
A127: IHDR1 | B127: C3.1.9 | F127: Pipes in subsoil drainage systems: | M127: =IF(ISNUMBER(H127),L127*H127,IF(ISNUMBER(J127),J127,IF(J127="RATE ONLY",LOWER("RATE ONLY")," "))) -> 
A129: IHDR2 | C129: C3.1.9.1 | F129: U-PVC pipes and fittings, normal duty, complete with couplings: | M129: =IF(ISNUMBER(H129),L129*H129,IF(ISNUMBER(J129),J129,IF(J129="RATE ONLY",LOWER("RATE ONLY")," "))) -> 
A131: Item | D131: (a) | F131: 100 mm internal dia, perforated or slotted | G131: m | L131: 44.00 | M131: =IF(ISNUMBER(H131),L131*H131,IF(ISNUMBER(J131),J131,IF(J131="RATE ONLY",LOWER("RATE ONLY")," "))) -> 
A133: Item | D133: (b) | F133: 100 mm internal dia, unperforated | G133: m | L133: 40.00 | M133: =IF(ISNUMBER(H133),L133*H133,IF(ISNUMBER(J133),J133,IF(J133="RATE ONLY",LOWER("RATE ONLY")," "))) -> 
A135: Item | D135: (c) | F135: 150 mm internal dia, perforated or slotted | G135: m | L135: 54.00 | M135: =IF(ISNUMBER(H135),L135*H135,IF(ISNUMBER(J135),J135,IF(J135="RATE ONLY",LOWER("RATE ONLY")," "))) -> 
A137: Item | D137: (d) | F137: 150 mm internal dia, unperforated | G137: m | L137: 50.00 | M137: =IF(ISNUMBER(H137),L137*H137,IF(ISNUMBER(J137),J137,IF(J137="RATE ONLY",LOWER("RATE ONLY")," "))) -> 
A139: IHDR2 | C139: PC3.1.9.2 | F139: HDPE pipes and fittings, normal duty, complete with couplings: | M139: =IF(ISNUMBER(H139),L139*H139,IF(ISNUMBER(J139),J139,IF(J139="RATE ONLY",LOWER("RATE ONLY")," "))) -> 
A141: Item | D141: (a) | F141: 100 mm internal dia, perforated or slotted | G141: m | L141: 54.00 | M141: =IF(ISNUMBER(H141),L141*H141,IF(ISNUMBER(J141),J141,IF(J141="RATE ONLY",LOWER("RATE ONLY")," "))) -> 
A143: Item | D143: (b) | F143: 100 mm internal dia, unperforated | G143: m | L143: 50.00 | M143: =IF(ISNUMBER(H143),L143*H143,IF(ISNUMBER(J143),J143,IF(J143="RATE ONLY",LOWER("RATE ONLY")," "))) -> 
A145: Item | D145: (c) | F145: 150 mm internal dia, perforated or slotted | G145: m | L145: 64.00 | M145: =IF(ISNUMBER(H145),L145*H145,IF(ISNUMBER(J145),J145,IF(J145="RATE ONLY",LOWER("RATE ONLY")," "))) -> 
A147: Item | D147: (d) | F147: 150 mm internal dia, unperforated | G147: m | L147: 60.00 | M147: =IF(ISNUMBER(H147),L147*H147,IF(ISNUMBER(J147),J147,IF(J147="RATE ONLY",LOWER("RATE ONLY")," "))) -> 
A149: IHDR1 | B149: C3.1.10 | F149: Polymer film sheeting or similar approved material, for lining subsoil drainage systems: | M149: =IF(ISNUMBER(H149),L149*H149,IF(ISNUMBER(J149),J149,IF(J149="RATE ONLY",LOWER("RATE ONLY")," "))) -> 
A151: Item | C151: C3.1.10.1 | F151: 0,15 mm thick | G151: m² | L151: 9.20 | M151: =IF(ISNUMBER(H151),L151*H151,IF(ISNUMBER(J151),J151,IF(J151="RATE ONLY",LOWER("RATE ONLY")," "))) -> 
A153: Item | C153: C3.1.10.2 | F153: 0,25 mm thick | G153: m² | M153: =IF(ISNUMBER(H153),L153*H153,IF(ISNUMBER(J153),J153,IF(J153="RATE ONLY",LOWER("RATE ONLY")," "))) -> 
A154: IHDR1 | B154: C3.1.11 | F154: Geotextiles (Grade 2) | G154: m² | L154: 18.00 | M154: =IF(ISNUMBER(H154),L154*H154,IF(ISNUMBER(J154),J154,IF(J154="RATE ONLY",LOWER("RATE ONLY")," "))) -> 
A156: IHDR1 | B156: C3.1.12 | F156: Composite drainage systems: | M156: =IF(ISNUMBER(H156),L156*H156,IF(ISNUMBER(J156),J156,IF(J156="RATE ONLY",LOWER("RATE ONLY")," "))) -> 
A158: Item | C158: C3.1.12.1 | F158: In-plane drainage systems (state size, type of core and type grade, etc. of geotextile) | G158: m
A159: Item | C159: C3.1.12.2 | F159: Vertical subsoil strip drainage systems (state size, type of core and type grade, etc. of geotextile) | G159: m
A160: Item | C160: C3.1.12.3 | F160: Panel drainage systems (state size, type of core and type grade, etc. of geotextile) | G160: m
A161: Item | C161: C3.1.12.4 | F161: Alternative drainage systems as detailed in Contract Documentation (state size, type and other details) | G161: m
A162: IHDR1 | B162: C3.1.13 | F162: Concrete outlet structures, manhole boxes, junction boxes and cleaning eyes for subsoil drainage systems: | M162: =IF(ISNUMBER(H162),L162*H162,IF(ISNUMBER(J162),J162,IF(J162="RATE ONLY",LOWER("RATE ONLY")," "))) -> 
A164: Item | C164: C3.1.13.1 | F164: Outlet structures (Type A: see DWG No 113142-0-DRG-RR-04-0019) | G164: No. | L164: 5,300.00 | M164: =IF(ISNUMBER(H164),L164*H164,IF(ISNUMBER(J164),J164,IF(J164="RATE ONLY",LOWER("RATE ONLY")," "))) -> 
A166: Item | C166: C3.1.13.2 | F166: Inspection boxes (specify each type and drawing reference) | G166: No.
A167: Item | C167: C3.1.13.3 | F167: Junction boxes (see DWG No 113142-0-DRG-RR-04-0019) | G167: No. | L167: 6,800.00 | M167: =IF(ISNUMBER(H167),L167*H167,IF(ISNUMBER(J167),J167,IF(J167="RATE ONLY",LOWER("RATE ONLY")," "))) -> 
A169: Item | C169: C3.1.13.4 | F169: Cleaning eyes (see DWG No 113142-0-DRG-RR-04-0019) | G169: No. | L169: 3,690.00 | M169: =IF(ISNUMBER(H169),L169*H169,IF(ISNUMBER(J169),J169,IF(J169="RATE ONLY",LOWER("RATE ONLY")," "))) -> 
A171: IHDR1 | B171: C3.1.14 | F171: Caps for subsoil drain pipes: | M171: =IF(ISNUMBER(H171),L171*H171,IF(ISNUMBER(J171),J171,IF(J171="RATE ONLY",LOWER("RATE ONLY")," "))) -> 
A173: Item | C173: C3.1.14.1 | F173: Concrete caps | G173: No. | L173: 90.00 | M173: =IF(ISNUMBER(H173),L173*H173,IF(ISNUMBER(J173),J173,IF(J173="RATE ONLY",LOWER("RATE ONLY")," "))) -> 
A175: Item | C175: C3.1.14.2 | F175: Cast metal iron caps | G175: No.
A176: Item | C176: C3.1.14.3 | F176: Other (Glass fibre reinforced, PVC etc.) (specify) | G176: No.
A177: IHDR1 | B177: C3.1.15 | F177: Repairing or replacing existing drainage systems | G177: prov sum | M177: =IF(ISNUMBER(H177),L177*H177,IF(ISNUMBER(J177),J177,IF(J177="RATE ONLY",LOWER("RATE ONLY")," "))) -> 
A178: PB
A179: PB | B179: CARRIED FORWARD | M179: =SUBTOTAL(9,M$7:M177) -> 0
A180: PB
A181: PB
A182: PB | B182: BROUGHT FORWARD | M182: =SUBTOTAL(9,M$7:M180) -> 0
A183: PB
A185: IHDR1 | B185: C3.1.16 | F185: Loading and hauling of material in excess of 1,0 km | G185: m³-km | L185: 4.50 | M185: =IF(ISNUMBER(H185),L185*H185,IF(ISNUMBER(J185),J185,IF(J185="RATE ONLY",LOWER("RATE ONLY")," "))) -> 
A187: IHDR1 | B187: C3.1.17 | F187: Backfilling existing eroded side drains | G187: m³ | M187: =IF(ISNUMBER(H187),L187*H187,IF(ISNUMBER(J187),J187,IF(J187="RATE ONLY",LOWER("RATE ONLY")," "))) -> 
A189: IHDR1 | B189: C3.1.18 | F189: Backfilling of drains with selected material compacted to 93 % of MDD prior to construction of concrete lining and/or stone pitched lining | G189: m³ | M189: =IF(ISNUMBER(H189),L189*H189,IF(ISNUMBER(J189),J189,IF(J189="RATE ONLY",LOWER("RATE ONLY")," "))) -> 
A191: IHDR1 | B191: C3.1.19 | F191: Exposing of existing subsoil drains | G191: m³ | M191: =IF(ISNUMBER(H191),L191*H191,IF(ISNUMBER(J191),J191,IF(J191="RATE ONLY",LOWER("RATE ONLY")," "))) -> 
A193: IHDR1 | B193: C3.1.20 | F193: Breaking into existing drainage structures and install subsoil drain pipe | G193: No. | L193: 350.00 | M193: =IF(ISNUMBER(H193),L193*H193,IF(ISNUMBER(J193),J193,IF(J193="RATE ONLY",LOWER("RATE ONLY")," "))) -> 
A195: IHDR1 | B195: C3.1.21 | F195: Clearing of existing subsoil drains: | M195: =IF(ISNUMBER(H195),L195*H195,IF(ISNUMBER(J195),J195,IF(J195="RATE ONLY",LOWER("RATE ONLY")," "))) -> 
A197: item | C197: C3.1.21.1 | F197: Cleaning rod, brush and flushing | G197: m | M197: =IF(ISNUMBER(H197),L197*H197,IF(ISNUMBER(J197),J197,IF(J197="RATE ONLY",LOWER("RATE ONLY")," "))) -> 
A198: Item | C198: C3.1.21.2 | F198: Hydro jetting | G198: m | M198: =IF(ISNUMBER(H198),L198*H198,IF(ISNUMBER(J198),J198,IF(J198="RATE ONLY",LOWER("RATE ONLY")," "))) -> 
A199: IHDR1 | B199: C3.1.22 | F199: Test flushing of subsoil drain pipe systems | G199: No. | L199: 1,220.00 | M199: =IF(ISNUMBER(H199),L199*H199,IF(ISNUMBER(J199),J199,IF(J199="RATE ONLY",LOWER("RATE ONLY")," "))) -> 
A201: IHDR1 | B201: C3.1.23 | F201: Subsoil drain outlet marker (see DWG No 113142-0-DRG-RR-04-0019) | G201: No. | L201: 230.00 | M201: =IF(ISNUMBER(H201),L201*H201,IF(ISNUMBER(J201),J201,IF(J201="RATE ONLY",LOWER("RATE ONLY")," "))) -> 
A203: IHDR1 | B203: C3.1.24 | F203: Submission of as built drawings by the Contractor | G203: prov sum | J203: =H203*I203 -> 0 | L203: 60,000.00 | M203: =IF(ISNUMBER(H203),L203*H203,IF(ISNUMBER(J203),J203,IF(J203="RATE ONLY",LOWER("RATE ONLY")," "))) -> 0
A205: IHDR1 | B205: PC3.1.25 | F205: Class C16/20-20 cast in situ concrete for the encasing of subsoil drainage systems, including formwork | G205: m³ | L205: 1,950.00 | M205: =IF(ISNUMBER(H205),L205*H205,IF(ISNUMBER(J205),J205,IF(J205="RATE ONLY",LOWER("RATE ONLY")," "))) -> 
A207: IHDR1 | B207: PC3.1.26 | F207: Removing subsoil drains in the following depths: | M207: =IF(ISNUMBER(H207),L207*H207,IF(ISNUMBER(J207),J207,IF(J207="RATE ONLY",LOWER("RATE ONLY")," "))) -> 
A209: item | C209: PC3.1.26.1 | F209: 0 m up to 0,5 m | G209: m | L209: 40.00 | M209: =IF(ISNUMBER(H209),L209*H209,IF(ISNUMBER(J209),J209,IF(J209="RATE ONLY",LOWER("RATE ONLY")," "))) -> 
A211: Item | C211: PC3.1.26.2 | F211: Exceeding 0,5 m up to 1,0 m | G211: m | L211: 40.00 | M211: =IF(ISNUMBER(H211),L211*H211,IF(ISNUMBER(J211),J211,IF(J211="RATE ONLY",LOWER("RATE ONLY")," "))) -> 
A213: Item | C213: PC3.1.26.3 | F213: Deeper than 1,0 m | G213: m | L213: 45.00 | M213: =IF(ISNUMBER(H213),L213*H213,IF(ISNUMBER(J213),J213,IF(J213="RATE ONLY",LOWER("RATE ONLY")," "))) -> 
A215: IHDR1 | B215: PC3.1.27 | F215: Galvanized wire mesh at outlets of subsoil drainage systems | G215: No. | L215: 120.00 | M215: =IF(ISNUMBER(H215),L215*H215,IF(ISNUMBER(J215),J215,IF(J215="RATE ONLY",LOWER("RATE ONLY")," "))) -> 
A217: IHDR | B217: C3.1/ C1.7 | F217: LOADING AND HAULING | M217: =IF(ISNUMBER(H217),L217*H217,IF(ISNUMBER(J217),J217,IF(J217="RATE ONLY",LOWER("RATE ONLY")," "))) -> 
A219: IHDR1 | C219: C1.7.1 | F219: Loading | M219: =IF(ISNUMBER(H219),L219*H219,IF(ISNUMBER(J219),J219,IF(J219="RATE ONLY",LOWER("RATE ONLY")," "))) -> 
A221: item | C221: C1.7.1.1 | F221: Loading from stockpile using machines and some hand labour where necessary | G221: m³ | L221: 2.50 | M221: =IF(ISNUMBER(H221),L221*H221,IF(ISNUMBER(J221),J221,IF(J221="RATE ONLY",LOWER("RATE ONLY")," "))) -> 
A223: IHDR1 | C223: C1.7.2 | F223: Hauling | M223: =IF(ISNUMBER(H223),L223*H223,IF(ISNUMBER(J223),J223,IF(J223="RATE ONLY",LOWER("RATE ONLY")," "))) -> 
A225: IHDR2 | C225: C1.7.2.1 | F225: Hauling material for use in the Works and off-loading it on the site of the Works: | M225: =IF(ISNUMBER(H225),L225*H225,IF(ISNUMBER(J225),J225,IF(J225="RATE ONLY",LOWER("RATE ONLY")," "))) -> 
A227: item | D227: (a) | F227: Soil, gravel, crushed stone and pavement layer material | G227: m³-km | L227: 4.50 | M227: =IF(ISNUMBER(H227),L227*H227,IF(ISNUMBER(J227),J227,IF(J227="RATE ONLY",LOWER("RATE ONLY")," "))) -> 
A229: IHDR | B229: C3.1/ C4.1 | F229: BORROW MATERIALS | M229: =IF(ISNUMBER(H229),L229*H229,IF(ISNUMBER(J229),J229,IF(J229="RATE ONLY",LOWER("RATE ONLY")," "))) -> 
A230: PB
A231: PB | B231: CARRIED FORWARD | M231: =SUBTOTAL(9,M$7:M229) -> 0
A232: PB
A233: PB
A234: PB | B234: BROUGHT FORWARD | M234: =SUBTOTAL(9,M$7:M232) -> 0
A235: PB
A237: IHDR1 | C237: C4.1.5 | F237: Excavating of materials in the borrow pits and quarries, material obtained from | M237: =IF(ISNUMBER(H237),L237*H237,IF(ISNUMBER(J237),J237,IF(J237="RATE ONLY",LOWER("RATE ONLY")," "))) -> 
A239: item | C239: C4.1.5.5 | F239: Hard excavation (by blasting) | G239: m³ | L239: 102.00 | M239: =IF(ISNUMBER(H239),L239*H239,IF(ISNUMBER(J239),J239,IF(J239="RATE ONLY",LOWER("RATE ONLY")," "))) -> 
A241: IHDR1 | C241: C4.1.7 | F241: Producing the material by: | M241: =IF(ISNUMBER(H241),L241*H241,IF(ISNUMBER(J241),J241,IF(J241="RATE ONLY",LOWER("RATE ONLY")," "))) -> 
A243: item | C243: C4.1.7.3 | F243: Multiple-stage crushing including screening | G243: m³ | L243: 82.00 | M243: =IF(ISNUMBER(H243),L243*H243,IF(ISNUMBER(J243),J243,IF(J243="RATE ONLY",LOWER("RATE ONLY")," "))) -> 
A245: IHDR1 | C245: C4.1.12 | F245: Stockpiling the material: | M245: =IF(ISNUMBER(H245),L245*H245,IF(ISNUMBER(J245),J245,IF(J245="RATE ONLY",LOWER("RATE ONLY")," "))) -> 
A247: item | C247: C4.1.12.1 | F247: Material from a producing plant | G247: m³ | L247: 28.00 | M247: =IF(ISNUMBER(H247),L247*H247,IF(ISNUMBER(J247),J247,IF(J247="RATE ONLY",LOWER("RATE ONLY")," "))) -> 
A249: IHDR | B249: C3.1/ C5.2 | F249: FILL | M249: =IF(ISNUMBER(H249),L249*H249,IF(ISNUMBER(J249),J249,IF(J249="RATE ONLY",LOWER("RATE ONLY")," "))) -> 
A251: IHDR1 | C251: C5.2.2 | F251: Fill construction: | M251: =IF(ISNUMBER(H251),L251*H251,IF(ISNUMBER(J251),J251,IF(J251="RATE ONLY",LOWER("RATE ONLY")," "))) -> 
A253: item | C253: C5.2.2.7 | F253: Drainage blanket layer | G253: m³ | L253: 45.00 | M253: =IF(ISNUMBER(H253),L253*H253,IF(ISNUMBER(J253),J253,IF(J253="RATE ONLY",LOWER("RATE ONLY")," "))) -> 
A255: IHDR | B255: C3.1/ C5.3 | F255: ROAD PAVEMENT LAYERS | M255: =IF(ISNUMBER(H255),L255*H255,IF(ISNUMBER(J255),J255,IF(J255="RATE ONLY",LOWER("RATE ONLY")," "))) -> 
A257: IHDR1 | C257: C5.3.2 | F257: Construction of pavement layers: | M257: =IF(ISNUMBER(H257),L257*H257,IF(ISNUMBER(J257),J257,IF(J257="RATE ONLY",LOWER("RATE ONLY")," "))) -> 
A259: IHDR2 | C259: C5.3.2.1 | F259: Construction of layers using conventional construction methods: | M259: =IF(ISNUMBER(H259),L259*H259,IF(ISNUMBER(J259),J259,IF(J259="RATE ONLY",LOWER("RATE ONLY")," "))) -> 
A261: IHDR3 | D261: (j) | F261: Lower subbase gravel layer (chemically stabilised) compacted to 95% of MDD: | M261: =IF(ISNUMBER(H261),L261*H261,IF(ISNUMBER(J261),J261,IF(J261="RATE ONLY",LOWER("RATE ONLY")," "))) -> 
A263: item1 | E263: (i) | F263: 150 mm thick | G263: m³ | L263: 91.00 | M263: =IF(ISNUMBER(H263),L263*H263,IF(ISNUMBER(J263),J263,IF(J263="RATE ONLY",LOWER("RATE ONLY")," "))) -> 
A265: IHDR | B265: C3.1/ C5.4 | F265: STABILISATION | M265: =IF(ISNUMBER(H265),L265*H265,IF(ISNUMBER(J265),J265,IF(J265="RATE ONLY",LOWER("RATE ONLY")," "))) -> 
A267: IHDR1 | C267: C5.4.2 | F267: Chemical stabilisation: | M267: =IF(ISNUMBER(H267),L267*H267,IF(ISNUMBER(J267),J267,IF(J267="RATE ONLY",LOWER("RATE ONLY")," "))) -> 
A269: IHDR2 | C269: C5.4.2.1 | F269: Chemical stabilisation of pavement layers: | M269: =IF(ISNUMBER(H269),L269*H269,IF(ISNUMBER(J269),J269,IF(J269="RATE ONLY",LOWER("RATE ONLY")," "))) -> 
A271: IHDR3 | D271: (a) | F271: Gravel subbase | M271: =IF(ISNUMBER(H271),L271*H271,IF(ISNUMBER(J271),J271,IF(J271="RATE ONLY",LOWER("RATE ONLY")," "))) -> 
A273: item1 | E273: (ii) | F273: 150 mm thick | G273: m³ | L273: 13.00 | M273: =IF(ISNUMBER(H273),L273*H273,IF(ISNUMBER(J273),J273,IF(J273="RATE ONLY",LOWER("RATE ONLY")," "))) -> 
A275: IHDR1 | C275: C5.4.5 | F275: Cementitious stabilisation agents for pavement layers: | M275: =IF(ISNUMBER(H275),L275*H275,IF(ISNUMBER(J275),J275,IF(J275="RATE ONLY",LOWER("RATE ONLY")," "))) -> 
A276: PB
A277: PB | B277: CARRIED FORWARD | M277: =SUBTOTAL(9,M$7:M275) -> 0
A278: PB
A279: PB
A280: PB | B280: BROUGHT FORWARD | M280: =SUBTOTAL(9,M$7:M278) -> 0
A281: PB
A283: IHDR2 | C283: C5.4.5.1 | F283: Addition of cementitious stabilisation agents for pavement layers: | M283: =IF(ISNUMBER(H283),L283*H283,IF(ISNUMBER(J283),J283,IF(J283="RATE ONLY",LOWER("RATE ONLY")," "))) -> 
A285: item | D285: (a) | F285: Cement (for pavement layer) - CEM II 32.5 | G285: t | L285: 1,650.00 | M285: =IF(ISNUMBER(H285),L285*H285,IF(ISNUMBER(J285),J285,IF(J285="RATE ONLY",LOWER("RATE ONLY")," "))) -> 
A287: IHDR1 | C287: C5.4.10 | F287: Provision and application of water for curing | G287: kilolitre | L287: 105.00 | M287: =IF(ISNUMBER(H287),L287*H287,IF(ISNUMBER(J287),J287,IF(J287="RATE ONLY",LOWER("RATE ONLY")," "))) -> 
A289: IHDR1 | C289: C5.4.11 | F289: Curing by covering with the subsequent layer | G289: m² | L289: 10.00 | M289: =IF(ISNUMBER(H289),L289*H289,IF(ISNUMBER(J289),J289,IF(J289="RATE ONLY",LOWER("RATE ONLY")," "))) -> 
A327: #BillEnd#
A328: #BillEnd# | B328: TOTAL CARRIED FORWARD TO SUMMARY | M328: =SUBTOTAL(9,M$7:M290) -> 0
A329: #BillEnd#

Sheet 3.2 (hidden)
A1: #BillSheet#
A2: #BillSheet# | B2: C3.2 | C2: CULVERTS | J2: SCHEDULE A | K2: =SUBTOTAL(9,M$7:M1031) -> 0 | M2: =J2 -> SCHEDULE A
A3: #BillSheet#
A4: ColHDR
A5: ColHDR | B5: ITEM | F5: DESCRIPTION | G5: UNIT | H5: QTY | I5: RATE | J5: AMT | L5: RATE | M5: AMOUNT
A6: ColHDR
F7: CULVERTS
A8: IHDR1 | B8: C3.2.1 | F8: Excavation for culvert structures: | M8: =IF(ISNUMBER(H8),L8*H8,IF(ISNUMBER(J8),J8,IF(J8="RATE ONLY",LOWER("RATE ONLY")," "))) -> 
A10: IHDR2 | C10: C3.2.1.1 | F10: Excavating in all material situated within the following depth ranges below the surface level: | M10: =IF(ISNUMBER(H10),L10*H10,IF(ISNUMBER(J10),J10,IF(J10="RATE ONLY",LOWER("RATE ONLY")," "))) -> 
A12: Item | D12: (a) | F12: 0 m to 1,5 m | G12: m³ | L12: 50.00 | M12: =IF(ISNUMBER(H12),L12*H12,IF(ISNUMBER(J12),J12,IF(J12="RATE ONLY",LOWER("RATE ONLY")," "))) -> 
A14: Item | D14: (b) | F14: Exceeding 1,5 m and up to 3,0 m | G14: m³ | L14: 65.00 | M14: =IF(ISNUMBER(H14),L14*H14,IF(ISNUMBER(J14),J14,IF(J14="RATE ONLY",LOWER("RATE ONLY")," "))) -> 
A16: Item | D16: (c) | F16: Exceeding 3,0 m and up to 4,5 m | G16: m³ | L16: 80.00 | M16: =IF(ISNUMBER(H16),L16*H16,IF(ISNUMBER(J16),J16,IF(J16="RATE ONLY",LOWER("RATE ONLY")," "))) -> 
A18: Item | D18: (d) | F18: Exceeding 4,5 m and up to 6,0 m | G18: m³ | L18: 110.00 | M18: =IF(ISNUMBER(H18),L18*H18,IF(ISNUMBER(J18),J18,IF(J18="RATE ONLY",LOWER("RATE ONLY")," "))) -> 
A20: IHDR2 | C20: C3.2.1.2 | F20: Excavating soft material 0 m to 1,5 m below the surface level using labour enhanced construction methods, or instructed by hand under Clause A3.2.7.2d): | G20: m³ | M20: =IF(ISNUMBER(H20),L20*H20,IF(ISNUMBER(J20),J20,IF(J20="RATE ONLY",LOWER("RATE ONLY")," "))) -> 
A22: IHDR2 | C22: C3.2.1.3 | F22: Excavating intermediate material 0 m to 1,5 m below the surface level using labour enhanced construction methods, or instructed by hand under Clause A3.2.7.2d): | G22: m³ | M22: =IF(ISNUMBER(H22),L22*H22,IF(ISNUMBER(J22),J22,IF(J22="RATE ONLY",LOWER("RATE ONLY")," "))) -> 
A24: IHDR2 | C24: C3.2.1.4 | F24: Extra over sub-item C3.2.1.1 for excavation in hard or boulder material, irrespective of depth | G24: m³ | L24: 310.00 | M24: =IF(ISNUMBER(H24),L24*H24,IF(ISNUMBER(J24),J24,IF(J24="RATE ONLY",LOWER("RATE ONLY")," "))) -> 
A26: IHDR2 | C26: C3.2.1.5 | F26: Extra over sub-item C3.2.1.1 for excavation in stabilised existing road layers, irrespective of depth | G26: m³ | M26: =IF(ISNUMBER(H26),L26*H26,IF(ISNUMBER(J26),J26,IF(J26="RATE ONLY",LOWER("RATE ONLY")," "))) -> 
A28: IHDR1 | B28: C3.2.2 | F28: Backfilling: | M28: =IF(ISNUMBER(H28),L28*H28,IF(ISNUMBER(J28),J28,IF(J28="RATE ONLY",LOWER("RATE ONLY")," "))) -> 
A30: IHDR2 | C30: C3.2.2.1 | F30: Using the excavated material | G30: m³ | L30: 96.00 | M30: =IF(ISNUMBER(H30),L30*H30,IF(ISNUMBER(J30),J30,IF(J30="RATE ONLY",LOWER("RATE ONLY")," "))) -> 
A32: IHDR2 | C32: C3.2.2.2 | F32: Using imported selected material: | M32: =IF(ISNUMBER(H32),L32*H32,IF(ISNUMBER(J32),J32,IF(J32="RATE ONLY",LOWER("RATE ONLY")," "))) -> 
A34: Item | D34: (a) | F34: From commercial sources (State type) | G34: m³ | M34: =IF(ISNUMBER(H34),L34*H34,IF(ISNUMBER(J34),J34,IF(J34="RATE ONLY",LOWER("RATE ONLY")," "))) -> 
A35: Item | D35: (b) | F35: From sources on site (G7 quality material) | G35: m³ | L35: 125.00 | M35: =IF(ISNUMBER(H35),L35*H35,IF(ISNUMBER(J35),J35,IF(J35="RATE ONLY",LOWER("RATE ONLY")," "))) -> 
A37: IHDR2 | C37: C3.2.2.3 | F37: Extra over sub-items C3.2.2.1 and C3.2.2.2 for soil cement backfilling: | M37: =IF(ISNUMBER(H37),L37*H37,IF(ISNUMBER(J37),J37,IF(J37="RATE ONLY",LOWER("RATE ONLY")," "))) -> 
A39: Item | D39: (a) | F39: With wet mixture (5% of CEM II class 32.5 cement) | G39: m³ | L39: 185.00 | M39: =IF(ISNUMBER(H39),L39*H39,IF(ISNUMBER(J39),J39,IF(J39="RATE ONLY",LOWER("RATE ONLY")," "))) -> 
A41: Item | D41: (b) | F41: With dry mixture (specify cement content) of 3 % cement | G41: m³ | M41: =IF(ISNUMBER(H41),L41*H41,IF(ISNUMBER(J41),J41,IF(J41="RATE ONLY",LOWER("RATE ONLY")," "))) -> 
A42: Item | D42: (c) | F42: Variation in cement | G42: kg | L42: 1.65 | M42: =IF(ISNUMBER(H42),L42*H42,IF(ISNUMBER(J42),J42,IF(J42="RATE ONLY",LOWER("RATE ONLY")," "))) -> 
A44: IHDR2 | C44: C3.2.2.4 | F44: Extra over sub-items C3.2.2.1 and C3.2.2.2 for screed layers (class C12/15-20 concrete) | G44: m³ | L44: 1,800.00 | M44: =IF(ISNUMBER(H44),L44*H44,IF(ISNUMBER(J44),J44,IF(J44="RATE ONLY",LOWER("RATE ONLY")," "))) -> 
A46: IHDR1 | B46: C3.2.3 | F46: Concrete pipe culverts: | M46: =IF(ISNUMBER(H46),L46*H46,IF(ISNUMBER(J46),J46,IF(J46="RATE ONLY",LOWER("RATE ONLY")," "))) -> 
A48: IHDR2 | C48: C3.2.3.1 | F48: On Class A bedding (type and diameter indicated) | G48: m | M48: =IF(ISNUMBER(H48),L48*H48,IF(ISNUMBER(J48),J48,IF(J48="RATE ONLY",LOWER("RATE ONLY")," "))) -> 
A50: IHDR2 | C50: C3.2.3.2 | F50: On Class B bedding: | M50: =IF(ISNUMBER(H50),L50*H50,IF(ISNUMBER(J50),J50,IF(J50="RATE ONLY",LOWER("RATE ONLY")," "))) -> 
A52: IHDR3 | D52: (a) | F52: Type SC 50 D-load pipes with ogee joints: | M52: =IF(ISNUMBER(H52),L52*H52,IF(ISNUMBER(J52),J52,IF(J52="RATE ONLY",LOWER("RATE ONLY")," "))) -> 
A54: item1 | E54: (i) | F54: 600 mm dia | G54: m | L54: 1,190.00 | M54: =IF(ISNUMBER(H54),L54*H54,IF(ISNUMBER(J54),J54,IF(J54="RATE ONLY",LOWER("RATE ONLY")," "))) -> 
A56: item1 | E56: (ii) | F56: 750 mm dia | G56: m | L56: 1,220.00 | M56: =IF(ISNUMBER(H56),L56*H56,IF(ISNUMBER(J56),J56,IF(J56="RATE ONLY",LOWER("RATE ONLY")," "))) -> 
A57: item1 | E57: (iii) | F57: 900 mm dia | G57: m | L57: 1,250.00 | M57: =IF(ISNUMBER(H57),L57*H57,IF(ISNUMBER(J57),J57,IF(J57="RATE ONLY",LOWER("RATE ONLY")," "))) -> 
A59: item1 | E59: (iv) | F59: 1050 mm dia | G59: m | L59: 1,450.00 | M59: =IF(ISNUMBER(H59),L59*H59,IF(ISNUMBER(J59),J59,IF(J59="RATE ONLY",LOWER("RATE ONLY")," "))) -> 
E61: (v) | F61: 1200 mm dia | G61: m
A62: IHDR3 | D62: (b) | F62: Type SC 75 D-load pipes with ogee joints: | M62: =IF(ISNUMBER(H62),L62*H62,IF(ISNUMBER(J62),J62,IF(J62="RATE ONLY",LOWER("RATE ONLY")," "))) -> 
A64: item1 | E64: (i) | F64: 600 mm dia | G64: m | L64: 1,220.00 | M64: =IF(ISNUMBER(H64),L64*H64,IF(ISNUMBER(J64),J64,IF(J64="RATE ONLY",LOWER("RATE ONLY")," "))) -> 
A66: item1 | E66: (ii) | F66: 750 mm dia | G66: m
A67: PB
A68: PB | B68: CARRIED FORWARD | M68: =SUBTOTAL(9,M$7:M66) -> 0
A69: PB
A70: PB
A71: PB | B71: BROUGHT FORWARD | M71: =SUBTOTAL(9,M$7:M69) -> 0
A72: PB
A73: item1 | E73: (ii) | F73: 900 mm dia | G73: m | L73: 1,280.00 | M73: =IF(ISNUMBER(H73),L73*H73,IF(ISNUMBER(J73),J73,IF(J73="RATE ONLY",LOWER("RATE ONLY")," "))) -> 
A75: item1 | E75: (iv) | F75: 1050 mm dia | G75: m
A76: IHDR3 | D76: (c) | F76: Type SC 100 D-load pipes with ogee joints: | M76: =IF(ISNUMBER(H76),L76*H76,IF(ISNUMBER(J76),J76,IF(J76="RATE ONLY",LOWER("RATE ONLY")," "))) -> 
A78: item1 | E78: (i) | F78: 600 mm dia | G78: m | L78: 1,150.00
A79: item1 | E79: (i) | F79: 900 mm dia | G79: m | L79: 1,300.00 | M79: =IF(ISNUMBER(H79),L79*H79,IF(ISNUMBER(J79),J79,IF(J79="RATE ONLY",LOWER("RATE ONLY")," "))) -> 
A81: IHDR2 | C81: C3.2.3.3 | F81: On Class C bedding (type and diameter indicated) | G81: m | M81: =IF(ISNUMBER(H81),L81*H81,IF(ISNUMBER(J81),J81,IF(J81="RATE ONLY",LOWER("RATE ONLY")," "))) -> 
A83: IHDR2 | C83: C3.2.3.4 | F83: On Class D bedding (type and diameter indicated) | G83: m | M83: =IF(ISNUMBER(H83),L83*H83,IF(ISNUMBER(J83),J83,IF(J83="RATE ONLY",LOWER("RATE ONLY")," "))) -> 
A85: IHDR2 | C85: C3.2.3.5 | F85: Provision of skew ends of pipe culvert (type and diameter indicated) | G85: No. | M85: =IF(ISNUMBER(H85),L85*H85,IF(ISNUMBER(J85),J85,IF(J85="RATE ONLY",LOWER("RATE ONLY")," "))) -> 
A87: IHDR1 | B87: C3.2.4 | F87: Metal and U-PVC culverts: | M87: =IF(ISNUMBER(H87),L87*H87,IF(ISNUMBER(J87),J87,IF(J87="RATE ONLY",LOWER("RATE ONLY")," "))) -> 
A89: item | C89: C3.2.4.1 | F89: Size, wall thickness and type indicated | G89: m
A90: item | C90: C3.2.4.2 | F90: Provision of skew or bevelled ends for metal culverts | G90: No.
A91: item | C91: C3.2.4.3 | F91: Anchor bolts (size and type indicated) | G91: No.
A92: item | C92: C3.2.4.4 | F92: Protective coating to metal culverts (culvert size; inside/outside/ both sides; coating type & thickness indicated) | G92: m
A93: IHDR1 | B93: C3.2.5 | F93: Rectangular culverts with prefabricated elements: | M93: =IF(ISNUMBER(H93),L93*H93,IF(ISNUMBER(J93),J93,IF(J93="RATE ONLY",LOWER("RATE ONLY")," "))) -> 
A95: IHDR2 | C95: C3.2.5.1 | F95: Prefabricated portal culverts; wall and roof combination: | M95: =IF(ISNUMBER(H95),L95*H95,IF(ISNUMBER(J95),J95,IF(J95="RATE ONLY",LOWER("RATE ONLY")," "))) -> 
A97: IHDR3 | D97: (a) | F97: Class 175 S: | M97: =IF(ISNUMBER(H97),L97*H97,IF(ISNUMBER(J97),J97,IF(J97="RATE ONLY",LOWER("RATE ONLY")," "))) -> 
A99: item1 | E99: (i) | F99: 750 mm x 450 mm | G99: m
A100: item1 | E100: (i) | F100: 900 mm x 450 mm | G100: m
A101: item1 | E101: (ii) | F101: 900 mm x 600 mm | G101: m | L101: 1,560.00 | M101: =IF(ISNUMBER(H101),L101*H101,IF(ISNUMBER(J101),J101,IF(J101="RATE ONLY",LOWER("RATE ONLY")," "))) -> 
A103: item1 | E103: (iii) | F103: 900 mm x 750 mm | G103: m | M103: =IF(ISNUMBER(H103),L103*H103,IF(ISNUMBER(J103),J103,IF(J103="RATE ONLY",LOWER("RATE ONLY")," "))) -> 
A104: IHDR3 | D104: (b) | F104: Class 150 S: | M104: =IF(ISNUMBER(H104),L104*H104,IF(ISNUMBER(J104),J104,IF(J104="RATE ONLY",LOWER("RATE ONLY")," "))) -> 
A106: item1 | E106: (i) | F106: 1200 mm x 600 mm | G106: m
A107: item1 | E107: (i) | F107: 1200 mm x 900 mm | G107: m | L107: 2,550.00 | M107: =IF(ISNUMBER(H107),L107*H107,IF(ISNUMBER(J107),J107,IF(J107="RATE ONLY",LOWER("RATE ONLY")," "))) -> 
A109: item1 | E109: (ii) | F109: 1200 mm x 1200 mm | G109: m | L109: 2,650.00 | M109: =IF(ISNUMBER(H109),L109*H109,IF(ISNUMBER(J109),J109,IF(J109="RATE ONLY",LOWER("RATE ONLY")," "))) -> 
A111: IHDR3 | D111: (c) | F111: Class 100 S | M111: =IF(ISNUMBER(H111),L111*H111,IF(ISNUMBER(J111),J111,IF(J111="RATE ONLY",LOWER("RATE ONLY")," "))) -> 
A113: item1 | E113: (i) | F113: 1500 mm x 1200 mm | G113: m | L113: 3,150.00 | M113: =IF(ISNUMBER(H113),L113*H113,IF(ISNUMBER(J113),J113,IF(J113="RATE ONLY",LOWER("RATE ONLY")," "))) -> 
A115: item1 | E115: (ii) | F115: 1500 mm x 1500 mm | G115: m | L115: 3,650.00 | M115: =IF(ISNUMBER(H115),L115*H115,IF(ISNUMBER(J115),J115,IF(J115="RATE ONLY",LOWER("RATE ONLY")," "))) -> 
A117: IHDR3 | D117: (d) | F117: Class 75 S | M117: =IF(ISNUMBER(H117),L117*H117,IF(ISNUMBER(J117),J117,IF(J117="RATE ONLY",LOWER("RATE ONLY")," "))) -> 
A119: item1 | E119: (i) | F119: 1800 mm x 1200 mm | G119: m | L119: 5,450.00 | M119: =IF(ISNUMBER(H119),L119*H119,IF(ISNUMBER(J119),J119,IF(J119="RATE ONLY",LOWER("RATE ONLY")," "))) -> 
A121: item1 | E121: (ii) | F121: 1800 mm x 1500 mm | G121: m | L121: 5,950.00 | M121: =IF(ISNUMBER(H121),L121*H121,IF(ISNUMBER(J121),J121,IF(J121="RATE ONLY",LOWER("RATE ONLY")," "))) -> 
A123: IHDR2 | C123: C3.2.5.2 | F123: Prefabricated floor slabs (size and type indicated) | G123: m | M123: =IF(ISNUMBER(H123),L123*H123,IF(ISNUMBER(J123),J123,IF(J123="RATE ONLY",LOWER("RATE ONLY")," "))) -> 
A125: IHDR2 | C125: C3.2.5.3 | F125: Prefabricated roof slabs (size and type indicated) | G125: m | M125: =IF(ISNUMBER(H125),L125*H125,IF(ISNUMBER(J125),J125,IF(J125="RATE ONLY",LOWER("RATE ONLY")," "))) -> 
A127: IHDR1 | B127: C3.2.6 | F127: Extra over items C3.2.3, C3.2.4 and C3.2.5 for constructing inclined culverts | G127: m | M127: =IF(ISNUMBER(H127),L127*H127,IF(ISNUMBER(J127),J127,IF(J127="RATE ONLY",LOWER("RATE ONLY")," "))) -> 
A129: IHDR1 | B129: C3.2.7 | F129: Cast in situ concrete and formwork: | M129: =IF(ISNUMBER(H129),L129*H129,IF(ISNUMBER(J129),J129,IF(J129="RATE ONLY",LOWER("RATE ONLY")," "))) -> 
A131: IHDR2 | C131: C3.2.7.1 | F131: In Class A bedding, screeds, concrete backfill and the encasing for pipes, including formwork: | M131: =IF(ISNUMBER(H131),L131*H131,IF(ISNUMBER(J131),J131,IF(J131="RATE ONLY",LOWER("RATE ONLY")," "))) -> 
A133: item | D133: (a) | F133: Class C12/15-20 concrete (concrete working floor at in-situ floor slabs) | G133: m³ | L133: 1,800.00 | M133: =IF(ISNUMBER(H133),L133*H133,IF(ISNUMBER(J133),J133,IF(J133="RATE ONLY",LOWER("RATE ONLY")," "))) -> 
A135: item | D135: (b) | F135: Class C16/20-20 concrete (concrete collars at joints between new and existing culverts) | G135: m³ | L135: 1,950.00 | M135: =IF(ISNUMBER(H135),L135*H135,IF(ISNUMBER(J135),J135,IF(J135="RATE ONLY",LOWER("RATE ONLY")," "))) -> 
A137: PB
A138: PB | B138: CARRIED FORWARD | M138: =SUBTOTAL(9,M$7:M136) -> 0
A139: PB
A140: PB
A141: PB | B141: BROUGHT FORWARD | M141: =SUBTOTAL(9,M$7:M139) -> 0
A142: PB
A143: item | D143: (c) | F143: Class C20/25-20 concrete (Class A bedding) | G143: m³
A144: IHDR2 | C144: C3.2.7.2 | F144: In complete in situ floor slabs for rectangular culverts, manholes and catchpits including formwork, joints and Class U2 surface finish (class of concrete indicated) (installed at a standard depth of 1,0 m): | M144: =IF(ISNUMBER(H144),L144*H144,IF(ISNUMBER(J144),J144,IF(J144="RATE ONLY",LOWER("RATE ONLY")," "))) -> 
A146: item | D146: (a) | F146: Class C25/30-20 concrete (in situ floor slab) | G146: m³ | L146: 1,900.00 | M146: =IF(ISNUMBER(H146),L146*H146,IF(ISNUMBER(J146),J146,IF(J146="RATE ONLY",LOWER("RATE ONLY")," "))) -> 
A148: IHDR2 | C148: C3.2.7.3 | F148: In walls, excluding formwork but including Class U2 surface finish (class of concrete indicated) | G148: m³ | M148: =IF(ISNUMBER(H148),L148*H148,IF(ISNUMBER(J148),J148,IF(J148="RATE ONLY",LOWER("RATE ONLY")," "))) -> 
A150: IHDR2 | C150: C3.2.7.4 | F150: In roof slabs for rectangular culverts, excluding formwork but including Class U2 surfacing finish and joints (class of concrete indicated) | G150: m³ | M150: =IF(ISNUMBER(H150),L150*H150,IF(ISNUMBER(J150),J150,IF(J150="RATE ONLY",LOWER("RATE ONLY")," "))) -> 
A152: IHDR2 | C152: C3.2.7.5 | F152: In inlet and outlet structures including kerbs, chutes and downpipes, skewed ends, catchpits, manholes, thrust and anchor blocks, excluding formwork but including Class U2 surfacing finish: | M152: =IF(ISNUMBER(H152),L152*H152,IF(ISNUMBER(J152),J152,IF(J152="RATE ONLY",LOWER("RATE ONLY")," "))) -> 
A154: item | D154: (a) | F154: Class C16/20-20 concrete (Type 4 and 5 inlets) | G154: m³ | L154: 1,950.00 | M154: =IF(ISNUMBER(H154),L154*H154,IF(ISNUMBER(J154),J154,IF(J154="RATE ONLY",LOWER("RATE ONLY")," "))) -> 
A156: item | D156: (b) | F156: Class C25/30-20 concrete (Type 1 inlet and outlet, Type 2 and 3 inlets) | G156: m³ | L156: 2,095.00 | M156: =IF(ISNUMBER(H156),L156*H156,IF(ISNUMBER(J156),J156,IF(J156="RATE ONLY",LOWER("RATE ONLY")," "))) -> 
A158: IHDR2 | C158: C3.2.7.6 | F158: Formwork of concrete under items C3.2.7.3 to 5 above: | M158: =IF(ISNUMBER(H158),L158*H158,IF(ISNUMBER(J158),J158,IF(J158="RATE ONLY",LOWER("RATE ONLY")," "))) -> 
A160: item | D160: (a) | F160: Class F1 surface finish | G160: m² | L160: 420.00 | M160: =IF(ISNUMBER(H160),L160*H160,IF(ISNUMBER(J160),J160,IF(J160="RATE ONLY",LOWER("RATE ONLY")," "))) -> 
A162: item | D162: (b) | F162: Class F2 surface finish | G162: m² | L162: 490.00 | M162: =IF(ISNUMBER(H162),L162*H162,IF(ISNUMBER(J162),J162,IF(J162="RATE ONLY",LOWER("RATE ONLY")," "))) -> 
A164: IHDR2 | C164: C3.2.7.7 | F164: Concrete linings for the inverts of metal culverts, including formwork and Class U2 surface finish (class of concrete indicated) | G164: m³ | M164: =IF(ISNUMBER(H164),L164*H164,IF(ISNUMBER(J164),J164,IF(J164="RATE ONLY",LOWER("RATE ONLY")," "))) -> 
A166: IHDR1 | B166: C3.2.8 | F166: Concrete backfill or encasement for culverts: | M166: =IF(ISNUMBER(H166),L166*H166,IF(ISNUMBER(J166),J166,IF(J166="RATE ONLY",LOWER("RATE ONLY")," "))) -> 
A168: item | D168: (a) | F168: Class 1:4:8/37,5 concrete (between prefabricated portal culverts) | G168: m³ | L168: 1,775.00 | M168: =IF(ISNUMBER(H168),L168*H168,IF(ISNUMBER(J168),J168,IF(J168="RATE ONLY",LOWER("RATE ONLY")," "))) -> 
A170: IHDR1 | B170: C3.2.9 | F170: Prefabricated concrete inlets and outlets to culverts (size and type indicated) | G170: No. | M170: =IF(ISNUMBER(H170),L170*H170,IF(ISNUMBER(J170),J170,IF(J170="RATE ONLY",LOWER("RATE ONLY")," "))) -> 
A172: IHDR1 | B172: C3.2.10 | F172: Reinforcement: | M172: =IF(ISNUMBER(H172),L172*H172,IF(ISNUMBER(J172),J172,IF(J172="RATE ONLY",LOWER("RATE ONLY")," "))) -> 
A174: IHDR2 | C174: C3.2.10.1 | F174: Mild steel bars | G174: t | L174: 20,000.00 | M174: =IF(ISNUMBER(H174),L174*H174,IF(ISNUMBER(J174),J174,IF(J174="RATE ONLY",LOWER("RATE ONLY")," "))) -> 
A176: IHDR2 | C176: C3.2.10.2 | F176: High-tensile steel bars | G176: t | L176: 20,000.00 | M176: =IF(ISNUMBER(H176),L176*H176,IF(ISNUMBER(J176),J176,IF(J176="RATE ONLY",LOWER("RATE ONLY")," "))) -> 
A178: IHDR2 | C178: C3.2.10.3 | F178: Welded steel fabric | G178: kg | L178: 20.00 | M178: =IF(ISNUMBER(H178),L178*H178,IF(ISNUMBER(J178),J178,IF(J178="RATE ONLY",LOWER("RATE ONLY")," "))) -> 
A180: IHDR2 | C180: C3.2.10.4 | F180: Other material: | M180: =IF(ISNUMBER(H180),L180*H180,IF(ISNUMBER(J180),J180,IF(J180="RATE ONLY",LOWER("RATE ONLY")," "))) -> 
A182: item | D182: (a) | F182: Dowels for joining old and new concrete | G182: kg | L182: 170.00 | M182: =IF(ISNUMBER(H182),L182*H182,IF(ISNUMBER(J182),J182,IF(J182="RATE ONLY",LOWER("RATE ONLY")," "))) -> 
A184: IHDR1 | B184: C3.2.11 | F184: Anchoring of reinforcing steel: Reinforcing (type, bar diameter) into formed holes (hole diameter and depth stated) in (description of member) | G184: No. | M184: =IF(ISNUMBER(H184),L184*H184,IF(ISNUMBER(J184),J184,IF(J184="RATE ONLY",LOWER("RATE ONLY")," "))) -> 
A186: IHDR1 | B186: C3.2.12 | F186: Demolition of concrete members or elements: | M186: =IF(ISNUMBER(H186),L186*H186,IF(ISNUMBER(J186),J186,IF(J186="RATE ONLY",LOWER("RATE ONLY")," "))) -> 
A188: IHDR2 | C188: C3.2.12.1 | F188: Full member or element (location and description) | G188: m³ | M188: =IF(ISNUMBER(H188),L188*H188,IF(ISNUMBER(J188),J188,IF(J188="RATE ONLY",LOWER("RATE ONLY")," "))) -> 
A190: PB
A191: PB | B191: CARRIED FORWARD | M191: =SUBTOTAL(9,M$7:M189) -> 0
A192: PB
A193: PB
A194: PB | B194: BROUGHT FORWARD | M194: =SUBTOTAL(9,M$7:M192) -> 0
A195: PB
A196: IHDR2 | C196: C3.2.12.2 | F196: Partial member or element (inlets- or outlets at existing culverts): | M196: =IF(ISNUMBER(H196),L196*H196,IF(ISNUMBER(J196),J196,IF(J196="RATE ONLY",LOWER("RATE ONLY")," "))) -> 
A198: item | D198: (a) | F198: Plain concrete | G198: m³ | L198: 330.00 | M198: =IF(ISNUMBER(H198),L198*H198,IF(ISNUMBER(J198),J198,IF(J198="RATE ONLY",LOWER("RATE ONLY")," "))) -> 
A200: item | D200: (b) | F200: Reinforced concrete | G200: m³ | L200: 550.00 | M200: =IF(ISNUMBER(H200),L200*H200,IF(ISNUMBER(J200),J200,IF(J200="RATE ONLY",LOWER("RATE ONLY")," "))) -> 
A202: IHDR1 | B202: C3.2.13 | F202: Removing and re-laying existing culverts: | M202: =IF(ISNUMBER(H202),L202*H202,IF(ISNUMBER(J202),J202,IF(J202="RATE ONLY",LOWER("RATE ONLY")," "))) -> 
A204: IHDR2 | C204: C3.2.13.1 | F204: Removing and stacking existing culverts for re-use: | M204: =IF(ISNUMBER(H204),L204*H204,IF(ISNUMBER(J204),J204,IF(J204="RATE ONLY",LOWER("RATE ONLY")," "))) -> 
A206: IHDR3 | D206: (b) | F206: Type SC 75 D-load pipes with ogee joints | M206: =IF(ISNUMBER(H206),L206*H206,IF(ISNUMBER(J206),J206,IF(J206="RATE ONLY",LOWER("RATE ONLY")," "))) -> 
A208: item1 | E208: (i) | F208: 600 mm dia | G208: m | M208: =IF(ISNUMBER(H208),L208*H208,IF(ISNUMBER(J208),J208,IF(J208="RATE ONLY",LOWER("RATE ONLY")," "))) -> 
A209: item1 | E209: (ii) | F209: 750 mm dia | G209: m
A210: IHDR2 | C210: C3.2.13.2 | F210: Removing and re-laying existing culverts without stacking: | M210: =IF(ISNUMBER(H210),L210*H210,IF(ISNUMBER(J210),J210,IF(J210="RATE ONLY",LOWER("RATE ONLY")," "))) -> 
A212: IHDR3 | D212: (b) | F212: Type SC 75 D-load pipes with ogee joints on Class B bedding: | M212: =IF(ISNUMBER(H212),L212*H212,IF(ISNUMBER(J212),J212,IF(J212="RATE ONLY",LOWER("RATE ONLY")," "))) -> 
A214: item1 | E214: (i) | F214: 600 mm dia | G214: m
A215: item1 | E215: (ii) | F215: 750 mm dia | G215: m
A216: IHDR2 | C216: C3.2.13.3 | F216: Re-laying existing culverts from stacking: | M216: =IF(ISNUMBER(H216),L216*H216,IF(ISNUMBER(J216),J216,IF(J216="RATE ONLY",LOWER("RATE ONLY")," "))) -> 
A218: IHDR3 | D218: (b) | F218: Type SC 75 D-load pipes with ogee joints on Class B bedding: | M218: =IF(ISNUMBER(H218),L218*H218,IF(ISNUMBER(J218),J218,IF(J218="RATE ONLY",LOWER("RATE ONLY")," "))) -> 
A220: item1 | E220: (i) | F220: 600 mm dia | G220: m
A221: item1 | E221: (ii) | F221: 750 mm dia | G221: m
A222: IHDR1 | B222: C3.2.14 | F222: Protective mastic asphalt coating for corrugated metal culvert units (state whether to be applied by brush or by spray gun) | G222: m² | M222: =IF(ISNUMBER(H222),L222*H222,IF(ISNUMBER(J222),J222,IF(J222="RATE ONLY",LOWER("RATE ONLY")," "))) -> 
A224: IHDR1 | B224: C3.2.15 | F224: Manholes and catch pits, with prefabricated elements: | M224: =IF(ISNUMBER(H224),L224*H224,IF(ISNUMBER(J224),J224,IF(J224="RATE ONLY",LOWER("RATE ONLY")," "))) -> 
A226: IHDR2 | C226: C3.2.15.1 | F226: Prefabricated floors (installed at a standard depth of 1,0 m): | M226: =IF(ISNUMBER(H226),L226*H226,IF(ISNUMBER(J226),J226,IF(J226="RATE ONLY",LOWER("RATE ONLY")," "))) -> 
A228: Item | D228: (a) | F228: Size and type indicated | G228: No. | M228: =IF(ISNUMBER(H228),L228*H228,IF(ISNUMBER(J228),J228,IF(J228="RATE ONLY",LOWER("RATE ONLY")," "))) -> 
A229: Item | D229: (b) | F229: Size and type indicated(etc) | G229: No.
A230: IHDR2 | C230: C3.2.15.2 | F230: Prefabricated roofs: | M230: =IF(ISNUMBER(H230),L230*H230,IF(ISNUMBER(J230),J230,IF(J230="RATE ONLY",LOWER("RATE ONLY")," "))) -> 
A232: Item | D232: (a) | F232: Size and type indicated | G232: No.
A233: Item | D233: (b) | F233: Size and type indicated(etc) | G233: No.
A234: IHDR2 | C234: C3.2.15.3 | F234: Prefabricated walls: | M234: =IF(ISNUMBER(H234),L234*H234,IF(ISNUMBER(J234),J234,IF(J234="RATE ONLY",LOWER("RATE ONLY")," "))) -> 
A236: Item | D236: (a) | F236: Size and type indicated | G236: m
A237: Item | D237: (b) | F237: Size and type indicated(etc) | G237: m
A238: IHDR2 | C238: C3.2.15.4 | F238: Extra over item C3.2.15.1 and C3.2.7.2 for variations in the depths of all types of concrete manholes with prefabricated, or in situ concrete or brickwork wall combinations deeper than 1,0 m designated for tendering purposes | G238: m | M238: =IF(ISNUMBER(H238),L238*H238,IF(ISNUMBER(J238),J238,IF(J238="RATE ONLY",LOWER("RATE ONLY")," "))) -> 
A240: IHDR1 | B240: C3.2.16 | F240: Brickwork (Engineering bricks): | M240: =IF(ISNUMBER(H240),L240*H240,IF(ISNUMBER(J240),J240,IF(J240="RATE ONLY",LOWER("RATE ONLY")," "))) -> 
A242: IHDR2 | C242: C3.2.16.1 | F242: 115 mm thick | G242: m² | M242: =IF(ISNUMBER(H242),L242*H242,IF(ISNUMBER(J242),J242,IF(J242="RATE ONLY",LOWER("RATE ONLY")," "))) -> 
A244: IHDR2 | C244: C3.2.16.2 | F244: 230 mm thick | G244: m² | M244: =IF(ISNUMBER(H244),L244*H244,IF(ISNUMBER(J244),J244,IF(J244="RATE ONLY",LOWER("RATE ONLY")," "))) -> 
A246: IHDR2 | C246: C3.2.16.3 | F246: 345 mm thick | G246: m² | M246: =IF(ISNUMBER(H246),L246*H246,IF(ISNUMBER(J246),J246,IF(J246="RATE ONLY",LOWER("RATE ONLY")," "))) -> 
A248: IHDR2 | C248: C3.2.16.4 | F248: Specify thickness | G248: m² | M248: =IF(ISNUMBER(H248),L248*H248,IF(ISNUMBER(J248),J248,IF(J248="RATE ONLY",LOWER("RATE ONLY")," "))) -> 
A250: IHDR1 | B250: C3.2.17 | F250: Plaster | G250: m² | M250: =IF(ISNUMBER(H250),L250*H250,IF(ISNUMBER(J250),J250,IF(J250="RATE ONLY",LOWER("RATE ONLY")," "))) -> 
A252: IHDR1 | B252: C3.2.18 | F252: Benching | G252: m³ | L252: 1,800.00 | M252: =IF(ISNUMBER(H252),L252*H252,IF(ISNUMBER(J252),J252,IF(J252="RATE ONLY",LOWER("RATE ONLY")," "))) -> 
A254: IHDR1 | B254: C3.2.19 | F254: Accessories: | M254: =IF(ISNUMBER(H254),L254*H254,IF(ISNUMBER(J254),J254,IF(J254="RATE ONLY",LOWER("RATE ONLY")," "))) -> 
A256: IHDR2 | C256: C3.2.19.1 | F256: Manhole frames: | M256: =IF(ISNUMBER(H256),L256*H256,IF(ISNUMBER(J256),J256,IF(J256="RATE ONLY",LOWER("RATE ONLY")," "))) -> 
A258: Item | D258: (a) | F258: 1045 mm x 1045 mm at Type 5 inlets (median inlet) - see DWG No 113142-0-DRG-RR-04-0032 | G258: No. | L258: 2,900.00 | M258: =IF(ISNUMBER(H258),L258*H258,IF(ISNUMBER(J258),J258,IF(J258="RATE ONLY",LOWER("RATE ONLY")," "))) -> 
A260: Item | D260: (b) | F260: 1060 mm x 1045 mm at Type 4 inlets (concrete drain - Type 1) - see DWG No 113142-0-DRG-RR-04-0031 | G260: No. | L260: 2,850.00 | M260: =IF(ISNUMBER(H260),L260*H260,IF(ISNUMBER(J260),J260,IF(J260="RATE ONLY",LOWER("RATE ONLY")," "))) -> 
A262: IHDR2 | C262: C3.2.19.2 | F262: Inlet grids or covers: | M262: =IF(ISNUMBER(H262),L262*H262,IF(ISNUMBER(J262),J262,IF(J262="RATE ONLY",LOWER("RATE ONLY")," "))) -> 
A264: Item | D264: (a) | F264: 1015 mm x 1015 mm at Type 5 inlets (median inlet) - see DWG No 113142-0-DRG-RR-04-0032 | G264: No. | L264: 6,600.00 | M264: =IF(ISNUMBER(H264),L264*H264,IF(ISNUMBER(J264),J264,IF(J264="RATE ONLY",LOWER("RATE ONLY")," "))) -> 
A266: Item | D266: (b) | F266: 1015 mm x 1015 mm at Type 4 inlets (concrete drain - Type 1) - see DWG No 113142-0-DRG-RR-04-0031 | G266: No. | L266: 6,800.00 | M266: =IF(ISNUMBER(H266),L266*H266,IF(ISNUMBER(J266),J266,IF(J266="RATE ONLY",LOWER("RATE ONLY")," "))) -> 
A268: IHDR2 | C268: C3.2.19.3 | F268: Manhole frames (type, load bearing and SANS specification indicated) | G268: No. | M268: =IF(ISNUMBER(H268),L268*H268,IF(ISNUMBER(J268),J268,IF(J268="RATE ONLY",LOWER("RATE ONLY")," "))) -> 
A270: IHDR2 | C270: C3.2.19.4 | F270: Manhole covers or gratings (type, load bearing and SANS specification indicated) | G270: No. | M270: =IF(ISNUMBER(H270),L270*H270,IF(ISNUMBER(J270),J270,IF(J270="RATE ONLY",LOWER("RATE ONLY")," "))) -> 
A272: IHDR2 | C272: C3.2.19.5 | F272: Inlet channel frames (type, load bearing and SANS specification indicated) | G272: No. | M272: =IF(ISNUMBER(H272),L272*H272,IF(ISNUMBER(J272),J272,IF(J272="RATE ONLY",LOWER("RATE ONLY")," "))) -> 
A274: IHDR2 | C274: C3.2.19.6 | F274: Inlet channel gratings (type, load bearing and SANS specification indicated) | G274: No. | M274: =IF(ISNUMBER(H274),L274*H274,IF(ISNUMBER(J274),J274,IF(J274="RATE ONLY",LOWER("RATE ONLY")," "))) -> 
A276: IHDR2 | C276: C3.2.19.7 | F276: Step irons (BS 1247 Fig. 1) | G276: No. | L276: 1,350.00 | M276: =IF(ISNUMBER(H276),L276*H276,IF(ISNUMBER(J276),J276,IF(J276="RATE ONLY",LOWER("RATE ONLY")," "))) -> 
A278: IHDR2 | C278: C3.2.19.8 | F278: (Etc for other accessories) | G278: No. | M278: =IF(ISNUMBER(H278),L278*H278,IF(ISNUMBER(J278),J278,IF(J278="RATE ONLY",LOWER("RATE ONLY")," "))) -> 
A280: IHDR1 | B280: C3.2.20 | F280: Anchors for pipes (description) | G280: No. | M280: =IF(ISNUMBER(H280),L280*H280,IF(ISNUMBER(J280),J280,IF(J280="RATE ONLY",LOWER("RATE ONLY")," "))) -> 
A282: IHDR1 | B282: C3.2.21 | F282: Prefabricated reinforced-concrete skew end units for concrete culverts constructed at a skew angle: | M282: =IF(ISNUMBER(H282),L282*H282,IF(ISNUMBER(J282),J282,IF(J282="RATE ONLY",LOWER("RATE ONLY")," "))) -> 
A284: IHDR2 | C284: C3.2.21.1 | F284: Type SC 50 D-load pipes on Class B bedding: | M284: =IF(ISNUMBER(H284),L284*H284,IF(ISNUMBER(J284),J284,IF(J284="RATE ONLY",LOWER("RATE ONLY")," "))) -> 
A286: item | D286: (a) | F286: 600 mm dia | G286: No. | L286: 1,190.00 | M286: =IF(ISNUMBER(H286),L286*H286,IF(ISNUMBER(J286),J286,IF(J286="RATE ONLY",LOWER("RATE ONLY")," "))) -> 
A288: item | D288: (b) | F288: 900 mm dia | G288: No. | L288: 1,250.00 | M288: =IF(ISNUMBER(H288),L288*H288,IF(ISNUMBER(J288),J288,IF(J288="RATE ONLY",LOWER("RATE ONLY")," "))) -> 
A290: IHDR2 | C290: C3.2.21.2 | F290: Type SC 75 D-load pipes on Class B bedding: | M290: =IF(ISNUMBER(H290),L290*H290,IF(ISNUMBER(J290),J290,IF(J290="RATE ONLY",LOWER("RATE ONLY")," "))) -> 
A292: item | D292: (a) | F292: 600 mm dia | G292: No. | M292: =IF(ISNUMBER(H292),L292*H292,IF(ISNUMBER(J292),J292,IF(J292="RATE ONLY",LOWER("RATE ONLY")," "))) -> 
A293: item | D293: (a) | F293: 900 mm dia | G293: No. | L293: 1,280.00 | M293: =IF(ISNUMBER(H293),L293*H293,IF(ISNUMBER(J293),J293,IF(J293="RATE ONLY",LOWER("RATE ONLY")," "))) -> 
A295: IHDR1 | B295: PC3.2.22 | F295: Cutting of concrete pipes and rectangular culverts: | M295: =IF(ISNUMBER(H295),L295*H295,IF(ISNUMBER(J295),J295,IF(J295="RATE ONLY",LOWER("RATE ONLY")," "))) -> 
A296: PB
A297: PB | B297: CARRIED FORWARD | M297: =SUBTOTAL(9,M$7:M295) -> 0
A298: PB
A299: PB
A300: PB | B300: BROUGHT FORWARD | M300: =SUBTOTAL(9,M$7:M298) -> 0
A301: PB
A303: IHDR2 | C303: PC3.2.22.1 | F303: Pipe culverts: | M303: =IF(ISNUMBER(H303),L303*H303,IF(ISNUMBER(J303),J303,IF(J303="RATE ONLY",LOWER("RATE ONLY")," "))) -> 
A305: item | D305: (a) | F305: 600 mm dia | G305: No. | L305: 850.00 | M305: =IF(ISNUMBER(H305),L305*H305,IF(ISNUMBER(J305),J305,IF(J305="RATE ONLY",LOWER("RATE ONLY")," "))) -> 
A307: item | D307: (b) | F307: 750 mm dia | G307: No. | L307: 1,300.00 | M307: =IF(ISNUMBER(H307),L307*H307,IF(ISNUMBER(J307),J307,IF(J307="RATE ONLY",LOWER("RATE ONLY")," "))) -> 
A309: item | D309: (c) | F309: 900 mm dia | G309: No. | L309: 1,900.00 | M309: =IF(ISNUMBER(H309),L309*H309,IF(ISNUMBER(J309),J309,IF(J309="RATE ONLY",LOWER("RATE ONLY")," "))) -> 
A311: item | D311: (d) | F311: 1200 mm dia | G311: No. | M311: =IF(ISNUMBER(H311),L311*H311,IF(ISNUMBER(J311),J311,IF(J311="RATE ONLY",LOWER("RATE ONLY")," "))) -> 
A312: IHDR2 | C312: PC3.2.22.2 | F312: Rectangular culverts: | M312: =IF(ISNUMBER(H312),L312*H312,IF(ISNUMBER(J312),J312,IF(J312="RATE ONLY",LOWER("RATE ONLY")," "))) -> 
A314: item | D314: (a) | F314: 600 mm x 450 mm | G314: No. | L314: 850.00 | M314: =IF(ISNUMBER(H314),L314*H314,IF(ISNUMBER(J314),J314,IF(J314="RATE ONLY",LOWER("RATE ONLY")," "))) -> 
A316: item | D316: (b) | F316: 750 mm x 450 mm | G316: No. | L316: 1,050.00 | M316: =IF(ISNUMBER(H316),L316*H316,IF(ISNUMBER(J316),J316,IF(J316="RATE ONLY",LOWER("RATE ONLY")," "))) -> 
A318: item | D318: (c) | F318: 900 mm x 450 mm | G318: No. | L318: 1,250.00 | M318: =IF(ISNUMBER(H318),L318*H318,IF(ISNUMBER(J318),J318,IF(J318="RATE ONLY",LOWER("RATE ONLY")," "))) -> 
A320: item | D320: (d) | F320: 1200 mm x 1200 mm | G320: No. | L320: 4,300.00 | M320: =IF(ISNUMBER(H320),L320*H320,IF(ISNUMBER(J320),J320,IF(J320="RATE ONLY",LOWER("RATE ONLY")," "))) -> 
A322: item | D322: (e) | F322: 1500 mm x 1200 mm | G322: No. | L322: 5,400.00 | M322: =IF(ISNUMBER(H322),L322*H322,IF(ISNUMBER(J322),J322,IF(J322="RATE ONLY",LOWER("RATE ONLY")," "))) -> 
A324: item | D324: (f) | F324: 1500 mm x 1500 mm | G324: No. | L324: 6,750.00 | M324: =IF(ISNUMBER(H324),L324*H324,IF(ISNUMBER(J324),J324,IF(J324="RATE ONLY",LOWER("RATE ONLY")," "))) -> 
A326: item | D326: (g) | F326: 1800 mm x 1200 mm | G326: No. | L326: 6,500.00 | M326: =IF(ISNUMBER(H326),L326*H326,IF(ISNUMBER(J326),J326,IF(J326="RATE ONLY",LOWER("RATE ONLY")," "))) -> 
A328: item | D328: (h) | F328: 1800 mm x 1500 mm | G328: No. | L328: 8,100.00 | M328: =IF(ISNUMBER(H328),L328*H328,IF(ISNUMBER(J328),J328,IF(J328="RATE ONLY",LOWER("RATE ONLY")," "))) -> 
A330: IHDR1 | B330: C3.2.23 | F330: Breaking into existing drainage structures and building in pipes or culverts of the following size (pipe diameter and/or culvert size to be stated) | G330: No. | M330: =IF(ISNUMBER(H330),L330*H330,IF(ISNUMBER(J330),J330,IF(J330="RATE ONLY",LOWER("RATE ONLY")," "))) -> 
A332: IHDR1 | B332: C3.2.24 | F332: Compaction of bedding for inlets, outlets, manholes and catchpits: | M332: =IF(ISNUMBER(H332),L332*H332,IF(ISNUMBER(J332),J332,IF(J332="RATE ONLY",LOWER("RATE ONLY")," "))) -> 
A334: IHDR2 | C334: C3.2.24.1 | F334: Preparation and compaction of in situ bedding material to 90 % of MDD (150 mm) | G334: m³ | L334: 45.00 | M334: =IF(ISNUMBER(H334),L334*H334,IF(ISNUMBER(J334),J334,IF(J334="RATE ONLY",LOWER("RATE ONLY")," "))) -> 
A336: IHDR2 | C336: C3.2.24.2 | F336: Extra-over sub-item C3.2.24.1 for compaction to 93 % of MDD (150 mm) | G336: m³ | L336: 60.00 | M336: =IF(ISNUMBER(H336),L336*H336,IF(ISNUMBER(J336),J336,IF(J336="RATE ONLY",LOWER("RATE ONLY")," "))) -> 
A338: IHDR1 | B338: C3.2.25 | F338: Painting of exposed steel bars with two coats of zinc rich primer (Type specified) | G338: litre | M338: =IF(ISNUMBER(H338),L338*H338,IF(ISNUMBER(J338),J338,IF(J338="RATE ONLY",LOWER("RATE ONLY")," "))) -> 
... 6 more rows

Sheet 3.3
A1: #BillSheet#
A2: #BillSheet# | B2: C3.3 | C2: CONCRETE KERBING AND CHANNELLING, ASPHALT BERMS, CHUTES, DOWNPIPES | J2: SCHEDULE A
A3: #BillSheet# | C3: AS WELL AS CONCRETE, STONE PITCHED AND GABION LININGS FOR OPEN DRAINS
A4: ColHDR
A5: ColHDR | B5: ITEM | F5: DESCRIPTION | G5: UNIT | H5: QTY | I5: RATE | J5: AMT
A6: ColHDR
F7: CONCRETE KERBING AND CHANNELLING, ASPHALT BERMS, CHUTES, DOWNPIPES, AS WELL AS CONCRETE, STONE PITCHED AND GABION LININGS FOR OPEN DRAINS
A8: IHDR1 | B8: C3.3.1 | F8: Concrete kerbing:
A10: IHDR2 | C10: C3.3.1.1 | F10: Prefabricated kerbing:
A12: Item | D12: (a) | F12: Prefabricated mountable kerb, SANS 927 Fig. 8 (c) (see DWG No 113142-0-DRG-RR-04-0020) | G12: m
A13: Item | D13: (b) | F13: Prefabricated mountable kerb, SANS 927 Fig. 7 (see DWG No 113142-0-DRG-RR-04-0020 | G13: m
A14: IHDR2 | C14: C3.3.1.2 | F14: Cast in situ kerbing:
A16: Item | D16: (a) | F16: 300 mm x 200 mm Class C25/30-20 concrete edge beam at edges of surfacing, where required (see DWG No 113142-0-DRG-RR-04-0020) | G16: m
A17: Item | D17: (b) | F17: 300 mm x 200 mm Class C25/30-20 concrete edge beam at Type 3A and 3B catchwater banks and at cut - and/or fill benches (see DWG No 113142-0-DRG-RR-04-0018) | G17: m
A18: IHDR1 | B18: C3.3.2 | F18: Concrete kerbing-channelling combination:
A20: IHDR2 | C20: C3.3.2.1 | F20: Prefabricated kerbing-channelling (description of type of channel and bedding with reference to drawing):
A22: Item | D22: (a) | F22: State type of kerb and bedding with reference to drawing | G22: m
A23: Item | D23: (b) | F23: Etc for other types | G23: m
A24: IHDR2 | C24: C3.3.2.2 | F24: Cast in situ kerbing-channelling (description with reference to drawing and class of concrete and finish indicated):
A26: Item | D26: (a) | F26: State type of kerb and bedding with reference to drawing | G26: m
A27: Item | D27: (b) | F27: Etc for other types | G27: m
A28: IHDR1 | B28: C3.3.3 | F28: Extra over items C3.3.1 and C3.3.2 for concrete kerbing or concrete kerbing and channelling on curves:
A30: Item | C30: C3.3.3.1 | F30: On curves of radii more than or equal to 5,0 m but less than 20 m (at bellmouths) | G30: m
A31: Item | C31: C3.3.3.2 | F31: On curves with radii more than or equal to 1,0 m but less than 5,0 m (at islands) | G31: m
A32: Item | C32: C3.3.3.3 | F32: On curves with radii less than 1,0 m | G32: m
A33: IHDR1 | B33: C3.3.4 | F33: Extra over item C3.3.2 for drop kerbs at pedestrian crossings and driveways | G33: m
A35: IHDR1 | B35: C3.3.5 | F35: Asphalt berms:
A37: Item | C37: C3.3.5.1 | F37: Asphalt berms placed where there are no vehicle restraint systems (drawing reference indicated) | G37: m
A38: Item | C38: C3.3.5.2 | F38: Asphalt berms placed at existing vehicle restraint systems (250 bottom width x 100 top width x 80 high) | G38: m | H38: 5,000 | J38: =IF(ISNUMBER(H38),H38*I38,IF(H38="-","rate only"," ")) -> 0
A40: Item | C40: C3.3.5.3 | F40: Prime coat (type indicated) | G40: m²
A41: Item | C41: C3.3.5.4 | F41: Bond coat (stable-grade, 30% net bituminous emulsion) | G41: m² | H41: =+H38*0.25 -> 1250 | J41: =IF(ISNUMBER(H41),H41*I41,IF(H41="-","rate only"," ")) -> 0
A43: IHDR1 | B43: C3.3.6 | F43: Concrete chutes (typical designs):
A45: Item | C45: C3.3.6.1 | F45: Prefabricated concrete chutes (description of type with reference to drawing) | G45: m
A46: Item | C46: C3.3.6.2 | F46: Cast in situ concrete chutes (description, with reference to drawing and class of concrete and finish indicated) | G46: m
A47: Item | C47: C3.3.6.3 | F47: Stone pitched chutes (description with reference to drawing and class of concrete indicated) | G47: m
A48: IHDR1 | B48: C3.3.7 | F48: Cast in situ concrete chutes (measured by components):
A50: IHDR2 | C50: C3.3.7.1 | F50: Concrete (class indicated) | G50: m³
A52: IHDR2 | C52: C3.3.7.2 | F52: Formwork (surface finish indicated) | G52: m²
A54: IHDR2 | C54: C3.3.7.3 | F54: Stone pitched chutes:
A56: Item | D56: (a) | F56: Grouted stone pitching (type of chute indicated) | G56: m²
A57: Item | D57: (b) | F57: Grouted stone pitching on a concrete bed (class of concrete and type of chute indicated) | G57: m²
A58: IHDR1 | B58: C3.3.8 | F58: Linings for open drains:
A60: IHDR2 | C60: C3.3.8.1 | F60: Cast in situ concrete lining (Class C25/30-20 concrete) in:
A62: Item | D62: (a) | F62: 2.5 m wide side drains | G62: m³
A63: Item | D63: (b) | F63: 2.0 m wide median channels | G63: m³
A64: Item | D64: (c) | F64: 0.76 m wide drain at guardrails | G64: m³
A65: IHDR2 | C65: C3.3.8.2 | F65: Class U2 surface finish to cast in situ concrete:
A67: Item | D67: (a) | F67: 2.5 m wide side drains | G67: m²
A68: Item | D68: (b) | F68: 2.0 m wide median channels | G68: m²
A69: Item | D69: (c) | F69: 0.76 m wide drain at guardrails | G69: m²
A70: IHDR2 | C70: C3.3.8.3 | F70: Stone pitched lining (200 mm thickness):
A72: Item | D72: (a) | F72: Grouted stone pitching (type of drain indicated) | G72: m²
A73: Item | D73: (b) | F73: Grouted stone pitching on a concrete bed (class of concrete and type of open drain indicated) | G73: m²
A74: IHDR1 | B74: C3.3.9 | F74: Formwork to cast in situ concrete lining for open drains (Class F2 surface finish):
A76: IHDR2 | C76: C3.3.9.1 | F76: To sides with formwork on the internal face only | G76: m²
A78: IHDR2 | C78: C3.3.9.2 | F78: To sides with formwork on both internal and external faces (each face measured) | G78: m²
A80: IHDR2 | C80: C3.3.9.3 | F80: To ends of slabs | G80: m²
A82: IHDR1 | B82: C3.3.10 | F82: Sealed joints in concrete and stone pitched linings of open drains (Dow Corning 888 and polystyrene - see DWG No 113142-0-DRG-RR-04-0020) | G82: m
A84: IHDR1 | B84: C3.3.11 | F84: Concrete screed or backfill below chutes (thickness and class of concrete indicated) | G84: m³
A86: IHDR1 | B86: C3.3.12 | F86: Reinforcement:
A88: item | C88: C3.3.12.1 | F88: Mild steel bars | G88: t
A89: item | C89: C3.3.12.2 | F89: High-tensile steel bars | G89: t
A90: item | C90: C3.3.12.3 | F90: Welded steel fabric | G90: kg
A91: item | C91: C3.3.12.4 | F91: Other material (specify) | G91: kg
A92: IHDR1 | B92: C3.3.13 | F92: Polymer film sheeting (0.15mm thick) for concrete-lined open drains (at side drains and median channels) | G92: m²
A94: IHDR1 | B94: C3.3.14 | F94: Cutting bituminous surfacing and pavement layers for concrete kerbing, channelling or concrete-lined drains | G94: m
A96: IHDR1 | B96: C3.3.15 | F96: Energy dissipaters in outlet structures:
A98: item | C98: C3.3.15.1 | F98: Precast concrete blocks in outlet structures | G98: No.
A99: item | C99: C3.3.15.2 | F99: Stones set in outlet structures | G99: m²
A100: IHDR1 | B100: C3.3.16 | F100: Demolition and removal of existing kerbs and/or channel (maximum width of 3.0 m) | G100: m³
A102: IHDR1 | B102: PC3.3.17 | F102: Spraying trimmed surfaces of excavations for concrete-lined open drains with invert bituminous emulsion (MSP 1 or approved equivalent) - at guardrail drains | G102: litre
A104: IHDR1 | B104: PC3.3.18 | F104: Removal of unsuitable material and replacement with "selected" quality material in excavations for concrete-lined open drains and also alongside concrete lined drains | G104: m³
A106: IHDR1 | B106: PC3.3.19 | F106: Inlet, outlet, transition and similar structures (typical designs):
A108: IHDR2 | C108: PC3.3.19.1 | F108: Inlet structures, for downpipes down fill side slopes complete as shown on the drawings, class C25/30-20 concrete, single from one side only (L = 2,3 m) | G108: No.
A110: IHDR2 | C110: PC3.3.19.2 | F110: Outlet structures for downpipes down fill side slopes complete with prefabricated reinforced-concrete blocks, class 30/20 concrete, complete as shown on the drawings | G110: No.
A112: IHDR2 | C112: PC3.3.19.3 | F112: Side drain and outlet structure to median, class C25/30-20 concrete, complete as shown on the drawings
A114: Item | D114: (a) | F114: Type 1 | G114: No.
A115: Item | D115: (b) | F115: Type 2 | G115: No.
A116: Item | D116: (c) | F116: At low point | G116: No.
A117: IHDR | B117: C3.3/ C3.2 | F117: CULVERTS
A119: IHDR1 | C119: C3.2.4 | F119: Metal and U-PVC culverts:
A121: item | C121: C3.2.4.1 | F121: Culverts, 300 mm dia galvanized corrugated pipes with 1,6 mm thick walls, including pipe anchors | G121: m
A122: item | C122: C3.2.4.2 | F122: Provision of skew or bevelled ends for metal culverts | G122: No.
A123: item | C123: C3.2.4.3 | F123: Anchor bolts, 16 mm dia | G123: No.
A124: item | C124: C3.2.4.4 | F124: Protective coating to metal culverts, 300 mm dia, corrugated with hot-dip zinc coating | G124: m
A125: item | C125: PC3.2.4.5 | F125: Anchor blocks including anchor bolts, complete as shown on DWG No 113142-0-DRG-RR-04-0023 | G125: No.
A178: #BillEnd#
A179: #BillEnd# | B179: TOTAL CARRIED FORWARD TO SUMMARY | J179: =SUM(J35:J177) -> 0.00
A180: #BillEnd#

Sheet 4.1 (hidden)
A1: #BillSheet#
A2: #BillSheet# | B2: C4.1 | C2: BORROW MATERIALS | J2: SCHEDULE A | K2: =SUBTOTAL(9,M$7:M1189) -> 0 | M2: =J2 -> SCHEDULE A
A3: #BillSheet#
A4: ColHDR
A5: ColHDR | B5: ITEM | F5: DESCRIPTION | G5: UNIT | H5: QTY | I5: RATE | J5: AMT | L5: RATE | M5: AMOUNT
A6: ColHDR
F7: BORROW MATERIALS
A8: IHDR1 | B8: C4.1.1 | F8: Compiling and implementing M&U plans: | M8: =IF(ISNUMBER(H8),L8*H8,IF(ISNUMBER(J8),J8,IF(J8="RATE ONLY",LOWER("RATE ONLY")," "))) -> 
A10: IHDR2 | C10: C4.1.1.1 | F10: For borrow pits | M10: =IF(ISNUMBER(H10),L10*H10,IF(ISNUMBER(J10),J10,IF(J10="RATE ONLY",LOWER("RATE ONLY")," "))) -> 
A12: Item | D12: (a) | F12: BP1- Crusher | G12: No. | L12: 160,000.00 | M12: =IF(ISNUMBER(H12),L12*H12,IF(ISNUMBER(J12),J12,IF(J12="RATE ONLY",LOWER("RATE ONLY")," "))) -> 
A14: Item | D14: (b) | F14: BP2 | G14: No. | L14: 80,000.00 | M14: =IF(ISNUMBER(H14),L14*H14,IF(ISNUMBER(J14),J14,IF(J14="RATE ONLY",LOWER("RATE ONLY")," "))) -> 
A16: Item | D16: (c) | F16: BP4 | G16: No. | L16: 80,000.00 | M16: =IF(ISNUMBER(H16),L16*H16,IF(ISNUMBER(J16),J16,IF(J16="RATE ONLY",LOWER("RATE ONLY")," "))) -> 
A18: Item | D18: (d) | F18: BP5 | G18: No. | L18: 80,000.00 | M18: =IF(ISNUMBER(H18),L18*H18,IF(ISNUMBER(J18),J18,IF(J18="RATE ONLY",LOWER("RATE ONLY")," "))) -> 
A20: Item | D20: (e) | F20: BP6 - Crusher | G20: No. | L20: 160,000.00 | M20: =IF(ISNUMBER(H20),L20*H20,IF(ISNUMBER(J20),J20,IF(J20="RATE ONLY",LOWER("RATE ONLY")," "))) -> 
A22: Item | D22: (f) | F22: BP14 | G22: No. | L22: 80,000.00 | M22: =IF(ISNUMBER(H22),L22*H22,IF(ISNUMBER(J22),J22,IF(J22="RATE ONLY",LOWER("RATE ONLY")," "))) -> 
A24: Item | D24: (g) | F24: BP15 | G24: No. | L24: 80,000.00 | M24: =IF(ISNUMBER(H24),L24*H24,IF(ISNUMBER(J24),J24,IF(J24="RATE ONLY",LOWER("RATE ONLY")," "))) -> 
A26: Item | D26: (h) | F26: BP16 - Crusher | G26: No. | L26: 160,000.00 | M26: =IF(ISNUMBER(H26),L26*H26,IF(ISNUMBER(J26),J26,IF(J26="RATE ONLY",LOWER("RATE ONLY")," "))) -> 
A28: Item | C28: C4.1.1.2 | F28: For quarries (list all quarries separately) | G28: No. | M28: =IF(ISNUMBER(H28),L28*H28,IF(ISNUMBER(J28),J28,IF(J28="RATE ONLY",LOWER("RATE ONLY")," "))) -> 
A29: IHDR1 | B29: C4.1.2 | F29: Additional material investigations during the supplementary exploration: | M29: =IF(ISNUMBER(H29),L29*H29,IF(ISNUMBER(J29),J29,IF(J29="RATE ONLY",LOWER("RATE ONLY")," "))) -> 
A31: Item | C31: C4.1.2.1 | F31: Cost of additional trial pits and/or drilling and laboratory testing | G31: prov sum | J31: =+I31 -> 0 | L31: 900,000.00 | M31: =IF(ISNUMBER(H31),L31*H31,IF(ISNUMBER(J31),J31,IF(J31="RATE ONLY",LOWER("RATE ONLY")," "))) -> 0
A33: Item3 | C33: C4.1.2.2 | F33: Handling costs and profit in respect of item C4.1.2.1 | G33: % | I33: . . . . . . .% | L33: 10% | M33: =IF(ISNUMBER(H33),L33*H33,IF(ISNUMBER(J33),J33,IF(J33="RATE ONLY",LOWER("RATE ONLY")," "))) -> 
A35: IHDR1 | B35: C4.1.3 | F35: Construction and maintenance of temporary haul and access roads: | M35: =IF(ISNUMBER(H35),L35*H35,IF(ISNUMBER(J35),J35,IF(J35="RATE ONLY",LOWER("RATE ONLY")," "))) -> 
A37: IHDR2 | C37: C4.1.3.1 | F37: Temporary unsealed roads | G37: km | M37: =IF(ISNUMBER(H37),L37*H37,IF(ISNUMBER(J37),J37,IF(J37="RATE ONLY",LOWER("RATE ONLY")," "))) -> 
A39: Item | C39: C4.1.3.2 | F39: Cost to repair existing public roads or streets | G39: prov sum
A40: Item | C40: C4.1.3.3 | F40: Handling costs and profit in respect of item C4.1.3.2 | G40: %
A41: IHDR1 | B41: C4.1.4 | F41: Removing of the overburden: | M41: =IF(ISNUMBER(H41),L41*H41,IF(ISNUMBER(J41),J41,IF(J41="RATE ONLY",LOWER("RATE ONLY")," "))) -> 
A43: IHDR2 | C43: C4.1.4.1 | F43: In borrow pits | G43: m³ | L43: 14.00 | M43: =IF(ISNUMBER(H43),L43*H43,IF(ISNUMBER(J43),J43,IF(J43="RATE ONLY",LOWER("RATE ONLY")," "))) -> 
A45: IHDR2 | C45: C4.1.4.2 | F45: In quarries: | M45: =IF(ISNUMBER(H45),L45*H45,IF(ISNUMBER(J45),J45,IF(J45="RATE ONLY",LOWER("RATE ONLY")," "))) -> 
A47: Item | D47: (a) | F47: Soft material | G47: m³
A48: Item | D48: (b) | F48: Hard material (by blasting) | G48: m³
A49: IHDR1 | B49: C4.1.5 | F49: Excavating of materials in the borrow pits and quarries, material obtained from: | M49: =IF(ISNUMBER(H49),L49*H49,IF(ISNUMBER(J49),J49,IF(J49="RATE ONLY",LOWER("RATE ONLY")," "))) -> 
A51: Item | C51: C4.1.5.1 | F51: Soft excavation | G51: m³ | L51: 20.00 | M51: =IF(ISNUMBER(H51),L51*H51,IF(ISNUMBER(J51),J51,IF(J51="RATE ONLY",LOWER("RATE ONLY")," "))) -> 
A53: Item | C53: C4.1.5.2 | F53: Boulder excavation class A | G53: m³
A54: Item | C54: C4.1.5.3 | F54: Boulder excavation class B | G54: m³ | L54: 35.00 | M54: =IF(ISNUMBER(H54),L54*H54,IF(ISNUMBER(J54),J54,IF(J54="RATE ONLY",LOWER("RATE ONLY")," "))) ->  | N54: small quantity just in case
A56: Item | C56: C4.1.5.4 | F56: Hard excavation (other than by blasting) | G56: m³ | L56: 35.00 | M56: =IF(ISNUMBER(H56),L56*H56,IF(ISNUMBER(J56),J56,IF(J56="RATE ONLY",LOWER("RATE ONLY")," "))) -> 
A58: Item | C58: C4.1.5.5 | F58: Hard excavation (by blasting) | G58: m³ | L58: 40.00 | M58: =IF(ISNUMBER(H58),L58*H58,IF(ISNUMBER(J58),J58,IF(J58="RATE ONLY",LOWER("RATE ONLY")," "))) -> 
A60: IHDR1 | B60: C4.1.6 | F60: Providing crushing, screening and related plants: | M60: =IF(ISNUMBER(H60),L60*H60,IF(ISNUMBER(J60),J60,IF(J60="RATE ONLY",LOWER("RATE ONLY")," "))) -> 
A62: Item | C62: C4.1.6.1 | F62: Single-stage crushing plant | G62: No.
A63: Item | C63: C4.1.6.2 | F63: Two-stage crushing plant | G63: No.
A64: Item | C64: C4.1.6.3 | F64: Multiple-stage crushing and screening plant | G64: No. | L64: 1,200,000.00 | M64: =IF(ISNUMBER(H64),L64*H64,IF(ISNUMBER(J64),J64,IF(J64="RATE ONLY",LOWER("RATE ONLY")," "))) -> 
A66: Item | C66: C4.1.6.4 | F66: Screening plant | G66: No.
A67: Item | C67: C4.1.6.5 | F67: Etc, for other plants (as stated by the Engineer and/or the Contractor) | G67: No.
A68: IHDR1 | B68: C4.1.7 | F68: Producing the material by: | M68: =IF(ISNUMBER(H68),L68*H68,IF(ISNUMBER(J68),J68,IF(J68="RATE ONLY",LOWER("RATE ONLY")," "))) -> 
A70: Item | C70: C4.1.7.1 | F70: Single-stage crushing | G70: m³
A71: Item | C71: C4.1.7.2 | F71: Two-stage crushing | G71: m³
A72: PB
A73: PB | B73: CARRIED FORWARD | M73: =SUBTOTAL(9,M$7:M71) -> 0
A74: PB
A75: PB
A76: PB | B76: BROUGHT FORWARD | M76: =SUBTOTAL(9,M$7:M74) -> 0
A77: PB
A78: Item | C78: C4.1.7.3 | F78: Multiple-stage crushing including screening | G78: m³ | L78: 82.00 | M78: =IF(ISNUMBER(H78),L78*H78,IF(ISNUMBER(J78),J78,IF(J78="RATE ONLY",LOWER("RATE ONLY")," "))) ->  | N78: see haul calcs
A80: Item | C80: C4.1.7.4 | F80: Screening only | G80: m³
A81: Item | C81: C4.1.7.5 | F81: Etc, for other plants (as stated by the Engineer and/or the Contractor) | G81: m³ | M81: =IF(ISNUMBER(H81),L81*H81,IF(ISNUMBER(J81),J81,IF(J81="RATE ONLY",LOWER("RATE ONLY")," "))) -> 
A82: IHDR1 | B82: C4.1.8 | F82: Moving and re-erecting the crushing, screening and related plants on the site: | M82: =IF(ISNUMBER(H82),L82*H82,IF(ISNUMBER(J82),J82,IF(J82="RATE ONLY",LOWER("RATE ONLY")," "))) -> 
A84: Item | C84: C4.1.8.1 | F84: Single-stage crushing plant | G84: No.
A85: Item | C85: C4.1.8.2 | F85: Two-stage crushing plant | G85: No.
A86: Item | C86: C4.1.8.3 | F86: Multiple-stage crushing and screening plant | G86: No. | L86: 385,000.00 | M86: =IF(ISNUMBER(H86),L86*H86,IF(ISNUMBER(J86),J86,IF(J86="RATE ONLY",LOWER("RATE ONLY")," "))) -> 
A88: Item | C88: C4.1.8.4 | F88: Screening plant | G88: No.
A89: Item | C89: C4.1.8.5 | F89: Etc, for other plants (as stated by the Engineer and/or the Contractor) | G89: No.
A90: IHDR1 | B90: C4.1.9 | F90: Breaking down oversize material | G90: m³ | L90: 60.00 | M90: =IF(ISNUMBER(H90),L90*H90,IF(ISNUMBER(J90),J90,IF(J90="RATE ONLY",LOWER("RATE ONLY")," "))) -> 
A92: IHDR1 | B92: C4.1.10 | F92: Compacting the floor of the stockpile sites | G92: m³ | L92: 30.00 | M92: =IF(ISNUMBER(H92),L92*H92,IF(ISNUMBER(J92),J92,IF(J92="RATE ONLY",LOWER("RATE ONLY")," "))) -> 
A94: IHDR1 | B94: C4.1.11 | F94: Constructing a platform for the stockpile site | G94: m³ | L94: 150.00 | M94: =IF(ISNUMBER(H94),L94*H94,IF(ISNUMBER(J94),J94,IF(J94="RATE ONLY",LOWER("RATE ONLY")," "))) -> 
A96: IHDR1 | B96: C4.1.12 | F96: Stockpiling the material: | M96: =IF(ISNUMBER(H96),L96*H96,IF(ISNUMBER(J96),J96,IF(J96="RATE ONLY",LOWER("RATE ONLY")," "))) -> 
A98: Item | C98: C4.1.12.1 | F98: Material from a producing plant | G98: m³
A99: Item | C99: C4.1.12.2 | F99: Material directly from the excavation | G99: m³ | L99: 20.00 | M99: =IF(ISNUMBER(H99),L99*H99,IF(ISNUMBER(J99),J99,IF(J99="RATE ONLY",LOWER("RATE ONLY")," "))) ->  | N99: All Hard blast material, check
A101: IHDR1 | B101: C4.1.13 | F101: Removing surplus material from the stockpile | G101: m³ | M101: =IF(ISNUMBER(H101),L101*H101,IF(ISNUMBER(J101),J101,IF(J101="RATE ONLY",LOWER("RATE ONLY")," "))) -> 
A103: IHDR1 | B103: C4.1.14 | F103: Removing the fill platform and temporary banks at the stockpile sites upon completion: | M103: =IF(ISNUMBER(H103),L103*H103,IF(ISNUMBER(J103),J103,IF(J103="RATE ONLY",LOWER("RATE ONLY")," "))) -> 
A105: Item | C105: C4.1.14.1 | F105: Fill platform | G105: m³ | L105: 100.00 | M105: =IF(ISNUMBER(H105),L105*H105,IF(ISNUMBER(J105),J105,IF(J105="RATE ONLY",LOWER("RATE ONLY")," "))) ->  | N105: nominal quantity
A107: Item | C107: C4.1.14.2 | F107: Temporary banks | G107: m³
A108: IHDR1 | B108: C4.1.15 | F108: Shaping and finishing the borrow pit and quarry areas, and the stockpile sites: | M108: =IF(ISNUMBER(H108),L108*H108,IF(ISNUMBER(J108),J108,IF(J108="RATE ONLY",LOWER("RATE ONLY")," "))) -> 
A110: IHDR2 | C110: C4.1.15.1 | F110: Shaping and finishing the borrow pit and quarry areas, and the stockpile sites: | M110: =IF(ISNUMBER(H110),L110*H110,IF(ISNUMBER(J110),J110,IF(J110="RATE ONLY",LOWER("RATE ONLY")," "))) -> 
A112: IHDR3 | D112: (a) | F112: Borrow pits | M112: =IF(ISNUMBER(H112),L112*H112,IF(ISNUMBER(J112),J112,IF(J112="RATE ONLY",LOWER("RATE ONLY")," "))) -> 
A114: Item | E114: (i) | F114: BP1- Crusher | G114: ha | L114: 40,000.00 | M114: =IF(ISNUMBER(H114),L114*H114,IF(ISNUMBER(J114),J114,IF(J114="RATE ONLY",LOWER("RATE ONLY")," "))) ->  | N114: Willem Mail
A116: Item | E116: (ii) | F116: BP2 | G116: ha | L116: 40,000.00 | M116: =IF(ISNUMBER(H116),L116*H116,IF(ISNUMBER(J116),J116,IF(J116="RATE ONLY",LOWER("RATE ONLY")," "))) -> 
A118: Item | E118: (iii) | F118: BP4 | G118: ha | L118: 40,000.00 | M118: =IF(ISNUMBER(H118),L118*H118,IF(ISNUMBER(J118),J118,IF(J118="RATE ONLY",LOWER("RATE ONLY")," "))) -> 
A120: Item | E120: (iv) | F120: BP5 | G120: ha | L120: 40,000.00 | M120: =IF(ISNUMBER(H120),L120*H120,IF(ISNUMBER(J120),J120,IF(J120="RATE ONLY",LOWER("RATE ONLY")," "))) -> 
A122: Item | E122: (v) | F122: BP6 - Crusher | G122: ha | L122: 40,000.00 | M122: =IF(ISNUMBER(H122),L122*H122,IF(ISNUMBER(J122),J122,IF(J122="RATE ONLY",LOWER("RATE ONLY")," "))) -> 
A124: Item | E124: (vi) | F124: BP14 | G124: ha | L124: 40,000.00 | M124: =IF(ISNUMBER(H124),L124*H124,IF(ISNUMBER(J124),J124,IF(J124="RATE ONLY",LOWER("RATE ONLY")," "))) -> 
A126: Item | E126: (vii) | F126: BP15 | G126: ha | L126: 40,000.00 | M126: =IF(ISNUMBER(H126),L126*H126,IF(ISNUMBER(J126),J126,IF(J126="RATE ONLY",LOWER("RATE ONLY")," "))) -> 
A128: Item | E128: (viii) | F128: BP16 - Crusher | G128: ha | L128: 40,000.00 | M128: =IF(ISNUMBER(H128),L128*H128,IF(ISNUMBER(J128),J128,IF(J128="RATE ONLY",LOWER("RATE ONLY")," "))) -> 
A130: Item | D130: (b) | F130: Quarries (list all quarries separately) | G130: ha
A131: PB
A132: PB | B132: CARRIED FORWARD | M132: =SUBTOTAL(9,M$7:M130) -> 0
A133: PB
A134: PB
A135: PB | B135: BROUGHT FORWARD | M135: =SUBTOTAL(9,M$7:M133) -> 0
A136: PB
A137: Item | D137: (c) | F137: Stockpile sites | G137: ha | L137: 40,000.00 | M137: =IF(ISNUMBER(H137),L137*H137,IF(ISNUMBER(J137),J137,IF(J137="RATE ONLY",LOWER("RATE ONLY")," "))) -> 
A139: IHDR2 | C139: C4.1.15.2 | F139: Finishing of the borrow pit and quarry areas, and the stockpile sites using labour enhanced methods of construction: | M139: =IF(ISNUMBER(H139),L139*H139,IF(ISNUMBER(J139),J139,IF(J139="RATE ONLY",LOWER("RATE ONLY")," "))) -> 
A141: Item | D141: (a) | F141: Borrow pits (list all borrow pits separately) | G141: ha
A142: Item | D142: (b) | F142: Quarries (list all quarries separately) | G142: ha
A143: Item | D143: (c) | F143: Stockpile sites | G143: ha
A144: IHDR1 | B144: C4.1.16 | F144: Personnel: | M144: =IF(ISNUMBER(H144),L144*H144,IF(ISNUMBER(J144),J144,IF(J144="RATE ONLY",LOWER("RATE ONLY")," "))) -> 
A146: Item | C146: C4.1.16.1 | F146: Materials manager | G146: month | L146: 20,000.00 | M146: =IF(ISNUMBER(H146),L146*H146,IF(ISNUMBER(J146),J146,IF(J146="RATE ONLY",LOWER("RATE ONLY")," "))) -> 
A148: Item | C148: C4.1.16.2 | F148: Excavation controller | G148: month
A149: Item | C149: C4.1.16.3 | F149: Stockpile controller | G149: month
A150: IHDR1 | B150: C4.1.17 | F150: Weighbridge facility: | M150: =IF(ISNUMBER(H150),L150*H150,IF(ISNUMBER(J150),J150,IF(J150="RATE ONLY",LOWER("RATE ONLY")," "))) -> 
A152: Item | C152: C4.1.17.1 | F152: Providing, erecting and removal of a weighbridge facility | G152: lump sum | L152: 200,000.00 | M152: =IF(ISNUMBER(H152),L152*H152,IF(ISNUMBER(J152),J152,IF(J152="RATE ONLY",LOWER("RATE ONLY")," "))) -> 
A154: Item | C154: C4.1.17.2 | F154: Operating the weighbridge | G154: month | L154: 50,000.00 | M154: =IF(ISNUMBER(H154),L154*H154,IF(ISNUMBER(J154),J154,IF(J154="RATE ONLY",LOWER("RATE ONLY")," "))) -> 
A156: IHDR1 | B156: C4.1.18 | F156: Compensation to landowners or legal occupants in respect of land acquisition, royalties and/or loss of crops: | M156: =IF(ISNUMBER(H156),L156*H156,IF(ISNUMBER(J156),J156,IF(J156="RATE ONLY",LOWER("RATE ONLY")," "))) -> 
A158: Item | C158: C4.1.18.1 | F158: Amount allowed, expenditure to be approved or instructed by the Employer | G158: prov sum | M158: =IF(ISNUMBER(H158),L158*H158,IF(ISNUMBER(J158),J158,IF(J158="RATE ONLY",LOWER("RATE ONLY")," "))) -> 
A159: Item | C159: C4.1.18.2 | F159: Handling costs and profit in respect of item C4.1.18.1 | G159: % | M159: =IF(ISNUMBER(H159),L159*H159,IF(ISNUMBER(J159),J159,IF(J159="RATE ONLY",LOWER("RATE ONLY")," "))) -> 
F160: WHERE CRUSHED STONE MATERIAL IS EXCAVATED, PRODUCED AND STOCKPILED FOR USE ON OTHER PROJECTS, THE ITEMS HEREUNDER SHALL APPLY.
A161: IHDR1 | B161: C4.1.19 | F161: Excavating hard material | G161: m³ or t | M161: =IF(ISNUMBER(H161),L161*H161,IF(ISNUMBER(J161),J161,IF(J161="RATE ONLY",LOWER("RATE ONLY")," "))) -> 
A163: IHDR1 | B163: C4.1.20 | F163: Producing the material by: | M163: =IF(ISNUMBER(H163),L163*H163,IF(ISNUMBER(J163),J163,IF(J163="RATE ONLY",LOWER("RATE ONLY")," "))) -> 
A165: Item | C165: C4.1.20.1 | F165: Single stage crushing | G165: m³ or t | M165: =IF(ISNUMBER(H165),L165*H165,IF(ISNUMBER(J165),J165,IF(J165="RATE ONLY",LOWER("RATE ONLY")," "))) -> 
A166: Item | C166: C4.1.20.2 | F166: Multi-stage crushing and screening | G166: m³ or t | M166: =IF(ISNUMBER(H166),L166*H166,IF(ISNUMBER(J166),J166,IF(J166="RATE ONLY",LOWER("RATE ONLY")," "))) -> 
A167: IHDR1 | B167: C4.1.21 | F167: Stockpiling the crushed material | G167: m³ or t | M167: =IF(ISNUMBER(H167),L167*H167,IF(ISNUMBER(J167),J167,IF(J167="RATE ONLY",LOWER("RATE ONLY")," "))) -> 
A204: #BillEnd#
A205: #BillEnd# | B205: TOTAL CARRIED FORWARD TO SUMMARY | M205: =SUBTOTAL(9,M$7:M168) -> 0
A206: #BillEnd#

Sheet 4.2 (hidden)
A1: #BillSheet#
A2: #BillSheet# | B2: C4.2 | C2: CUT MATERIALS | J2: SCHEDULE A | K2: =SUBTOTAL(9,M$7:M877) -> 0 | M2: =J2 -> SCHEDULE A
A3: #BillSheet#
A4: ColHDR
A5: ColHDR | B5: ITEM | F5: DESCRIPTION | G5: UNIT | H5: QTY | I5: RATE | J5: AMT | L5: RATE | M5: AMOUNT
A6: ColHDR
F7: CUT MATERIALS
A8: IHDR1 | B8: C4.2.1 | F8: Compiling and implementing M&U plans for the cuttings: | M8: =IF(ISNUMBER(H8),L8*H8,IF(ISNUMBER(J8),J8,IF(J8="RATE ONLY",LOWER("RATE ONLY")," "))) -> 
A10: Item | C10: C4.2.1.1 | F10: Cuttings exceeding 5 000 m³ up to 10 000 m³ | G10: No. | L10: 160,000.00 | M10: =IF(ISNUMBER(H10),L10*H10,IF(ISNUMBER(J10),J10,IF(J10="RATE ONLY",LOWER("RATE ONLY")," "))) -> 
A12: Item | C12: C4.2.1.2 | F12: Cuttings exceeding 10 000 m³ up to 20 000 m³ | G12: No. | L12: 180,000.00 | M12: =IF(ISNUMBER(H12),L12*H12,IF(ISNUMBER(J12),J12,IF(J12="RATE ONLY",LOWER("RATE ONLY")," "))) -> 
A14: Item | C14: C4.2.1.3 | F14: Cuttings exceeding 20 000 m³ up to 50 000 m³ | G14: No. | L14: 200,000.00 | M14: =IF(ISNUMBER(H14),L14*H14,IF(ISNUMBER(J14),J14,IF(J14="RATE ONLY",LOWER("RATE ONLY")," "))) -> 
A16: Item | C16: C4.2.1.4 | F16: Cuttings exceeding 50 000 m³ up to 100 000 m³ | G16: No. | L16: 220,000.00 | M16: =IF(ISNUMBER(H16),L16*H16,IF(ISNUMBER(J16),J16,IF(J16="RATE ONLY",LOWER("RATE ONLY")," "))) -> 
A18: Item | C18: C4.2.1.5 | F18: Cuttings larger than 100 000 m³ | G18: No. | M18: =IF(ISNUMBER(H18),L18*H18,IF(ISNUMBER(J18),J18,IF(J18="RATE ONLY",LOWER("RATE ONLY")," "))) -> 
A19: IHDR1 | B19: C4.2.2 | F19: Additional material investigations during the supplementary exploration: | M19: =IF(ISNUMBER(H19),L19*H19,IF(ISNUMBER(J19),J19,IF(J19="RATE ONLY",LOWER("RATE ONLY")," "))) -> 
A21: Item | C21: C4.2.2.1 | F21: Cost of additional trial pits and/or drilling and laboratory testing | G21: prov sum | J21: =+I21 -> 0 | L21: 100,000.00 | M21: =IF(ISNUMBER(H21),L21*H21,IF(ISNUMBER(J21),J21,IF(J21="RATE ONLY",LOWER("RATE ONLY")," "))) -> 0
A23: Item3 | C23: C4.2.2.2 | F23: Handling costs and profit in respect of item C4.2.2.1 | G23: % | I23: . . . . . . .% | L23: 10% | M23: =IF(ISNUMBER(H23),L23*H23,IF(ISNUMBER(J23),J23,IF(J23="RATE ONLY",LOWER("RATE ONLY")," "))) -> 
A25: IHDR1 | B25: C4.2.3 | F25: Excavating of materials in cuttings, material obtained from: | M25: =IF(ISNUMBER(H25),L25*H25,IF(ISNUMBER(J25),J25,IF(J25="RATE ONLY",LOWER("RATE ONLY")," "))) -> 
A27: Item | C27: C4.2.3.1 | F27: Soft excavation | G27: m³ | L27: 35.00 | M27: =IF(ISNUMBER(H27),L27*H27,IF(ISNUMBER(J27),J27,IF(J27="RATE ONLY",LOWER("RATE ONLY")," "))) -> 
A29: Item | C29: C4.2.3.2 | F29: Boulder excavation class A | G29: m³ | L29: 50.00
A30: Item | C30: C4.2.3.3 | F30: Boulder excavation class B | G30: m³ | L30: 50.00
A31: Item | C31: C4.2.3.4 | F31: Hard excavation (other than by blasting) | G31: m³ | L31: 50.00 | M31: =IF(ISNUMBER(H31),L31*H31,IF(ISNUMBER(J31),J31,IF(J31="RATE ONLY",LOWER("RATE ONLY")," "))) -> 
A33: Item | C33: C4.2.3.5 | F33: Hard excavation (by blasting) | G33: m³
A34: IHDR1 | B34: C4.2.4 | F34: Excavating of materials in box cuts, material obtained from: | M34: =IF(ISNUMBER(H34),L34*H34,IF(ISNUMBER(J34),J34,IF(J34="RATE ONLY",LOWER("RATE ONLY")," "))) -> 
A36: Item | C36: C4.2.4.1 | F36: Soft excavation | G36: m³
A37: Item | C37: C4.2.4.2 | F37: Boulder excavation class A | G37: m³
A38: Item | C38: C4.2.4.3 | F38: Boulder excavation class B | G38: m³
A39: Item | C39: C4.2.4.4 | F39: Hard excavation (other than by blasting) | G39: m³
A40: Item | C40: C4.2.4.5 | F40: Hard excavation (by blasting) | G40: m³
A41: IHDR1 | B41: C4.2.5 | F41: Excavating of materials in designated excavations, material obtained from: | M41: =IF(ISNUMBER(H41),L41*H41,IF(ISNUMBER(J41),J41,IF(J41="RATE ONLY",LOWER("RATE ONLY")," "))) -> 
A43: Item | C43: C4.2.5.1 | F43: Soft excavation | G43: m³
A44: Item | C44: C4.2.5.2 | F44: Boulder excavation class A | G44: m³
A45: Item | C45: C4.2.5.3 | F45: Boulder excavation class B | G45: m³
A46: Item | C46: C4.2.5.4 | F46: Hard excavation (other than by blasting) | G46: m³
A47: Item | C47: C4.2.5.5 | F47: Hard excavation (by blasting) | G47: m³
A48: IHDR1 | B48: C4.2.6 | F48: Widening of existing cuttings: | M48: =IF(ISNUMBER(H48),L48*H48,IF(ISNUMBER(J48),J48,IF(J48="RATE ONLY",LOWER("RATE ONLY")," "))) -> 
A50: Item | C50: C4.2.6.1 | F50: Soft excavation | G50: m³
A51: Item | C51: C4.2.6.2 | F51: Boulder excavation class A | G51: m³
A52: Item | C52: C4.2.6.3 | F52: Boulder excavation class B | G52: m³
A53: Item | C53: C4.2.6.4 | F53: Hard excavation (other than by blasting) | G53: m³
A54: Item | C54: C4.2.6.5 | F54: Hard excavation (by blasting) | G54: m³ | M54: =IF(ISNUMBER(H54),L54*H54,IF(ISNUMBER(J54),J54,IF(J54="RATE ONLY",LOWER("RATE ONLY")," "))) -> 
A55: IHDR1 | B55: C4.2.7 | F55: Removal of unsuitable stable cut material to spoil: | M55: =IF(ISNUMBER(H55),L55*H55,IF(ISNUMBER(J55),J55,IF(J55="RATE ONLY",LOWER("RATE ONLY")," "))) -> 
A57: Item | C57: C4.2.7.1 | F57: In layer thicknesses of 200 mm and less | G57: m³ | L57: 32.00 | M57: =IF(ISNUMBER(H57),L57*H57,IF(ISNUMBER(J57),J57,IF(J57="RATE ONLY",LOWER("RATE ONLY")," "))) -> 
A59: Item | C59: C4.2.7.2 | F59: In layer thicknesses exceeding 200 mm | G59: m³ | L59: 30.00 | M59: =IF(ISNUMBER(H59),L59*H59,IF(ISNUMBER(J59),J59,IF(J59="RATE ONLY",LOWER("RATE ONLY")," "))) -> 
A61: IHDR1 | B61: C4.2.8 | F61: Excavate material to spoil in sites designated by the Employer, material obtained from: | M61: =IF(ISNUMBER(H61),L61*H61,IF(ISNUMBER(J61),J61,IF(J61="RATE ONLY",LOWER("RATE ONLY")," "))) -> 
A63: Item | C63: C4.2.8.1 | F63: Soft excavation, overburden and unsuitable material | G63: m³
A64: Item | C64: C4.2.8.2 | F64: Boulder excavation class A | G64: m³
A65: Item | C65: C4.2.8.3 | F65: Boulder excavation class B | G65: m³
A66: Item | C66: C4.2.8.4 | F66: Hard excavation (other than by blasting) | G66: m³
A67: Item | C67: C4.2.8.5 | F67: Hard excavation (by blasting) | G67: m³
A68: IHDR1 | B68: C4.2.9 | F68: Excavate material to spoil in sites designated by the Contractor, material obtained from: | M68: =IF(ISNUMBER(H68),L68*H68,IF(ISNUMBER(J68),J68,IF(J68="RATE ONLY",LOWER("RATE ONLY")," "))) -> 
A70: Item | C70: C4.2.9.1 | F70: Soft excavation | G70: m³
A71: Item | C71: C4.2.9.2 | F71: Boulder excavation class A | G71: m³
A72: Item | C72: C4.2.9.3 | F72: Boulder excavation class B | G72: m³
A73: Item | C73: C4.2.9.4 | F73: Hard excavation (other than by blasting) | G73: m³
A74: Item | C74: C4.2.9.5 | F74: Hard excavation (by blasting) | G74: m³
A75: IHDR1 | B75: C4.2.10 | F75: Backfilling of the unavoidable overbreak in hard and boulder excavation: | M75: =IF(ISNUMBER(H75),L75*H75,IF(ISNUMBER(J75),J75,IF(J75="RATE ONLY",LOWER("RATE ONLY")," "))) -> 
A77: Item | C77: C4.2.10.1 | F77: Compliant gravel material | G77: m³
A78: Item | C78: C4.2.10.2 | F78: Soil cement (stiff mix with 3 % cement) | G78: m³
A79: Item | C79: C4.2.10.3 | F79: Concrete class 15 MPa | G79: m³
A80: IHDR1 | B80: C4.2.11 | F80: Breaking down oversize material | G80: m³ | M80: =IF(ISNUMBER(H80),L80*H80,IF(ISNUMBER(J80),J80,IF(J80="RATE ONLY",LOWER("RATE ONLY")," "))) -> 
A82: IHDR1 | B82: C4.2.12 | F82: Finishing the side slopes: | M82: =IF(ISNUMBER(H82),L82*H82,IF(ISNUMBER(J82),J82,IF(J82="RATE ONLY",LOWER("RATE ONLY")," "))) -> 
A84: IHDR2 | C84: C4.2.12.1 | F84: Cuttings: | M84: =IF(ISNUMBER(H84),L84*H84,IF(ISNUMBER(J84),J84,IF(J84="RATE ONLY",LOWER("RATE ONLY")," "))) -> 
A86: Item | D86: (a) | F86: In soft material | G86: m² | L86: 3.50 | M86: =IF(ISNUMBER(H86),L86*H86,IF(ISNUMBER(J86),J86,IF(J86="RATE ONLY",LOWER("RATE ONLY")," "))) -> 
A88: Item | D88: (b) | F88: In boulder material class A and B | G88: m² | L88: 6.50 | M88: =IF(ISNUMBER(H88),L88*H88,IF(ISNUMBER(J88),J88,IF(J88="RATE ONLY",LOWER("RATE ONLY")," "))) -> 
A90: Item | D90: (c) | F90: In hard material | G90: m² | L90: 6.50 | M90: =IF(ISNUMBER(H90),L90*H90,IF(ISNUMBER(J90),J90,IF(J90="RATE ONLY",LOWER("RATE ONLY")," "))) -> 
A92: Item | D92: (d) | F92: In soft material using labour enhanced methods of construction | G92: m²
A93: IHDR2 | C93: C4.2.12.2 | F93: Designated excavations | G93: m² | M93: =IF(ISNUMBER(H93),L93*H93,IF(ISNUMBER(J93),J93,IF(J93="RATE ONLY",LOWER("RATE ONLY")," "))) -> 
A95: IHDR2 | C95: C4.2.12.3 | F95: Designated excavations using labour enhanced methods of construction | G95: m² | M95: =IF(ISNUMBER(H95),L95*H95,IF(ISNUMBER(J95),J95,IF(J95="RATE ONLY",LOWER("RATE ONLY")," "))) -> 
A102: #BillEnd#
A103: #BillEnd# | B103: TOTAL CARRIED FORWARD TO SUMMARY | M103: =SUBTOTAL(9,M$7:M96) -> 0
A104: #BillEnd#

Sheet 4.3
A1: #BillSheet#
A2: #BillSheet# | B2: C4.3 | C2: EXISTING ROAD MATERIALS | J2: SCHEDULE A
A3: #BillSheet#
A4: ColHDR
A5: ColHDR | B5: ITEM | F5: DESCRIPTION | G5: UNIT | H5: QTY | I5: RATE | J5: AMT
A6: ColHDR
F7: EXISTING ROAD MATERIALS
A8: IHDR1 | B8: C4.3.1 | F8: Additional material investigations:
A10: Item | C10: C4.3.1.1 | F10: Cost of additional trial pits and/or drilling and laboratory testing | G10: prov sum
A11: Item3 | C11: C4.3.1.2 | F11: Handling costs and profit in respect of item C4.3.1.1 | G11: %
A12: IHDR1 | B12: C4.3.2 | F12: Cleaning the existing road surface:
A14: Item | C14: C4.3.2.1 | F14: Cost to clean the road surface | G14: prov sum
A15: Item | C15: C4.3.2.2 | F15: Handling costs and profit in respect of item C4.3.2.1 | G15: %
A16: IHDR1 | B16: C4.3.3 | F16: Removal of bituminous seal surfacing (thickness not exceeding 30 mm) | G16: m²
A18: IHDR1 | B18: C4.3.4 | F18: Saw-cutting existing materials within the following average depth ranges:
A20: IHDR2 | C20: C4.3.4.1 | F20: Asphalt:
A22: Item | D22: (a) | F22: Up to 50 mm | G22: m
A23: Item | D23: (b) | F23: Exceeding 50 mm and up to 100 mm | G23: m | H23: 200 | J23: =IF(ISNUMBER(H23),H23*I23,IF(H23="-","rate only"," ")) -> 0
A25: Item | D25: (c) | F25: Etc, in 50 mm increments | G25: m | H25: 200 | J25: =IF(ISNUMBER(H25),H25*I25,IF(H25="-","rate only"," ")) -> 0
A27: IHDR2 | C27: C4.3.4.2 | F27: Crushed stone and gravel material:
A29: Item | D29: (a) | F29: Up to 100 mm | G29: m
A30: Item | D30: (b) | F30: Exceeding 100 mm and up to 200 mm | G30: m
A31: Item | D31: (c) | F31: Etc, in 100 mm increments
A32: IHDR2 | C32: C4.3.4.3 | F32: Cemented material:
A34: Item | D34: (a) | F34: Up to 100 mm | G34: m
A35: Item | D35: (b) | F35: Exceeding 100 mm and up to 200 mm | G35: m
A36: Item | D36: (c) | F36: Etc, in 100 mm increments
A37: IHDR2 | C37: C4.3.4.4 | F37: Concrete material:
A39: Item | D39: (a) | F39: Up to 50 mm | G39: m
A40: Item | D40: (b) | F40: Exceeding 50 mm and up to 100 mm | G40: m
A41: Item | D41: (c) | F41: Etc, in 50 mm increments
A42: IHDR1 | B42: C4.3.5 | F42: Providing the milling machine on the site:
A44: Item | C44: C4.3.5.1 | F44: Small milling machine with a cutting width of 1,2 m or smaller | G44: No.
A45: Item | C45: C4.3.5.2 | F45: Large milling machine with a cutting width exceeding 1,2 m | G45: No. | H45: 2 | J45: =IF(ISNUMBER(H45),H45*I45,IF(H45="-","rate only"," ")) -> 0
A47: IHDR1 | B47: C4.3.6 | F47: Milling and removal of existing asphalt layers with an average milling depth (Contractor takes ownership):
A49: Item | C49: C4.3.6.1 | F49: Not exceeding 50 mm | G49: m³
A50: Item | C50: C4.3.6.2 | F50: Exceeding 50 mm but not exceeding 100 mm | G50: m³ | H50: 45000 | J50: =IF(ISNUMBER(H50),H50*I50,IF(H50="-","rate only"," ")) -> 0
A52: IHDR2 | C52: C4.3.6.3 | F52: Exceeding 100 mm | G52: m³ | H52: 8000 | J52: =IF(ISNUMBER(H52),H52*I52,IF(H52="-","rate only"," ")) -> 0
A54: IHDR1 | B54: C4.3.7 | F54: Milling and removal of existing asphalt layers with an average milling depth (Employer takes ownership):
A57: Item | C57: C4.3.7.1 | F57: Not exceeding 50 mm | G57: m³ | H57: - | J57: =IF(ISNUMBER(H57),H57*I57,IF(H57="-","rate only"," ")) -> rate only
A59: Item | C59: C4.3.7.2 | F59: Exceeding 50 mm but not exceeding 100 mm | G59: m³
A60: Item | C60: C4.3.7.3 | F60: Exceeding 100 mm | G60: m³
A61: IHDR1 | B61: C4.3.10 | F61: Excavating material by using labour enhanced methods of construction:
A63: Item | C63: C4.3.10.1 | F63: Asphalt material | G63: m³
A64: Item | C64: C4.3.10.2 | F64: Crushed stone and macadam materials | G64: m³
A65: Item | C65: C4.3.10.3 | F65: Cemented material | G65: m³
A66: Item | C66: C4.3.10.4 | F66: Natural gravel and sand materials | G66: m³
A67: IHDR1 | B67: C4.3.11 | F67: Breaking down a stabilised layer by using conventional road construction equipment | G67: m³
A69: IHDR1 | B69: C4.3.12 | F69: Removing of existing concrete material within the following average depth ranges:
A71: IHDR2 | C71: C4.3.12.1 | F71: The break-up method:
A73: Item | D73: (a) | F73: Not exceeding 150 mm | G73: m³
A74: Item | D74: (b) | F74: Exceeding 150 mm but not exceeding 250 mm | G74: m³
A75: IHDR2 | C75: C4.3.12.2 | F75: The break-up method using labour enhanced methods of construction:
A77: Item | D77: (a) | F77: Not exceeding 75 mm | G77: m³
A78: Item | D78: (b) | F78: Exceeding 75 mm but not exceeding 200 mm | G78: m³
A79: IHDR2 | C79: C4.3.12.3 | F79: The lift-out method:
A81: Item | D81: (a) | F81: Not exceeding 150 mm | G81: m³
A82: Item | D82: (b) | F82: Exceeding 150 mm but not exceeding 250 mm | G82: m³
A83: IHDR1 | B83: C4.3.13 | F83: Lifting of existing paving blocks (specify the type or size and thickness):
A85: Item | C85: C4.3.13.1 | F85: Using construction equipment | G85: m²
A86: Item | C86: C4.3.13.2 | F86: Using labour enhanced methods of construction | G86: m²
A87: IHDR1 | B87: C4.3.14 | F87: Removing of existing road edging and services structures:
A89: IHDR2 | C89: C4.3.14.1 | F89: Removing of existing road edging using construction equipment:
A91: IHDR3 | D91: (a) | F91: Kerbing and edge beams:
A93: Item1 | E93: (i) | F93: In situ concrete kerbing and edge beams | G93: m³
A94: Item1 | E94: (ii) | F94: Precast concrete kerbing (specify type or figure) | G94: m
A95: Item1 | E95: (iii) | F95: Precast concrete kerbing (specify type or figure) and situ concrete channel (specify dimensions) | G95: m
A96: IHDR3 | D96: (b) | F96: Kerb inlets | G96: No.
A98: IHDR3 | D98: (c) | F98: Grid inlets | G98: No.
A100: IHDR3 | D100: (d) | F100: Etc., for other services structures | G100: No.
A102: IHDR2 | B102: C4.3.14.2 | C102: C4.3.14.2 | F102: Removing of existing road edging using labour enhanced methods of construction:
A104: IHDR3 | D104: (a) | F104: Kerbing and edge beams:
A106: Item1 | E106: (i) | F106: In situ concrete kerbing and edge beams | G106: m³
A107: Item1 | E107: (ii) | F107: Precast concrete kerbing (specify type or figure) | G107: m
A108: Item1 | E108: (iii) | F108: Precast concrete kerbing (specify type or figure) and situ concrete channel (specify dimensions) | G108: m
A109: IHDR3 | D109: (b) | F109: Kerb inlets | G109: No.
A111: IHDR3 | D111: (c) | F111: Grid inlets | G111: No.
A113: IHDR3 | D113: (d) | F113: Etc., for other services structures | G113: No.
A115: IHDR1 | B115: C4.3.15 | F115: Stockpiling of road layer materials:
A117: Item | C117: C4.3.15.1 | F117: Asphalt material | G117: m³ | H117: 53000 | J117: =IF(ISNUMBER(H117),H117*I117,IF(H117="-","rate only"," ")) -> 0
A119: Item | C119: C4.3.15.2 | F119: Crushed stone material | G119: m³
A120: Item | C120: C4.3.15.3 | F120: Cemented material | G120: m³
A121: Item | C121: C4.3.15.4 | F121: Natural gravel material | G121: m³
A122: Item | C122: C4.3.15.5 | F122: Concrete pavements | G122: m³
A123: IHDR1 | B123: C4.3/ C4.4.4 | F123: Cementitious stabilising agents
A125: Item | C125: C4.4.4.1 | F125: Cement | G125: ton | H125: 5 | J125: =IF(ISNUMBER(H125),H125*I125,IF(H125="-","rate only"," ")) -> 0
A127: Item | C127: C4.3.16.2 | F127: Precast concrete kerbing (specify type or figure and length) | G127: No.
A128: Item | C128: C4.3.16.3 | F128: Precast kerb inlets | G128: No.
A129: Item | C129: C4.3.16.4 | F129: Precast manholes | G129: No.
A130: IHDR1 | B130: C4.3/ C5.4.2 | F130: Chemical stabilisation
A132: Item | C132: C5.4.2.1 | F132: Chemical stabilisation (150mm layer thickness) of pavement layers | G132: m³ | H132: 100 | J132: =IF(ISNUMBER(H132),H132*I132,IF(H132="-","rate only"," ")) -> 0
A134: Item | C134: C4.3.17.2 | F134: Crushed stone, macadam, gravel and sand material | G134: m³
A135: Item | C135: C4.3.17.3 | F135: Cemented material | G135: m³
A136: Item | C136: C4.3.17.4 | F136: Concrete material | G136: m³
A137: IHDR1 | B137: C4.3/ C5.4.5 | F137: Cementitious stabilisation agents for pavement layers
A139: Item | C139: C5.4.5.1 | F139: Addition of cementitious stabilisation agents (specify agent separately) for pavement layers
A140: Item | D140: (a) | F140: Cement (for pavement layer) | G140: ton | H140: 5 | J140: =IF(ISNUMBER(H140),H140*I140,IF(H140="-","rate only"," ")) -> 0
A142: Item | C142: C4.3.18.3 | F142: Cemented material | G142: m³
A143: Item | C143: C4.3.18.4 | F143: Concrete material | G143: m³
A144: IHDR1 | B144: C4.3.17 | F144: Excavate non-compliant or excess pavement layer material to spoil in sites designated by the Employer, material consisting of:
A146: Item | C146: C4.3.17.1 | F146: Asphalt material | G146: m³ | H146: 100 | J146: =IF(ISNUMBER(H146),H146*I146,IF(H146="-","rate only"," ")) -> 0
A148: Item | C148: C4.3.19.2 | F148: Precast and in situ concrete kerbing, edge beams and channels at precast kerbing | G148: m³
A149: Item | C149: C4.3.19.3 | F149: Kerb and grid inlets, and other services structures | G149: No.
A150: IHDR1 | B150: C4.3.20 | C150: C4.3.20 | F150: Spoiling of paving blocks and road edging in spoil sites designated by the Contractor:
A152: Item | C152: C4.3.20.1 | F152: Paving blocks | G152: m³
A153: Item | C153: C4.3.20.2 | F153: Precast and in situ concrete kerbing, edge beams and channels at precast kerbing | G153: m³
A154: Item | C154: C4.3.20.3 | F154: Kerb and grid inlets, and other services structures | G154: No.
A155: IHDR1 | B155: C4.3/C1.6 | F155: Clearing and Grubbing
A157: IHDR1
A158: PB
A159: PB | B159: CARRIED FORWARD | J159: =SUM(J18:J157) -> 0.00
A160: PB
A161: PB
A162: PB | B162: BROUGHT FORWARD | J162: =J159 -> 0.00
A163: PB
B165: C1.6.1 | F165: Clearing:
A167: Item | C167: C1.6.1.1 | F167: Clearing with machines and some hand labour where necessary | G167: ha | H167: 5.2 | J167: =IF(ISNUMBER(H167),H167*I167,IF(H167="-","rate only"," ")) -> 0
A169: IHDR1 | B169: C1.6.2 | F169: Grubbing:
A171: Item | C171: C1.6.2.1 | F171: Grubbing with machines and some hand labour where necessary | G171: ha | H171: 5.2 | J171: =IF(ISNUMBER(H171),H171*I171,IF(H171="-","rate only"," ")) -> 0
A226: #BillEnd#
A227: #BillEnd# | B227: TOTAL CARRIED FORWARD TO SUMMARY | J227: =SUM(J161:J225) -> 0.00
A228: #BillEnd#

Sheet 4.4 (hidden)
A1: #BillSheet#
A2: #BillSheet# | B2: C4.4 | C2: COMMERCIAL MATERIALS | J2: SCHEDULE A | K2: =SUBTOTAL(9,M$7:M1008) -> 0 | M2: =J2 -> SCHEDULE A
A3: #BillSheet#
A4: ColHDR
A5: ColHDR | B5: ITEM | F5: DESCRIPTION | G5: UNIT | H5: QTY | I5: RATE | J5: AMT | L5: RATE | M5: AMOUNT
A6: ColHDR
F7: COMMERCIAL MATERIALS
A8: IHDR1 | B8: C4.4.1 | F8: Commercial materials identified by the Employer from commercial, private or other non-commercial suppliers (specify the source/s): | M8: =IF(ISNUMBER(H8),L8*H8,IF(ISNUMBER(J8),J8,IF(J8="RATE ONLY",LOWER("RATE ONLY")," "))) -> 
A10: IHDR2 | C10: C4.4.1.1 | F10: Pavement layer material: | M10: =IF(ISNUMBER(H10),L10*H10,IF(ISNUMBER(J10),J10,IF(J10="RATE ONLY",LOWER("RATE ONLY")," "))) -> 
A12: Item | D12: (a) | F12: Type G1 material | G12: m³ | M12: =IF(ISNUMBER(H12),L12*H12,IF(ISNUMBER(J12),J12,IF(J12="RATE ONLY",LOWER("RATE ONLY")," "))) -> 
A13: Item | D13: (b) | F13: Type G2 material | G13: m³
A14: Item | D14: (c) | F14: Type G3 material | G14: m³
A15: Item | D15: (d) | F15: Type G4A material | G15: m³
A16: Item | D16: (e) | F16: Type G4B material | G16: m³
A17: Item | D17: (f) | F17: Type G5A material | G17: m³
A18: Item | D18: (g) | F18: Type G5B material | G18: m³
A19: Item | D19: (h) | F19: Type G6 material | G19: m³
A20: Item | D20: (i) | F20: Type G7 material | G20: m³
A21: Item | D21: (j) | F21: Type G8 material | G21: m³
A22: Item | D22: (k) | F22: Type G9 material | G22: m³
A23: Item | D23: (l) | F23: Etc, for other Type G3 to G9 materials | G23: m³
A24: Item | D24: (m) | F24: Sand for the base and shoulder layers | G24: m³
A25: Item | D25: (n) | F25: Sand for a subbase layer | G25: m³
A26: Item | D26: (o) | F26: Sand for a selected layer | G26: m³
A27: Item | D27: (p) | F27: Natural or crushed gravel material for an unsealed shoulder layer | G27: m³
A28: Item | D28: (q) | F28: Natural or crushed gravel material for the wearing course of an unsealed road | G28: m³
A29: IHDR2 | C29: C4.4.1.2 | F29: Macadam material: | M29: =IF(ISNUMBER(H29),L29*H29,IF(ISNUMBER(J29),J29,IF(J29="RATE ONLY",LOWER("RATE ONLY")," "))) -> 
A31: Item | D31: (a) | F31: Coarse aggregate | G31: m³
A32: Item | D32: (b) | F32: Fine aggregate | G32: m³
A33: IHDR2 | C33: C4.4.1.3 | F33: Drainage blanket layer material | G33: m³ | M33: =IF(ISNUMBER(H33),L33*H33,IF(ISNUMBER(J33),J33,IF(J33="RATE ONLY",LOWER("RATE ONLY")," "))) -> 
A35: IHDR2 | C35: C4.4.1.4 | F35: Soil cement material (pre-blended by the supplier) | G35: m³ | M35: =IF(ISNUMBER(H35),L35*H35,IF(ISNUMBER(J35),J35,IF(J35="RATE ONLY",LOWER("RATE ONLY")," "))) -> 
A37: IHDR2 | C37: C4.4.1.5 | F37: Fill material in the earthworks: | M37: =IF(ISNUMBER(H37),L37*H37,IF(ISNUMBER(J37),J37,IF(J37="RATE ONLY",LOWER("RATE ONLY")," "))) -> 
A39: Item | D39: (a) | F39: Normal or coarse fill | G39: m³
A40: Item | D40: (b) | F40: Rock fill | G40: m³
A41: Item | D41: (c) | F41: Sand | G41: m³
A42: IHDR2 | C42: C4.4.1.6 | F42: Pioneer material | G42: m³ | M42: =IF(ISNUMBER(H42),L42*H42,IF(ISNUMBER(J42),J42,IF(J42="RATE ONLY",LOWER("RATE ONLY")," "))) -> 
A44: IHDR1 | B44: C4.4.2 | F44: Commercial materials identified by the Contractor from commercial, private or other non-commercial suppliers: | M44: =IF(ISNUMBER(H44),L44*H44,IF(ISNUMBER(J44),J44,IF(J44="RATE ONLY",LOWER("RATE ONLY")," "))) -> 
A46: IHDR2 | C46: C4.4.2.1 | F46: Pavement layer material: | M46: =IF(ISNUMBER(H46),L46*H46,IF(ISNUMBER(J46),J46,IF(J46="RATE ONLY",LOWER("RATE ONLY")," "))) -> 
A48: Item | D48: (a) | F48: Type G1 material | G48: m³ | L48: 750.00 | M48: =IF(ISNUMBER(H48),L48*H48,IF(ISNUMBER(J48),J48,IF(J48="RATE ONLY",LOWER("RATE ONLY")," "))) -> 
A50: Item | D50: (b) | F50: Type G2 material | G50: m³ | M50: =IF(ISNUMBER(H50),L50*H50,IF(ISNUMBER(J50),J50,IF(J50="RATE ONLY",LOWER("RATE ONLY")," "))) -> 
A51: Item | D51: (c) | F51: Type G3 material | G51: m³
A52: Item | D52: (d) | F52: Type G4A material | G52: m³
A53: Item | D53: (e) | F53: Type G4B material | G53: m³
A54: Item | D54: (f) | F54: Type G5A material | G54: m³
A55: Item | D55: (g) | F55: Type G5B material | G55: m³
A56: Item | D56: (h) | F56: Type G6 material | G56: m³
A57: Item | D57: (i) | F57: Type G7 material | G57: m³
A58: Item | D58: (j) | F58: Type G8 material | G58: m³
A59: Item | D59: (k) | F59: Type G9 material | G59: m³
A60: Item | D60: (l) | F60: Etc, for other Type G3 to G9 materials | G60: m³
A61: Item | D61: (m) | F61: Sand for the base and shoulder layers | G61: m³
A62: Item | D62: (n) | F62: Sand for a subbase layer | G62: m³
A63: Item | D63: (o) | F63: Sand for a selected layer | G63: m³
A64: Item | D64: (p) | F64: Natural or crushed gravel material for an unsealed shoulder layer | G64: m³
A65: Item | D65: (q) | F65: Natural or crushed gravel material for the wearing course of an unsealed road | G65: m³
A66: IHDR2 | C66: C4.4.2.2 | F66: Macadam material: | M66: =IF(ISNUMBER(H66),L66*H66,IF(ISNUMBER(J66),J66,IF(J66="RATE ONLY",LOWER("RATE ONLY")," "))) -> 
A68: Item | D68: (a) | F68: Coarse aggregate | G68: m³
A69: Item | D69: (b) | F69: Fine aggregate | G69: m³
A70: IHDR2 | C70: C4.4.2.3 | F70: Drainage blanket layer material | G70: m³ | M70: =IF(ISNUMBER(H70),L70*H70,IF(ISNUMBER(J70),J70,IF(J70="RATE ONLY",LOWER("RATE ONLY")," "))) -> 
A72: IHDR2 | C72: C4.4.2.4 | F72: Soil cement material (pre-blended by the supplier) | G72: m³ | M72: =IF(ISNUMBER(H72),L72*H72,IF(ISNUMBER(J72),J72,IF(J72="RATE ONLY",LOWER("RATE ONLY")," "))) -> 
A74: IHDR2 | C74: C4.4.2.5 | F74: Fill material in the earthworks: | M74: =IF(ISNUMBER(H74),L74*H74,IF(ISNUMBER(J74),J74,IF(J74="RATE ONLY",LOWER("RATE ONLY")," "))) -> 
A76: Item | D76: (a) | F76: Normal or coarse fill | G76: m³
A77: Item | D77: (b) | F77: Rock fill | G77: m³
A78: Item | D78: (c) | F78: Sand | G78: m³
A79: IHDR2 | C79: C4.4.2.6 | F79: Pioneer material | G79: m³ | M79: =IF(ISNUMBER(H79),L79*H79,IF(ISNUMBER(J79),J79,IF(J79="RATE ONLY",LOWER("RATE ONLY")," "))) -> 
A81: IHDR1 | B81: C4.4.3 | F81: Cost to procure commercial materials identified by the Employer from private or non-commercial sources: | M81: =IF(ISNUMBER(H81),L81*H81,IF(ISNUMBER(J81),J81,IF(J81="RATE ONLY",LOWER("RATE ONLY")," "))) -> 
A83: Item | C83: C4.4.3.1 | F83: Cost of procuring | G83: prov sum
A84: Item | C84: C4.4.3.2 | F84: Handling costs and profit in respect of item C4.4.3.1 | G84: %
A85: IHDR1 | B85: C4.4.4 | F85: Cementitious stabilising agents: | M85: =IF(ISNUMBER(H85),L85*H85,IF(ISNUMBER(J85),J85,IF(J85="RATE ONLY",LOWER("RATE ONLY")," "))) -> 
A87: Item | C87: C4.4.4.1 | F87: Cement | G87: t | L87: 1,700.00 | M87: =IF(ISNUMBER(H87),L87*H87,IF(ISNUMBER(J87),J87,IF(J87="RATE ONLY",LOWER("RATE ONLY")," "))) -> 
A89: Item | C89: C4.4.4.2 | F89: Road lime | G89: t | L89: 3,000.00 | M89: =IF(ISNUMBER(H89),L89*H89,IF(ISNUMBER(J89),J89,IF(J89="RATE ONLY",LOWER("RATE ONLY")," "))) -> 
A91: Item | C91: C4.4.4.3 | F91: Etc, for other agents | G91: t | M91: =IF(ISNUMBER(H91),L91*H91,IF(ISNUMBER(J91),J91,IF(J91="RATE ONLY",LOWER("RATE ONLY")," "))) -> 
A92: IHDR1 | B92: C4.4.5 | F92: Bituminous stabilising agents: | M92: =IF(ISNUMBER(H92),L92*H92,IF(ISNUMBER(J92),J92,IF(J92="RATE ONLY",LOWER("RATE ONLY")," "))) -> 
A94: Item | C94: C4.4.5.1 | F94: Penetration grade bitumen (specify grade) | G94: t
A95: Item | C95: C4.4.5.2 | F95: Emulsion stable grade (specify type) | G95: t
A96: IHDR1 | B96: C4.4.6 | F96: Fillers for bituminous stabilisation (specify filler types separately) | G96: t | M96: =IF(ISNUMBER(H96),L96*H96,IF(ISNUMBER(J96),J96,IF(J96="RATE ONLY",LOWER("RATE ONLY")," "))) -> 
A98: IHDR1 | B98: C4.4.7 | F98: Sampling and material testing by a commercial laboratory for the stabilisation designs: | M98: =IF(ISNUMBER(H98),L98*H98,IF(ISNUMBER(J98),J98,IF(J98="RATE ONLY",LOWER("RATE ONLY")," "))) -> 
A100: Item | C100: C4.4.7.1 | F100: Cost of sampling and material testing | G100: prov sum | J100: =+I100 -> 0 | L100: 50,000.00 | M100: =IF(ISNUMBER(H100),L100*H100,IF(ISNUMBER(J100),J100,IF(J100="RATE ONLY",LOWER("RATE ONLY")," "))) -> 0
A102: Item3 | C102: C4.4.7.2 | F102: Handling costs and profit in respect of item C4.4.7.1 | G102: % | L102: 10% | M102: =IF(ISNUMBER(H102),L102*H102,IF(ISNUMBER(J102),J102,IF(J102="RATE ONLY",LOWER("RATE ONLY")," "))) -> 
A133: #BillEnd#
A134: #BillEnd# | B134: TOTAL CARRIED FORWARD TO SUMMARY | M134: =SUBTOTAL(9,M$7:M103) -> 0
A135: #BillEnd#

Sheet 4.5 (hidden)
A1: #BillSheet#
A2: #BillSheet# | B2: C4.5 | C2: ALTERNATIVE MATERIALS | J2: SCHEDULE A | K2: =SUBTOTAL(9,M$7:M902) -> 0 | M2: =J2 -> SCHEDULE A
A3: #BillSheet#
A4: ColHDR
A5: ColHDR | B5: ITEM | F5: DESCRIPTION | G5: UNIT | H5: QTY | I5: RATE | J5: AMT | L5: RATE | M5: AMOUNT
A6: ColHDR
F7: ALTERNATIVE MATERIALS
A8: IHDR1 | B8: C4.5.1 | F8: Additional material investigations: | M8: =IF(ISNUMBER(H8),L8*H8,IF(ISNUMBER(J8),J8,IF(J8="RATE ONLY",LOWER("RATE ONLY")," "))) -> 
A9: Item | C9: C4.5.1.1 | F9: Cost of sampling and laboratory testing | G9: prov sum
A10: Item | C10: C4.5.1.2 | F10: Handling costs and profit in respect of item C4.5.1.1 | G10: %
A11: IHDR1 | B11: C4.5.2 | F11: Removing unwanted material from alternative materials identified by the Employer:
A12: Item | C12: C4.5.2.1 | F12: Contaminant material | G12: prov sum
A13: Item | C13: C4.5.2.2 | F13: Handling costs and profit in respect of item C4.5.2.1 | G13: %
A14: Item | C14: C4.5.2.3 | F14: Hazardous material | G14: prov sum
A15: Item | C15: C4.5.2.4 | F15: Handling costs and profit in respect of item C4.5.2.3 | G15: %
A16: IHDR1 | B16: C4.5.3 | F16: Cost to procure alternative materials identified by the Employer:
A17: Item | C17: C4.5.3.1 | F17: Cost of procuring | G17: prov sum
A18: Item | C18: C4.5.3.2 | F18: Handling costs and profit in respect of item C4.5.3.1 | G18: %
A19: #BillEnd#
A20: #BillEnd# | B20: TOTAL CARRIED FORWARD TO SUMMARY | M20: =SUBTOTAL(9,M$10:M18) -> 0
A21: #BillEnd#

Sheet 5.1 (hidden)
A1: #BillSheet#
A2: #BillSheet# | B2: C5.1 | C2: ROADBED | J2: SCHEDULE A | K2: =SUBTOTAL(9,M$7:M1129) -> 675,000.00 | M2: =J2 -> SCHEDULE A
A3: #BillSheet#
A4: ColHDR
A5: ColHDR | B5: ITEM | F5: DESCRIPTION | G5: UNIT | H5: QTY | I5: RATE | J5: AMT | L5: RATE | M5: AMOUNT
A6: ColHDR
F7: ROADBED
A8: IHDR1 | B8: C5.1.1 | F8: Roadbed construction and compaction: | M8: =IF(ISNUMBER(H8),L8*H8,IF(ISNUMBER(J8),J8,IF(J8="RATE ONLY",LOWER("RATE ONLY")," "))) -> 
A10: Item | C10: C5.1.1.1 | F10: Compaction of in-situ material to 90 % of MDD | G10: m³ | M10: =IF(ISNUMBER(H10),L10*H10,IF(ISNUMBER(J10),J10,IF(J10="RATE ONLY",LOWER("RATE ONLY")," "))) -> 
A11: Item | C11: C5.1.1.2 | F11: Compaction of in-situ material to 93 % of MDD | G11: m³ | H11: 22000 | L11: 25.00 | M11: =IF(ISNUMBER(H11),L11*H11,IF(ISNUMBER(J11),J11,IF(J11="RATE ONLY",LOWER("RATE ONLY")," "))) -> 550,000.00
A13: Item | C13: C5.1.1.3 | F13: Compaction of imported material to 90 % of MDD | G13: m³
A14: Item | C14: C5.1.1.4 | F14: Compaction of imported material to 93 % of MDD | G14: m³ | H14: 5000 | L14: 25.00 | M14: =IF(ISNUMBER(H14),L14*H14,IF(ISNUMBER(J14),J14,IF(J14="RATE ONLY",LOWER("RATE ONLY")," "))) -> 125,000.00
A16: Item | C16: C5.1.1.5 | F16: Compaction of in-situ sand roadbed to 95 % of MDD | G16: m³
A17: Item | C17: C5.1.1.6 | F17: Compaction of in-situ sand roadbed to 100 % of MDD | G17: m³
A18: IHDR1 | B18: C5.1.2 | F18: Excavate material to spoil from roadbed construction: | M18: =IF(ISNUMBER(H18),L18*H18,IF(ISNUMBER(J18),J18,IF(J18="RATE ONLY",LOWER("RATE ONLY")," "))) -> 
A20: IHDR2 | C20: C5.1.2.1 | F20: Excavate material to spoil from roadbed construction, material obtained from: | M20: =IF(ISNUMBER(H20),L20*H20,IF(ISNUMBER(J20),J20,IF(J20="RATE ONLY",LOWER("RATE ONLY")," "))) -> 
A22: Item | D22: (a) | F22: Soft excavation | G22: m³
A23: Item | D23: (b) | F23: Boulder excavation Class A | G23: m³
A24: Item | D24: (c) | F24: Boulder excavation Class B | G24: m³
A25: Item | D25: (d) | F25: Hard excavation (other than by blasting) | G25: m³
A26: Item | D26: (e) | F26: Hard excavation (by blasting) | G26: m³
A27: IHDR2 | C27: C5.1.2.2 | F27: Excavate material to spoil from roadbed construction, using labour enhancement, material obtained from: | M27: =IF(ISNUMBER(H27),L27*H27,IF(ISNUMBER(J27),J27,IF(J27="RATE ONLY",LOWER("RATE ONLY")," "))) -> 
A29: Item | D29: (a) | F29: Soft excavation | G29: m³
A30: Item | D30: (b) | F30: Intermediate excavation | G30: m³
A31: IHDR1 | B31: C5.1.3 | F31: Excavate material to spoil sites designated by the Contractor: | M31: =IF(ISNUMBER(H31),L31*H31,IF(ISNUMBER(J31),J31,IF(J31="RATE ONLY",LOWER("RATE ONLY")," "))) -> 
A33: IHDR2 | C33: C5.1.3.1 | F33: Excavate material to spoil from roadbed construction, material obtained from: | M33: =IF(ISNUMBER(H33),L33*H33,IF(ISNUMBER(J33),J33,IF(J33="RATE ONLY",LOWER("RATE ONLY")," "))) -> 
A35: Item | D35: (a) | F35: Soft excavation | G35: m³
A36: Item | D36: (b) | F36: Boulder excavation Class A | G36: m³
A37: Item | D37: (c) | F37: Boulder excavation Class B | G37: m³
A38: Item | D38: (d) | F38: Hard excavation (other than by blasting) | G38: m³
A39: Item | D39: (e) | F39: Hard excavation (by blasting) | G39: m³
A40: IHDR2 | C40: C5.1.3.2 | F40: Excavate material to spoil from roadbed construction, using labour enhancement, material obtained from: | M40: =IF(ISNUMBER(H40),L40*H40,IF(ISNUMBER(J40),J40,IF(J40="RATE ONLY",LOWER("RATE ONLY")," "))) -> 
A42: Item | D42: (a) | F42: Soft excavation | G42: m³
A43: Item | D43: (b) | F43: Intermediate excavation | G43: m³
A44: IHDR1 | B44: C5.1.4 | F44: Removal of unsuitable material to spoil: | M44: =IF(ISNUMBER(H44),L44*H44,IF(ISNUMBER(J44),J44,IF(J44="RATE ONLY",LOWER("RATE ONLY")," "))) -> 
A46: IHDR2 | C46: C5.1.4.1 | F46: In layer thicknesses of 200 mm and less: | M46: =IF(ISNUMBER(H46),L46*H46,IF(ISNUMBER(J46),J46,IF(J46="RATE ONLY",LOWER("RATE ONLY")," "))) -> 
A48: Item | D48: (a) | F48: Stable material | G48: m³
A49: Item | D49: (b) | F49: Unstable material | G49: m³
A50: IHDR2 | C50: C5.1.4.2 | F50: In layer thicknesses exceeding 200 mm: | M50: =IF(ISNUMBER(H50),L50*H50,IF(ISNUMBER(J50),J50,IF(J50="RATE ONLY",LOWER("RATE ONLY")," "))) -> 
A52: Item | D52: (a) | F52: Stable material | G52: m³ | M52: =IF(ISNUMBER(H52),L52*H52,IF(ISNUMBER(J52),J52,IF(J52="RATE ONLY",LOWER("RATE ONLY")," "))) -> 
A53: Item | D53: (b) | F53: Unstable material | G53: m³
A54: IHDR1 | B54: C5.1.5 | F54: In-situ treatment of roadbed in hard material: | M54: =IF(ISNUMBER(H54),L54*H54,IF(ISNUMBER(J54),J54,IF(J54="RATE ONLY",LOWER("RATE ONLY")," "))) -> 
A56: Item | C56: C5.1.5.1 | F56: In-situ treatment by ripping | G56: m³
A57: Item | C57: C5.1.5.2 | F57: In-situ treatment by drilling and blasting | G57: m³
A58: Item | C58: C5.1.5.3 | F58: In-situ treatment by drilling and splitting the material using non-explosive, rock-breaking products | G58: m³
A59: IHDR1 | B59: C5.1.6 | F59: Roller-pass compaction: | M59: =IF(ISNUMBER(H59),L59*H59,IF(ISNUMBER(J59),J59,IF(J59="RATE ONLY",LOWER("RATE ONLY")," "))) -> 
A61: Item | C61: C5.1.6.1 | F61: Grid rollers | G61: m² | L61: 2.80 | M61: =IF(ISNUMBER(H61),L61*H61,IF(ISNUMBER(J61),J61,IF(J61="RATE ONLY",LOWER("RATE ONLY")," "))) -> 
A63: Item | C63: C5.1.6.2 | F63: Pad foot vibratory rollers | G63: m² | L63: 3.00 | M63: =IF(ISNUMBER(H63),L63*H63,IF(ISNUMBER(J63),J63,IF(J63="RATE ONLY",LOWER("RATE ONLY")," "))) -> 
A65: Item | C65: C5.1.6.3 | F65: Smooth drum vibratory rollers | G65: m²
A66: Item | C66: C5.1.6.4 | F66: Other vibratory rollers. Specify…… | G66: m²
A67: Item | C67: C5.1.6.5 | F67: Impact rollers | G67: m²
A68: Item | C68: C5.1.6.6 | F68: Pneumatic rollers | G68: m²
A69: Item | C69: C5.1.6.7 | F69: High energy impact compactor/roller (HEIC) | G69: m²
A70: Item | C70: C5.1.6.8 | F70: Other rollers. Specify….. | G70: m²
A71: IHDR1 | B71: C5.1.7 | F71: Construction of a roadbed trial section: | M71: =IF(ISNUMBER(H71),L71*H71,IF(ISNUMBER(J71),J71,IF(J71="RATE ONLY",LOWER("RATE ONLY")," "))) -> 
A73: IHDR2 | C73: C5.1.7.1 | F73: Non wetting-up collapsing soil trial section at in-situ moisture content using conventional rollers and/or HEIC | G73: m³ | M73: =IF(ISNUMBER(H73),L73*H73,IF(ISNUMBER(J73),J73,IF(J73="RATE ONLY",LOWER("RATE ONLY")," "))) -> 
A75: IHDR2 | C75: C5.1.7.2 | F75: Non wetting-up collapsing soil trial section by excavating the soil to stockpile and then importing the soil from the stockpile to controlled compacted layers | G75: m³ | M75: =IF(ISNUMBER(H75),L75*H75,IF(ISNUMBER(J75),J75,IF(J75="RATE ONLY",LOWER("RATE ONLY")," "))) -> 
A77: IHDR2 | C77: C5.1.7.3 | F77: Wetting-up collapsing soil trial section | G77: m³ | M77: =IF(ISNUMBER(H77),L77*H77,IF(ISNUMBER(J77),J77,IF(J77="RATE ONLY",LOWER("RATE ONLY")," "))) -> 
A79: IHDR2 | C79: C5.1.7.4 | F79: Inactive and normal clay | M79: =IF(ISNUMBER(H79),L79*H79,IF(ISNUMBER(J79),J79,IF(J79="RATE ONLY",LOWER("RATE ONLY")," "))) -> 
A81: Item | D81: (a) | F81: By material modification | G81: m³
A82: Item | D82: (b) | F82: By lime modification | G82: m³
A83: Item | D83: (c) | F83: By removal of material | G83: m³
A84: IHDR2 | C84: C5.1.7.5 | F84: Active clay | M84: =IF(ISNUMBER(H84),L84*H84,IF(ISNUMBER(J84),J84,IF(J84="RATE ONLY",LOWER("RATE ONLY")," "))) -> 
A86: Item | D86: (a) | F86: Roadbed construction using lime | G86: m³
A87: Item | D87: (b) | F87: Roadbed construction by removal of active clay | G87: m³
A88: IHDR2 | C88: C5.1.7.6 | F88: Roller-pass compaction | G88: m³ | L88: 3.00 | M88: =IF(ISNUMBER(H88),L88*H88,IF(ISNUMBER(J88),J88,IF(J88="RATE ONLY",LOWER("RATE ONLY")," "))) -> 
A90: IHDR1 | B90: C5.1.8 | F90: Construction of the roadbed in collapsing soil: | M90: =IF(ISNUMBER(H90),L90*H90,IF(ISNUMBER(J90),J90,IF(J90="RATE ONLY",LOWER("RATE ONLY")," "))) -> 
A92: Item | C92: C5.1.8.1 | F92: Non wetting-up collapsing soil roadbed construction at in-situ moisture content using conventional rollers | G92: m³
A93: Item | C93: C5.1.8.2 | F93: Non wetting-up collapsing soil roadbed construction at in-situ moisture content using HEIC | G93: m³
A94: Item | C94: C5.1.8.3 | F94: Non wetting-up collapsing soil roadbed construction by excavating the soil to stockpile and then importing from the stockpile to controlled compacted layers; | G94: m³
A95: Item | C95: C5.1.8.4 | F95: Wetting-up collapsing soil roadbed construction | G95: kilolitre
A96: Item | C96: C5.1.8.5 | F96: Water for wetting-up collapsing soil roadbed construction | G96: kilolitre | M96: =IF(ISNUMBER(H96),L96*H96,IF(ISNUMBER(J96),J96,IF(J96="RATE ONLY",LOWER("RATE ONLY")," "))) -> 
A97: IHDR1 | B97: C5.1.9 | F97: Construction of roadbed comprising normal and inactive clay: | M97: =IF(ISNUMBER(H97),L97*H97,IF(ISNUMBER(J97),J97,IF(J97="RATE ONLY",LOWER("RATE ONLY")," "))) -> 
A99: Item | C99: C5.1.9.1 | F99: By material modification | G99: m³
A100: Item | C100: C5.1.9.2 | F100: By lime modification | G100: m³
A101: Item | C101: C5.1.9.3 | F101: By removal of material | G101: m³
A102: IHDR1 | B102: C5.1.10 | F102: Construction of roadbed comprising active clay: | M102: =IF(ISNUMBER(H102),L102*H102,IF(ISNUMBER(J102),J102,IF(J102="RATE ONLY",LOWER("RATE ONLY")," "))) -> 
A104: Item | C104: C5.1.10.1 | F104: Roadbed construction using lime | G104: m³
A105: Item | C105: C5.1.10.2 | F105: Roadbed construction by removal of active clay | G105: m³
A106: IHDR1 | B106: C5.1.11 | F106: Construction of roadbed comprising a pioneer layer | G106: m³ | L106: 15.00 | M106: =IF(ISNUMBER(H106),L106*H106,IF(ISNUMBER(J106),J106,IF(J106="RATE ONLY",LOWER("RATE ONLY")," "))) -> 
A108: IHDR1 | B108: C5.1.12 | F108: Excavation for benches: | M108: =IF(ISNUMBER(H108),L108*H108,IF(ISNUMBER(J108),J108,IF(J108="RATE ONLY",LOWER("RATE ONLY")," "))) -> 
A110: IHDR2 | C110: C5.1.12.1 | F110: Excavation for benches: | M110: =IF(ISNUMBER(H110),L110*H110,IF(ISNUMBER(J110),J110,IF(J110="RATE ONLY",LOWER("RATE ONLY")," "))) -> 
A112: Item | D112: (a) | F112: Side-cut to fill in soft material | G112: m³
A113: Item | D113: (b) | F113: Side-cut to spoil in soft material | G113: m³
A114: IHDR2 | C114: C5.1.12.2 | F114: Excavation for benches using labour enhancement: | M114: =IF(ISNUMBER(H114),L114*H114,IF(ISNUMBER(J114),J114,IF(J114="RATE ONLY",LOWER("RATE ONLY")," "))) -> 
A116: IHDR3 | D116: (a) | F116: Side-cut to fill: | M116: =IF(ISNUMBER(H116),L116*H116,IF(ISNUMBER(J116),J116,IF(J116="RATE ONLY",LOWER("RATE ONLY")," "))) -> 
A118: Item1 | E118: (i) | F118: Soft material | G118: m³
A119: Item1 | E119: (ii) | F119: Intermediate material | G119: m³
A120: IHDR3 | D120: (b) | F120: Side-cut to spoil: | M120: =IF(ISNUMBER(H120),L120*H120,IF(ISNUMBER(J120),J120,IF(J120="RATE ONLY",LOWER("RATE ONLY")," "))) -> 
A122: Item1 | E122: (i) | F122: Soft material | G122: m³
A123: Item1 | E123: (ii) | F123: Intermediate material | G123: m³
A124: IHDR1 | B124: C5.1.13 | F124: Construction of a levelling layer: | M124: =IF(ISNUMBER(H124),L124*H124,IF(ISNUMBER(J124),J124,IF(J124="RATE ONLY",LOWER("RATE ONLY")," "))) -> 
A126: Item | C126: C5.1.13.1 | F126: Over roadbed treatment in hard material compacted to 90 % MDD | G126: m³
A127: Item | C127: PC5.1.13.3 | F127: Over a constructed pioneer layer or rock fill compacted to 90 % MDD | G127: m³ | L127: 25.00 | M127: =IF(ISNUMBER(H127),L127*H127,IF(ISNUMBER(J127),J127,IF(J127="RATE ONLY",LOWER("RATE ONLY")," "))) ->  | N127: Add "or rock fill"
A155: #BillEnd#
A156: #BillEnd# | B156: TOTAL CARRIED FORWARD TO SUMMARY | M156: =SUBTOTAL(9,M$7:M128) -> 675,000.00
A157: #BillEnd#

Sheet 5.2 (hidden)
A1: #BillSheet#
A2: #BillSheet# | B2: C5.2 | C2: FILL | J2: SCHEDULE A | K2: =SUBTOTAL(9,M$7:M990) -> 0 | M2: =J2 -> SCHEDULE A
A3: #BillSheet#
A4: ColHDR
A5: ColHDR | B5: ITEM | F5: DESCRIPTION | G5: UNIT | H5: QTY | I5: RATE | J5: AMT | L5: RATE | M5: AMOUNT
A6: ColHDR
F7: FILL
A8: IHDR1 | B8: C5.2.1 | F8: Compiling and implementing M&U plans: | M8: =IF(ISNUMBER(H8),L8*H8,IF(ISNUMBER(J8),J8,IF(J8="RATE ONLY",LOWER("RATE ONLY")," "))) -> 
A10: Item | C10: C5.2.1.1 | F10: For fills more than 10 000 m³ | G10: No. | L10: 30,000.00 | M10: =IF(ISNUMBER(H10),L10*H10,IF(ISNUMBER(J10),J10,IF(J10="RATE ONLY",LOWER("RATE ONLY")," "))) -> 
A12: Item | C12: C5.2.1.2 | F12: For fills 1,0 km in length when less than 10 000 m³ | G12: No. | L12: 40,000.00 | M12: =IF(ISNUMBER(H12),L12*H12,IF(ISNUMBER(J12),J12,IF(J12="RATE ONLY",LOWER("RATE ONLY")," "))) -> 
A14: IHDR1 | B14: C5.2.2 | F14: Fill construction: | M14: =IF(ISNUMBER(H14),L14*H14,IF(ISNUMBER(J14),J14,IF(J14="RATE ONLY",LOWER("RATE ONLY")," "))) -> 
A16: IHDR2 | C16: C5.2.2.1 | F16: Normal fill material in compacted layer thicknesses of 200 mm and less: | M16: =IF(ISNUMBER(H16),L16*H16,IF(ISNUMBER(J16),J16,IF(J16="RATE ONLY",LOWER("RATE ONLY")," "))) -> 
A18: Item | D18: (a) | F18: Compacted to 90 % of MDD | G18: m³ | M18: =IF(ISNUMBER(H18),L18*H18,IF(ISNUMBER(J18),J18,IF(J18="RATE ONLY",LOWER("RATE ONLY")," "))) -> 
A19: Item | D19: (b) | F19: Compacted to 93 % of MDD | G19: m³ | L19: 25.00 | M19: =IF(ISNUMBER(H19),L19*H19,IF(ISNUMBER(J19),J19,IF(J19="RATE ONLY",LOWER("RATE ONLY")," "))) -> 
A21: Item | D21: (c) | F21: Roller-pass compaction | G21: m²
A22: IHDR2 | C22: C5.2.2.2 | F22: Coarse fill material in compacted layer thicknesses exceeding 200 mm but less than 500 mm: | M22: =IF(ISNUMBER(H22),L22*H22,IF(ISNUMBER(J22),J22,IF(J22="RATE ONLY",LOWER("RATE ONLY")," "))) -> 
A24: Item | D24: (a) | F24: Compacted to 90 % of MDD | G24: m³
A25: Item | D25: (b) | F25: Compacted to 93 % of MDD | G25: m³ | L25: 30.00 | M25: =IF(ISNUMBER(H25),L25*H25,IF(ISNUMBER(J25),J25,IF(J25="RATE ONLY",LOWER("RATE ONLY")," "))) -> 
A27: Item | D27: (c) | F27: Roller-pass compaction | G27: m²
A28: IHDR2 | C28: C5.2.2.3 | F28: Sand fill material in compacted layer thicknesses of 400 mm and less, compacted to 100 % of MDD | G28: m³ | M28: =IF(ISNUMBER(H28),L28*H28,IF(ISNUMBER(J28),J28,IF(J28="RATE ONLY",LOWER("RATE ONLY")," "))) -> 
A30: IHDR2 | C30: C5.2.2.4 | F30: Rock fill material all as per Clause A5.2.7.6 | G30: m³ | L30: 35.00 | M30: =IF(ISNUMBER(H30),L30*H30,IF(ISNUMBER(J30),J30,IF(J30="RATE ONLY",LOWER("RATE ONLY")," "))) -> 
A32: IHDR2 | C32: C5.2.2.5 | F32: Rock fill embankment toe | G32: m³ | L32: 35.00 | M32: =IF(ISNUMBER(H32),L32*H32,IF(ISNUMBER(J32),J32,IF(J32="RATE ONLY",LOWER("RATE ONLY")," "))) -> 
A34: IHDR2 | C34: C5.2.2.6 | F34: Sand filter layer | G34: m³ | M34: =IF(ISNUMBER(H34),L34*H34,IF(ISNUMBER(J34),J34,IF(J34="RATE ONLY",LOWER("RATE ONLY")," "))) -> 
A36: IHDR2 | C36: C5.2.2.7 | F36: Drainage blanket layer | G36: m³ | M36: =IF(ISNUMBER(H36),L36*H36,IF(ISNUMBER(J36),J36,IF(J36="RATE ONLY",LOWER("RATE ONLY")," "))) -> 
A38: IHDR1 | B38: C5.2.3 | F38: Side-cut to fill compacted to 93 % of MDD in compacted layer thicknesses of 200 mm and less | G38: m³ | M38: =IF(ISNUMBER(H38),L38*H38,IF(ISNUMBER(J38),J38,IF(J38="RATE ONLY",LOWER("RATE ONLY")," "))) -> 
A40: IHDR1 | B40: C5.2.4 | F40: Correcting rock fills that are deficient in fine material, extra over C5.2.2.4 | G40: m³ | M40: =IF(ISNUMBER(H40),L40*H40,IF(ISNUMBER(J40),J40,IF(J40="RATE ONLY",LOWER("RATE ONLY")," "))) -> 
A42: IHDR1 | B42: C5.2.5 | F42: Fill in sidewalk: | M42: =IF(ISNUMBER(H42),L42*H42,IF(ISNUMBER(J42),J42,IF(J42="RATE ONLY",LOWER("RATE ONLY")," "))) -> 
A44: IHDR2 | C44: C5.2.5.1 | F44: Fill material in sidewalk compacted to 93 % of MDD | G44: m³ | M44: =IF(ISNUMBER(H44),L44*H44,IF(ISNUMBER(J44),J44,IF(J44="RATE ONLY",LOWER("RATE ONLY")," "))) -> 
A46: IHDR2 | C46: C5.2.5.2 | F46: Fill material in sidewalk compacted to 93 % of MDD using labour enhanced methods of construction and light hand equipment. | G46: m³ | M46: =IF(ISNUMBER(H46),L46*H46,IF(ISNUMBER(J46),J46,IF(J46="RATE ONLY",LOWER("RATE ONLY")," "))) -> 
A48: IHDR1 | B48: C5.2.6 | F48: Fill material in shoulder widening: | M48: =IF(ISNUMBER(H48),L48*H48,IF(ISNUMBER(J48),J48,IF(J48="RATE ONLY",LOWER("RATE ONLY")," "))) -> 
A50: IHDR2 | C50: C5.2.6.1 | F50: Fill material in shoulder widening compacted to 93 % of MDD | G50: m³ | M50: =IF(ISNUMBER(H50),L50*H50,IF(ISNUMBER(J50),J50,IF(J50="RATE ONLY",LOWER("RATE ONLY")," "))) -> 
A52: IHDR2 | C52: C5.2.6.2 | F52: Fill material in shoulder widening compacted to 93 % of MDD using labour enhancement and light hand equipment. | G52: m³ | M52: =IF(ISNUMBER(H52),L52*H52,IF(ISNUMBER(J52),J52,IF(J52="RATE ONLY",LOWER("RATE ONLY")," "))) -> 
A54: IHDR1 | B54: C5.2.7 | F54: Construction of a trial section: | M54: =IF(ISNUMBER(H54),L54*H54,IF(ISNUMBER(J54),J54,IF(J54="RATE ONLY",LOWER("RATE ONLY")," "))) -> 
A56: Item | C56: C5.2.7.1 | F56: Normal fill | G56: m³ | L56: 25.00 | M56: =IF(ISNUMBER(H56),L56*H56,IF(ISNUMBER(J56),J56,IF(J56="RATE ONLY",LOWER("RATE ONLY")," "))) -> 
A58: Item | C58: C5.2.7.2 | F58: Sand fill | G58: m³
A59: Item | C59: C5.2.7.3 | F59: Rock fill | G59: m³ | L59: 35.00 | M59: =IF(ISNUMBER(H59),L59*H59,IF(ISNUMBER(J59),J59,IF(J59="RATE ONLY",LOWER("RATE ONLY")," "))) -> 
A61: Item | C61: C5.2.7.4 | F61: Coarse fill | G61: m³ | L61: 30.00 | M61: =IF(ISNUMBER(H61),L61*H61,IF(ISNUMBER(J61),J61,IF(J61="RATE ONLY",LOWER("RATE ONLY")," "))) -> 
A63: Item | C63: C5.2.7.5 | F63: Roller-pass compaction | G63: m³
A64: IHDR1 | B64: C5.2.8 | F64: Breaking down oversize fill material on the road | M64: =IF(ISNUMBER(H64),L64*H64,IF(ISNUMBER(J64),J64,IF(J64="RATE ONLY",LOWER("RATE ONLY")," "))) -> 
A66: Item | C66: C5.2.8.1 | F66: By normal grid rolling as per clause A5.3.7.3(b) (i) to (vii) | G66: m2-pass | L66: 6.00 | M66: =IF(ISNUMBER(H66),L66*H66,IF(ISNUMBER(J66),J66,IF(J66="RATE ONLY",LOWER("RATE ONLY")," "))) -> 
A68: Item | C68: C5.2.8.2 | F68: By tamping roller | G68: m2-pass
A69: Item | C69: C5.2.8.3 | F69: By pad foot vibratory roller | G69: m2-pass
A70: Item | C70: C5.2.8.4 | F70: By vibratory roller | G70: m2-pass
A71: IHDR1 | B71: C5.2.9 | F71: Removal of oversize material | G71: m³ | L71: 10.00 | M71: =IF(ISNUMBER(H71),L71*H71,IF(ISNUMBER(J71),J71,IF(J71="RATE ONLY",LOWER("RATE ONLY")," "))) -> 
A73: IHDR1 | B73: C5.2.10 | F73: Finishing off rock fill slopes: | M73: =IF(ISNUMBER(H73),L73*H73,IF(ISNUMBER(J73),J73,IF(J73="RATE ONLY",LOWER("RATE ONLY")," "))) -> 
A75: IHDR2 | C75: C5.2.10.1 | F75: Finishing off rock fill slopes with soft material | G75: m³ | M75: =IF(ISNUMBER(H75),L75*H75,IF(ISNUMBER(J75),J75,IF(J75="RATE ONLY",LOWER("RATE ONLY")," "))) -> 
A77: IHDR2 | C77: C5.2.10.2 | F77: Finishing off rock fill slopes with soft material using labour enhancement and light, hand equipment. | G77: m³ | M77: =IF(ISNUMBER(H77),L77*H77,IF(ISNUMBER(J77),J77,IF(J77="RATE ONLY",LOWER("RATE ONLY")," "))) -> 
A79: IHDR1 | B79: C5.2.11 | F79: Finishing-off fill slopes, medians and interchange areas: | M79: =IF(ISNUMBER(H79),L79*H79,IF(ISNUMBER(J79),J79,IF(J79="RATE ONLY",LOWER("RATE ONLY")," "))) -> 
A81: Item | C81: C5.2.11.1 | F81: Fill slopes | G81: m² | L81: 5.70 | M81: =IF(ISNUMBER(H81),L81*H81,IF(ISNUMBER(J81),J81,IF(J81="RATE ONLY",LOWER("RATE ONLY")," "))) -> 
A83: Item | C83: C5.2.11.2 | F83: Medians and interchange areas | G83: m² | L83: 3.50 | M83: =IF(ISNUMBER(H83),L83*H83,IF(ISNUMBER(J83),J83,IF(J83="RATE ONLY",LOWER("RATE ONLY")," "))) -> 
A90: #BillEnd#
A91: #BillEnd# | B91: TOTAL CARRIED FORWARD TO SUMMARY | M91: =SUBTOTAL(9,M$7:M84) -> 0
A92: #BillEnd#

Sheet 5.3 (hidden)
A1: #BillSheet#
A2: #BillSheet# | B2: C5.3 | C2: ROAD PAVEMENT LAYERS | J2: SCHEDULE A | K2: =SUBTOTAL(9,M$7:M1108) -> 200,000.00 | M2: =J2 -> SCHEDULE A
A3: #BillSheet#
A4: ColHDR
A5: ColHDR | B5: ITEM | F5: DESCRIPTION | G5: UNIT | H5: QTY | I5: RATE | J5: AMT | L5: RATE | M5: AMOUNT
A6: ColHDR
F7: ROAD PAVEMENT LAYERS
A8: IHDR1 | B8: C5.3.1 | C8: C5.3.1 | F8: Compiling and implementing M&U plans for the construction of all the pavement layers | G8: No. | L8: 40,000.00 | M8: =IF(ISNUMBER(H8),L8*H8,IF(ISNUMBER(J8),J8,IF(J8="RATE ONLY",LOWER("RATE ONLY")," "))) -> 
A10: IHDR1 | B10: C5.3.2 | F10: Construction of pavement layers: | M10: =IF(ISNUMBER(H10),L10*H10,IF(ISNUMBER(J10),J10,IF(J10="RATE ONLY",LOWER("RATE ONLY")," "))) -> 
A12: IHDR2 | C12: PC5.3.2.1 | F12: Construction of layers using conventional construction methods: | M12: =IF(ISNUMBER(H12),L12*H12,IF(ISNUMBER(J12),J12,IF(J12="RATE ONLY",LOWER("RATE ONLY")," "))) -> 
A14: IHDR3 | D14: (a) | F14: Selected subgrade layers, compacted to 93 % of MDD: | M14: =IF(ISNUMBER(H14),L14*H14,IF(ISNUMBER(J14),J14,IF(J14="RATE ONLY",LOWER("RATE ONLY")," "))) -> 
A16: Item | E16: (i) | F16: Lower selected subgrade layer, 150mm thick | G16: m³ | L16: 64.00 | M16: =IF(ISNUMBER(H16),L16*H16,IF(ISNUMBER(J16),J16,IF(J16="RATE ONLY",LOWER("RATE ONLY")," "))) -> 
A18: Item | E18: (ii) | F18: Upper selected subgrade layer, 150mm thick | G18: m³ | L18: 65.00 | M18: =IF(ISNUMBER(H18),L18*H18,IF(ISNUMBER(J18),J18,IF(J18="RATE ONLY",LOWER("RATE ONLY")," "))) -> 
D20: (b) | F20: Lower selected subgrade layer (layer thickness indicated) compacted to 95 % of MDD | G20: m³ | M20: =IF(ISNUMBER(H20),L20*H20,IF(ISNUMBER(J20),J20,IF(J20="RATE ONLY",LOWER("RATE ONLY")," "))) -> 
A21: IHDR3 | D21: (c) | F21: Upper selected subgrade layer, 200mm thick , compacted to 95 % of MDD | G21: m³ | L21: 65.00 | M21: =IF(ISNUMBER(H21),L21*H21,IF(ISNUMBER(J21),J21,IF(J21="RATE ONLY",LOWER("RATE ONLY")," "))) -> 
A23: IHDR3 | D23: (d) | F23: Upper selected subgrade layer (layer thickness indicated) compacted to 97 % of MDD | G23: m³ | M23: =IF(ISNUMBER(H23),L23*H23,IF(ISNUMBER(J23),J23,IF(J23="RATE ONLY",LOWER("RATE ONLY")," "))) -> 
A25: IHDR3 | D25: (e) | F25: Sand layer (layer thickness indicated) compacted to 97 % of MDD | G25: m³ | M25: =IF(ISNUMBER(H25),L25*H25,IF(ISNUMBER(J25),J25,IF(J25="RATE ONLY",LOWER("RATE ONLY")," "))) -> 
A27: IHDR3 | D27: (f) | F27: Sand layer (layer thickness indicated) compacted to 100 % of MDD | G27: m³ | M27: =IF(ISNUMBER(H27),L27*H27,IF(ISNUMBER(J27),J27,IF(J27="RATE ONLY",LOWER("RATE ONLY")," "))) -> 
A29: IHDR3 | D29: (g) | F29: Gravel wearing course layer, 300mm thick, compacted to 95 % of MDD | G29: m³ | L29: 80.00 | M29: =IF(ISNUMBER(H29),L29*H29,IF(ISNUMBER(J29),J29,IF(J29="RATE ONLY",LOWER("RATE ONLY")," "))) -> 
A31: IHDR3 | D31: (h) | F31: Gravel shoulder layer, 150mm thick, compacted to 95 % of MDD | G31: m³ | L31: 80.00 | M31: =IF(ISNUMBER(H31),L31*H31,IF(ISNUMBER(J31),J31,IF(J31="RATE ONLY",LOWER("RATE ONLY")," "))) -> 
A33: IHDR3 | D33: (i) | F33: Lower subbase gravel layer (unstabilised), 200mm, compacted to 95 % of MDD | G33: m³ | L33: 91.00 | M33: =IF(ISNUMBER(H33),L33*H33,IF(ISNUMBER(J33),J33,IF(J33="RATE ONLY",LOWER("RATE ONLY")," "))) -> 
A35: IHDR3 | D35: (j) | F35: Lower subbase gravel layer (chemically stabilised),200mm thick, compacted to 95 % of MDD | G35: m³ | L35: 91.00 | M35: =IF(ISNUMBER(H35),L35*H35,IF(ISNUMBER(J35),J35,IF(J35="RATE ONLY",LOWER("RATE ONLY")," "))) -> 
A37: IHDR3 | D37: (k) | F37: Upper subbase gravel layer (unstabilised), compacted to 97 % of MDD | M37: =IF(ISNUMBER(H37),L37*H37,IF(ISNUMBER(J37),J37,IF(J37="RATE ONLY",LOWER("RATE ONLY")," "))) -> 
A39: Item | E39: (i) | F39: 150 mm thick | G39: m³ | M39: =IF(ISNUMBER(H39),L39*H39,IF(ISNUMBER(J39),J39,IF(J39="RATE ONLY",LOWER("RATE ONLY")," "))) -> 
A40: Item | E40: (ii) | F40: 200 mm thick | G40: m³ | L40: 95.00 | M40: =IF(ISNUMBER(H40),L40*H40,IF(ISNUMBER(J40),J40,IF(J40="RATE ONLY",LOWER("RATE ONLY")," "))) -> 
A42: IHDR3 | D42: (l) | F42: Upper subbase gravel layer (chemically stabilised), compacted to 97 % of MDD | M42: =IF(ISNUMBER(H42),L42*H42,IF(ISNUMBER(J42),J42,IF(J42="RATE ONLY",LOWER("RATE ONLY")," "))) -> 
A44: Item | E44: (i) | F44: 100 mm thick | G44: m³ | L44: 95.00 | M44: =IF(ISNUMBER(H44),L44*H44,IF(ISNUMBER(J44),J44,IF(J44="RATE ONLY",LOWER("RATE ONLY")," "))) -> 
A46: Item | E46: (ii) | F46: 200 mm thick | G46: m³ | L46: 95.00 | M46: =IF(ISNUMBER(H46),L46*H46,IF(ISNUMBER(J46),J46,IF(J46="RATE ONLY",LOWER("RATE ONLY")," "))) -> 
D48: (m) | F48: Gravel base layer (unstabilised), (layer thickness indicated) compacted to 100 % of MDD | G48: m³
A49: IHDR3 | D49: (n) | F49: Gravel base layer (chemically stabilised), (layer thickness indicated) compacted to 97 % of MDD | G49: m³ | M49: =IF(ISNUMBER(H49),L49*H49,IF(ISNUMBER(J49),J49,IF(J49="RATE ONLY",LOWER("RATE ONLY")," "))) -> 
A51: IHDR3 | D51: (o) | F51: G5B crushed rock/boulder subbase layer (layer thickness indicated) compacted to 97 % of MDD | G51: m³ | M51: =IF(ISNUMBER(H51),L51*H51,IF(ISNUMBER(J51),J51,IF(J51="RATE ONLY",LOWER("RATE ONLY")," "))) -> 
A53: IHDR3 | D53: (p) | F53: G5B crushed rock/boulder base layer (layer thickness indicated) compacted to 100 % of MDD | G53: m³ | M53: =IF(ISNUMBER(H53),L53*H53,IF(ISNUMBER(J53),J53,IF(J53="RATE ONLY",LOWER("RATE ONLY")," "))) -> 
A55: IHDR3 | D55: (q) | F55: G5A crushed rock/boulder subbase layer (layer thickness indicated) compacted to 97 % of MDD | G55: m³ | M55: =IF(ISNUMBER(H55),L55*H55,IF(ISNUMBER(J55),J55,IF(J55="RATE ONLY",LOWER("RATE ONLY")," "))) -> 
A57: IHDR3 | D57: (r) | F57: G5A crushed rock/boulder base layer (layer thickness indicated) compacted to 100 % of MDD | G57: m³ | M57: =IF(ISNUMBER(H57),L57*H57,IF(ISNUMBER(J57),J57,IF(J57="RATE ONLY",LOWER("RATE ONLY")," "))) -> 
A59: IHDR3 | D59: (s) | F59: G4A crushed rock/boulder lower subbase layer (unstabilised or chemically stabilised) (layer thickness indicated) compacted to 95 % of MDD | G59: m³ | M59: =IF(ISNUMBER(H59),L59*H59,IF(ISNUMBER(J59),J59,IF(J59="RATE ONLY",LOWER("RATE ONLY")," "))) -> 
A61: IHDR3 | D61: (t) | F61: G4A crushed rock/boulder upper subbase layer (unstabilised or chemically stabilised) (layer thickness indicated) compacted to 97 % of MDD | G61: m³ | M61: =IF(ISNUMBER(H61),L61*H61,IF(ISNUMBER(J61),J61,IF(J61="RATE ONLY",LOWER("RATE ONLY")," "))) -> 
A63: IHDR3 | D63: (u) | F63: G4A crushed rock/boulder subbase layer compacted to 97 % of MDD | G63: m³ | M63: =IF(ISNUMBER(H63),L63*H63,IF(ISNUMBER(J63),J63,IF(J63="RATE ONLY",LOWER("RATE ONLY")," "))) -> 
A65: IHDR3 | D65: (v) | F65: G3 crushed stone subbase layer (unstabilised or chemically stabilised) (layer thickness indicated) compacted to 97 % of MDD | G65: m³ | M65: =IF(ISNUMBER(H65),L65*H65,IF(ISNUMBER(J65),J65,IF(J65="RATE ONLY",LOWER("RATE ONLY")," "))) -> 
A67: IHDR3 | D67: (w) | F67: G3 crushed stone base layer (layer thickness indicated) compacted to 85 % of BD | G67: m³ | M67: =IF(ISNUMBER(H67),L67*H67,IF(ISNUMBER(J67),J67,IF(J67="RATE ONLY",LOWER("RATE ONLY")," "))) -> 
A69: IHDR3 | D69: (x) | F69: G2 crushed stone base layer (layer thickness indicated) compacted to 88 % of RD (category C / D roads) | G69: m³ | M69: =IF(ISNUMBER(H69),L69*H69,IF(ISNUMBER(J69),J69,IF(J69="RATE ONLY",LOWER("RATE ONLY")," "))) -> 
A71: IHDR3 | D71: (y) | F71: G2 crushed stone base layer (layer thickness indicated) compacted to 88 % of AD (category A / B roads) | G71: m³ | M71: =IF(ISNUMBER(H71),L71*H71,IF(ISNUMBER(J71),J71,IF(J71="RATE ONLY",LOWER("RATE ONLY")," "))) -> 
A73: IHDR3 | D73: (z) | F73: G1 crushed stone base layer (layer thickness indicated) compacted to 86 % of AD (category C / D roads) | G73: m³ | M73: =IF(ISNUMBER(H73),L73*H73,IF(ISNUMBER(J73),J73,IF(J73="RATE ONLY",LOWER("RATE ONLY")," "))) -> 
A75: IHDR3 | D75: (aa) | F75: G1 crushed stone base layer, 150mm thick, compacted to 88 % of AD | G75: m³ | L75: 150.00 | M75: =IF(ISNUMBER(H75),L75*H75,IF(ISNUMBER(J75),J75,IF(J75="RATE ONLY",LOWER("RATE ONLY")," "))) -> 
A77: IHDR3 | D77: (bb) | F77: Bound macadam layer (layer thickness indicated) compacted to 90 % of AD | G77: m³ | M77: =IF(ISNUMBER(H77),L77*H77,IF(ISNUMBER(J77),J77,IF(J77="RATE ONLY",LOWER("RATE ONLY")," "))) -> 
A79: IHDR3 | D79: (cc) | F79: PMPL wet lean-mix concrete layer (layer thickness indicated) | G79: m³ | M79: =IF(ISNUMBER(H79),L79*H79,IF(ISNUMBER(J79),J79,IF(J79="RATE ONLY",LOWER("RATE ONLY")," "))) -> 
A81: IHDR2 | C81: C5.3.2.2 | F81: Construction of layers using labour enhancement: | M81: =IF(ISNUMBER(H81),L81*H81,IF(ISNUMBER(J81),J81,IF(J81="RATE ONLY",LOWER("RATE ONLY")," "))) -> 
A83: Item | D83: (a) | F83: Lower selected subgrade layer (layer thickness indicated) compacted to 93 % of MDD | G83: m³ | M83: =IF(ISNUMBER(H83),L83*H83,IF(ISNUMBER(J83),J83,IF(J83="RATE ONLY",LOWER("RATE ONLY")," "))) -> 
A84: Item | D84: (b) | F84: Upper selected subgrade layer (layer thickness indicated) compacted to 95 % of MDD | G84: m³
A85: Item | D85: (c) | F85: Sand layer (layer thickness indicated) compacted to 97 % of MDD | G85: m³
A86: Item | D86: (d) | F86: Sand layer (layer thickness indicated) compacted to 100 % of MDD | G86: m³
A87: Item | D87: (e) | F87: Gravel wearing course layer (layer thickness indicated) compacted to 95 % of MDD | G87: m³
A88: Item | D88: (f) | F88: Gravel shoulder layer (layer thickness indicated) compacted to 95 % of MDD | G88: m³
A89: Item | D89: (g) | F89: Lower gravel subbase layer (layer thickness indicated) compacted to 95 % of MDD | G89: m³
A90: Item | D90: (h) | F90: Upper gravel subbase layer (layer thickness indicated) compacted to 97 % of MDD | G90: m³
A91: Item | D91: (i) | F91: Gravel base layer (layer thickness indicated) compacted to 98 % of MDD | G91: m³
A92: Item | D92: (j) | F92: Gravel base layer (layer thickness indicated) compacted to 100 % of MDD | G92: m³
A93: Item | D93: (k) | F93: Bound macadam layer (layer thickness indicated) compacted to 90 % of AD | G93: m³
A94: IHDR1 | B94: C5.3.3 | F94: Construction of crushed stone base supplied by the Employer | G94: m³ | M94: =IF(ISNUMBER(H94),L94*H94,IF(ISNUMBER(J94),J94,IF(J94="RATE ONLY",LOWER("RATE ONLY")," "))) -> 
A96: IHDR1 | B96: C5.3.4 | F96: Deductions for G1 crushed stone base material supplied by the employer | G96: t | M96: =IF(ISNUMBER(H96),L96*H96,IF(ISNUMBER(J96),J96,IF(J96="RATE ONLY",LOWER("RATE ONLY")," "))) -> 
A98: IHDR1 | B98: C5.3.5 | F98: Breaking down oversize layer material on the road: | M98: =IF(ISNUMBER(H98),L98*H98,IF(ISNUMBER(J98),J98,IF(J98="RATE ONLY",LOWER("RATE ONLY")," "))) -> 
A100: PB
A101: PB | B101: CARRIED FORWARD | M101: =SUBTOTAL(9,M$7:M99) -> 0
A102: PB
A103: PB
A104: PB | B104: BROUGHT FORWARD | M104: =SUBTOTAL(9,M$7:M102) -> 0
A105: PB
A106: Item | C106: C5.3.5.1 | F106: By normal grid rolling as per clause A5.3.7.3b) | G106: m²-pass | L106: 6.00 | M106: =IF(ISNUMBER(H106),L106*H106,IF(ISNUMBER(J106),J106,IF(J106="RATE ONLY",LOWER("RATE ONLY")," "))) -> 
A108: Item | C108: C5.3.5.2 | F108: By tamping roller | G108: m²-pass
A109: Item | C109: C5.3.5.3 | F109: By pad foot vibratory roller | G109: m²-pass
A110: Item | C110: C5.3.5.4 | F110: By vibratory roller | G110: m²-pass
A111: Item | C111: C5.3.5.5 | F111: By any other roller type | G111: m²-pass
A112: IHDR1 | B112: C5.3.6 | F112: Removal of oversize material | G112: m³ | L112: 60.00 | M112: =IF(ISNUMBER(H112),L112*H112,IF(ISNUMBER(J112),J112,IF(J112="RATE ONLY",LOWER("RATE ONLY")," "))) -> 
A114: IHDR1 | B114: C5.3.7 | F114: Recombining recovered material | G114: m³ | M114: =IF(ISNUMBER(H114),L114*H114,IF(ISNUMBER(J114),J114,IF(J114="RATE ONLY",LOWER("RATE ONLY")," "))) -> 
A116: IHDR1 | B116: C5.3.8 | F116: Processing of coarse gravel subbase or base layers | G116: m³ | M116: =IF(ISNUMBER(H116),L116*H116,IF(ISNUMBER(J116),J116,IF(J116="RATE ONLY",LOWER("RATE ONLY")," "))) -> 
A118: IHDR1 | B118: C5.3.9 | F118: Construction of a trial section: | M118: =IF(ISNUMBER(H118),L118*H118,IF(ISNUMBER(J118),J118,IF(J118="RATE ONLY",LOWER("RATE ONLY")," "))) -> 
A120: IHDR2 | C120: C5.3.9.1 | F120: Construction of a trial section using conventional methods of construction: | M120: =IF(ISNUMBER(H120),L120*H120,IF(ISNUMBER(J120),J120,IF(J120="RATE ONLY",LOWER("RATE ONLY")," "))) -> 
A122: Item | D122: (a) | F122: Stabilised gravel layer, 200mm thick, trial section | G122: m³ | L122: 100.00 | M122: =IF(ISNUMBER(H122),L122*H122,IF(ISNUMBER(J122),J122,IF(J122="RATE ONLY",LOWER("RATE ONLY")," "))) -> 
A124: Item | D124: (b) | F124: Crushed stone subbase layer, 150mm thick, trial section | G124: m³
A125: Item | D125: (c) | F125: Crushed stone base layer, 150mm thick, trial section | G125: m³ | L125: 150.00 | M125: =IF(ISNUMBER(H125),L125*H125,IF(ISNUMBER(J125),J125,IF(J125="RATE ONLY",LOWER("RATE ONLY")," "))) -> 
A127: Item | D127: (d) | F127: PMPL layer (layer thickness indicated) trial section | G127: m³
A128: Item | D128: (e) | F128: Bound macadam layer (layer thickness indicated) trial section | G128: m³
A129: Item | D129: (f) | F129: Any other | G129: m³
A130: IHDR2 | C130: C5.3.9.2 | F130: Construction of a trial section using labour enhancement methods: | M130: =IF(ISNUMBER(H130),L130*H130,IF(ISNUMBER(J130),J130,IF(J130="RATE ONLY",LOWER("RATE ONLY")," "))) -> 
A132: Item | D132: (a) | F132: Stabilised gravel layer (layer thickness indicated) trial section | G132: m³ | M132: =IF(ISNUMBER(H132),L132*H132,IF(ISNUMBER(J132),J132,IF(J132="RATE ONLY",LOWER("RATE ONLY")," "))) -> 
A133: Item | D133: (b) | F133: Gravel base layer (layer thickness indicated) trial section | G133: m³
A134: Item | D134: (c) | F134: Bound macadam layer (layer thickness indicated) trial section | G134: m³
A135: Item | D135: (d) | F135: Any other | G135: m³
A136: IHDR1 | B136: C5.3.10 | F136: Removal of a completed trial section: | M136: =IF(ISNUMBER(H136),L136*H136,IF(ISNUMBER(J136),J136,IF(J136="RATE ONLY",LOWER("RATE ONLY")," "))) -> 
A138: Item | C138: C5.3.10.1 | F138: Stabilised layer | G138: m³ | L138: 75.00 | M138: =IF(ISNUMBER(H138),L138*H138,IF(ISNUMBER(J138),J138,IF(J138="RATE ONLY",LOWER("RATE ONLY")," "))) -> 
A140: Item | C140: C5.3.10.2 | F140: PMPL layer | G140: m³
A141: Item | C141: C5.3.10.3 | F141: Crushed stone layer | G141: m³ | L141: 60.00 | M141: =IF(ISNUMBER(H141),L141*H141,IF(ISNUMBER(J141),J141,IF(J141="RATE ONLY",LOWER("RATE ONLY")," "))) -> 
A143: IHDR1 | B143: C5.3.11 | F143: Riding quality measurements: | M143: =IF(ISNUMBER(H143),L143*H143,IF(ISNUMBER(J143),J143,IF(J143="RATE ONLY",LOWER("RATE ONLY")," "))) -> 
A145: Item | C145: C5.3.11.1 | F145: Using a 3,0 m straight edge | G145: km
A146: Item | C146: C5.3.11.2 | F146: Using a rolling straight edge | G146: km
A147: Item | C147: C5.3.11.3 | F147: Using an inertial profilometer | G147: km | L147: 3,000.00 | M147: =IF(ISNUMBER(H147),L147*H147,IF(ISNUMBER(J147),J147,IF(J147="RATE ONLY",LOWER("RATE ONLY")," "))) -> 
A149: IHDR1 | B149: C5.3.12 | F149: Surface regularity payment adjustments | G149: prov sum | I149: 200,000.00 | J149: =+I149 -> 200,000.00 | L149: 200,000.00 | M149: =IF(ISNUMBER(H149),L149*H149,IF(ISNUMBER(J149),J149,IF(J149="RATE ONLY",LOWER("RATE ONLY")," "))) -> 200,000.00
A172: #BillEnd#
A173: #BillEnd# | B173: TOTAL CARRIED FORWARD TO SUMMARY | M173: =SUBTOTAL(9,M$7:M150) -> 200,000.00
A174: #BillEnd#

Sheet 5.4 (hidden)
A1: #BillSheet#
A2: #BillSheet# | B2: C5.4 | C2: STABILISATION | J2: SCHEDULE A | K2: =SUBTOTAL(9,M$7:M1080) -> 0 | M2: =J2 -> SCHEDULE A
A3: #BillSheet#
A4: ColHDR
A5: ColHDR | B5: ITEM | F5: DESCRIPTION | G5: UNIT | H5: QTY | I5: RATE | J5: AMT | L5: RATE | M5: AMOUNT
A6: ColHDR
F7: STABILISATION
A8: IHDR1 | B8: 5.4.1 | F8: Pre-treatment of gravel layers: | M8: =IF(ISNUMBER(H8),L8*H8,IF(ISNUMBER(J8),J8,IF(J8="RATE ONLY",LOWER("RATE ONLY")," "))) -> 
A10: Item | C10: C5.4.1.1 | F10: Pre-treatment of (insert layer thickness) gravel layer | G10: m³ | M10: =IF(ISNUMBER(H10),L10*H10,IF(ISNUMBER(J10),J10,IF(J10="RATE ONLY",LOWER("RATE ONLY")," "))) -> 
A11: Item | C11: C5.4.1.2 | F11: Pre-treatment of (insert layer thickness) gravel layer using labour enhanced methods of construction | G11: m³
A12: IHDR1 | B12: 5.4.2 | F12: Chemical stabilisation: | M12: =IF(ISNUMBER(H12),L12*H12,IF(ISNUMBER(J12),J12,IF(J12="RATE ONLY",LOWER("RATE ONLY")," "))) -> 
A14: IHDR2 | C14: C5.4.2.1 | F14: Chemical stabilisation of pavement layers | M14: =IF(ISNUMBER(H14),L14*H14,IF(ISNUMBER(J14),J14,IF(J14="RATE ONLY",LOWER("RATE ONLY")," "))) -> 
A16: Item | D16: (a) | F16: 100mm thick, | G16: m³ | L16: 13.00 | M16: =IF(ISNUMBER(H16),L16*H16,IF(ISNUMBER(J16),J16,IF(J16="RATE ONLY",LOWER("RATE ONLY")," "))) -> 
A18: Item | D18: (b) | F18: 200mm thick, | G18: m³ | L18: 13.00 | M18: =IF(ISNUMBER(H18),L18*H18,IF(ISNUMBER(J18),J18,IF(J18="RATE ONLY",LOWER("RATE ONLY")," "))) -> 
A20: Item | C20: C5.4.2.2 | F20: Chemical stabilisation (layer thickness indicated) of pavement layers (layer to be stabilised indicated) using labour enhanced methods of construction | G20: m³
A21: IHDR1 | B21: 5.4.3 | F21: Stabilised crushed stone PMPL layer: (pavement layer, type of material and source indicated) | G21: m³ | M21: =IF(ISNUMBER(H21),L21*H21,IF(ISNUMBER(J21),J21,IF(J21="RATE ONLY",LOWER("RATE ONLY")," "))) -> 
A23: IHDR1 | B23: 5.4.4 | F23: Wet lean-mix concrete pavement PMPL layer (indicate specific pavement layer): | G23: m³ | M23: =IF(ISNUMBER(H23),L23*H23,IF(ISNUMBER(J23),J23,IF(J23="RATE ONLY",LOWER("RATE ONLY")," "))) -> 
A25: IHDR1 | B25: 5.4.5 | F25: Cementitious stabilisation agents for pavement layers: | M25: =IF(ISNUMBER(H25),L25*H25,IF(ISNUMBER(J25),J25,IF(J25="RATE ONLY",LOWER("RATE ONLY")," "))) -> 
A27: IHDR2 | C27: C5.4.5.1 | F27: Addition of cementitious stabilisation agents for pavement layers: | M27: =IF(ISNUMBER(H27),L27*H27,IF(ISNUMBER(J27),J27,IF(J27="RATE ONLY",LOWER("RATE ONLY")," "))) -> 
A29: Item | D29: (a) | F29: Cement (for pavement layer) - CEM II 32.5 | G29: t | L29: 5.00 | M29: =IF(ISNUMBER(H29),L29*H29,IF(ISNUMBER(J29),J29,IF(J29="RATE ONLY",LOWER("RATE ONLY")," "))) -> 
A31: Item | D31: (b) | F31: And so forth for other agents (for pavement layers) | G31: t
A32: IHDR2 | C32: C5.4.5.2 | F32: Addition of cementitious stabilisation agents for pavement layers and spreading the agent using bags and labour enhancement methods: | M32: =IF(ISNUMBER(H32),L32*H32,IF(ISNUMBER(J32),J32,IF(J32="RATE ONLY",LOWER("RATE ONLY")," "))) -> 
A34: Item | D34: (a) | F34: Cement (for pavement layer) - CEM II 32.5 | G34: t | L34: 5.00 | M34: =IF(ISNUMBER(H34),L34*H34,IF(ISNUMBER(J34),J34,IF(J34="RATE ONLY",LOWER("RATE ONLY")," "))) -> 
A36: Item | D36: (b) | F36: And so forth for other agents (for pavement layers) | G36: t
A37: IHDR1 | B37: 5.4.6 | F37: Addition of cementitious stabilisation agents (specify agent separately) for a PMPL layer: | M37: =IF(ISNUMBER(H37),L37*H37,IF(ISNUMBER(J37),J37,IF(J37="RATE ONLY",LOWER("RATE ONLY")," "))) -> 
A39: Item | C39: C5.4.6.1 | F39: Cement | G39: t
A40: Item | C40: C5.4.6.2 | F40: And so forth for other agents | G40: t
A41: IHDR1 | B41: 5.4.7 | F41: Bituminous stabilisation (layer thickness indicated) of pavement layers (stabilised layer to be indicated) | G41: m³ | M41: =IF(ISNUMBER(H41),L41*H41,IF(ISNUMBER(J41),J41,IF(J41="RATE ONLY",LOWER("RATE ONLY")," "))) -> 
A43: IHDR1 | B43: 5.4.8 | F43: Bituminous stabilisation agent (specify agents separately): | M43: =IF(ISNUMBER(H43),L43*H43,IF(ISNUMBER(J43),J43,IF(J43="RATE ONLY",LOWER("RATE ONLY")," "))) -> 
A45: Item | C45: C5.4.8.1 | F45: 60 % anionic emulsion | G45: litre
A46: Item | C46: C5.4.8.2 | F46: 60 % cationic emulsion | G46: litre
A47: Item | C47: C5.4.8.3 | F47: Foamed bitumen | G47: litre
A48: Item | C48: C5.4.8.4 | F48: Any other | G48: litre
A49: IHDR1 | B49: 5.4.9 | F49: Cementitious agent for bituminous stabilisation: | M49: =IF(ISNUMBER(H49),L49*H49,IF(ISNUMBER(J49),J49,IF(J49="RATE ONLY",LOWER("RATE ONLY")," "))) -> 
A51: Item | C51: C5.4.9.1 | F51: Cementitious agent for bituminous stabilisation (specify agents separately) | G51: t
A52: Item | C52: C5.4.9.2 | F52: Cementitious agent for bituminous stabilisation spreading the agent or filler using labour enhanced methods of construction (specify agents separately) | G52: t
A53: IHDR1 | B53: 5.4.10 | F53: Provision and application of water for curing | G53: kilolitre | L53: 105.00 | M53: =IF(ISNUMBER(H53),L53*H53,IF(ISNUMBER(J53),J53,IF(J53="RATE ONLY",LOWER("RATE ONLY")," "))) -> 
A55: IHDR1 | B55: 5.4.11 | F55: Curing by covering with the subsequent layer | G55: m² | L55: 10.00 | M55: =IF(ISNUMBER(H55),L55*H55,IF(ISNUMBER(J55),J55,IF(J55="RATE ONLY",LOWER("RATE ONLY")," "))) -> 
A57: IHDR1 | B57: 5.4.12 | F57: Curing with a membrane (type of material to be specified): | M57: =IF(ISNUMBER(H57),L57*H57,IF(ISNUMBER(J57),J57,IF(J57="RATE ONLY",LOWER("RATE ONLY")," "))) -> 
A59: Item | C59: C5.4.12.1 | F59: Cut back bitumen | G59: litre
A60: Item | C60: C5.4.12.2 | F60: Inverted bitumen emulsion | G60: litre
A61: Item | C61: C5.4.12.3 | F61: Spray grade emulsion | G61: litre
A62: Item | C62: C5.4.12.4 | F62: Curing compound for PMPL layers | G62: litre
A63: IHDR1 | B63: 5.4.13 | F63: Trial section for a PMPL layer (specify width) | G63: m² | M63: =IF(ISNUMBER(H63),L63*H63,IF(ISNUMBER(J63),J63,IF(J63="RATE ONLY",LOWER("RATE ONLY")," "))) -> 
A65: IHDR1 | B65: 5.4.14 | F65: Trial section for a chemically stabilised layer | G65: m³ | L65: 20.00 | M65: =IF(ISNUMBER(H65),L65*H65,IF(ISNUMBER(J65),J65,IF(J65="RATE ONLY",LOWER("RATE ONLY")," "))) -> 
A67: IHDR1 | B67: 5.4.15 | F67: Trial section for a bituminously stabilised layer (specify width) | G67: m² | M67: =IF(ISNUMBER(H67),L67*H67,IF(ISNUMBER(J67),J67,IF(J67="RATE ONLY",LOWER("RATE ONLY")," "))) -> 
A69: IHDR1 | B69: 5.4.16 | F69: Mechanical modification | G69: m³ | M69: =IF(ISNUMBER(H69),L69*H69,IF(ISNUMBER(J69),J69,IF(J69="RATE ONLY",LOWER("RATE ONLY")," "))) -> 
A71: IHDR1 | B71: 5.4.17 | F71: Addition of a soil binder | G71: m³ | M71: =IF(ISNUMBER(H71),L71*H71,IF(ISNUMBER(J71),J71,IF(J71="RATE ONLY",LOWER("RATE ONLY")," "))) -> 
A93: #BillEnd#
A94: #BillEnd# | B94: TOTAL CARRIED FORWARD TO SUMMARY | M94: =SUBTOTAL(9,M$7:M72) -> 0
A95: #BillEnd#

Sheet 5.5 (hidden)
A1: #BillSheet#
A2: #BillSheet# | B2: C5.5 | C2: RECONSTRUCTION OF PAVEMENT LAYERS | J2: SCHEDULE A | K2: =SUBTOTAL(9,M$7:M1304) -> 0 | M2: =J2 -> SCHEDULE A
A3: #BillSheet#
A4: ColHDR
A5: ColHDR | B5: ITEM | F5: DESCRIPTION | G5: UNIT | H5: QTY | I5: RATE | J5: AMT | L5: RATE | M5: AMOUNT
A6: ColHDR
F7: RECONSTRUCTION OF PAVEMENT LAYERS
A8: IHDR1 | B8: C5.5.1 | F8: Compiling and implementing M&U plans for the reconstruction of an existing road pavement | G8: No. | L8: 50,000.00 | M8: =IF(ISNUMBER(H8),L8*H8,IF(ISNUMBER(J8),J8,IF(J8="RATE ONLY",LOWER("RATE ONLY")," "))) -> 
A10: IHDR1 | B10: C5.5.2 | F10: Reconstruction preparatory work: | M10: =IF(ISNUMBER(H10),L10*H10,IF(ISNUMBER(J10),J10,IF(J10="RATE ONLY",LOWER("RATE ONLY")," "))) -> 
A12: IHDR2 | C12: C5.5.2.1 | F12: Undivided carriageway: | M12: =IF(ISNUMBER(H12),L12*H12,IF(ISNUMBER(J12),J12,IF(J12="RATE ONLY",LOWER("RATE ONLY")," "))) -> 
A14: Item | D14: (a) | F14: Uniform section from km__________ to km __________ | G14: km | M14: =IF(ISNUMBER(H14),L14*H14,IF(ISNUMBER(J14),J14,IF(J14="RATE ONLY",LOWER("RATE ONLY")," "))) -> 
A15: Item | D15: (b) | F15: Uniform section from km__________ to km __________ | G15: km
A16: Item | D16: (c) | F16: Additional uniform sections | G16: km
A17: IHDR2 | C17: C5.5.2.2 | F17: Divided carriageway: | M17: =IF(ISNUMBER(H17),L17*H17,IF(ISNUMBER(J17),J17,IF(J17="RATE ONLY",LOWER("RATE ONLY")," "))) -> 
A19: Item | D19: (a) | F19: Uniform section from km 89.16 to km 112 | G19: km | L19: 10,000.00 | M19: =IF(ISNUMBER(H19),L19*H19,IF(ISNUMBER(J19),J19,IF(J19="RATE ONLY",LOWER("RATE ONLY")," "))) -> 
A21: Item | D21: (b) | F21: Uniform section from km__________ to km __________ | G21: km
A22: Item | D22: (c) | F22: Additional uniform sections | G22: km
A23: IHDR1 | B23: C5.5.3 | F23: Construction equipment for sampling of in-situ material for mix design procedure | G23: No. | M23: =IF(ISNUMBER(H23),L23*H23,IF(ISNUMBER(J23),J23,IF(J23="RATE ONLY",LOWER("RATE ONLY")," "))) -> 
A25: IHDR1 | B25: C5.5.4 | F25: Sampling of in-situ material for mix design procedure | G25: No. | M25: =IF(ISNUMBER(H25),L25*H25,IF(ISNUMBER(J25),J25,IF(J25="RATE ONLY",LOWER("RATE ONLY")," "))) -> 
A27: IHDR1 | B27: C5.5.5 | F27: Construction of a trial section using a recycler | G27: m³ | L27: 45.00 | M27: =IF(ISNUMBER(H27),L27*H27,IF(ISNUMBER(J27),J27,IF(J27="RATE ONLY",LOWER("RATE ONLY")," "))) -> 
A29: IHDR1 | B29: C5.5.6 | F29: Construction of a trial section using conventional construction equipment | G29: m³ | M29: =IF(ISNUMBER(H29),L29*H29,IF(ISNUMBER(J29),J29,IF(J29="RATE ONLY",LOWER("RATE ONLY")," "))) -> 
A31: IHDR1 | B31: C5.5.7 | F31: Pre-milling existing wearing course material: | M31: =IF(ISNUMBER(H31),L31*H31,IF(ISNUMBER(J31),J31,IF(J31="RATE ONLY",LOWER("RATE ONLY")," "))) -> 
A33: Item | C33: C5.5.7.1 | F33: Pre-milling an asphalt wearing course (depth of pre-milling varies between 10 mm and 40 mm maximum). | G33: m²
A34: Item | C34: C5.5.7.2 | F34: Pre-milling a seal wearing course (depth of pre-milling varies between 10 mm and 25 mm) | G34: m²
A35: IHDR1 | B35: C5.5.8 | F35: Pre-pulverising material in the existing pavement: | M35: =IF(ISNUMBER(H35),L35*H35,IF(ISNUMBER(J35),J35,IF(J35="RATE ONLY",LOWER("RATE ONLY")," "))) -> 
A37: Item | C37: C5.5.8.1 | F37: Asphalt wearing course (specify nominal depth) | G37: m³
A38: Item | C38: C5.5.8.2 | F38: Crushed stone base (specify nominal depth) | G38: m³
A39: Item | C39: C5.5.8.3 | F39: Stabilised crushed stone (specify nominal depth) | G39: m³
A40: Item | C40: C5.5.8.4 | F40: Stabilised gravel layer (specify nominal depth) | G40: m³
A41: IHDR1 | B41: C5.5.9 | F41: Temporarily blading layer material to windrow | G41: m³ | M41: =IF(ISNUMBER(H41),L41*H41,IF(ISNUMBER(J41),J41,IF(J41="RATE ONLY",LOWER("RATE ONLY")," "))) -> 
A43: IHDR1 | B43: C5.5.10 | F43: Roller-pass compaction of an exposed pavement layer: | M43: =IF(ISNUMBER(H43),L43*H43,IF(ISNUMBER(J43),J43,IF(J43="RATE ONLY",LOWER("RATE ONLY")," "))) -> 
A45: Item | C45: C5.5.10.1 | F45: Smooth drum vibratory rollers | G45: m²
A46: Item | C46: C5.5.10.2 | F46: Other vibratory rollers. (specify ____________) | G46: m²
A47: Item | C47: C5.5.10.3 | F47: Pneumatic rollers | G47: m²
A48: Item | C48: C5.5.10.4 | F48: Other rollers. (specify _____________) | G48: m²
A49: IHDR1 | B49: C5.5.11 | F49: Watering the exposed pavement layer | G49: kilolitre | M49: =IF(ISNUMBER(H49),L49*H49,IF(ISNUMBER(J49),J49,IF(J49="RATE ONLY",LOWER("RATE ONLY")," "))) -> 
A51: IHDR1 | B51: C5.5.12 | F51: Removal of surplus material from site | G51: m³ | M51: =IF(ISNUMBER(H51),L51*H51,IF(ISNUMBER(J51),J51,IF(J51="RATE ONLY",LOWER("RATE ONLY")," "))) -> 
A53: IHDR1 | B53: C5.5.13 | F53: Cross mixing of material (specify nominal depth) | G53: m³ | M53: =IF(ISNUMBER(H53),L53*H53,IF(ISNUMBER(J53),J53,IF(J53="RATE ONLY",LOWER("RATE ONLY")," "))) -> 
A55: IHDR1 | B55: C5.5.14 | F55: In-situ reconstruction of a pavement layer using a recycler to construct a stabilised selected layer: | M55: =IF(ISNUMBER(H55),L55*H55,IF(ISNUMBER(J55),J55,IF(J55="RATE ONLY",LOWER("RATE ONLY")," "))) -> 
A57: IHDR2 | C57: C5.5.14.1 | F57: Chemically stabilised selected layer compacted to 95 % of MDD: | M57: =IF(ISNUMBER(H57),L57*H57,IF(ISNUMBER(J57),J57,IF(J57="RATE ONLY",LOWER("RATE ONLY")," "))) ->  | N57: change to gravel selected layer
A59: Item | D59: (a) | F59: Using non-cemented material compacted to _________ mm thick | G59: m³ | M59: =IF(ISNUMBER(H59),L59*H59,IF(ISNUMBER(J59),J59,IF(J59="RATE ONLY",LOWER("RATE ONLY")," "))) -> 
A60: Item | D60: (b) | F60: Using cemented material compacted to _________ mm thick | G60: m³
A61: Item | D61: (c) | F61: Using a combination of non-cemented and cemented material compacted to _________ mm thick | G61: m³
A62: Item | D62: (d) | F62: Using pre-pulverised material (as per item C5.5.8) compacted to __________ mm thick | G62: m³
A63: IHDR2 | C63: C5.5.14.2 | F63: Emulsion stabilised selected layer compacted to 95 % of MDD: | M63: =IF(ISNUMBER(H63),L63*H63,IF(ISNUMBER(J63),J63,IF(J63="RATE ONLY",LOWER("RATE ONLY")," "))) -> 
A65: Item | D65: (a) | F65: Using non-cemented material compacted to _________ mm thick | G65: m³
A66: Item | D66: (b) | F66: Using cemented material compacted to _________ mm thick | G66: m³
A67: Item | D67: (c) | F67: Using a combination of non-cemented and cemented material compacted to _________ mm thick | G67: m³
A68: Item | D68: (d) | F68: Using pre-pulverised material (as per item C5.5.8) compacted to __________ mm thick | G68: m³
A69: IHDR2 | C69: C5.5.14.3 | F69: Foam stabilised selected layer compacted to 95 % of MDD: | M69: =IF(ISNUMBER(H69),L69*H69,IF(ISNUMBER(J69),J69,IF(J69="RATE ONLY",LOWER("RATE ONLY")," "))) -> 
A71: Item | D71: (a) | F71: Using non-cemented material compacted to _________ mm thick | G71: m³
A72: Item | D72: (b) | F72: Using cemented material compacted to _________ mm thick | G72: m³
A73: Item | D73: (c) | F73: Using a combination of non-cemented and cemented material compacted to _________ mm thick | G73: m³
A74: Item | D74: (d) | F74: Using pre-pulverised material (as per item C5.5.8) compacted to __________ mm thick | G74: m³
A75: IHDR1 | B75: C5.5.15 | F75: In-situ reconstruction of a pavement layer using a recycler to construct a stabilised subbase layer: | M75: =IF(ISNUMBER(H75),L75*H75,IF(ISNUMBER(J75),J75,IF(J75="RATE ONLY",LOWER("RATE ONLY")," "))) -> 
A77: IHDR2 | C77: C5.5.15.1 | F77: Chemically stabilised subbase layer compacted to 97 % of MDD: | M77: =IF(ISNUMBER(H77),L77*H77,IF(ISNUMBER(J77),J77,IF(J77="RATE ONLY",LOWER("RATE ONLY")," "))) -> 
A79: IHDR3 | D79: (a) | F79: Using non-cemented material: | M79: =IF(ISNUMBER(H79),L79*H79,IF(ISNUMBER(J79),J79,IF(J79="RATE ONLY",LOWER("RATE ONLY")," "))) -> 
A81: Item | E81: (i) | F81: Compacted to 100mm thick | G81: m³ | L81: 15.00 | M81: =IF(ISNUMBER(H81),L81*H81,IF(ISNUMBER(J81),J81,IF(J81="RATE ONLY",LOWER("RATE ONLY")," "))) -> 
A83: Item | E83: (ii) | F83: Compacted to 200mm thick | G83: m³ | L83: 15.00 | M83: =IF(ISNUMBER(H83),L83*H83,IF(ISNUMBER(J83),J83,IF(J83="RATE ONLY",LOWER("RATE ONLY")," "))) -> 
A85: IHDR3 | D85: (b) | F85: Using cemented material: | M85: =IF(ISNUMBER(H85),L85*H85,IF(ISNUMBER(J85),J85,IF(J85="RATE ONLY",LOWER("RATE ONLY")," "))) -> 
A87: Item | E87: (i) | F87: Compacted to 100mm thick | G87: m³ | L87: 18.00 | M87: =IF(ISNUMBER(H87),L87*H87,IF(ISNUMBER(J87),J87,IF(J87="RATE ONLY",LOWER("RATE ONLY")," "))) -> 
A89: Item | E89: (ii) | F89: Compacted to 200mm thick | G89: m³ | L89: 20.00 | M89: =IF(ISNUMBER(H89),L89*H89,IF(ISNUMBER(J89),J89,IF(J89="RATE ONLY",LOWER("RATE ONLY")," "))) -> 
A91: IHDR3 | D91: (c) | F91: Using a combination of non-cemented and cemented material compacted to _________ mm thick | G91: m³ | M91: =IF(ISNUMBER(H91),L91*H91,IF(ISNUMBER(J91),J91,IF(J91="RATE ONLY",LOWER("RATE ONLY")," "))) -> 
A93: IHDR3 | D93: (d) | F93: Using pre-pulverised material (as per item C5.5.8) compacted to __________ mm thick | G93: m³ | M93: =IF(ISNUMBER(H93),L93*H93,IF(ISNUMBER(J93),J93,IF(J93="RATE ONLY",LOWER("RATE ONLY")," "))) -> 
A95: IHDR2 | C95: C5.5.15.2 | F95: Emulsion stabilised subbase layer compacted to 97 % of MDD: | M95: =IF(ISNUMBER(H95),L95*H95,IF(ISNUMBER(J95),J95,IF(J95="RATE ONLY",LOWER("RATE ONLY")," "))) -> 
A97: Item | D97: (a) | F97: Using non-cemented material compacted to _________ mm thick | G97: m³ | M97: =IF(ISNUMBER(H97),L97*H97,IF(ISNUMBER(J97),J97,IF(J97="RATE ONLY",LOWER("RATE ONLY")," "))) -> 
A98: Item | D98: (b) | F98: Using cemented material compacted to _________ mm thick | G98: m³
A99: Item | D99: (c) | F99: Using a combination of non-cemented and cemented material compacted to _________ mm thick | G99: m³
A100: Item | D100: (d) | F100: Using pre-pulverised material (as per item C5.5.8) compacted to __________ mm thick | G100: m³
A101: IHDR2 | C101: C5.5.15.3 | F101: Foam stabilised subbase layer compacted to 97 % of MDD: | M101: =IF(ISNUMBER(H101),L101*H101,IF(ISNUMBER(J101),J101,IF(J101="RATE ONLY",LOWER("RATE ONLY")," "))) -> 
A103: Item | D103: (a) | F103: Using non-cemented material compacted to _________ mm thick | G103: m³
A104: Item | D104: (b) | F104: Using cemented material compacted to _________ mm thick | G104: m³
A105: Item | D105: (c) | F105: Using a combination of non-cemented and cemented material compacted to _________ mm thick | G105: m³
A106: Item | D106: (d) | F106: Using pre-pulverised material (as per item C5.5.8) compacted to __________ mm thick | G106: m³
A107: IHDR2 | C107: PC5.5.15.4 | F107: Chemically stabilised subbase layer compacted to 95 % of MDD: | M107: =IF(ISNUMBER(H107),L107*H107,IF(ISNUMBER(J107),J107,IF(J107="RATE ONLY",LOWER("RATE ONLY")," "))) -> 
A109: Item | D109: (a) | F109: Using non-cemented material compacted to 200mm thick | G109: m³ | L109: 20.00 | M109: =IF(ISNUMBER(H109),L109*H109,IF(ISNUMBER(J109),J109,IF(J109="RATE ONLY",LOWER("RATE ONLY")," "))) -> 
A111: Item | D111: (b) | F111: Using cemented material compacted to 200 mm thick | G111: m³ | L111: 20.00 | M111: =IF(ISNUMBER(H111),L111*H111,IF(ISNUMBER(J111),J111,IF(J111="RATE ONLY",LOWER("RATE ONLY")," "))) -> 
A113: IHDR1 | B113: C5.5.16 | F113: In-situ reconstruction of a pavement layer using a recycler to construct a stabilised base layer: | M113: =IF(ISNUMBER(H113),L113*H113,IF(ISNUMBER(J113),J113,IF(J113="RATE ONLY",LOWER("RATE ONLY")," "))) -> 
A115: IHDR2 | C115: C5.5.16.1 | F115: Chemically stabilised base layer compacted to 100 % of MDD: | M115: =IF(ISNUMBER(H115),L115*H115,IF(ISNUMBER(J115),J115,IF(J115="RATE ONLY",LOWER("RATE ONLY")," "))) -> 
A117: Item | D117: (a) | F117: Using non-cemented material compacted to _________ mm thick | G117: m³ | M117: =IF(ISNUMBER(H117),L117*H117,IF(ISNUMBER(J117),J117,IF(J117="RATE ONLY",LOWER("RATE ONLY")," "))) -> 
A118: Item | D118: (b) | F118: Using cemented material compacted to _________ mm thick | G118: m³
A119: Item | D119: (c) | F119: Using a combination of non-cemented and cemented material compacted to _________ mm thick | G119: m³
A120: Item | D120: (d) | F120: Using pre-pulverised material (as per item C5.5.8) compacted to __________ mm thick | G120: m³
A121: IHDR2 | C121: C5.5.16.2 | F121: Emulsion stabilised subbase layer compacted to 102 % of MDD: | M121: =IF(ISNUMBER(H121),L121*H121,IF(ISNUMBER(J121),J121,IF(J121="RATE ONLY",LOWER("RATE ONLY")," "))) -> 
A123: Item | D123: (a) | F123: Using non-cemented material compacted to _________ mm thick | G123: m³
A124: Item | D124: (b) | F124: Using cemented material compacted to _________ mm thick | G124: m³
A125: Item | D125: (c) | F125: Using a combination of non-cemented and cemented material compacted to _________ mm thick | G125: m³
A126: Item | D126: (d) | F126: Using pre-pulverised material (as per item C5.5.8) compacted to __________ mm thick | G126: m³
A127: IHDR2 | C127: C5.5.16.3 | F127: Foam stabilised subbase layer compacted to 102 % of MDD: | M127: =IF(ISNUMBER(H127),L127*H127,IF(ISNUMBER(J127),J127,IF(J127="RATE ONLY",LOWER("RATE ONLY")," "))) -> 
A129: Item | D129: (a) | F129: Using non-cemented material compacted to _________ mm thick | G129: m³
A130: Item | D130: (b) | F130: Using cemented material compacted to _________ mm thick | G130: m³
A131: Item | D131: (c) | F131: Using a combination of non-cemented and cemented material compacted to _________ mm thick | G131: m³
A132: Item | D132: (d) | F132: Using pre-pulverised material (as per item C5.5.8) compacted to __________ mm thick | G132: m³
A133: IHDR1 | B133: C5.5.17 | F133: In-situ reconstruction of a pavement layer using conventional construction equipment to construct a stabilised selected layer: | M133: =IF(ISNUMBER(H133),L133*H133,IF(ISNUMBER(J133),J133,IF(J133="RATE ONLY",LOWER("RATE ONLY")," "))) -> 
A135: IHDR2 | C135: C5.5.17.1 | F135: Chemically stabilised selected layer compacted to 95 % of MDD: | M135: =IF(ISNUMBER(H135),L135*H135,IF(ISNUMBER(J135),J135,IF(J135="RATE ONLY",LOWER("RATE ONLY")," "))) -> 
A137: Item | D137: (a) | F137: Using non-cemented material compacted to _________ mm thick | G137: m³
A138: Item | D138: (b) | F138: Using cemented material compacted to _________ mm thick | G138: m³
A139: Item | D139: (c) | F139: Using a combination of non-cemented and cemented material compacted to _________ mm thick | G139: m³
A140: Item | D140: (d) | F140: Using pre-pulverised material (as per item C5.5.8) compacted to __________ mm thick | G140: m³
A141: IHDR2 | C141: C5.5.17.2 | F141: Emulsion stabilised selected layer compacted to 95 % of MDD: | M141: =IF(ISNUMBER(H141),L141*H141,IF(ISNUMBER(J141),J141,IF(J141="RATE ONLY",LOWER("RATE ONLY")," "))) -> 
A143: Item | D143: (a) | F143: Using non-cemented material compacted to _________ mm thick | G143: m³
A144: Item | D144: (b) | F144: Using cemented material compacted to _________ mm thick | G144: m³
A145: Item | D145: (c) | F145: Using a combination of non-cemented and cemented material compacted to _________ mm thick | G145: m³
A146: Item | D146: (d) | F146: Using pre-pulverised material (as per item C5.5.8) compacted to __________ mm thick | G146: m³
A147: IHDR2 | C147: C5.5.17.3 | F147: Foam stabilised selected layer compacted to 95 % of MDD: | M147: =IF(ISNUMBER(H147),L147*H147,IF(ISNUMBER(J147),J147,IF(J147="RATE ONLY",LOWER("RATE ONLY")," "))) -> 
A149: Item | D149: (a) | F149: Using non-cemented material compacted to _________ mm thick | G149: m³
A150: Item | D150: (b) | F150: Using cemented material compacted to _________ mm thick | G150: m³
A151: Item | D151: (c) | F151: Using a combination of non-cemented and cemented material compacted to _________ mm thick | G151: m³
A152: Item | D152: (d) | F152: Using pre-pulverised material (as per item C5.5.8) compacted to __________ mm thick | G152: m³
A153: IHDR1 | B153: C5.5.18 | F153: In-situ reconstruction of a pavement layer using conventional construction equipment to construct a stabilised subbase layer: | M153: =IF(ISNUMBER(H153),L153*H153,IF(ISNUMBER(J153),J153,IF(J153="RATE ONLY",LOWER("RATE ONLY")," "))) -> 
A155: IHDR2 | C155: C5.5.18.1 | F155: Chemically stabilised subbase layer compacted to 97 % of MDD: | M155: =IF(ISNUMBER(H155),L155*H155,IF(ISNUMBER(J155),J155,IF(J155="RATE ONLY",LOWER("RATE ONLY")," "))) -> 
A157: Item | D157: (a) | F157: Using non-cemented material compacted to _________ mm thick | G157: m³ | M157: =IF(ISNUMBER(H157),L157*H157,IF(ISNUMBER(J157),J157,IF(J157="RATE ONLY",LOWER("RATE ONLY")," "))) -> 
A158: Item | D158: (b) | F158: Using cemented material compacted to _________ mm thick | G158: m³
A159: Item | D159: (c) | F159: Using a combination of non-cemented and cemented material compacted to _________ mm thick | G159: m³
A160: Item | D160: (d) | F160: Using pre-pulverised material (as per item C5.5.8) compacted to __________ mm thick | G160: m³
A161: IHDR2 | C161: C5.5.18.2 | F161: Emulsion stabilised subbase layer compacted to 97 % of MDD: | M161: =IF(ISNUMBER(H161),L161*H161,IF(ISNUMBER(J161),J161,IF(J161="RATE ONLY",LOWER("RATE ONLY")," "))) -> 
A163: Item | D163: (a) | F163: Using non-cemented material compacted to _________ mm thick | G163: m³
A164: Item | D164: (b) | F164: Using cemented material compacted to _________ mm thick | G164: m³
A165: Item | D165: (c) | F165: Using a combination of non-cemented and cemented material compacted to _________ mm thick | G165: m³
A166: Item | D166: (d) | F166: Using pre-pulverised material (as per item C5.5.8) compacted to __________ mm thick | G166: m³
A167: IHDR2 | C167: C5.5.18.3 | F167: Foam stabilised subbase layer compacted to 97 % of MDD: | M167: =IF(ISNUMBER(H167),L167*H167,IF(ISNUMBER(J167),J167,IF(J167="RATE ONLY",LOWER("RATE ONLY")," "))) -> 
A169: Item | D169: (a) | F169: Using non-cemented material compacted to _________ mm thick | G169: m³
A170: Item | D170: (b) | F170: Using cemented material compacted to _________ mm thick | G170: m³
A171: Item | D171: (c) | F171: Using a combination of non-cemented and cemented material compacted to _________ mm thick | G171: m³
A172: Item | D172: (d) | F172: Using pre-pulverised material (as per item C5.5.8) compacted to __________ mm thick | G172: m³
A173: IHDR1 | B173: C5.5.19 | F173: In-situ reconstruction of a pavement layer using conventional construction equipment to construct a stabilised base layer: | M173: =IF(ISNUMBER(H173),L173*H173,IF(ISNUMBER(J173),J173,IF(J173="RATE ONLY",LOWER("RATE ONLY")," "))) -> 
A175: IHDR2 | C175: C5.5.19.1 | F175: Chemically stabilised base layer compacted to 98 % of MDD: | M175: =IF(ISNUMBER(H175),L175*H175,IF(ISNUMBER(J175),J175,IF(J175="RATE ONLY",LOWER("RATE ONLY")," "))) -> 
A177: Item | D177: (a) | F177: Using non-cemented material compacted to _________ mm thick | G177: m³
A178: Item | D178: (b) | F178: Using cemented material compacted to _________ mm thick | G178: m³
A179: Item | D179: (c) | F179: Using a combination of non-cemented and cemented material compacted to _________ mm thick | G179: m³
A180: Item | D180: (d) | F180: Using pre-pulverised material (as per item C5.5.8) compacted to __________ mm thick | G180: m³
A181: IHDR2 | C181: C5.5.19.2 | F181: Emulsion stabilised base layer compacted to 102 % of MDD: | M181: =IF(ISNUMBER(H181),L181*H181,IF(ISNUMBER(J181),J181,IF(J181="RATE ONLY",LOWER("RATE ONLY")," "))) -> 
A183: Item | D183: (a) | F183: Using non-cemented material compacted to _________ mm thick | G183: m³
A184: Item | D184: (b) | F184: Using cemented material compacted to _________ mm thick | G184: m³
A185: Item | D185: (c) | F185: Using a combination of non-cemented and cemented material compacted to _________ mm thick | G185: m³
A186: Item | D186: (d) | F186: Using pre-pulverised material (as per item C5.5.8) compacted to __________ mm thick | G186: m³
A187: IHDR2 | C187: C5.5.19.3 | F187: Foam stabilised base layer compacted to 102 % of MDD: | M187: =IF(ISNUMBER(H187),L187*H187,IF(ISNUMBER(J187),J187,IF(J187="RATE ONLY",LOWER("RATE ONLY")," "))) -> 
A189: Item | D189: (a) | F189: Using non-cemented material compacted to _________ mm thick | G189: m³
A190: Item | D190: (b) | F190: Using cemented material compacted to _________ mm thick | G190: m³
A191: Item | D191: (c) | F191: Using a combination of non-cemented and cemented material compacted to _________ mm thick | G191: m³
A192: Item | D192: (d) | F192: Using pre-pulverised material (as per item C5.5.8) compacted to __________ mm thick | G192: m³
A193: IHDR1 | B193: C5.5.20 | F193: Material shortfall or make-up material: | M193: =IF(ISNUMBER(H193),L193*H193,IF(ISNUMBER(J193),J193,IF(J193="RATE ONLY",LOWER("RATE ONLY")," "))) -> 
A195: Item | C195: C5.5.20.1 | F195: For selected layer | G195: m³ | L195: 65.00 | M195: =IF(ISNUMBER(H195),L195*H195,IF(ISNUMBER(J195),J195,IF(J195="RATE ONLY",LOWER("RATE ONLY")," "))) -> 
A197: Item | C197: C5.5.20.2 | F197: For subbase layer | G197: m³ | L197: 91.00 | M197: =IF(ISNUMBER(H197),L197*H197,IF(ISNUMBER(J197),J197,IF(J197="RATE ONLY",LOWER("RATE ONLY")," "))) -> 
A199: Item | C199: C5.5.20.3 | F199: For base layer | G199: m³ | M199: =IF(ISNUMBER(H199),L199*H199,IF(ISNUMBER(J199),J199,IF(J199="RATE ONLY",LOWER("RATE ONLY")," "))) -> 
A200: IHDR1 | B200: C5.5.21 | F200: Finishing the stabilised layer: | M200: =IF(ISNUMBER(H200),L200*H200,IF(ISNUMBER(J200),J200,IF(J200="RATE ONLY",LOWER("RATE ONLY")," "))) -> 
A202: IHDR2 | C202: C5.5.21.1 | F202: Slush trial section with: | M202: =IF(ISNUMBER(H202),L202*H202,IF(ISNUMBER(J202),J202,IF(J202="RATE ONLY",LOWER("RATE ONLY")," "))) -> 
A204: Item | D204: (a) | F204: Water | G204: m²
A205: Item | D205: (b) | F205: Diluted emulsion | G205: m²
A206: IHDR2 | C206: C5.5.21.2 | F206: Slush reconstructed section with: | M206: =IF(ISNUMBER(H206),L206*H206,IF(ISNUMBER(J206),J206,IF(J206="RATE ONLY",LOWER("RATE ONLY")," "))) -> 
A208: Item | D208: (a) | F208: Water | G208: m²
A209: Item | D209: (b) | F209: Diluted emulsion | G209: m²
A210: IHDR2 | C210: C5.5.21.3 | F210: Application of a diluted emulsion spray | G210: litre | M210: =IF(ISNUMBER(H210),L210*H210,IF(ISNUMBER(J210),J210,IF(J210="RATE ONLY",LOWER("RATE ONLY")," "))) -> 
A212: IHDR1 | B212: C5.5.22 | F212: Excavate pavement layers for patching in existing pavements: | M212: =IF(ISNUMBER(H212),L212*H212,IF(ISNUMBER(J212),J212,IF(J212="RATE ONLY",LOWER("RATE ONLY")," "))) -> 
A214: IHDR2 | C214: C5.5.22.1 | F214: Excavate the following layers: | M214: =IF(ISNUMBER(H214),L214*H214,IF(ISNUMBER(J214),J214,IF(J214="RATE ONLY",LOWER("RATE ONLY")," "))) -> 
A216: IHDR3 | D216: (a) | F216: Asphalt layers with a surface area: | M216: =IF(ISNUMBER(H216),L216*H216,IF(ISNUMBER(J216),J216,IF(J216="RATE ONLY",LOWER("RATE ONLY")," "))) -> 
A218: Item1 | E218: (i) | F218: Not exceeding 20 m², including for edge repairs wider than 250 mm | G218: m³
A219: Item1 | E219: (ii) | F219: Exceeding 20 m² but not exceeding 50 m², including for edge repairs wider than 250 mm | G219: m³
A220: Item1 | E220: (iii) | F220: Exceeding 50 m² but not exceeding 100 m², including for edge repairs wider than 250 mm | G220: m³
A221: IHDR3 | D221: (b) | F221: Cemented layers with a surface area: | M221: =IF(ISNUMBER(H221),L221*H221,IF(ISNUMBER(J221),J221,IF(J221="RATE ONLY",LOWER("RATE ONLY")," "))) -> 
A223: Item1 | E223: (i) | F223: Not exceeding 20 m², including for edge repairs wider than 250 mm | G223: m³
A224: Item1 | E224: (ii) | F224: Exceeding 20 m² but not exceeding 50 m², including for edge repairs wider than 250 mm | G224: m³
A225: Item1 | E225: (iii) | F225: Exceeding 50 m² but not exceeding 100 m², including for edge repairs wider than 250 mm | G225: m³
A226: IHDR3 | D226: (c) | F226: Any other layers (specify layer) with a surface area: | M226: =IF(ISNUMBER(H226),L226*H226,IF(ISNUMBER(J226),J226,IF(J226="RATE ONLY",LOWER("RATE ONLY")," "))) -> 
A228: Item1 | E228: (i) | F228: Not exceeding 20 m², including for edge repairs wider than 250 mm | G228: m³
A229: Item1 | E229: (ii) | F229: Exceeding 20 m² but not exceeding 50 m², including for edge repairs wider than 250 mm | G229: m³
A230: Item1 | E230: (iii) | F230: Exceeding 50 m² but not exceeding 100 m², including for edge repairs wider than 250 mm | G230: m³
A231: IHDR2 | C231: C5.5.22.2 | F231: Excavate the following layers using labour enhanced methods of construction: | M231: =IF(ISNUMBER(H231),L231*H231,IF(ISNUMBER(J231),J231,IF(J231="RATE ONLY",LOWER("RATE ONLY")," "))) -> 
A233: IHDR3 | D233: (a) | F233: Asphalt layers with a surface area: | M233: =IF(ISNUMBER(H233),L233*H233,IF(ISNUMBER(J233),J233,IF(J233="RATE ONLY",LOWER("RATE ONLY")," "))) -> 
A235: Item1 | E235: (i) | F235: Not exceeding 20 m², including for edge repairs wider than 250 mm | G235: m³
A236: Item1 | E236: (ii) | F236: Exceeding 20 m² but not exceeding 50 m², including for edge repairs wider than 250 mm | G236: m³
A237: Item1 | E237: (iii) | F237: Exceeding 50 m² but not exceeding 100 m², including for edge repairs wider than 250 mm | G237: m³
A238: IHDR3 | D238: (b) | F238: Cemented layers with a surface area: | M238: =IF(ISNUMBER(H238),L238*H238,IF(ISNUMBER(J238),J238,IF(J238="RATE ONLY",LOWER("RATE ONLY")," "))) -> 
A240: Item1 | E240: (i) | F240: Not exceeding 20 m², including for edge repairs wider than 250 mm | G240: m³ | M240: =IF(ISNUMBER(H240),L240*H240,IF(ISNUMBER(J240),J240,IF(J240="RATE ONLY",LOWER("RATE ONLY")," "))) -> 
A241: Item1 | E241: (ii) | F241: Exceeding 20 m² but not exceeding 50 m², including for edge repairs wider than 250 mm | G241: m³
A242: Item1 | E242: (iii) | F242: Exceeding 50 m² but not exceeding 100 m², including for edge repairs wider than 250 mm | G242: m³
A243: IHDR3 | D243: (c) | F243: Any other layers (specify layer) with a surface area: | M243: =IF(ISNUMBER(H243),L243*H243,IF(ISNUMBER(J243),J243,IF(J243="RATE ONLY",LOWER("RATE ONLY")," "))) -> 
A245: Item1 | E245: (i) | F245: Not exceeding 20 m², including for edge repairs wider than 250 mm | G245: m³
A246: Item1 | E246: (ii) | F246: Exceeding 20 m² but not exceeding 50 m², including for edge repairs wider than 250 mm | G246: m³
A247: Item1 | E247: (iii) | F247: Exceeding 50 m² but not exceeding 100 m², including for edge repairs wider than 250 mm | G247: m³
A248: IHDR1 | B248: C5.5.23 | F248: Edge break cutting back when narrower than 250 mm: | M248: =IF(ISNUMBER(H248),L248*H248,IF(ISNUMBER(J248),J248,IF(J248="RATE ONLY",LOWER("RATE ONLY")," "))) -> 
A250: Item | C250: C5.5.23.1 | F250: Edge break cutting back when narrower than 250 mm | G250: m
A251: Item | C251: C5.5.23.2 | F251: Edge break cutting back when narrower than 250 mm using labour enhanced methods of construction | G251: m
A252: IHDR1 | B252: C5.5.24 | F252: Edge break patching when narrower than 250 mm: | M252: =IF(ISNUMBER(H252),L252*H252,IF(ISNUMBER(J252),J252,IF(J252="RATE ONLY",LOWER("RATE ONLY")," "))) -> 
A254: Item | C254: C5.5.24.1 | F254: Edge break patching using emulsion treated base (ETB) material to a maximum depth of 150 mm | G254: m
A255: Item | C255: C5.5.24.2 | F255: Edge break patching using labour enhanced methods of construction and (ETB) to a maximum depth of 150 mm | G255: m
A256: IHDR1 | B256: C5.5.25 | F256: Compacting the floor of the excavation for patching | G256: m² | M256: =IF(ISNUMBER(H256),L256*H256,IF(ISNUMBER(J256),J256,IF(J256="RATE ONLY",LOWER("RATE ONLY")," "))) -> 
A258: IHDR1 | B258: C5.5.26 | F258: Backfill patching excavations in existing pavements: | M258: =IF(ISNUMBER(H258),L258*H258,IF(ISNUMBER(J258),J258,IF(J258="RATE ONLY",LOWER("RATE ONLY")," "))) -> 
A260: IHDR2 | C260: C5.5.26.1 | F260: Backfill with the following pavement layer material: | M260: =IF(ISNUMBER(H260),L260*H260,IF(ISNUMBER(J260),J260,IF(J260="RATE ONLY",LOWER("RATE ONLY")," "))) -> 
A262: IHDR3 | D262: (a) | F262: Chemically stabilised pavement layer material (specify the pavement layer, the material source being from commercial or from stockpile, the % stabilising agent and the % of MDD) for a patch with a surface area: | M262: =IF(ISNUMBER(H262),L262*H262,IF(ISNUMBER(J262),J262,IF(J262="RATE ONLY",LOWER("RATE ONLY")," "))) -> 
A264: Item1 | E264: (i) | F264: Not exceeding 20 m², including for edge repairs wider than 250 mm | G264: m³
A265: Item1 | E265: (ii) | F265: Exceeding 20 m² but not exceeding 50 m², including for edge repairs wider than 250 mm | G265: m³
A266: Item1 | E266: (iii) | F266: Exceeding 50 m² but not exceeding 100 m², including for edge repairs wider than 250 mm | G266: m³
A267: IHDR3 | D267: (b) | F267: Emulsion treated base, or ETB pavement material (specify the pavement layer, the material source being from commercial or from stockpile, the components as per Clause A4.1.5.14, and the % of MDD) for a patch with a surface area: | M267: =IF(ISNUMBER(H267),L267*H267,IF(ISNUMBER(J267),J267,IF(J267="RATE ONLY",LOWER("RATE ONLY")," "))) -> 
A269: Item1 | E269: (i) | F269: Not exceeding 20 m², including for edge repairs wider than 250 mm | G269: m³
A270: Item1 | E270: (ii) | F270: Exceeding 20 m² but not exceeding 50 m², including for edge repairs wider than 250 mm | G270: m³
A271: Item1 | E271: (iii) | F271: Exceeding 50 m² but not exceeding 100 m², including for edge repairs wider than 250 mm | G271: m³
A272: IHDR2 | C272: C5.5.26.2 | F272: Backfill with the following pavement layer material using labour enhanced methods of construction: | M272: =IF(ISNUMBER(H272),L272*H272,IF(ISNUMBER(J272),J272,IF(J272="RATE ONLY",LOWER("RATE ONLY")," "))) -> 
A274: IHDR3 | D274: (a) | F274: Chemically stabilised pavement material (specify the pavement layer, the material source being from commercial or from stockpile, the % stabilising agent and the % of MDD) for a patch with a surface area: | M274: =IF(ISNUMBER(H274),L274*H274,IF(ISNUMBER(J274),J274,IF(J274="RATE ONLY",LOWER("RATE ONLY")," "))) -> 
A276: Item1 | E276: (i) | F276: Not exceeding 20 m², including for edge repairs wider than 250 mm | G276: m³
... 29 more rows

Sheet 6.1 (hidden)
A1: #BillSheet#
A2: #BillSheet# | B2: C6.1 | C2: PAVER LAID CONCRETE LAYERS | J2: SCHEDULE A | K2: =SUBTOTAL(9,M$7:M901) -> 0 | M2: =J2 -> SCHEDULE A
A3: #BillSheet#
A4: ColHDR
A5: ColHDR | B5: ITEM | F5: DESCRIPTION | G5: UNIT | H5: QTY | I5: RATE | J5: AMT | L5: RATE | M5: AMOUNT
A6: ColHDR
F7: PAVER LAID CONCRETE LAYERS
A8: IHDR1 | B8: C6.1.1 | F8: Construction of trial section (Complete: including texturing and curing): | M8: =IF(ISNUMBER(H8),L8*H8,IF(ISNUMBER(J8),J8,IF(J8="RATE ONLY",LOWER("RATE ONLY")," "))) -> 
A9: Item | C9: C6.1.1.1 | F9: Mechanical construction (state pavement type and nominal thickness) | G9: m²
A10: Item | C10: C6.1.1.2 | F10: Labour enhanced construction (state pavement type and nominal thickness) | G10: m²
A11: IHDR1 | B11: C6.1.2 | F11: Construction of jointed concrete pavement (JCP) (Excluding texturing and curing):
A12: IHDR2 | C12: C6.1.2.1 | F12: JCP without dowels:
A13: Item | D13: (a) | F13: Paver laid construction (state nominal thickness) | G13: m²
A14: Item | D14: (b) | F14: Labour enhanced construction (state nominal thickness) | G14: m²
A15: IHDR2 | C15: C6.1.2.2 | F15: JCP with dowels:
A16: Item | D16: (a) | F16: Paver laid construction (state nominal thickness) | G16: m²
A17: Item | D17: (b) | F17: Labour enhanced construction (state nominal thickness) | G17: m²
A18: IHDR2 | C18: C6.1.2.3 | F18: Additional concrete placed to thicken up the slab at joints as specified in the Contract Documentation | G18: m³
A19: IHDR1 | B19: C6.1.3 | F19: Construction of continuously reinforced concrete pavement (Excluding texturing and curing):
A20: IHDR2 | C20: C6.1.3.1 | F20: Continuously reinforced concrete pavement (CRCP):
A21: Item | D21: (a) | F21: Paver laid construction (state nominal thickness) | G21: m²
A22: Item | D22: (b) | F22: Labour enhanced construction (state nominal thickness) | G22: m²
A23: IHDR1 | B23: C6.1.4 | F23: Texturing and curing the concrete pavement:
A24: IHDR2 | C24: C6.1.4.1 | F24: Burlap-dragged and grooved texture:
A25: Item | D25: (a) | F25: Paver constructed | G25: m²
A26: Item | D26: (b) | F26: Labour enhanced construction | G26: m²
A27: IHDR2 | C27: C6.1.4.2 | F27: Burlap-dragged and broom finish only | G27: m²
A28: IHDR2 | C28: C6.1.4.3 | F28: Curing:
A29: Item | D29: (a) | F29: Paver constructed | G29: m²
A30: Item | D30: (b) | F30: Labour enhanced construction | G30: m²
A31: IHDR1 | B31: C6.1.5 | F31: Variation in the rate of application of the curing compound | G31: litre
A32: IHDR1 | B32: C6.1.6 | F32: Joints:
A33: IHDR2 | C33: C6.1.6.1 | F33: Expansion joints complete (excluding dowels) | G33: m
A34: IHDR2 | C34: C6.1.6.2 | F34: Longitudinal hinge joints:
A35: Item | D35: (a) | F35: Sealed hinge joints (indicate type and reference to drawings) | G35: m
A36: Item | D36: (b) | F36: Unsealed hinge joints (indicate type and reference to drawings) | G36: m
A37: IHDR2 | C37: C6.1.6.3 | F37: Sealed transverse contraction joints sawn in two separate operations (widths as shown on the drawings) | G37: m
A38: IHDR2 | C38: C6.1.6.4 | F38: Dowel bars: mild steel inserted in new concrete (indicate diameter, length and position on drawings):
A39: Item | D39: (a) | F39: Inserted by mechanical dowel bar inserter | G39: No.
A40: Item | D40: (b) | F40: Pre-installed on approved frame | G40: No.
A41: IHDR2 | C41: C6.1.6.5 | F41: Tie-bars: installed in new concrete (indicate, diameter and length):
A42: Item | D42: (a) | F42: Mild steel | G42: No.
A43: Item | D43: (b) | F43: High tensile steel | G43: No.
A44: IHDR2 | C44: C6.1.6.6 | F44: Forming and sealing joints between asphalt and concrete pavements | G44: m
A45: IHDR1 | B45: C6.1.7 | F45: Steel reinforcement in concrete pavements:
A46: Item | C46: C6.1.7.1 | F46: Mild steel bars | G46: t
A47: Item | C47: C6.1.7.2 | F47: High tensile steel bars | G47: t
A48: Item | C48: C6.1.7.3 | F48: Welded steel fabric | G48: kg
A49: IHDR1 | B49: C6.1.8 | F49: Drilling of testing of cores:
A50: Item | C50: C6.1.8.1 | F50: 100 mm cores drilled from pavement for testing of compressive strength | G50: No.
A51: Item | C51: C6.1.8.2 | F51: 150 mm cores drilled from pavement for testing of compressive strength | G51: No.
A52: #BillEnd#
A53: #BillEnd# | B53: TOTAL CARRIED FORWARD TO SUMMARY | M53: =SUBTOTAL(9,M$9:M51) -> 0
A54: #BillEnd#

Sheet 6.2
A1: #BillSheet#
A2: #BillSheet# | B2: C6.2 | C2: SEGMENTAL BLOCK PAVING LAYERS | J2: SCHEDULE A
A3: #BillSheet#
A4: ColHDR
A5: ColHDR | B5: ITEM | F5: DESCRIPTION | G5: UNIT | H5: QTY | I5: RATE | J5: AMT
A6: ColHDR
F7: SEGMENTAL BLOCK PAVING LAYERS
A8: IHDR1 | B8: C6.2.1 | F8: Segmental block paving:
A10: IHDR2 | C10: C6.2.1.1 | F10: Concrete block paving:
A12: item | D12: (a) | F12: 80 mm thick, class 30, Type S-A (placed in herringbone pattern) | G12: m² | H12: 400 | J12: =IF(ISNUMBER(H12),H12*I12,IF(H12="-","rate only"," ")) -> 0
A14: item | D14: (b) | F14: 60 mm thick, class 30, Type S-A (placed in herringbone pattern) | G14: m²
A15: IHDR1 | B15: C6.2.2 | F15: Cast in-situ concrete edge and intermediate beams | G15: m³ | H15: 16 | J15: =IF(ISNUMBER(H15),H15*I15,IF(H15="-","rate only"," ")) -> 0
A17: IHDR1 | B17: C6.2.3 | F17: Provision and application of approved herbicide and ant poison:
A19: item | C19: C6.2.3.1 | F19: Provision of materials | G19: PC sum | H19: 1 | I19: 20,000.00 | J19: =IF(ISNUMBER(H19),H19*I19,IF(H19="-","rate only"," ")) -> 20,000.00
A21: item3 | C21: C6.2.3.2 | F21: Contractor’s charges and profit added to the prime cost sum | G21: % | H21: =J19 -> 20000 | J21: =IF(ISNUMBER(H21),H21*I21,IF(H21="-","rate only"," ")) -> 0
A23: IHDR1 | B23: C6.2.4 | F23: Re-sanding of joints in segmental block paving:
A25: IHDR2 | C25: C6.2.4.1 | F25: Concrete block paving:
A27: item | D27: (a) | F27: 80 mm thick, class 30, Type S-A (placed in herringbone pattern) | G27: m² | H27: 400 | J27: =IF(ISNUMBER(H27),H27*I27,IF(H27="-","rate only"," ")) -> 0
A29: item | D29: (b) | F29: 60 mm thick, class 30, Type S-A (placed in herringbone pattern) | G29: m²
A65: #BillEnd#
A66: #BillEnd# | B66: TOTAL CARRIED FORWARD TO SUMMARY | J66: =SUM(J8:J64) -> 20,000.00
A67: #BillEnd#

Sheet 7.1
A1: #BillSheet#
A2: #BillSheet# | B2: C7.1 | C2: REPLACEMENT OF EXISTING JOINT SEALANT | J2: SCHEDULE A
A3: #BillSheet#
A4: ColHDR
A5: ColHDR | B5: ITEM | F5: DESCRIPTION | G5: UNIT | H5: QTY | I5: RATE | J5: AMT
A6: ColHDR
F7: REPLACEMENT OF EXISTING JOINT SEALANT
A8: IHDR1 | B8: C7.1.1 | F8: Replacing of joint sealant in existing concrete pavement as follows:
A10: Item | C10: C7.1.1.1 | F10: Removal of existing seal and backing material | G10: m | H10: 6900 | J10: =IF(ISNUMBER(H10),H10*I10,IF(H10="-","rate only"," ")) -> 0
A12: Item | C12: C7.1.1.2 | F12: Reaming of existing joints (indicate width and depth) | G12: m
A13: Item | C13: C7.1.1.3 | F13: Bevelling of one side of the joint to a dimension of 10 mm X 10 mm | G13: m
A14: Item | C14: C7.1.1.4 | F14: Bevelling of both sides of the joint to a dimension of 10 mm X 10 mm | G14: m
A15: Item | C15: C7.1.1.5 | F15: Installation of backing material in saw cut joints (to fit saw cut dimensions) | G15: m | H15: =H10 -> 6900 | J15: =IF(ISNUMBER(H15),H15*I15,IF(H15="-","rate only"," ")) -> 0
A17: Item | C17: C7.1.1.6 | F17: Installation of cold pour sealant | G17: litre | H17: 5200 | J17: =IF(ISNUMBER(H17),H17*I17,IF(H17="-","rate only"," ")) -> 0
A19: IHDR1
A70: #BillEnd#
A71: #BillEnd# | B71: TOTAL CARRIED FORWARD TO SUMMARY | J71: =SUM(J8:J69) -> 0.00
A72: #BillEnd#

Sheet 7.2
A1: #BillSheet#
A2: #BillSheet# | B2: C7.2 | C2: REPAIR TO CONCRETE PANELS AND CONCRETE ADJACENT TO UNCONTROLLED | J2: SCHEDULE A
A3: #BillSheet# | C3: CRACKS AND EXISTING JOINTS
A4: ColHDR
A5: ColHDR | B5: ITEM | F5: DESCRIPTION | G5: UNIT | H5: QTY | I5: RATE | J5: AMT
A6: ColHDR
F7: REPAIR TO CONCRETE PANELS AND CONCRETE ADJACENT TO UNCONTROLLED CRACKS AND EXISTING JOINTS
A8: IHDR1 | B8: C7.2.1 | F8: Transverse and longitudinal crack and joint repairs incorporating the following treatments
A10: Item | B10: C7.2.1.1 | F10: Routing of active cracks (indicate width and depth) | G10: m
A11: Item | B11: C7.2.1.2 | F11: Routing of non-active cracks (15mm wide by 15mm deep) | G11: m | H11: 350 | J11: =IF(ISNUMBER(H11),H11*I11,IF(H11="-","rate only"," ")) -> 0
A13: Item | B13: C7.2.1.3 | F13: Bevelling of one side of the crack (indicate dimension) | G13: m
A14: Item | B14: C7.2.1.4 | F14: Bevelling of both sides of the crack | G14: m | H14: 350 | J14: =IF(ISNUMBER(H14),H14*I14,IF(H14="-","rate only"," ")) -> 0
A16: Item | B16: C7.2.1.5 | F16: Saw cutting of cracks and joints in one operation (indicate depth and width) | G16: m
A17: Item | B17: C7.2.1.6 | F17: Filling joint reservoir with cementitious non-shrink grout | G17: kg | H17: 25 | J17: =IF(ISNUMBER(H17),H17*I17,IF(H17="-","rate only"," ")) -> 0
A19: Item | B19: C7.2.1.7 | F19: Installation of backing material in saw cut joints (to fit saw cut dimensions) | G19: m
A20: Item | B20: C7.2.1.8 | F20: Installation of cold pour sealant | G20: litre | H20: 350 | J20: =IF(ISNUMBER(H20),H20*I20,IF(H20="-","rate only"," ")) -> 0
A22: IHDR1 | B22: C7.2.2 | F22: Grouting of cracks | G22: m | H22: 350 | J22: =IF(ISNUMBER(H22),H22*I22,IF(H22="-","rate only"," ")) -> 0
A24: IHDR1 | B24: C7.2.3 | F24: Cross-stitching of longitudinal and transverse joints and cracks
A26: Item | B26: C7.2.3.1 | F26: Saw cutting of slots in concrete pavement (indicate dimensions) | G26: No.
A27: Item | B27: C7.2.3.2 | F27: Application of wet-to-dry epoxy to vertical faces and top of existing concrete | G27: litre
A28: Item | B28: C7.2.3.3 | F28: Installation of 16 mm diameter deformed tie-bar (indicate length) including application of selflevelling pourable epoxy grout and 7,1 mm aggregate. | G28: No.
A29: Item | B29: C7.2.3.4 | F29: Filling of slot with high strength concrete Class 50/7,1 mm | G29: m³
A30: IHDR1 | B30: C7.2.4 | F30: Restoration of load transfer at transverse contraction joints
A32: Item | B32: C7.2.4.1 | F32: Saw cutting and preparation of slots in concrete pavement (indicate dimensions) | G32: No.
A33: Item | B33: C7.2.4.2 | F33: Installation of new dowel bars as specified (indicate length and diameter) including application of bond breaker on free end, end caps. | G33: No.
A34: Item | B34: C7.2.4.3 | F34: Filling of slot with high strength concrete Class 50/7,1 mm | G34: No.
A35: IHDR1 | B35: C7.2.5 | F35: Pre-treating existing dowels
A37: Item | B37: C7.2.5.1 | F37: Free ends in existing concrete | G37: No.
A38: Item | B38: C7.2.5.2 | F38: Free ends in new concrete | G38: No.
A39: IHDR1 | B39: C7.2.6 | F39: Texturing and curing the concrete pavement:
A41: IHDR2 | B41: C7.2.6.1 | F41: Burlap-dragged and grooved texture | G41: m²
A43: IHDR2 | B43: C7.2.6.2 | F43: Curing:
A45: Item | F45: (a) Paving train constructed | G45: m²
A46: IHDR1 | B46: C7.2.7 | F46: Variation in the rate of application of the curing compound | G46: litre
A48: IHDR1 | B48: C7.2.8 | F48: Steel reinforcement in concrete pavements:
A50: Item | B50: C7.2.8.1 | F50: Mild steel bars | G50: t
A51: Item | B51: C7.2.8.2 | F51: High tensile steel bars | G51: t
A52: Item | B52: C7.2.8.3 | F52: Welded steel fabric | G52: kg
A98: #BillEnd#
A99: #BillEnd# | B99: TOTAL CARRIED FORWARD TO SUMMARY | J99: =SUM(J8:J97) -> 0.00
A100: #BillEnd#

Sheet 7.3
A1: #BillSheet#
A2: #BillSheet# | B2: C7.3 | C2: REMOVAL AND REINSTATEMENT OF EXISTING CONCRETE LAYERS | J2: SCHEDULE A
A3: #BillSheet#
A4: ColHDR
A5: ColHDR | B5: ITEM | F5: DESCRIPTION | G5: UNIT | H5: QTY | I5: RATE | J5: AMT
A6: ColHDR
F7: REMOVAL AND REINSTATEMENT OF EXISTING CONCRETE LAYERS
A8: IHDR1 | B8: C7.3.1 | F8: Removal of concrete in rehabilitation work:
A10: Item | C10: C7.3.1.1 | F10: Concrete without reinforcing | G10: m³ | H10: 250 | J10: =IF(ISNUMBER(H10),H10*I10,IF(H10="-","rate only"," ")) -> 0
A12: Item | C12: C7.3.1.2 | F12: Reinforced concrete | G12: m³ | H12: 200 | J12: =IF(ISNUMBER(H12),H12*I12,IF(H12="-","rate only"," ")) -> 0
A14: Item | C14: C7.3.1.3 | F14: Underlying layers | G14: m³
A15: IHDR1 | B15: C7.3.2 | F15: Full depth repairs using hand placed concrete with CEM I 52,5 | G15: m³ | H15: 450 | J15: =IF(ISNUMBER(H15),H15*I15,IF(H15="-","rate only"," ")) -> 0
A17: IHDR1 | B17: C7.3.3 | F17: Partial Depth Repairs using hand placed fine concrete | G17: m³ | H17: 250 | J17: =IF(ISNUMBER(H17),H17*I17,IF(H17="-","rate only"," ")) -> 0
A19: IHDR1 | B19: C7.3.4 | F19: Tie-bars and dowels for full depth repairs:
A21: Item | C21: C7.3.4.1 | F21: Tie bars (indicate diameter and length) | G21: No.
A22: Item | C22: C7.3.4.2 | F22: Dowel bars (indicate diameter and length) | G22: No.
A23: IHDR1 | B23: C7.3.5 | F23: Partial Depth Repairs using hand placed acrylic resin grout | G23: m²
A25: IHDR1 | B25: C7.3.6 | F25: Reinstating the subbase with lean mix concrete | G25: m³ | H25: 200 | J25: =IF(ISNUMBER(H25),H25*I25,IF(H25="-","rate only"," ")) -> 0
A27: IHDR1 | B27: C7.3.7 | F27: Removal of exposed stitches in concrete pavement | G27: No.
A29: IHDR1 | B29: C7.3.8 | F29: Sawing of concrete in rehabilitation works to different depths:
A31: Item | C31: C7.3.8.1 | F31: 200 mm | G31: m | H31: 150 | J31: =IF(ISNUMBER(H31),H31*I31,IF(H31="-","rate only"," ")) -> 0
A33: IHDR1 | B33: C7.3.9 | F33: Removal of existing supporting layers in rehabilitation work:
A35: Item | C35: C7.3.9.1 | F35: Granular material | G35: m³ | H35: 200 | J35: =IF(ISNUMBER(H35),H35*I35,IF(H35="-","rate only"," ")) -> 0
A37: Item | C37: C7.3.9.2 | F37: Cemented material | G37: m³ | H37: 200 | J37: =IF(ISNUMBER(H37),H37*I37,IF(H37="-","rate only"," ")) -> 0
A38: Item
A39: IHDR1 | B39: C7.3.10 | F39: Preparing the underlying layers after the concrete has been removed:
A41: Item | C41: C7.3.10.1 | F41: Re-compaction of remaining underlying layers | G41: m² | H41: 2900 | J41: =IF(ISNUMBER(H41),H41*I41,IF(H41="-","rate only"," ")) -> 0
A43: Item | C43: C7.3.10.2 | F43: Replacement of granular layers (material class and thickness indicated) | G43: m²
A44: Item | C44: C7.3.10.3 | F44: Replacement of stabilised layers (material class and thickness indicated) | G44: m²
A45: Item | C45: C7.3.10.4 | F45: Replacement of supporting layers with 10 MPa lean mix concrete (material class and thickness indicated) | G45: m²
A46: Item | C46: C7.3.10.5 | F46: Replacement of subbase with hot mix asphalt (thickness indicated) | G46: t
A47: Item | C47: C7.3.10.6 | F47: Levelling the surface with coarse slurry (micro surfacing) | G47: m³
A48: IHDR1 | B48: C7.3.11 | F48: Reinstatement of concrete layers (Excluding texturing and curing):
A50: Item | C50: C7.3.11.1 | F50: Replacement of concrete in JCP pavements (200mm) | G50: m² | H50: 2900 | J50: =IF(ISNUMBER(H50),H50*I50,IF(H50="-","rate only"," ")) -> 0
A52: Item | C52: C7.3.11.2 | F52: Replacement concrete in CRCP pavements (thickness indicated) | G52: m²
A53: IHDR1 | B53: C7.3.12 | F53: Pre-treating existing dowels:
A55: Item | C55: C7.3.12.1 | F55: Free ends in existing concrete | G55: No.
A56: Item | C56: C7.3.12.2 | F56: Free ends in new concrete | G56: No.
A57: IHDR1 | B57: C7.3.13 | F57: Texturing and curing the concrete pavement:
A59: Item | C59: C7.3.13.1 | F59: Burlap-dragged and texture (broom finish) | G59: m² | H59: =H50 -> 2900 | J59: =IF(ISNUMBER(H59),H59*I59,IF(H59="-","rate only"," ")) -> 0
A61: Item | C61: C7.3.13.2 | F61: Curing | G61: m²
A62: IHDR1 | B62: C7.3.14 | F62: Variation in the rate of application of the curing compound | G62: litre
A64: IHDR1 | B64: C7.3.15 | F64: Steel reinforcement in concrete pavements:
A66: Item | C66: C7.3.15.1 | F66: Mild steel bars | G66: t | H66: 0.5 | J66: =IF(ISNUMBER(H66),H66*I66,IF(H66="-","rate only"," ")) -> 0
A68: Item | C68: C7.3.15.2 | F68: High tensile steel bars | G68: t | H68: 0.5
A70: Item | C70: C7.3.15.3 | F70: Welded steel fabric | G70: kg
A71: IHDR1
A82: #BillEnd#
A83: #BillEnd# | B83: TOTAL CARRIED FORWARD TO SUMMARY | J83: =SUM(J8:J81) -> 0.00
A84: #BillEnd#

Sheet 7.4 (hidden)
A1: #BillSheet#
A2: #BillSheet# | B2: C7.4 | C2: REINSTATEMENT OF SLAB SUPPORT BY GROUT INJECTION | J2: SCHEDULE A | K2: =SUBTOTAL(9,M$7:M1032) -> 0 | M2: =J2 -> SCHEDULE A
A3: #BillSheet#
A4: ColHDR
A5: ColHDR | B5: ITEM | F5: DESCRIPTION | G5: UNIT | H5: QTY | I5: RATE | J5: AMT | L5: RATE | M5: AMOUNT
A6: ColHDR
F7: REINSTATEMENT OF SLAB SUPPORT BY GROUT INJECTION
A8: IHDR1 | B8: C7.4.1 | F8: Sub-sealing of the concrete pavement | G8: No. of 50 kg cement pockets | M8: =IF(ISNUMBER(H8),L8*H8,IF(ISNUMBER(J8),J8,IF(J8="RATE ONLY",LOWER("RATE ONLY")," "))) -> 
A60: #BillEnd#
A61: #BillEnd# | B61: TOTAL CARRIED FORWARD TO SUMMARY | M61: =SUBTOTAL(9,M$7:M9) -> 0
A62: #BillEnd#

Sheet 7.5 (hidden)
A1: #BillSheet#
A2: #BillSheet# | B2: C7.5 | C2: REINSTATEMENT OF RIDING QUALITY | J2: SCHEDULE A | K2: =SUBTOTAL(9,M$7:M1042) -> 0 | M2: =J2 -> SCHEDULE A
A3: #BillSheet#
A4: ColHDR
A5: ColHDR | B5: ITEM | F5: DESCRIPTION | G5: UNIT | H5: QTY | I5: RATE | J5: AMT | L5: RATE | M5: AMOUNT
A6: ColHDR
F7: REINSTATEMENT OF RIDING QUALITY
A8: IHDR1 | B8: C7.5.1 | F8: Grinding of existing concrete pavement surfaces | G8: m² | M8: =IF(ISNUMBER(H8),L8*H8,IF(ISNUMBER(J8),J8,IF(J8="RATE ONLY",LOWER("RATE ONLY")," "))) -> 
A60: #BillEnd#
A61: #BillEnd# | B61: TOTAL CARRIED FORWARD TO SUMMARY | M61: =SUBTOTAL(9,M$7:M9) -> 0
A62: #BillEnd#

Sheet 7.6 (hidden)
A1: #BillSheet#
A2: #BillSheet# | B2: C7.6 | C2: REINSTATEMENT OF SURFACE TEXTURE | J2: SCHEDULE A | K2: =SUBTOTAL(9,M$7:M966) -> 0 | M2: =J2 -> SCHEDULE A
A3: #BillSheet#
A4: ColHDR
A5: ColHDR | B5: ITEM | F5: DESCRIPTION | G5: UNIT | H5: QTY | I5: RATE | J5: AMT | L5: RATE | M5: AMOUNT
A6: ColHDR
F7: REINSTATEMENT OF SURFACE TEXTURE
A8: IHDR1 | B8: C7.6.1 | F8: Retexturing of concrete surfaces (transverse or longitudinal) | G8: m² | M8: =IF(ISNUMBER(H8),L8*H8,IF(ISNUMBER(J8),J8,IF(J8="RATE ONLY",LOWER("RATE ONLY")," "))) -> 
A60: #BillEnd#
A61: #BillEnd# | B61: TOTAL CARRIED FORWARD TO SUMMARY | M61: =SUBTOTAL(9,M$7:M9) -> 0
A62: #BillEnd#

Sheet 8.1
A1: #BillSheet#
A2: #BillSheet# | B2: C8.1 | C2: PRIME COAT | J2: SCHEDULE A
A3: #BillSheet#
A4: ColHDR
A5: ColHDR | B5: ITEM | F5: DESCRIPTION | G5: UNIT | H5: QTY | I5: RATE | J5: AMT
A6: ColHDR
F7: PRIME COAT
A8: IHDR1 | B8: C8.1.1 | F8: Prime coat:
O10: N17 | P10: Ramps | Q10: Crossroad
A11: Item | C11: C8.1.1.1 | F11: MC -10 cut-back bitumen | G11: litre | N11: Area | O11: 43,364.69 | P11: 55,341.60 | Q11: 10,696.80
N12: Total | O12: =ROUNDUP(O11:Q11,-1) -> 43,370.00 | P12: 55350 | Q12: 10700
A13: Item | C13: C8.1.1.2 | F13: MC -30 cut-back bitumen | G13: litre | H13: 43800 | J13: =IF(ISNUMBER(H13),H13*I13,IF(H13="-","rate only"," ")) -> 0
A15: Item | C15: C8.1.1.3 | F15: Inverted bitumen emulsion | G15: litre | H15: 43800 | J15: =IF(ISNUMBER(H15),H15*I15,IF(H15="-","rate only"," ")) -> 0
A17: Item | C17: C8.1.1.4 | F17: Certified product containing solvents (State name) | G17: litre
A18: Item | C18: C8.1.1.5 | F18: Certified product containing no solvents (State name) | G18: litre
A19: IHDR1 | B19: C8.1.2 | F19: Aggregate for blinding:
A21: Item | C21: C8.1.2.1 | F21: Natural sand | G21: m³ | H21: 100 | J21: =IF(ISNUMBER(H21),H21*I21,IF(H21="-","rate only"," ")) -> 0
A23: Item | C23: C8.1.2.2 | F23: Crusher sand | G23: m³ | H23: 100 | J23: =IF(ISNUMBER(H23),H23*I23,IF(H23="-","rate only"," ")) -> 0
A25: IHDR1 | B25: C8.1.3 | F25: Extra over item C8.1.1 for applying the prime coat accessible only to hand-held or light equipment | G25: litre | H25: 200 | J25: =IF(ISNUMBER(H25),H25*I25,IF(H25="-","rate only"," ")) -> 0
A72: #BillEnd#
A73: #BillEnd# | B73: TOTAL CARRIED FORWARD TO SUMMARY | J73: =SUM(J8:J71) -> 0.00
A74: #BillEnd#

Sheet 8.2 (hidden)
A1: #BillSheet#
A2: #BillSheet# | B2: C8.2 | C2: COVER SPRAYS, FOG SPRAYS AND REJUVENATION SPRAYS | J2: SCHEDULE A | K2: =SUBTOTAL(9,M$7:M978) -> 0 | M2: =J2 -> SCHEDULE A
A3: #BillSheet#
A4: ColHDR
A5: ColHDR | B5: ITEM | F5: DESCRIPTION | G5: UNIT | H5: QTY | I5: RATE | J5: AMT | L5: RATE | M5: AMOUNT
A6: ColHDR
F7: COVER SPRAYS, FOG SPRAYS AND REJUVENATION SPRAYS
A8: IHDR1 | B8: C8.2.1 | F8: Cover sprays, fog sprays and rejuvenation sprays: | M8: =IF(ISNUMBER(H8),L8*H8,IF(ISNUMBER(J8),J8,IF(J8="RATE ONLY",LOWER("RATE ONLY")," "))) -> 
A9: IHDR2 | C9: C8.2.1.1 | F9: 65 % Cationic spray grade emulsion:
A10: Item | D10: (a) | F10: Indicate dilution (Diluted ..% Emulsion/…% Water) | G10: litre
A11: IHDR2 | C11: C8.2.1.2 | F11: 60 % Anionic stable grade emulsion:
A12: Item | D12: (a) | F12: Indicate dilution (Diluted ..% Emulsion/…% Water) | G12: litre
A13: IHDR2 | C13: C8.2.1.3 | F13: Cutback Inverted bitumen emulsion | G13: litre
A14: IHDR2 | C14: C8.2.1.4 | F14: Certified rejuvenator (State type and certification) | G14: litre
A15: IHDR1 | B15: C8.2.2 | F15: Extra over item C8.2.1 for labour enhanced application:
A16: IHDR2 | C16: C8.2.2.1 | F16: 65 % Cationic spray grade emulsion:
A17: Item | D17: (a) | F17: Indicate dilution (Diluted ..% Emulsion/…% Water) | G17: litre
A18: IHDR2 | C18: C8.2.2.2 | F18: 60 % Anionic stable grade emulsion:
A19: Item | D19: (a) | F19: Indicate dilution (Diluted ..% Emulsion/…% Water) | G19: litre
A20: IHDR2 | C20: C8.2.2.3 | F20: Cutback Inverted bitumen emulsion | G20: litre
A21: IHDR2 | C21: C8.2.2.4 | F21: Certified rejuvenator (State type and certification) | G21: litre
A22: #BillEnd#
A23: #BillEnd# | B23: TOTAL CARRIED FORWARD TO SUMMARY | M23: =SUBTOTAL(9,M$9:M21) -> 0
A24: #BillEnd#

Sheet 8.3 (hidden)
A1: #BillSheet#
A2: #BillSheet# | B2: C8.3 | C2: TEXTURE TREATMENT | J2: SCHEDULE A | K2: =SUBTOTAL(9,M$7:M972) -> 0 | M2: =J2 -> SCHEDULE A
A3: #BillSheet#
A4: ColHDR
A5: ColHDR | B5: ITEM | F5: DESCRIPTION | G5: UNIT | H5: QTY | I5: RATE | J5: AMT | L5: RATE | M5: AMOUNT
A6: ColHDR
F7: TEXTURE TREATMENT
A8: IHDR1 | B8: C8.3.1 | F8: Texture treatment: | M8: =IF(ISNUMBER(H8),L8*H8,IF(ISNUMBER(J8),J8,IF(J8="RATE ONLY",LOWER("RATE ONLY")," "))) -> 
C9: C8.3.1.1 | F9: Application of slurry for texture improvement, applied by hand (Indicate aggregate grade, type of emulsion, filler type) | G9: m³ | M9: =IF(ISNUMBER(H9),L9*H9,IF(ISNUMBER(J9),J9,IF(J9="RATE ONLY",LOWER("RATE ONLY")," "))) -> 
A10: Item | C10: C8.3.1.2 | F10: Application of slurry for texture improvement, applied by spreader box (Indicate aggregate grade, type of emulsion, filler type) | G10: m³ | M10: =IF(ISNUMBER(H10),L10*H10,IF(ISNUMBER(J10),J10,IF(J10="RATE ONLY",LOWER("RATE ONLY")," "))) -> 
A11: Item | C11: C8.3.1.3 | F11: Application of microsurfacing for texture improvement, applied by spreader box (Indicate aggregate grade, type of emulsion, filler type) | G11: m³ | M11: =IF(ISNUMBER(H11),L11*H11,IF(ISNUMBER(J11),J11,IF(J11="RATE ONLY",LOWER("RATE ONLY")," "))) -> 
A12: #BillEnd#
A13: #BillEnd# | B13: TOTAL CARRIED FORWARD TO SUMMARY | M13: =SUBTOTAL(9,M$9:M11) -> 0
A14: #BillEnd#

Sheet 8.4 (hidden)
A1: #BillSheet#
A2: #BillSheet# | B2: C8.4 | C2: RUT AND/OR DEPRESSION CORRECTION | J2: SCHEDULE A | K2: =SUBTOTAL(9,M$7:M1008) -> 0 | M2: =J2 -> SCHEDULE A
A3: #BillSheet#
A4: ColHDR
A5: ColHDR | B5: ITEM | F5: DESCRIPTION | G5: UNIT | H5: QTY | I5: RATE | J5: AMT | L5: RATE | M5: AMOUNT
A6: ColHDR
F7: RUT AND/OR DEPRESSION CORRECTION
A8: IHDR1 | B8: C8.4.1 | F8: Rut and/or Depression correction (screeding): | M8: =IF(ISNUMBER(H8),L8*H8,IF(ISNUMBER(J8),J8,IF(J8="RATE ONLY",LOWER("RATE ONLY")," "))) -> 
A9: IHDR2 | C9: C8.4.1.1 | F9: Bond coat using 50 % diluted stable grade bitumen emulsion | G9: litre
A10: IHDR2 | C10: C8.4.1.2 | F10: Correction material:
A11: Item | D11: (a) | F11: Continuously-graded asphalt (State Nominal maximum aggregate size and binder type) | G11: t
A12: Item | D12: (b) | F12: Semi-gap graded asphalt (State Nominal maximum aggregate size and binder type) | G12: t
A13: Item | D13: (c) | F13: Cold applied asphalt (Agrément SA certified for specific class as specified) | G13: t
A14: Item | D14: (d) | F14: Coarse slurry (state aggregate grade and emulsion type) | G14: m³
A15: Item | D15: (e) | F15: Microsurfacing (state aggregate grade and binder type) | G15: m³
A16: #BillEnd#
A17: #BillEnd# | B17: TOTAL CARRIED FORWARD TO SUMMARY | M17: =SUBTOTAL(9,M$10:M15) -> 0
A18: #BillEnd#

Sheet 8.5
A1: #BillSheet#
A2: #BillSheet# | B2: C8.5 | C2: STANDARD CRACK SEALING | J2: SCHEDULE A
A3: #BillSheet#
A4: ColHDR
A5: ColHDR | B5: ITEM | F5: DESCRIPTION | G5: UNIT | H5: QTY | I5: RATE | J5: AMT
A6: ColHDR
F7: STANDARD CRACK SEALING
A8: IHDR1 | B8: C8.5.1 | F8: Standard crack sealing:
A10: IHDR2 | C10: C8.5.1.1 | F10: Cleaning cracks:
A12: Item | D12: (a) | F12: Cleaning crack with cold compressed air | G12: m | H12: 50000 | J12: =IF(ISNUMBER(H12),H12*I12,IF(H12="-","rate only"," ")) -> 0
A14: Item | D14: (b) | F14: Cleaning crack with hot compressed air | G14: m
A15: IHDR2 | C15: C8.5.1.2 | F15: Applying herbicides for sealing cracks | G15: litre
A17: IHDR2 | C17: C8.5.1.3 | F17: Priming (indicate primer) | G17: litre
A19: IHDR2 | C19: C8.5.1.4 | F19: Sealing the cracks:
A21: Item | D21: (a) | F21: Sealing using (Class C-E1 or similar approved) | G21: litre | H21: 30000 | J21: =IF(ISNUMBER(H21),H21*I21,IF(H21="-","rate only"," ")) -> 0
A23: IHDR2 | C23: C8.5.1.5 | F23: Heating of surface before rolling | G23: m
A25: IHDR2 | C25: C8.5.1.6 | F25: Rolling the cracks | G25: m
A77: #BillEnd#
A78: #BillEnd# | B78: TOTAL CARRIED FORWARD TO SUMMARY | J78: =SUM(J8:J76) -> 0.00
A79: #BillEnd#

Sheet 8.7 (hidden)
A1: #BillSheet#
A2: #BillSheet# | B2: C8.7 | C2: PLANING | J2: SCHEDULE A | K2: =SUBTOTAL(9,M$7:M931) -> 0 | M2: =J2 -> SCHEDULE A
A3: #BillSheet#
A4: ColHDR
A5: ColHDR | B5: ITEM | F5: DESCRIPTION | G5: UNIT | H5: QTY | I5: RATE | J5: AMT | L5: RATE | M5: AMOUNT
A6: ColHDR
F7: PLANING
A8: IHDR1 | B8: C8.7.1 | F8: Planing: | M8: =IF(ISNUMBER(H8),L8*H8,IF(ISNUMBER(J8),J8,IF(J8="RATE ONLY",LOWER("RATE ONLY")," "))) -> 
A9: Item | C9: C8.7.1.1 | F9: Planing of road surface (Indicate thickness in mm) | G9: m²
A10: Item | C10: C8.7.1.2 | F10: Fog spraying on planed surfaces | G10: litre
A11: Item | C11: C8.7.1.3 | F11: Hand spraying | G11: litre
A12: Item | C12: C8.7.1.4 | F12: Spraying with mechanical equipment | G12: litre
A13: Item | C13: C8.7.1.5 | F13: Rolling the planed surface | G13: m²-pass
A14: #BillEnd#
A15: #BillEnd# | B15: TOTAL CARRIED FORWARD TO SUMMARY | M15: =SUBTOTAL(9,M$10:M13) -> 0
A16: #BillEnd#

Sheet 8.6
A1: #BillSheet#
A2: #BillSheet# | B2: C8.6 | C2: GEOSYNTHETIC CRACK SEALING | J2: SCHEDULE A
A3: #BillSheet#
A4: ColHDR
A5: ColHDR | B5: ITEM | F5: DESCRIPTION | G5: UNIT | H5: QTY | I5: RATE | J5: AMT
A6: ColHDR
F7: GEOSYNTHETIC CRACK SEALING
A8: IHDR1 | B8: C8.6.1 | F8: Geosynthetic crack sealing:
A10: Item | C10: C8.6.1.1 | F10: Sealing cracks with 200 mm wide geosynthetic (specify type of emulsion) | G10: m
A11: Item | C11: C8.6.1.2 | F11: Sealing cracks with geosynthetic over areas | G11: m² | H11: 20000 | J11: =IF(ISNUMBER(H11),H11*I11,IF(H11="-","rate only"," ")) -> 0
B13: PC8.6.2 | F13: Bituminous binder variation
C15: PC8.6.2.1 | F15: Bitumen emulsion (Cat 60) | G15: litre | H15: 40 | J15: =IF(ISNUMBER(H15),H15*I15,IF(H15="-","rate only"," ")) -> 0
A70: #BillEnd#
A71: #BillEnd# | B71: TOTAL CARRIED FORWARD TO SUMMARY | J71: =SUM(J8:J69) -> 0.00
A72: #BillEnd#

Sheet 8.8
A1: #BillSheet#
A2: #BillSheet# | B2: C8.8 | C2: PATCHING AND EDGE BREAK REPAIR | J2: SCHEDULE A
A3: #BillSheet#
A4: ColHDR
A5: ColHDR | B5: ITEM | F5: DESCRIPTION | G5: UNIT | H5: QTY | I5: RATE | J5: AMT
A6: ColHDR
F7: PATCHING AND EDGE BREAK REPAIR
A8: IHDR1 | B8: C8.8.1 | F8: Saw cutting pavement layers for patching:
A10: IHDR2 | C10: C8.8.1.1 | F10: Asphalt or bituminous surfacing to an average depth:
A12: Item | D12: (a) | F12: Not exceeding 50 mm | G12: m | H12: 1500 | J12: =IF(ISNUMBER(H12),H12*I12,IF(H12="-","rate only"," ")) -> 0
A14: Item | D14: (b) | F14: Exceeding 50 mm but not exceeding 100 mm | G14: m | H14: 2500 | J14: =IF(ISNUMBER(H14),H14*I14,IF(H14="-","rate only"," ")) -> 0
A16: Item | D16: (c) | F16: Exceeding 100 mm | G16: m | H16: 3200 | J16: =IF(ISNUMBER(H16),H16*I16,IF(H16="-","rate only"," ")) -> 0
A18: IHDR2 | C18: C8.8.1.2 | F18: Cemented pavement layers to an average depth:
A20: Item | D20: (a) | F20: Not exceeding 100 mm | G20: m
A21: Item | D21: (b) | F21: Exceeding 100 mm but not exceeding 200 mm | G21: m
A22: Item | D22: (c) | F22: Exceeding 200 mm | G22: m
A23: IHDR2 | C23: C8.8.1.3 | F23: Granular layers to an average depth:
A25: Item | D25: (a) | F25: Not exceeding 100 mm | G25: m
A26: Item | D26: (b) | F26: Not exceeding 200 mm | G26: m
A27: Item | D27: (c) | F27: Exceeding 200 mm | G27: m
A28: IHDR1 | B28: C8.8.2 | F28: Excavation in existing pavements for patching (non-milling):
A30: IHDR2 | C30: C8.8.2.1 | F30: Asphalt layers:
A32: Item | D32: (a) | F32: Not exceeding 10 m² including for edge repairs wider than 250 mm | G32: m³ | H32: 880 | J32: =IF(ISNUMBER(H32),H32*I32,IF(H32="-","rate only"," ")) -> 0
A34: Item | D34: (b) | F34: Exceeding 10 m² but not exceeding 50 m² including for edge repairs wider than 250 mm | G34: m³ | H34: 1760 | J34: =IF(ISNUMBER(H34),H34*I34,IF(H34="-","rate only"," ")) -> 0
A36: Item | D36: (c) | F36: Exceeding 50 m² up to 100 m² including for edge repairs wider than 250 mm | G36: m³ | H36: 1760 | J36: =IF(ISNUMBER(H36),H36*I36,IF(H36="-","rate only"," ")) -> 0
A38: Item | D38: (d) | F38: Exceeding 100 m² | G38: m³ | H38: 4380 | J38: =IF(ISNUMBER(H38),H38*I38,IF(H38="-","rate only"," ")) -> 0
A40: IHDR2 | C40: C8.8.2.2 | F40: Cemented layers:
A42: Item | D42: (a) | F42: Not exceeding 10 m² including for edge repairs wider than 250 mm | G42: m³
A43: Item | D43: (b) | F43: Exceeding 10 m² but not exceeding 50 m² including for edge repairs wider than 250 mm | G43: m³
A44: Item | D44: (c) | F44: Exceeding 50 m² up to 100 m² including for edge repairs wider than 250 mm | G44: m³
A45: Item | D45: (d) | F45: Exceeding 100 m² | G45: m³
A46: IHDR2 | C46: C8.8.2.3 | F46: Other layers (granular):
A48: Item | D48: (a) | F48: Not exceeding 10 m² including for edge repairs wider than 250 mm | G48: m³ | H48: 1650 | J48: =IF(ISNUMBER(H48),H48*I48,IF(H48="-","rate only"," ")) -> 0
A50: Item | D50: (b) | F50: Exceeding 10 m² but not exceeding 50 m² including for edge repairs wider than 250 mm | G50: m³ | H50: 3290 | J50: =IF(ISNUMBER(H50),H50*I50,IF(H50="-","rate only"," ")) -> 0
